{"text_format":"3","workbook":"xlsx","n_sheets":3,"sheets":["Шаблон","Перечень мероприятий","План_сводная"],"not_rendered":{"macros":1,"external_links":1,"defined_names":41,"comments":1},"read":"whole","date_system":"1900"}

{"sheet":"Шаблон","index":0,"n_rows":215,"n_cols":124,"rows_kept":215,"merged":[[0,0,1,0],[0,1,1,1],[0,2,1,2],[0,3,1,3],[0,4,1,4],[0,5,1,5],[0,6,1,6],[0,7,1,7],[0,8,1,8],[0,9,1,9],[0,10,1,10],[0,11,1,11],[0,12,1,12],[0,13,1,13],[0,14,1,14],[0,15,1,15],[0,16,1,16],[0,17,1,17],[0,18,1,18],[0,19,1,19],[0,20,1,20],[0,21,1,21],[0,22,1,22],[0,23,1,23],[0,24,1,24],[0,25,1,25],[0,26,1,26],[0,27,1,27],[0,28,1,28],[0,29,0,33],[0,34,0,38],[0,39,0,43],[0,44,0,48],[0,49,0,53],[0,54,0,58],[0,59,0,63],[0,64,0,68],[0,69,0,73],[0,74,0,78],[0,79,0,83],[0,84,0,88],[0,89,0,93],[0,94,0,98],[0,99,0,103],[0,104,0,108],[0,109,0,113],[0,114,0,118],[0,119,0,123],[2,29,2,33],[2,34,2,38],[2,39,2,43],[2,44,2,48],[2,49,2,53],[2,54,2,58],[2,59,2,63],[2,64,2,68],[2,69,2,73],[2,74,2,78],[2,79,2,83],[2,84,2,88],[2,89,2,93],[2,94,2,98],[2,99,2,103],[2,104,2,108],[2,109,2,113],[2,114,2,118],[2,119,2,123]]}
["Код ИУСПТ","Учеб. заведения корп.обуч","Место обучения","Категория обучающихся","Код программы ИУСПТ","Сокращенное название в ИУСПТ","Образовательная программа","Вид обучения в ИУСПТ","Вид обучения (дополнительно)","Направление обучения","Модульное обучение","Краткосрочное обучение","Теория, продолжительность дни","Теория, продолжительность часы","Практика, продолжительность дни","Практика, продолжительность часы","Начало обучения","Окончание обучения","Мин. План","Опт. План","Макс. План","Суточные","Проживание","Проезд","ВСЕГО ком. расходы: ∑ 22+23+24","Стоимость обучения на 1 работника","ВСЕГО расходы на Обучение и ком. расходы: ∑ 25+(26х28)","Итоговое значение ФИО:  ∑ 30:48","Количество иногородних: ∑ 31+32+33+34+35+36+39+40+41+42+44+46","Администрация",{"$nulls":4},"Алмазное линейное производственное управление магистральных газопроводов",{"$nulls":4},"Бардымское линейное производственное управление магистральных газопроводов",{"$nulls":4},"Березниковское линейное производственное управление магистральных газопроводов",{"$nulls":4},"Воткинское линейное производственное управление магистральных газопроводов",{"$nulls":4},"Горнозаводское линейное производственное управление магистральных газопроводов",{"$nulls":4},"Гремячинское линейное производственное управление магистральных газопроводов",{"$nulls":4},"Инженерно-технический центр филиал",{"$nulls":4},"Культурно-спортивный центр",{"$nulls":4},"Кунгурское линейное производственное управление магистральных газопроводов",{"$nulls":4},"Можгинское линейное производственное управление магистральных газопроводов",{"$nulls":4},"Очерское линейное производственное управление магистральных газопроводов",{"$nulls":4},"Пермское линейное производственное управление магистральных газопроводов",{"$nulls":4},"Служба корпоративной защиты",{"$nulls":4},"Увинское линейное производственное управление магистральных газопроводов",{"$nulls":4},"Управление аварийно-восстановительных работ №1",{"$nulls":4},"Управление аварийно-восстановительных работ №2",{"$nulls":4},"Управление материально-технического снабжения и комплектации",{"$nulls":4},"Чайковское линейное производственное управление магистральных газопроводов"]
[{"$nulls":29},"Кол-во, чел.","Суточные, руб.","Проживание, руб.","Проезд, руб.","Всего ком. расходы, руб.","Кол-во, чел.","Суточные, руб.","Проживание, руб.","Проезд, руб.","Всего ком. расходы, руб.","Кол-во, чел.","Суточные, руб.","Проживание, руб.","Проезд, руб.","Всего ком. расходы, руб.","Кол-во, чел.","Суточные, руб.","Проживание, руб.","Проезд, руб.","Всего ком. расходы, руб.","Кол-во, чел.","Суточные, руб.","Проживание, руб.","Проезд, руб.","Всего ком. расходы, руб.","Кол-во, чел.","Суточные, руб.","Проживание, руб.","Проезд, руб.","Всего ком. расходы, руб.","Кол-во, чел.","Суточные, руб.","Проживание, руб.","Проезд, руб.","Всего ком. расходы, руб.","Кол-во, чел.","Суточные, руб.","Проживание, руб.","Проезд, руб.","Всего ком. расходы, руб.","Кол-во, чел.","Суточные, руб.","Проживание, руб.","Проезд, руб.","Всего ком. расходы, руб.","Кол-во, чел.","Суточные, руб.","Проживание, руб.","Проезд, руб.","Всего ком. расходы, руб.","Кол-во, чел.","Суточные, руб.","Проживание, руб.","Проезд, руб.","Всего ком. расходы, руб.","Кол-во, чел.","Суточные, руб.","Проживание, руб.","Проезд, руб.","Всего ком. расходы, руб.","Кол-во, чел.","Суточные, руб.","Проживание, руб.","Проезд, руб.","Всего ком. расходы, руб.","Кол-во, чел.","Суточные, руб.","Проживание, руб.","Проезд, руб.","Всего ком. расходы, руб.","Кол-во, чел.","Суточные, руб.","Проживание, руб.","Проезд, руб.","Всего ком. расходы, руб.","Кол-во, чел.","Суточные, руб.","Проживание, руб.","Проезд, руб.","Всего ком. расходы, руб.","Кол-во, чел.","Суточные, руб.","Проживание, руб.","Проезд, руб.","Всего ком. расходы, руб.","Кол-во, чел.","Суточные, руб.","Проживание, руб.","Проезд, руб.","Всего ком. расходы, руб.","Кол-во, чел.","Суточные, руб.","Проживание, руб.","Проезд, руб.","Всего ком. расходы, руб."]
["1",2,3,{"$f":"C3+1","v":4},{"$f":"D3+1","v":5},6,7,8,9,10,11,12,13,14,15,16,17,18,19,20,21,22,23,24,25,26,27,28,29,{"$f":"AC3+1","v":30},{"$nulls":4},{"$f":"AD3+1","v":31},{"$nulls":4},{"$f":"AI3+1","v":32},{"$nulls":4},{"$f":"AN3+1","v":33},{"$nulls":4},{"$f":"AS3+1","v":34},{"$nulls":4},{"$f":"AX3+1","v":35},{"$nulls":4},{"$f":"BC3+1","v":36},{"$nulls":4},{"$f":"BH3+1","v":37},{"$nulls":4},{"$f":"BM3+1","v":38},{"$nulls":4},{"$f":"BR3+1","v":39},{"$nulls":4},{"$f":"BW3+1","v":40},{"$nulls":4},{"$f":"CB3+1","v":41},{"$nulls":4},{"$f":"CG3+1","v":42},{"$nulls":4},{"$f":"CL3+1","v":43},{"$nulls":4},{"$f":"CQ3+1","v":44},{"$nulls":4},{"$f":"CV3+1","v":45},{"$nulls":4},{"$f":"DA3+1","v":46},{"$nulls":4},{"$f":"DF3+1","v":47},{"$nulls":4},{"$f":"DK3+1","v":48}]
[34243,"УПЦ ООО \"Газпром трансгаз Чайковский\"","ООО \"Газпром трансгаз Чайковский\"","Обучение рабочих","СварСоед40","Методы контроля сварных соединений 40ч.","Методы контроля сварных соединений (40ч.)","Повышение квалификации (РАБ)",null,"Другие целевые программы (руководители, специалисты, рабочие)",null,null,5,40,0,0,"28.10.2024","01.11.2024",7,20,20,2500,10000,2000,{"$f":"SUM(V4,W4,X4)","v":14500},0,{"$f":"Y4+(Z4*AB4)","v":14500},{"$f":"SUM(AD4,AI4,AN4,AS4,AX4,BC4,BH4,BM4,BR4,BW4,CB4,CG4,CL4,CQ4,CV4,DA4,DF4,DK4,DP4)","v":8},{"$f":"SUM(AI4,AN4,AS4,AX4,BC4,BH4,BW4,CB4,CG4,CL4,CV4,DF4)","v":0},{"$nulls":4},{"$f":"SUM(AE4,AF4,AG4)","v":0},{"$nulls":4},{"$f":"SUM(AJ4,AK4,AL4)","v":0},{"$nulls":4},{"$f":"SUM(AO4,AP4,AQ4)","v":0},{"$nulls":4},{"$f":"SUM(AT4,AU4,AV4)","v":0},{"$nulls":4},{"$f":"SUM(AY4,AZ4,BA4)","v":0},{"$nulls":4},{"$f":"SUM(BD4,BE4,BF4)","v":0},{"$nulls":4},{"$f":"SUM(BI4,BJ4,BK4)","v":0},8,2500,10000,2000,{"$f":"SUM(BN4,BO4,BP4)","v":14500},{"$nulls":4},{"$f":"SUM(BS4,BT4,BU4)","v":0},{"$nulls":4},{"$f":"SUM(BX4,BY4,BZ4)","v":0},{"$nulls":4},{"$f":"SUM(CC4,CD4,CE4)","v":0},{"$nulls":4},{"$f":"SUM(CH4,CI4,CJ4)","v":0},{"$nulls":4},{"$f":"SUM(CM4,CN4,CO4)","v":0},{"$nulls":4},{"$f":"SUM(CR4,CS4,CT4)","v":0},{"$nulls":4},{"$f":"SUM(CW4,CX4,CY4)","v":0},{"$nulls":4},{"$f":"SUM(DB4,DC4,DD4)","v":0},{"$nulls":4},{"$f":"SUM(DG4,DH4,DI4)","v":0},{"$nulls":4},{"$f":"SUM(DL4,DM4,DN4)","v":0},{"$nulls":4},{"$f":"SUM(DQ4,DR4,DS4)","v":0}]
[35262,"УПЦ ООО \"Газпром трансгаз Чайковский\"","УПЦ ООО \"Газпром трансгаз Чайковский\"","Обучение ИТР","ЭнергетМен","Энергетический менеджмент 16ч.","Функционирование системы энергетического менеджмента ПАО Газпром в соответствии с требованиями ISO 50001:2018","Повышение квалификации",null,"Прочие экономические, медицинские и др. (таможенные, аудиторские и т.д.)",null,null,2,16,0,0,"18.09.2024","19.09.2024",7,20,30,0,0,0,{"$f":"SUM(V5,W5,X5)","v":0},0,{"$f":"Y5+(Z5*AB5)","v":0},{"$f":"SUM(AD5,AI5,AN5,AS5,AX5,BC5,BH5,BM5,BR5,BW5,CB5,CG5,CL5,CQ5,CV5,DA5,DF5,DK5,DP5)","v":11},{"$f":"SUM(AI5,AN5,AS5,AX5,BC5,BH5,BW5,CB5,CG5,CL5,CV5,DF5)","v":3},{"$nulls":4},{"$f":"SUM(AE5,AF5,AG5)","v":0},{"$nulls":4},{"$f":"SUM(AJ5,AK5,AL5)","v":0},{"$nulls":4},{"$f":"SUM(AO5,AP5,AQ5)","v":0},{"$nulls":4},{"$f":"SUM(AT5,AU5,AV5)","v":0},{"$nulls":4},{"$f":"SUM(AY5,AZ5,BA5)","v":0},{"$nulls":4},{"$f":"SUM(BD5,BE5,BF5)","v":0},{"$nulls":4},{"$f":"SUM(BI5,BJ5,BK5)","v":0},{"$nulls":4},{"$f":"SUM(BN5,BO5,BP5)","v":0},5,0,0,0,{"$f":"SUM(BS5,BT5,BU5)","v":0},{"$nulls":4},{"$f":"SUM(BX5,BY5,BZ5)","v":0},{"$nulls":4},{"$f":"SUM(CC5,CD5,CE5)","v":0},2,0,0,0,{"$f":"SUM(CH5,CI5,CJ5)","v":0},1,0,0,0,{"$f":"SUM(CM5,CN5,CO5)","v":0},{"$nulls":4},{"$f":"SUM(CR5,CS5,CT5)","v":0},{"$nulls":4},{"$f":"SUM(CW5,CX5,CY5)","v":0},1,0,0,0,{"$f":"SUM(DB5,DC5,DD5)","v":0},{"$nulls":4},{"$f":"SUM(DG5,DH5,DI5)","v":0},1,0,0,0,{"$f":"SUM(DL5,DM5,DN5)","v":0},1,0,0,0,{"$f":"SUM(DQ5,DR5,DS5)","v":0}]
[35271,"УПЦ ООО \"Газпром трансгаз Чайковский\"","УПЦ ООО \"Газпром трансгаз Чайковский\"",null,"ПожБез ИТР","Обучение мерам ПБ отв. работников","Обучение мерам пожарной безопасности работников, ответственных за пожарную безопасность организации и проведение противопожарного инструктажа",null,null,"Прочие технические (ГНВП, сварочное, противопожарные и т.д.)",null,"Краткосрочный семинар (от 16 до 40 час)",6,32,0,0,"07.11.2024","14.11.2024",7,20,30,0,0,0,0,0,0,27,27,{"$nulls":4},0,3,0,0,0,0,3,0,0,0,0,{"$nulls":4},0,{"$nulls":4},0,11,0,0,0,0,{"$nulls":4},0,{"$nulls":4},0,{"$nulls":4},0,1,0,0,0,0,{"$nulls":4},0,3,0,0,0,0,4,0,0,0,0,{"$nulls":4},0,2,0,0,0,0,{"$nulls":4},0,{"$nulls":4},0,{"$nulls":4},0,{"$nulls":4},0]
[35273,"УПЦ ООО \"Газпром трансгаз Чайковский\"","УПЦ ООО \"Газпром трансгаз Чайковский\"","Обучение ИТР","Экол16ч","Экологический менеджмент 16ч","Функционирование системы экологического менеджмента ПАО Газпром в соответствии с требованиями ISO14001:2015","Повышение квалификации",null,"Прочие экономические, медицинские и др. (таможенные, аудиторские и т.д.)",null,null,2,16,0,0,"06.06.2024","07.06.2024",7,20,30,3000,4400,0,7400,0,7400,28,16,5,0,0,0,0,{"$nulls":4},0,2,0,0,0,0,{"$nulls":4},0,3,3000,4400,0,7400,{"$nulls":4},0,{"$nulls":4},0,4,0,0,0,0,{"$nulls":4},0,{"$nulls":4},0,{"$nulls":4},0,4,0,0,0,0,1,0,0,0,0,{"$nulls":4},0,5,0,0,0,0,{"$nulls":4},0,1,0,0,0,0,2,0,0,0,0,1,0,0,0,0]
[39761,"УПЦ ООО \"Газпром трансгаз Чайковский\"","УПЦ ООО \"Газпром трансгаз Чайковский\"","Обучение ИТР","МенКач","Менеджмент качества","Функционирование системы менеджмента качества","Повышение квалификации",null,"Обязательное обучение",null,null,2,16,0,0,"14.05.2024","15.05.2024",7,20,30,36000,108900,21800,166700,0,166700,24,21,{"$nulls":4},0,8,12000,40000,0,52000,{"$nulls":4},0,1,2000,7800,2500,12300,2,3000,7200,0,10200,2,4000,12000,5800,21800,2,4000,12000,5000,21000,1,0,0,0,0,{"$nulls":4},0,1,2000,7500,3000,12500,1,3000,10000,500,13500,2,3000,6000,2000,11000,2,3000,6400,3000,12400,{"$nulls":4},0,{"$nulls":4},0,{"$nulls":4},0,{"$nulls":4},0,{"$nulls":4},0,2,0,0,0,0]
[39762,"УПЦ ООО \"Газпром трансгаз Чайковский\"","УПЦ ООО \"Газпром трансгаз Чайковский\"",null,"ПожБез ИТР","Обучение мерам ПБ отв. работников","Обучение мерам пожарной безопасности работников, ответственных за пожарную безопасность организации и проведение противопожарного инструктажа",null,null,"Прочие технические (ГНВП, сварочное, противопожарные и т.д.)",null,"Краткосрочный семинар (от 16 до 40 час)",6,32,0,0,"18.01.2024","25.01.2024",7,20,30,0,0,0,0,0,0,22,20,{"$nulls":4},0,1,0,0,0,0,3,0,0,0,0,1,0,0,0,0,{"$nulls":4},0,8,0,0,0,0,{"$nulls":4},0,1,0,0,0,0,{"$nulls":4},0,3,0,0,0,0,{"$nulls":4},0,{"$nulls":4},0,3,0,0,0,0,{"$nulls":4},0,1,0,0,0,0,{"$nulls":4},0,{"$nulls":4},0,{"$nulls":4},0,1,0,0,0,0]
[39763,"УПЦ ООО \"Газпром трансгаз Чайковский\"","УПЦ ООО \"Газпром трансгаз Чайковский\"",null,"ПожБез ИТР","Обучение мерам ПБ отв. работников","Обучение мерам пожарной безопасности работников, ответственных за пожарную безопасность организации и проведение противопожарного инструктажа",null,null,"Прочие технические (ГНВП, сварочное, противопожарные и т.д.)",null,"Краткосрочный семинар (от 16 до 40 час)",6,32,0,0,"12.03.2024","19.03.2024",7,20,30,0,0,0,0,0,0,28,27,{"$nulls":4},0,3,0,0,0,0,7,0,0,0,0,1,0,0,0,0,{"$nulls":4},0,7,0,0,0,0,{"$nulls":4},0,1,0,0,0,0,{"$nulls":4},0,2,0,0,0,0,{"$nulls":4},0,2,0,0,0,0,5,0,0,0,0,{"$nulls":4},0,{"$nulls":4},0,{"$nulls":4},0,{"$nulls":4},0,{"$nulls":4},0,{"$nulls":4},0]
[39764,"УПЦ ООО \"Газпром трансгаз Чайковский\"","УПЦ ООО \"Газпром трансгаз Чайковский\"",null,"ПожБез ИТР","Обучение мерам ПБ отв. работников","Обучение мерам пожарной безопасности работников, ответственных за пожарную безопасность организации и проведение противопожарного инструктажа",null,null,"Прочие технические (ГНВП, сварочное, противопожарные и т.д.)",null,"Краткосрочный семинар (от 16 до 40 час)",6,32,0,0,"16.05.2024","23.05.2024",7,20,30,0,0,0,0,0,0,18,0,{"$nulls":4},0,{"$nulls":4},0,{"$nulls":4},0,{"$nulls":4},0,{"$nulls":4},0,{"$nulls":4},0,{"$nulls":4},0,3,0,0,0,0,2,0,0,0,0,{"$nulls":4},0,{"$nulls":4},0,{"$nulls":4},0,{"$nulls":4},0,{"$nulls":4},0,{"$nulls":4},0,10,0,0,0,0,{"$nulls":4},0,1,0,0,0,0,2,0,0,0,0]
[39765,"УПЦ ООО \"Газпром трансгаз Чайковский\"","УПЦ ООО \"Газпром трансгаз Чайковский\"",null,"ПсихПед","Психолого-педагогический минимум знаний","Психолого-педагогический минимум знаний для внештатных преподавателей",null,null,"Периодическое обучение по плану общеста/организации (руководители, специалисты, рабочие)",null,"Семинар (от 40 до 72 час)",10,76,0,0,"29.01.2024","15.02.2024",7,15,20,34000,122100,11500,167600,0,167600,19,9,5,0,0,0,0,{"$nulls":4},0,1,2500,10000,0,12500,1,11000,54600,2500,68100,1,2500,5500,0,8000,1,3500,12000,2500,18000,{"$nulls":4},0,3,0,0,0,0,{"$nulls":4},0,{"$nulls":4},0,1,3000,6500,500,10000,1,3000,7500,1000,11500,2,6000,16000,3000,25000,{"$nulls":4},0,{"$nulls":4},0,1,0,0,0,0,1,2500,10000,2000,14500,{"$nulls":4},0,1,0,0,0,0]
[39786,"УПЦ ООО \"Газпром трансгаз Чайковский\"","ООО \"Газпром трансгаз Чайковский\"","Обучение рабочих","СпЭлГазСвар","Подготовка к аттест.электрогазосварщиков","Подготовка к аттестации электрогазосварщиков на право выполнения сварочных и наплавочных работ при строительстве, изготовлении, монтаже и ремонте объектов и оборудования, подконтрольных Ростехнадзору","Повышение квалификации (РАБ)",null,"Прочие технические (ГНВП, сварочное, противопожарные и т.д.)",null,null,8,64,0,0,"16.01.2024","25.01.2024",7,20,20,42000,77000,11500,130500,0,130500,14,7,{"$nulls":4},0,1,6000,12100,1500,19600,1,6000,12100,0,18100,{"$nulls":4},0,{"$nulls":4},0,{"$nulls":4},0,{"$nulls":4},0,{"$nulls":4},0,{"$nulls":4},0,{"$nulls":4},0,{"$nulls":4},0,{"$nulls":4},0,{"$nulls":4},0,{"$nulls":4},0,{"$nulls":4},0,7,0,0,0,0,5,30000,52800,10000,92800,{"$nulls":4},0,{"$nulls":4},0]
[39787,"УПЦ ООО \"Газпром трансгаз Чайковский\"","ООО \"Газпром трансгаз Чайковский\"","Обучение рабочих","СпЭлГазСвар","Подготовка к аттест.электрогазосварщиков","Подготовка к аттестации электрогазосварщиков на право выполнения сварочных и наплавочных работ при строительстве, изготовлении, монтаже и ремонте объектов и оборудования, подконтрольных Ростехнадзору","Повышение квалификации (РАБ)",null,"Прочие технические (ГНВП, сварочное, противопожарные и т.д.)",null,null,8,64,0,0,"13.02.2024","22.02.2024",7,20,20,30000,83000,8000,121000,0,121000,14,6,{"$nulls":4},0,{"$nulls":4},0,{"$nulls":4},0,{"$nulls":4},0,{"$nulls":4},0,{"$nulls":4},0,{"$nulls":4},0,2,0,0,0,0,{"$nulls":4},0,{"$nulls":4},0,{"$nulls":4},0,{"$nulls":4},0,{"$nulls":4},0,{"$nulls":4},0,2,6000,11000,0,17000,6,0,0,0,0,4,24000,72000,8000,104000,{"$nulls":4},0,{"$nulls":4},0]
[39788,"УПЦ ООО \"Газпром трансгаз Чайковский\"","ООО \"Газпром трансгаз Чайковский\"","Обучение рабочих","СпЭлГазСвар","Подготовка к аттест.электрогазосварщиков","Подготовка к аттестации электрогазосварщиков на право выполнения сварочных и наплавочных работ при строительстве, изготовлении, монтаже и ремонте объектов и оборудования, подконтрольных Ростехнадзору","Повышение квалификации (РАБ)",null,"Прочие технические (ГНВП, сварочное, противопожарные и т.д.)",null,null,8,64,0,0,"09.04.2024","18.04.2024",7,20,20,36500,88100,6500,131100,0,131100,11,6,{"$nulls":4},0,1,6500,13200,1500,21200,1,6000,12100,0,18100,{"$nulls":4},0,2,11000,22000,0,33000,{"$nulls":4},0,{"$nulls":4},0,1,0,0,0,0,{"$nulls":4},0,1,7000,24000,3000,34000,{"$nulls":4},0,{"$nulls":4},0,{"$nulls":4},0,{"$nulls":4},0,{"$nulls":4},0,4,0,0,0,0,1,6000,16800,2000,24800,{"$nulls":4},0,{"$nulls":4},0]
[39789,"УПЦ ООО \"Газпром трансгаз Чайковский\"","ООО \"Газпром трансгаз Чайковский\"","Обучение рабочих","СпЭлГазСвар","Подготовка к аттест.электрогазосварщиков","Подготовка к аттестации электрогазосварщиков на право выполнения сварочных и наплавочных работ при строительстве, изготовлении, монтаже и ремонте объектов и оборудования, подконтрольных Ростехнадзору","Повышение квалификации (РАБ)",null,"Прочие технические (ГНВП, сварочное, противопожарные и т.д.)",null,null,8,64,0,0,"28.05.2024","06.06.2024",7,20,20,41000,82500,12200,135700,0,135700,10,7,{"$nulls":4},0,{"$nulls":4},0,{"$nulls":4},0,1,6000,12100,2500,20600,1,5500,11000,0,16500,2,12000,24200,5600,41800,{"$nulls":4},0,1,0,0,0,0,{"$nulls":4},0,{"$nulls":4},0,{"$nulls":4},0,1,6500,13200,1100,20800,2,11000,22000,3000,36000,{"$nulls":4},0,{"$nulls":4},0,2,0,0,0,0,{"$nulls":4},0,{"$nulls":4},0,{"$nulls":4},0]
[39790,"УПЦ ООО \"Газпром трансгаз Чайковский\"","ООО \"Газпром трансгаз Чайковский\"","Обучение рабочих","СпЭлГазСвар","Подготовка к аттест.электрогазосварщиков","Подготовка к аттестации электрогазосварщиков на право выполнения сварочных и наплавочных работ при строительстве, изготовлении, монтаже и ремонте объектов и оборудования, подконтрольных Ростехнадзору","Повышение квалификации (РАБ)",null,"Прочие технические (ГНВП, сварочное, противопожарные и т.д.)",null,null,8,64,0,0,"18.06.2024","27.06.2024",7,20,20,32000,68400,6500,106900,0,106900,10,7,{"$nulls":4},0,1,6000,11000,1500,18500,1,6000,12100,0,18100,{"$nulls":4},0,2,11000,22000,0,33000,1,3000,6500,3000,12500,{"$nulls":4},0,{"$nulls":4},0,{"$nulls":4},0,{"$nulls":4},0,1,0,0,0,0,{"$nulls":4},0,{"$nulls":4},0,{"$nulls":4},0,{"$nulls":4},0,3,0,0,0,0,1,6000,16800,2000,24800,{"$nulls":4},0,{"$nulls":4},0]
[39791,"УПЦ ООО \"Газпром трансгаз Чайковский\"","ООО \"Газпром трансгаз Чайковский\"","Обучение рабочих","СпЭлГазСвар","Подготовка к аттест.электрогазосварщиков","Подготовка к аттестации электрогазосварщиков на право выполнения сварочных и наплавочных работ при строительстве, изготовлении, монтаже и ремонте объектов и оборудования, подконтрольных Ростехнадзору","Повышение квалификации (РАБ)",null,"Прочие технические (ГНВП, сварочное, противопожарные и т.д.)",null,null,8,64,0,0,"09.07.2024","18.07.2024",7,20,20,18500,37400,1000,56900,0,56900,12,5,{"$nulls":4},0,{"$nulls":4},0,2,12000,24200,0,36200,{"$nulls":4},0,{"$nulls":4},0,{"$nulls":4},0,{"$nulls":4},0,2,0,0,0,0,{"$nulls":4},0,{"$nulls":4},0,1,0,0,0,0,1,6500,13200,1000,20700,1,0,0,0,0,{"$nulls":4},0,{"$nulls":4},0,5,0,0,0,0,{"$nulls":4},0,{"$nulls":4},0,{"$nulls":4},0]
[39792,"УПЦ ООО \"Газпром трансгаз Чайковский\"","ООО \"Газпром трансгаз Чайковский\"","Обучение рабочих","СПсв1УрТПАК","Сварщик 1 ур. Т, ПАК гр.НГДО","Специальная подготовка сварщиков (I уровень), вид сварки – Термитная сварка (Т), пайка (ПАК),КТС группа технических устройств – нефтегазодобывающее оборудование(НГДО","Повышение квалификации (РАБ)",null,"(РАБ) Курсы целевого назначения (в части получения допуска к работе на опасных производственных объектах)",null,null,3,24,1,8,"05.11.2024","08.11.2024",5,20,20,26500,51900,17500,95900,0,95900,12,12,{"$nulls":4},0,1,3000,5500,1500,10000,{"$nulls":4},0,1,3000,5500,2500,11000,2,5000,8800,0,13800,1,3000,6500,3000,12500,2,5000,8800,5000,18800,{"$nulls":4},0,{"$nulls":4},0,1,2500,8000,3000,13500,1,0,0,0,0,1,2500,4400,1000,7900,1,2500,4400,1500,8400,{"$nulls":4},0,{"$nulls":4},0,{"$nulls":4},0,1,0,0,0,0,{"$nulls":4},0,{"$nulls":4},0]
[39793,"УПЦ ООО \"Газпром трансгаз Чайковский\"","ООО \"Газпром трансгаз Чайковский\"","Обучение рабочих","СПсв1УрТПАК","Сварщик 1 ур. Т, ПАК гр.НГДО","Специальная подготовка сварщиков (I уровень), вид сварки – Термитная сварка (Т), пайка (ПАК),КТС группа технических устройств – нефтегазодобывающее оборудование(НГДО","Повышение квалификации (РАБ)",null,"(РАБ) Курсы целевого назначения (в части получения допуска к работе на опасных производственных объектах)",null,null,3,24,1,8,"19.11.2024","22.11.2024",5,20,20,20000,53700,9500,83200,0,83200,7,7,{"$nulls":4},0,{"$nulls":4},0,1,2500,4400,0,6900,{"$nulls":4},0,{"$nulls":4},0,1,3000,6500,3000,12500,{"$nulls":4},0,{"$nulls":4},0,{"$nulls":4},0,1,7000,24000,3000,34000,1,0,0,0,0,{"$nulls":4},0,1,2500,4400,1500,8400,{"$nulls":4},0,1,2500,4400,0,6900,{"$nulls":4},0,1,2500,10000,2000,14500,{"$nulls":4},0,{"$nulls":4},0]
[39794,"УПЦ ООО \"Газпром трансгаз Чайковский\"","ООО \"Газпром трансгаз Чайковский\"","Обучение рабочих","СварщикПК","Сварщик РД сварки плав.покр.электр. ПТК","Сварщик ручной дуговой сварки плавящимся покрытым электродом ПТК","Повышение квалификации (РАБ)",null,"(РАБ) Повышение квалификации на ПТК",null,null,10,80,50,400,"09.09.2024","20.09.2024",7,20,20,13000,48000,5000,66000,0,66000,3,3,{"$nulls":4},0,{"$nulls":4},0,{"$nulls":4},0,{"$nulls":4},0,{"$nulls":4},0,{"$nulls":4},0,{"$nulls":4},0,{"$nulls":4},0,{"$nulls":4},0,1,7000,24000,3000,34000,{"$nulls":4},0,{"$nulls":4},0,{"$nulls":4},0,{"$nulls":4},0,{"$nulls":4},0,{"$nulls":4},0,2,6000,24000,2000,32000,{"$nulls":4},0,{"$nulls":4},0]
[39795,"УПЦ ООО \"Газпром трансгаз Чайковский\"","ООО \"Газпром трансгаз Чайковский\"","Обучение рабочих","МонтНарТрПК","Монтажник наруж. трубопроводов ПТК","Монтажник наружных трубопроводов ПТК","Повышение квалификации (РАБ)",null,"(РАБ) Повышение квалификации на ПТК",null,null,9,72,23,184,"07.10.2024","18.10.2024",7,20,20,35500,74600,9000,119100,0,119100,8,6,{"$nulls":4},0,{"$nulls":4},0,1,6000,12100,0,18100,{"$nulls":4},0,{"$nulls":4},0,{"$nulls":4},0,{"$nulls":4},0,{"$nulls":4},0,{"$nulls":4},0,{"$nulls":4},0,{"$nulls":4},0,{"$nulls":4},0,2,11500,12100,3000,26600,{"$nulls":4},0,{"$nulls":4},0,{"$nulls":4},0,3,18000,50400,6000,74400,{"$nulls":4},0,2,0,0,0,0]
[39796,"УПЦ ООО \"Газпром трансгаз Чайковский\"","ООО \"Газпром трансгаз Чайковский\"","Обучение ИТР","СпецСвар","СП спец. свар. производства II-III ур.","Специальная подготовка специалистов сварочного производства II-III уровень","Повышение квалификации",null,"Прочие технические (ГНВП, сварочное, противопожарные и т.д.)",null,null,4,32,0,0,"12.03.2024","15.03.2024",7,20,20,19000,80400,14300,113700,0,113700,14,8,{"$nulls":4},0,{"$nulls":4},0,1,2000,7500,0,9500,2,6000,26000,5000,37000,{"$nulls":4},0,2,6000,30000,5800,41800,{"$nulls":4},0,1,0,0,0,0,{"$nulls":4},0,{"$nulls":4},0,1,0,0,0,0,{"$nulls":4},0,1,2500,6400,1500,10400,{"$nulls":4},0,{"$nulls":4},0,5,0,0,0,0,1,2500,10500,2000,15000,{"$nulls":4},0,{"$nulls":4},0]
[39797,"УПЦ ООО \"Газпром трансгаз Чайковский\"","ООО \"Газпром трансгаз Чайковский\"","Обучение ИТР","СпецСвар","СП спец. свар. производства II-III ур.","Специальная подготовка специалистов сварочного производства II-III уровень","Повышение квалификации",null,"Прочие технические (ГНВП, сварочное, противопожарные и т.д.)",null,null,4,32,0,0,"26.03.2024","29.03.2024",7,20,20,21500,76800,17300,115600,0,115600,14,8,{"$nulls":4},0,{"$nulls":4},0,{"$nulls":4},0,1,3000,13000,2500,18500,{"$nulls":4},0,2,6000,30000,5800,41800,{"$nulls":4},0,2,0,0,0,0,{"$nulls":4},0,{"$nulls":4},0,{"$nulls":4},0,{"$nulls":4},0,2,5000,12800,3000,20800,{"$nulls":4},0,{"$nulls":4},0,4,0,0,0,0,3,7500,21000,6000,34500,{"$nulls":4},0,{"$nulls":4},0]
[39798,"УПЦ ООО \"Газпром трансгаз Чайковский\"","ООО \"Газпром трансгаз Чайковский\"","Обучение ИТР","СпецСварПер","СП спец. свар. производства II ур.","Специальная подготовка специалистов сварочного производства II уровень (первичная аттестация)","Повышение квалификации",null,"Прочие технические (ГНВП, сварочное, противопожарные и т.д.)",null,null,8,64,0,0,"03.12.2024","12.12.2024",7,15,15,32000,95500,8500,136000,0,136000,7,6,{"$nulls":4},0,1,6000,22000,1500,29500,{"$nulls":4},0,{"$nulls":4},0,{"$nulls":4},0,{"$nulls":4},0,{"$nulls":4},0,{"$nulls":4},0,{"$nulls":4},0,{"$nulls":4},0,{"$nulls":4},0,{"$nulls":4},0,2,11000,32000,3000,46000,{"$nulls":4},0,1,3000,7900,0,10900,1,0,0,0,0,2,12000,33600,4000,49600,{"$nulls":4},0,{"$nulls":4},0]
[39886,"УПЦ ООО \"Газпром трансгаз Чайковский\"","УПЦ ООО \"Газпром трансгаз Чайковский\"","Обучение рабочих","СлесКИППК","Слесарь по КИПиА ПТК","Слесарь по контрольно-измерительным приборам и автоматике ПТК","Повышение квалификации (РАБ)",null,"(РАБ) Повышение квалификации на ПТК",null,null,14,112,28,224,"29.01.2024","16.02.2024",7,20,20,52500,112200,12700,177400,0,177400,9,6,{"$nulls":4},0,{"$nulls":4},0,{"$nulls":4},0,{"$nulls":4},0,1,13500,28600,0,42100,3,19500,41800,8200,69500,1,13500,28600,2500,44600,1,0,0,0,0,{"$nulls":4},0,{"$nulls":4},0,{"$nulls":4},0,{"$nulls":4},0,{"$nulls":4},0,{"$nulls":4},0,{"$nulls":4},0,{"$nulls":4},0,1,6000,13200,2000,21200,{"$nulls":4},0,2,0,0,0,0]
[39887,"УПЦ ООО \"Газпром трансгаз Чайковский\"","УПЦ ООО \"Газпром трансгаз Чайковский\"","Обучение рабочих","СлесКИППК","Слесарь по КИПиА ПТК","Слесарь по контрольно-измерительным приборам и автоматике ПТК","Повышение квалификации (РАБ)",null,"(РАБ) Повышение квалификации на ПТК",null,null,14,112,28,224,"18.03.2024","29.03.2024",7,20,20,98000,235200,24100,357300,0,357300,18,15,{"$nulls":4},0,1,6500,13200,1500,21200,2,12000,24200,0,36200,{"$nulls":4},0,2,12000,31200,0,43200,2,15000,30800,5600,51400,2,12000,24200,5000,41200,{"$nulls":4},0,{"$nulls":4},0,3,21000,72000,9000,102000,{"$nulls":4},0,{"$nulls":4},0,2,13000,26400,3000,42400,{"$nulls":4},0,1,6500,13200,0,19700,{"$nulls":4},0,{"$nulls":4},0,{"$nulls":4},0,3,0,0,0,0]
[39888,"УПЦ ООО \"Газпром трансгаз Чайковский\"","УПЦ ООО \"Газпром трансгаз Чайковский\"","Обучение рабочих","СлесКИППК","Слесарь по КИПиА ПТК","Слесарь по контрольно-измерительным приборам и автоматике ПТК","Повышение квалификации (РАБ)",null,"(РАБ) Повышение квалификации на ПТК",null,null,14,112,28,224,"02.09.2024","13.09.2024",7,20,20,100000,231700,26100,357800,0,357800,18,15,1,0,0,0,0,2,13000,26400,3000,42400,1,6000,12100,0,18100,{"$nulls":4},0,2,12500,28800,0,41300,2,15000,26400,5600,47000,2,12000,24200,5000,41200,{"$nulls":4},0,{"$nulls":4},0,3,21000,72000,8500,101500,{"$nulls":4},0,1,7500,15400,1000,23900,2,13000,26400,3000,42400,{"$nulls":4},0,{"$nulls":4},0,{"$nulls":4},0,{"$nulls":4},0,{"$nulls":4},0,2,0,0,0,0]
[39889,"УПЦ ООО \"Газпром трансгаз Чайковский\"","УПЦ ООО \"Газпром трансгаз Чайковский\"","Обучение рабочих","СлесКИППК","Слесарь по КИПиА ПТК","Слесарь по контрольно-измерительным приборам и автоматике ПТК","Повышение квалификации (РАБ)",null,"(РАБ) Повышение квалификации на ПТК",null,null,14,112,28,224,"30.09.2024","11.10.2024",7,20,20,61000,151200,21100,233300,0,233300,12,11,{"$nulls":4},0,2,13000,26400,3000,42400,{"$nulls":4},0,2,13000,24200,4800,42000,1,0,0,0,0,1,7500,15400,2800,25700,{"$nulls":4},0,{"$nulls":4},0,{"$nulls":4},0,3,21000,72000,9000,102000,{"$nulls":4},0,{"$nulls":4},0,1,6500,13200,1500,21200,{"$nulls":4},0,1,0,0,0,0,{"$nulls":4},0,{"$nulls":4},0,{"$nulls":4},0,1,0,0,0,0]
[39890,"УПЦ ООО \"Газпром трансгаз Чайковский\"","УПЦ ООО \"Газпром трансгаз Чайковский\"",null,"АТСSi-2000","Экспл. АТС Si-2000","Эксплуатация цифровой АТС Si-2000",null,null,"Периодическое обучение по плану общеста/организации (руководители, специалисты, рабочие)",null,"Краткосрочный семинар (от 16 до 40 час)",9,72,0,0,"11.03.2024","22.03.2024",7,15,16,28500,70200,4500,103200,0,103200,7,5,{"$nulls":4},0,{"$nulls":4},0,1,6000,12100,0,18100,{"$nulls":4},0,2,13000,26400,0,39400,1,3000,12500,3000,18500,{"$nulls":4},0,1,0,0,0,0,{"$nulls":4},0,{"$nulls":4},0,{"$nulls":4},0,{"$nulls":4},0,1,6500,19200,1500,27200,{"$nulls":4},0,{"$nulls":4},0,{"$nulls":4},0,{"$nulls":4},0,{"$nulls":4},0,1,0,0,0,0]
[39891,"УПЦ ООО \"Газпром трансгаз Чайковский\"","УПЦ ООО \"Газпром трансгаз Чайковский\"","Обучение ИТР","Оборуд КИИ","Эксплуатация оборудования КИИ","Эксплуатация оборудования критической информационной инфраструктуры","Повышение квалификации",null,"Периодическое обучение по плану общеста/организации (руководители, специалисты, рабочие)",null,null,2,16,0,0,"28.02.2024","29.02.2024",7,15,20,19500,55100,17900,92500,0,92500,12,12,{"$nulls":4},0,{"$nulls":4},0,2,2000,5000,0,7000,2,4000,15600,4900,24500,{"$nulls":4},0,1,2000,9000,3000,14000,{"$nulls":4},0,{"$nulls":4},0,{"$nulls":4},0,1,2000,6000,3000,11000,1,2000,3900,500,6400,2,3000,6000,2000,11000,3,4500,9600,4500,18600,{"$nulls":4},0,{"$nulls":4},0,{"$nulls":4},0,{"$nulls":4},0,{"$nulls":4},0,{"$nulls":4},0]
[39893,"УПЦ ООО \"Газпром трансгаз Чайковский\"","УПЦ ООО \"Газпром трансгаз Чайковский\"","Обучение рабочих","МонтеЭХЗПК","Монтер ЭХЗ ПТК","Монтер по защите подземных трубопроводов от коррозии ПТК","Повышение квалификации (РАБ)",null,"(РАБ) Повышение квалификации на ПТК",null,null,10,80,50,400,"01.04.2024","12.04.2024",7,20,20,77500,168100,14200,259800,0,259800,15,14,{"$nulls":4},0,1,6500,13200,1500,21200,{"$nulls":4},0,1,7000,14300,2400,23700,4,25500,52800,0,78300,1,6000,12100,2800,20900,2,6000,12100,2500,20600,{"$nulls":4},0,{"$nulls":4},0,1,7000,24000,3000,34000,2,6500,13200,500,20200,{"$nulls":4},0,1,6500,13200,1500,21200,{"$nulls":4},0,1,6500,13200,0,19700,{"$nulls":4},0,{"$nulls":4},0,{"$nulls":4},0,1,0,0,0,0]
[39894,"УПЦ ООО \"Газпром трансгаз Чайковский\"","УПЦ ООО \"Газпром трансгаз Чайковский\"","Обучение рабочих","ЭлекЭлОбПК","Электромонтер по рем. электрооборуд. ПТК","Электромонтер по ремонту и обслуживанию электрооборудования ПТК","Повышение квалификации (РАБ)",null,"(РАБ) Повышение квалификации на ПТК",null,null,10,76,43,340,"15.04.2024","26.04.2024",7,15,20,84500,193200,19300,297000,0,297000,14,13,{"$nulls":4},0,2,13000,26400,3000,42400,1,6000,12100,0,18100,1,7000,14300,2500,23800,1,6500,13200,0,19700,1,7500,15400,2800,25700,1,6000,12100,2500,20600,{"$nulls":4},0,{"$nulls":4},0,1,7000,24000,3000,34000,1,6000,12100,500,18600,{"$nulls":4},0,2,13000,26400,3000,42400,{"$nulls":4},0,1,6500,13200,0,19700,{"$nulls":4},0,1,6000,24000,2000,32000,{"$nulls":4},0,1,0,0,0,0]
[39895,"УПЦ ООО \"Газпром трансгаз Чайковский\"","УПЦ ООО \"Газпром трансгаз Чайковский\"","Обучение рабочих","ЭлекСтанОбПК","Эл.монтер станц.оборуд. телеф. связи ПТК","Электромонтер станционного оборудования телефонной связи ПТК","Повышение квалификации (РАБ)",null,"(РАБ) Повышение квалификации на ПТК",null,null,10,80,42,336,"13.05.2024","24.05.2024",7,20,20,71000,145200,14400,230600,0,230600,11,11,{"$nulls":4},0,1,6500,13200,1500,21200,2,12000,24200,0,36200,{"$nulls":4},0,1,6500,13200,0,19700,2,13000,28600,5400,47000,{"$nulls":4},0,{"$nulls":4},0,{"$nulls":4},0,1,7000,13200,3000,23200,{"$nulls":4},0,{"$nulls":4},0,3,19500,39600,4500,63600,{"$nulls":4},0,1,6500,13200,0,19700,{"$nulls":4},0,{"$nulls":4},0,{"$nulls":4},0,{"$nulls":4},0]
[39896,"УПЦ ООО \"Газпром трансгаз Чайковский\"","УПЦ ООО \"Газпром трансгаз Чайковский\"","Обучение ИТР","ДиспУпр","Диспетчерское управление","Диспетчерское управление технологическими процессами в транспорте газа","Повышение квалификации",null,"Прочие технические (ГНВП, сварочное, противопожарные и т.д.)",null,null,9,72,0,0,"14.10.2024","25.10.2024",7,15,20,71500,255060,13900,340460,0,340460,13,11,1,0,0,0,0,1,6500,24000,1500,32000,2,12000,55000,0,67000,{"$nulls":4},0,1,6500,13200,0,19700,1,6000,30000,2800,38800,1,7000,26000,2500,35500,{"$nulls":4},0,{"$nulls":4},0,1,7000,30000,3000,40000,1,6500,15600,500,22600,2,13500,42060,2100,57660,1,6500,19200,1500,27200,{"$nulls":4},0,{"$nulls":4},0,{"$nulls":4},0,{"$nulls":4},0,{"$nulls":4},0,1,0,0,0,0]
[39897,"УПЦ ООО \"Газпром трансгаз Чайковский\"","УПЦ ООО \"Газпром трансгаз Чайковский\"",null,"ЦифрСвязь","Орг. тех. экспуат. цифровых систем связи","Организация технической экспуатации цифровых систем связи",null,null,"Периодическое обучение по плану общеста/организации (руководители, специалисты, рабочие)",null,"Краткосрочный семинар (от 16 до 40 час)",5,40,0,0,"02.09.2024","06.09.2024",7,15,20,31500,108640,13300,153440,0,153440,12,10,1,0,0,0,0,{"$nulls":4},0,1,1500,2200,0,3700,{"$nulls":4},0,2,4000,6600,0,10600,1,3000,12500,2800,18300,{"$nulls":4},0,{"$nulls":4},0,{"$nulls":4},0,2,14000,65000,6000,85000,{"$nulls":4},0,{"$nulls":4},0,3,7000,17600,4500,29100,{"$nulls":4},0,1,2000,4740,0,6740,{"$nulls":4},0,{"$nulls":4},0,{"$nulls":4},0,1,0,0,0,0]
[39898,"УПЦ ООО \"Газпром трансгаз Чайковский\"","УПЦ ООО \"Газпром трансгаз Чайковский\"","Обучение рабочих","ЭлТелСвРПК","Эл.монтер лин. сооруж. телеф. связи. ПТК","Электромонтер линейных сооружений телефонной связи и радиофикации ПТК","Повышение квалификации (РАБ)",null,"(РАБ) Повышение квалификации на ПТК",null,null,10,80,22,176,"16.09.2024","27.09.2024",7,20,20,59000,130700,12800,202500,0,202500,12,9,{"$nulls":4},0,1,6500,13200,1500,21200,1,6000,12100,0,18100,{"$nulls":4},0,{"$nulls":4},0,1,6000,13200,2800,22000,{"$nulls":4},0,1,0,0,0,0,{"$nulls":4},0,1,7000,24000,3000,34000,{"$nulls":4},0,1,7500,15400,1000,23900,3,19500,39600,4500,63600,{"$nulls":4},0,1,6500,13200,0,19700,{"$nulls":4},0,{"$nulls":4},0,{"$nulls":4},0,2,0,0,0,0]
[39899,"УПЦ ООО \"Газпром трансгаз Чайковский\"","УПЦ ООО \"Газпром трансгаз Чайковский\"","Обучение рабочих","РабЛюльки","Рабочие люльки","Рабочий люльки по управлению подъемником (вышкой) из люльки","Повышение квалификации (РАБ)",null,"(РАБ) Курсы целевого назначения (в части получения допуска к работе на опасных производственных объектах)",null,null,4,28,0,0,"12.11.2024","14.11.2024",7,14,30,11000,31000,7000,49000,0,49000,4,4,{"$nulls":4},0,{"$nulls":4},0,{"$nulls":4},0,{"$nulls":4},0,{"$nulls":4},0,{"$nulls":4},0,1,3500,6600,2500,12600,{"$nulls":4},0,{"$nulls":4},0,2,5000,20000,4000,29000,1,2500,4400,500,7400,{"$nulls":4},0,{"$nulls":4},0,{"$nulls":4},0,{"$nulls":4},0,{"$nulls":4},0,{"$nulls":4},0,{"$nulls":4},0,{"$nulls":4},0]
[39900,"УПЦ ООО \"Газпром трансгаз Чайковский\"","УПЦ ООО \"Газпром трансгаз Чайковский\"",null,"ВЛ6-10кВ","Экспл. микропроцессорных устройств","Эксплуатация микропроцессорных устройств релейной защиты и автоматики вдольтрассовой ВЛ 6-10 кВ",null,null,"(РАБ) Другие виды повышения квалификации",null,"Краткосрочный семинар (от 16 до 40 час)",5,40,0,0,"28.10.2024","01.11.2024",7,15,15,0,0,0,0,0,0,3,0,{"$nulls":4},0,{"$nulls":4},0,{"$nulls":4},0,{"$nulls":4},0,{"$nulls":4},0,{"$nulls":4},0,{"$nulls":4},0,1,0,0,0,0,{"$nulls":4},0,{"$nulls":4},0,{"$nulls":4},0,{"$nulls":4},0,{"$nulls":4},0,{"$nulls":4},0,{"$nulls":4},0,{"$nulls":4},0,{"$nulls":4},0,{"$nulls":4},0,2,0,0,0,0]
[39904,"УПЦ ООО \"Газпром трансгаз Чайковский\"","Горнозаводское ЛПУМГ","Обучение рабочих","ВысРаб24","Высота 1,2 группа 24ч.","(24ч) Обучение персонала безопасным методам и приемам выполнения работ на высоте \"Работники 1,2 групп по безопасности работ на высоте\"","Повышение квалификации (РАБ)",null,"(РАБ) Курсы целевого назначения (в части получения допуска к работе на опасных производственных объектах)",null,null,3,24,0,0,"05.02.2024","07.02.2024",7,20,30,0,0,0,0,0,0,29,29,{"$nulls":4},0,{"$nulls":4},0,{"$nulls":4},0,{"$nulls":4},0,{"$nulls":4},0,29,0,0,0,0,{"$nulls":4},0,{"$nulls":4},0,{"$nulls":4},0,{"$nulls":4},0,{"$nulls":4},0,{"$nulls":4},0,{"$nulls":4},0,{"$nulls":4},0,{"$nulls":4},0,{"$nulls":4},0,{"$nulls":4},0,{"$nulls":4},0,{"$nulls":4},0]
[39905,"УПЦ ООО \"Газпром трансгаз Чайковский\"","Гремячинское ЛПУМГ","Обучение рабочих","ВысРаб24","Высота 1,2 группа 24ч.","(24ч) Обучение персонала безопасным методам и приемам выполнения работ на высоте \"Работники 1,2 групп по безопасности работ на высоте\"","Повышение квалификации (РАБ)",null,"(РАБ) Курсы целевого назначения (в части получения допуска к работе на опасных производственных объектах)",null,null,3,24,0,0,"12.02.2024","14.02.2024",7,20,30,0,0,0,0,0,0,21,21,{"$nulls":4},0,{"$nulls":4},0,{"$nulls":4},0,{"$nulls":4},0,{"$nulls":4},0,{"$nulls":4},0,21,0,0,0,0,{"$nulls":4},0,{"$nulls":4},0,{"$nulls":4},0,{"$nulls":4},0,{"$nulls":4},0,{"$nulls":4},0,{"$nulls":4},0,{"$nulls":4},0,{"$nulls":4},0,{"$nulls":4},0,{"$nulls":4},0,{"$nulls":4},0]
[39906,"УПЦ ООО \"Газпром трансгаз Чайковский\"","ООО \"Газпром трансгаз Чайковский\"","Обучение ИТР","КурсТребПБ","Требования промышленной безопасности","Требования промышленной безопасности","Повышение квалификации",null,"Предаттестационная подготовка по промышленной безопасности, экологической безопасности и др.",null,null,15,60,0,0,"15.01.2024","02.02.2024",7,30,30,0,0,0,0,0,0,30,24,{"$nulls":4},0,{"$nulls":4},0,1,0,0,0,0,4,0,0,0,0,2,0,0,0,0,10,0,0,0,0,{"$nulls":4},0,1,0,0,0,0,{"$nulls":4},0,1,0,0,0,0,{"$nulls":4},0,6,0,0,0,0,{"$nulls":4},0,{"$nulls":4},0,{"$nulls":4},0,2,0,0,0,0,{"$nulls":4},0,{"$nulls":4},0,3,0,0,0,0]
[39907,"УПЦ ООО \"Газпром трансгаз Чайковский\"","ООО \"Газпром трансгаз Чайковский\"","Обучение ИТР","ПовАудитБез","Поведенческий аудит безопасности","Поведенческий аудит безопасности","Повышение квалификации",null,"Другие целевые программы (руководители, специалисты, рабочие)",null,null,3,24,0,0,"04.03.2024","06.03.2024",7,20,30,0,0,0,0,0,0,48,37,{"$nulls":4},0,5,0,0,0,0,4,0,0,0,0,2,0,0,0,0,1,0,0,0,0,2,0,0,0,0,1,0,0,0,0,1,0,0,0,0,{"$nulls":4},0,1,0,0,0,0,18,0,0,0,0,{"$nulls":4},0,1,0,0,0,0,{"$nulls":4},0,{"$nulls":4},0,6,0,0,0,0,2,0,0,0,0,{"$nulls":4},0,4,0,0,0,0]
[39908,"УПЦ ООО \"Газпром трансгаз Чайковский\"","Можгинское ЛПУМГ","Обучение рабочих","ВысРаб24","Высота 1,2 группа 24ч.","(24ч) Обучение персонала безопасным методам и приемам выполнения работ на высоте \"Работники 1,2 групп по безопасности работ на высоте\"","Повышение квалификации (РАБ)",null,"(РАБ) Курсы целевого назначения (в части получения допуска к работе на опасных производственных объектах)",null,null,3,24,0,0,"11.03.2024","13.03.2024",7,20,30,0,0,0,0,0,0,15,13,{"$nulls":4},0,{"$nulls":4},0,{"$nulls":4},0,{"$nulls":4},0,{"$nulls":4},0,{"$nulls":4},0,{"$nulls":4},0,{"$nulls":4},0,{"$nulls":4},0,{"$nulls":4},0,13,0,0,0,0,{"$nulls":4},0,{"$nulls":4},0,{"$nulls":4},0,{"$nulls":4},0,{"$nulls":4},0,{"$nulls":4},0,2,0,0,0,0,{"$nulls":4},0]
[39909,"УПЦ ООО \"Газпром трансгаз Чайковский\"","Алмазное ЛПУМГ","Обучение рабочих","ВысРаб24","Высота 1,2 группа 24ч.","(24ч) Обучение персонала безопасным методам и приемам выполнения работ на высоте \"Работники 1,2 групп по безопасности работ на высоте\"","Повышение квалификации (РАБ)",null,"(РАБ) Курсы целевого назначения (в части получения допуска к работе на опасных производственных объектах)",null,null,3,24,0,0,"11.03.2024","13.03.2024",7,20,30,2000,3300,0,5300,0,5300,16,12,{"$nulls":4},0,11,0,0,0,0,{"$nulls":4},0,{"$nulls":4},0,1,2000,3300,0,5300,{"$nulls":4},0,{"$nulls":4},0,4,0,0,0,0,{"$nulls":4},0,{"$nulls":4},0,{"$nulls":4},0,{"$nulls":4},0,{"$nulls":4},0,{"$nulls":4},0,{"$nulls":4},0,{"$nulls":4},0,{"$nulls":4},0,{"$nulls":4},0,{"$nulls":4},0]
[39910,"УПЦ ООО \"Газпром трансгаз Чайковский\"","Бардымское ЛПУМГ","Обучение рабочих","ВысРаб24","Высота 1,2 группа 24ч.","(24ч) Обучение персонала безопасным методам и приемам выполнения работ на высоте \"Работники 1,2 групп по безопасности работ на высоте\"","Повышение квалификации (РАБ)",null,"(РАБ) Курсы целевого назначения (в части получения допуска к работе на опасных производственных объектах)",null,null,3,24,0,0,"18.03.2024","20.03.2024",7,20,30,2000,5400,0,7400,0,7400,9,9,{"$nulls":4},0,{"$nulls":4},0,8,0,0,0,0,{"$nulls":4},0,{"$nulls":4},0,{"$nulls":4},0,{"$nulls":4},0,{"$nulls":4},0,{"$nulls":4},0,{"$nulls":4},0,{"$nulls":4},0,{"$nulls":4},0,{"$nulls":4},0,{"$nulls":4},0,1,2000,5400,0,7400,{"$nulls":4},0,{"$nulls":4},0,{"$nulls":4},0,{"$nulls":4},0]
[39911,"УПЦ ООО \"Газпром трансгаз Чайковский\"","Гремячинское ЛПУМГ","Обучение рабочих","ВысРаб24","Высота 1,2 группа 24ч.","(24ч) Обучение персонала безопасным методам и приемам выполнения работ на высоте \"Работники 1,2 групп по безопасности работ на высоте\"","Повышение квалификации (РАБ)",null,"(РАБ) Курсы целевого назначения (в части получения допуска к работе на опасных производственных объектах)",null,null,3,24,0,0,"25.03.2024","27.03.2024",7,20,30,0,0,0,0,0,0,23,23,{"$nulls":4},0,{"$nulls":4},0,{"$nulls":4},0,{"$nulls":4},0,{"$nulls":4},0,{"$nulls":4},0,23,0,0,0,0,{"$nulls":4},0,{"$nulls":4},0,{"$nulls":4},0,{"$nulls":4},0,{"$nulls":4},0,{"$nulls":4},0,{"$nulls":4},0,{"$nulls":4},0,{"$nulls":4},0,{"$nulls":4},0,{"$nulls":4},0,{"$nulls":4},0]
[39913,"УПЦ ООО \"Газпром трансгаз Чайковский\"","Кунгурское ЛПУМГ","Обучение рабочих","ВысРаб24","Высота 1,2 группа 24ч.","(24ч) Обучение персонала безопасным методам и приемам выполнения работ на высоте \"Работники 1,2 групп по безопасности работ на высоте\"","Повышение квалификации (РАБ)",null,"(РАБ) Курсы целевого назначения (в части получения допуска к работе на опасных производственных объектах)",null,null,3,24,0,0,"01.04.2024","03.04.2024",7,20,30,0,0,0,0,0,0,16,16,{"$nulls":4},0,{"$nulls":4},0,{"$nulls":4},0,{"$nulls":4},0,{"$nulls":4},0,{"$nulls":4},0,{"$nulls":4},0,{"$nulls":4},0,{"$nulls":4},0,16,0,0,0,0,{"$nulls":4},0,{"$nulls":4},0,{"$nulls":4},0,{"$nulls":4},0,{"$nulls":4},0,{"$nulls":4},0,{"$nulls":4},0,{"$nulls":4},0,{"$nulls":4},0]
[39914,"УПЦ ООО \"Газпром трансгаз Чайковский\"","Воткинское ЛПУМГ","Обучение рабочих","ВысРаб24","Высота 1,2 группа 24ч.","(24ч) Обучение персонала безопасным методам и приемам выполнения работ на высоте \"Работники 1,2 групп по безопасности работ на высоте\"","Повышение квалификации (РАБ)",null,"(РАБ) Курсы целевого назначения (в части получения допуска к работе на опасных производственных объектах)",null,null,3,24,0,0,"08.04.2024","10.04.2024",7,20,30,5000,10900,500,16400,0,16400,14,14,{"$nulls":4},0,{"$nulls":4},0,{"$nulls":4},0,{"$nulls":4},0,13,3000,5500,500,9000,{"$nulls":4},0,{"$nulls":4},0,{"$nulls":4},0,{"$nulls":4},0,{"$nulls":4},0,{"$nulls":4},0,{"$nulls":4},0,{"$nulls":4},0,{"$nulls":4},0,1,2000,5400,0,7400,{"$nulls":4},0,{"$nulls":4},0,{"$nulls":4},0,{"$nulls":4},0]
[39915,"УПЦ ООО \"Газпром трансгаз Чайковский\"","Кунгурское ЛПУМГ","Обучение рабочих","ВысРаб24","Высота 1,2 группа 24ч.","(24ч) Обучение персонала безопасным методам и приемам выполнения работ на высоте \"Работники 1,2 групп по безопасности работ на высоте\"","Повышение квалификации (РАБ)",null,"(РАБ) Курсы целевого назначения (в части получения допуска к работе на опасных производственных объектах)",null,null,3,24,0,0,"22.04.2024","24.04.2024",7,20,30,4000,10800,0,14800,0,14800,13,12,{"$nulls":4},0,{"$nulls":4},0,{"$nulls":4},0,{"$nulls":4},0,{"$nulls":4},0,{"$nulls":4},0,{"$nulls":4},0,{"$nulls":4},0,{"$nulls":4},0,10,0,0,0,0,{"$nulls":4},0,{"$nulls":4},0,{"$nulls":4},0,{"$nulls":4},0,2,4000,10800,0,14800,{"$nulls":4},0,{"$nulls":4},0,1,0,0,0,0,{"$nulls":4},0]
[39916,"УПЦ ООО \"Газпром трансгаз Чайковский\"","Гремячинское ЛПУМГ","Обучение рабочих","ВысРаб24","Высота 1,2 группа 24ч.","(24ч) Обучение персонала безопасным методам и приемам выполнения работ на высоте \"Работники 1,2 групп по безопасности работ на высоте\"","Повышение квалификации (РАБ)",null,"(РАБ) Курсы целевого назначения (в части получения допуска к работе на опасных производственных объектах)",null,null,3,24,0,0,"15.04.2024","17.04.2024",7,20,30,0,0,0,0,0,0,20,20,{"$nulls":4},0,{"$nulls":4},0,{"$nulls":4},0,{"$nulls":4},0,{"$nulls":4},0,{"$nulls":4},0,20,0,0,0,0,{"$nulls":4},0,{"$nulls":4},0,{"$nulls":4},0,{"$nulls":4},0,{"$nulls":4},0,{"$nulls":4},0,{"$nulls":4},0,{"$nulls":4},0,{"$nulls":4},0,{"$nulls":4},0,{"$nulls":4},0,{"$nulls":4},0]
[39917,"УПЦ ООО \"Газпром трансгаз Чайковский\"","Пермское ЛПУМГ","Обучение рабочих","ВысРаб24","Высота 1,2 группа 24ч.","(24ч) Обучение персонала безопасным методам и приемам выполнения работ на высоте \"Работники 1,2 групп по безопасности работ на высоте\"","Повышение квалификации (РАБ)",null,"(РАБ) Курсы целевого назначения (в части получения допуска к работе на опасных производственных объектах)",null,null,3,24,0,0,"22.04.2024","24.04.2024",7,20,30,0,0,0,0,0,0,11,11,{"$nulls":4},0,{"$nulls":4},0,{"$nulls":4},0,{"$nulls":4},0,{"$nulls":4},0,{"$nulls":4},0,{"$nulls":4},0,{"$nulls":4},0,{"$nulls":4},0,{"$nulls":4},0,{"$nulls":4},0,{"$nulls":4},0,11,0,0,0,0,{"$nulls":4},0,{"$nulls":4},0,{"$nulls":4},0,{"$nulls":4},0,{"$nulls":4},0,{"$nulls":4},0]
[39918,"УПЦ ООО \"Газпром трансгаз Чайковский\"","ООО \"Газпром трансгаз Чайковский\"","Обучение ИТР","КурсТребПБ","Требования промышленной безопасности","Требования промышленной безопасности","Повышение квалификации",null,"Предаттестационная подготовка по промышленной безопасности, экологической безопасности и др.",null,null,15,60,0,0,"01.04.2024","19.04.2024",7,30,30,0,0,0,0,0,0,30,25,3,0,0,0,0,{"$nulls":4},0,{"$nulls":4},0,{"$nulls":4},0,5,0,0,0,0,14,0,0,0,0,{"$nulls":4},0,1,0,0,0,0,{"$nulls":4},0,1,0,0,0,0,5,0,0,0,0,{"$nulls":4},0,{"$nulls":4},0,{"$nulls":4},0,{"$nulls":4},0,{"$nulls":4},0,{"$nulls":4},0,{"$nulls":4},0,1,0,0,0,0]
[39920,"УПЦ ООО \"Газпром трансгаз Чайковский\"","Увинское ЛПУМГ","Обучение рабочих","ВысРаб24","Высота 1,2 группа 24ч.","(24ч) Обучение персонала безопасным методам и приемам выполнения работ на высоте \"Работники 1,2 групп по безопасности работ на высоте\"","Повышение квалификации (РАБ)",null,"(РАБ) Курсы целевого назначения (в части получения допуска к работе на опасных производственных объектах)",null,null,3,24,0,0,"20.05.2024","22.05.2024",7,20,30,0,0,0,0,0,0,11,11,{"$nulls":4},0,{"$nulls":4},0,{"$nulls":4},0,{"$nulls":4},0,{"$nulls":4},0,{"$nulls":4},0,{"$nulls":4},0,{"$nulls":4},0,{"$nulls":4},0,{"$nulls":4},0,{"$nulls":4},0,{"$nulls":4},0,{"$nulls":4},0,{"$nulls":4},0,11,0,0,0,0,{"$nulls":4},0,{"$nulls":4},0,{"$nulls":4},0,{"$nulls":4},0]
[39921,"УПЦ ООО \"Газпром трансгаз Чайковский\"","УАВР №2","Обучение рабочих","ВысРаб24","Высота 1,2 группа 24ч.","(24ч) Обучение персонала безопасным методам и приемам выполнения работ на высоте \"Работники 1,2 групп по безопасности работ на высоте\"","Повышение квалификации (РАБ)",null,"(РАБ) Курсы целевого назначения (в части получения допуска к работе на опасных производственных объектах)",null,null,3,24,0,0,"27.05.2024","29.05.2024",7,20,30,0,0,0,0,0,0,11,11,{"$nulls":4},0,{"$nulls":4},0,{"$nulls":4},0,{"$nulls":4},0,{"$nulls":4},0,{"$nulls":4},0,{"$nulls":4},0,{"$nulls":4},0,{"$nulls":4},0,{"$nulls":4},0,{"$nulls":4},0,{"$nulls":4},0,{"$nulls":4},0,{"$nulls":4},0,{"$nulls":4},0,{"$nulls":4},0,11,0,0,0,0,{"$nulls":4},0,{"$nulls":4},0]
[39924,"УПЦ ООО \"Газпром трансгаз Чайковский\"","ООО \"Газпром трансгаз Чайковский\"","Обучение ИТР","ПовАудитБез","Поведенческий аудит безопасности","Поведенческий аудит безопасности","Повышение квалификации",null,"Другие целевые программы (руководители, специалисты, рабочие)",null,null,3,24,0,0,"03.06.2024","05.06.2024",7,20,30,0,0,0,0,0,0,42,32,{"$nulls":4},0,5,0,0,0,0,4,0,0,0,0,1,0,0,0,0,{"$nulls":4},0,5,0,0,0,0,2,0,0,0,0,{"$nulls":4},0,{"$nulls":4},0,{"$nulls":4},0,15,0,0,0,0,{"$nulls":4},0,{"$nulls":4},0,{"$nulls":4},0,{"$nulls":4},0,6,0,0,0,0,{"$nulls":4},0,{"$nulls":4},0,4,0,0,0,0]
[39975,"УПЦ ООО \"Газпром трансгаз Чайковский\"","Горнозаводское ЛПУМГ","Обучение рабочих","ВысРаб24","Высота 1,2 группа 24ч.","(24ч) Обучение персонала безопасным методам и приемам выполнения работ на высоте \"Работники 1,2 групп по безопасности работ на высоте\"","Повышение квалификации (РАБ)",null,"(РАБ) Курсы целевого назначения (в части получения допуска к работе на опасных производственных объектах)",null,null,3,24,0,0,"09.09.2024","11.09.2024",7,20,30,0,0,0,0,0,0,30,30,{"$nulls":4},0,{"$nulls":4},0,{"$nulls":4},0,{"$nulls":4},0,{"$nulls":4},0,30,0,0,0,0,{"$nulls":4},0,{"$nulls":4},0,{"$nulls":4},0,{"$nulls":4},0,{"$nulls":4},0,{"$nulls":4},0,{"$nulls":4},0,{"$nulls":4},0,{"$nulls":4},0,{"$nulls":4},0,{"$nulls":4},0,{"$nulls":4},0,{"$nulls":4},0]
[39985,"УПЦ ООО \"Газпром трансгаз Чайковский\"","ООО \"Газпром трансгаз Чайковский\"",null,"МашТКПП","Машинист ТК КПП","Машинист технологических компрессоров КПП",null," Переподготовка","(РАБ) Переподготовка",null,null,20,160,23,184,"13.05.2024","07.06.2024",7,15,20,7500,18200,3000,28700,0,28700,5,1,{"$nulls":4},0,{"$nulls":4},0,{"$nulls":4},0,{"$nulls":4},0,{"$nulls":4},0,1,7500,18200,3000,28700,{"$nulls":4},0,{"$nulls":4},0,{"$nulls":4},0,{"$nulls":4},0,{"$nulls":4},0,{"$nulls":4},0,{"$nulls":4},0,{"$nulls":4},0,{"$nulls":4},0,{"$nulls":4},0,{"$nulls":4},0,{"$nulls":4},0,4,0,0,0,0]
[39987,"УПЦ ООО \"Газпром трансгаз Чайковский\"","ООО \"Газпром трансгаз Чайковский\"","Обучение рабочих","ПрСосуды","Правила ПБ (сосуды под давлением)","Правила промышленной безопасности опасных производственных объектов, на которых используется оборудование, работающие под избыточным давлением (сосуды, цистерны, бочки, баллоны)","Повышение квалификации (РАБ)",null,"(РАБ) Курсы целевого назначения (в части получения допуска к работе на опасных производственных объектах)",null,null,4,32,0,0,"29.01.2024","01.02.2024",7,20,20,28500,60800,15700,105000,0,105000,23,14,{"$nulls":4},0,{"$nulls":4},0,3,6000,9900,0,15900,{"$nulls":4},0,3,3000,5500,0,8500,3,9000,18500,8600,36100,1,0,0,0,0,4,0,0,0,0,{"$nulls":4},0,1,3000,4400,2600,10000,1,2500,5500,500,8500,{"$nulls":4},0,{"$nulls":4},0,{"$nulls":4},0,{"$nulls":4},0,{"$nulls":4},0,2,5000,17000,4000,26000,{"$nulls":4},0,5,0,0,0,0]
[39988,"УПЦ ООО \"Газпром трансгаз Чайковский\"","ООО \"Газпром трансгаз Чайковский\"","Обучение рабочих","ПрСосуды","Правила ПБ (сосуды под давлением)","Правила промышленной безопасности опасных производственных объектов, на которых используется оборудование, работающие под избыточным давлением (сосуды, цистерны, бочки, баллоны)","Повышение квалификации (РАБ)",null,"(РАБ) Курсы целевого назначения (в части получения допуска к работе на опасных производственных объектах)",null,null,4,32,0,0,"25.03.2024","28.03.2024",7,20,20,37000,98300,26100,161400,0,161400,26,15,{"$nulls":4},0,{"$nulls":4},0,{"$nulls":4},0,{"$nulls":4},0,{"$nulls":4},0,4,12000,24000,11600,47600,1,0,0,0,0,7,0,0,0,0,{"$nulls":4},0,3,10000,30000,8000,48000,2,2500,5500,500,8500,{"$nulls":4},0,{"$nulls":4},0,{"$nulls":4},0,2,5000,8800,0,13800,1,0,0,0,0,3,7500,30000,6000,43500,{"$nulls":4},0,3,0,0,0,0]
[39989,"УПЦ ООО \"Газпром трансгаз Чайковский\"","ООО \"Газпром трансгаз Чайковский\"","Обучение рабочих","ТОЗапорА","Обслуживание и эксплуатация ТА","Обслуживание и эксплуатация трубопроводной арматуры","Повышение квалификации (РАБ)",null,"Другие целевые программы (руководители, специалисты, рабочие)",null,null,5,40,0,0,"26.02.2024","01.03.2024",7,20,20,42500,95300,26000,163800,0,163800,18,15,{"$nulls":4},0,2,6000,11000,3000,20000,{"$nulls":4},0,{"$nulls":4},0,{"$nulls":4},0,2,6000,12000,6000,24000,{"$nulls":4},0,2,0,0,0,0,{"$nulls":4},0,4,14000,41500,12000,67500,2,2500,4400,500,7400,{"$nulls":4},0,3,8000,15400,4500,27900,{"$nulls":4},0,2,6000,11000,0,17000,{"$nulls":4},0,{"$nulls":4},0,{"$nulls":4},0,1,0,0,0,0]
[39990,"УПЦ ООО \"Газпром трансгаз Чайковский\"","ООО \"Газпром трансгаз Чайковский\"","Обучение рабочих","ТОЗапорА","Обслуживание и эксплуатация ТА","Обслуживание и эксплуатация трубопроводной арматуры","Повышение квалификации (РАБ)",null,"Другие целевые программы (руководители, специалисты, рабочие)",null,null,5,40,0,0,"16.09.2024","20.09.2024",7,20,20,25500,65500,21800,112800,0,112800,18,10,{"$nulls":4},0,{"$nulls":4},0,{"$nulls":4},0,{"$nulls":4},0,2,0,0,0,0,3,9000,18500,8800,36300,1,3500,6600,2500,12600,{"$nulls":4},0,{"$nulls":4},0,3,10500,36000,9000,55500,{"$nulls":4},0,{"$nulls":4},0,1,2500,4400,1500,8400,{"$nulls":4},0,{"$nulls":4},0,{"$nulls":4},0,{"$nulls":4},0,{"$nulls":4},0,8,0,0,0,0]
[39991,"УПЦ ООО \"Газпром трансгаз Чайковский\"","ООО \"Газпром трансгаз Чайковский\"","Обучение рабочих","МашТКПК","Машинист ТК ПТК","Машинист технологических компрессоров ПТК","Повышение квалификации (РАБ)",null,"(РАБ) Повышение квалификации на ПТК",null,null,15,120,25,200,"11.03.2024","29.03.2024",7,15,20,140500,324100,20300,484900,0,484900,17,15,{"$nulls":4},0,{"$nulls":4},0,4,38000,79200,0,117200,{"$nulls":4},0,2,20000,41800,0,61800,2,15000,33600,5800,54400,3,30000,59400,7500,96900,{"$nulls":4},0,{"$nulls":4},0,2,21000,76000,6000,103000,{"$nulls":4},0,1,10000,20900,1000,31900,{"$nulls":4},0,{"$nulls":4},0,1,6500,13200,0,19700,{"$nulls":4},0,{"$nulls":4},0,{"$nulls":4},0,2,0,0,0,0]
[39992,"УПЦ ООО \"Газпром трансгаз Чайковский\"","ООО \"Газпром трансгаз Чайковский\"","Обучение рабочих","МашТКПК","Машинист ТК ПТК","Машинист технологических компрессоров ПТК","Повышение квалификации (РАБ)",null,"(РАБ) Повышение квалификации на ПТК",null,null,15,120,25,200,"30.09.2024","18.10.2024",7,15,20,67000,155200,13500,235700,0,235700,12,9,{"$nulls":4},0,{"$nulls":4},0,2,19000,39600,0,58600,{"$nulls":4},0,{"$nulls":4},0,1,7500,18200,3000,28700,3,30000,59400,7500,96900,{"$nulls":4},0,{"$nulls":4},0,2,10500,38000,3000,51500,{"$nulls":4},0,{"$nulls":4},0,{"$nulls":4},0,{"$nulls":4},0,1,0,0,0,0,{"$nulls":4},0,{"$nulls":4},0,{"$nulls":4},0,3,0,0,0,0]
[39993,"УПЦ ООО \"Газпром трансгаз Чайковский\"","ООО \"Газпром трансгаз Чайковский\"","Обучение рабочих","МашТКПТК без","Машинист ТК ПТК (без повышения разряда)","Машинист технологических компрессоров ПТК","Повышение квалификации (РАБ)",null,"(РАБ) Повышение квалификации на ПТК",null,null,10,80,30,240,"15.01.2024","26.01.2024",7,15,20,106500,264300,22500,393300,0,393300,18,16,{"$nulls":4},0,3,19500,39600,4500,63600,{"$nulls":4},0,{"$nulls":4},0,4,26000,52800,0,78800,{"$nulls":4},0,{"$nulls":4},0,{"$nulls":4},0,{"$nulls":4},0,5,35000,109200,15000,159200,{"$nulls":4},0,{"$nulls":4},0,2,13000,36300,3000,52300,{"$nulls":4},0,2,13000,26400,0,39400,{"$nulls":4},0,{"$nulls":4},0,{"$nulls":4},0,2,0,0,0,0]
[39994,"УПЦ ООО \"Газпром трансгаз Чайковский\"","ООО \"Газпром трансгаз Чайковский\"","Обучение рабочих","МашТКПТК без","Машинист ТК ПТК (без повышения разряда)","Машинист технологических компрессоров ПТК","Повышение квалификации (РАБ)",null,"(РАБ) Повышение квалификации на ПТК",null,null,10,80,30,240,"05.02.2024","16.02.2024",7,15,20,91500,216100,27000,334600,0,334600,14,14,{"$nulls":4},0,3,19500,39600,4500,63600,{"$nulls":4},0,{"$nulls":4},0,{"$nulls":4},0,2,12000,26400,6000,44400,1,6000,12100,2500,20600,{"$nulls":4},0,{"$nulls":4},0,4,28000,85200,11000,124200,{"$nulls":4},0,{"$nulls":4},0,2,13000,26400,3000,42400,{"$nulls":4},0,2,13000,26400,0,39400,{"$nulls":4},0,{"$nulls":4},0,{"$nulls":4},0,{"$nulls":4},0]
[39995,"УПЦ ООО \"Газпром трансгаз Чайковский\"","ООО \"Газпром трансгаз Чайковский\"","Обучение рабочих","МашТКПТК без","Машинист ТК ПТК (без повышения разряда)","Машинист технологических компрессоров ПТК","Повышение квалификации (РАБ)",null,"(РАБ) Повышение квалификации на ПТК",null,null,10,80,30,240,"01.04.2024","12.04.2024",7,15,20,108000,265400,32300,405700,0,405700,16,16,{"$nulls":4},0,1,6500,13200,1500,21200,3,18000,36300,0,54300,{"$nulls":4},0,{"$nulls":4},0,6,42000,92400,16800,151200,{"$nulls":4},0,{"$nulls":4},0,{"$nulls":4},0,4,28000,96000,11500,135500,{"$nulls":4},0,1,7000,14300,1000,22300,1,6500,13200,1500,21200,{"$nulls":4},0,{"$nulls":4},0,{"$nulls":4},0,{"$nulls":4},0,{"$nulls":4},0,{"$nulls":4},0]
[39996,"УПЦ ООО \"Газпром трансгаз Чайковский\"","ООО \"Газпром трансгаз Чайковский\"","Обучение рабочих","МашТКПТК без","Машинист ТК ПТК (без повышения разряда)","Машинист технологических компрессоров ПТК","Повышение квалификации (РАБ)",null,"(РАБ) Повышение квалификации на ПТК",null,null,10,80,30,240,"15.04.2024","26.04.2024",7,15,20,120500,289600,33000,443100,0,443100,18,18,{"$nulls":4},0,2,13000,26400,3000,42400,{"$nulls":4},0,{"$nulls":4},0,3,19500,39600,0,59100,5,35000,77000,14000,126000,2,12000,24200,5000,41200,{"$nulls":4},0,{"$nulls":4},0,4,28000,96000,11000,135000,{"$nulls":4},0,{"$nulls":4},0,{"$nulls":4},0,{"$nulls":4},0,2,13000,26400,0,39400,{"$nulls":4},0,{"$nulls":4},0,{"$nulls":4},0,{"$nulls":4},0]
[39997,"УПЦ ООО \"Газпром трансгаз Чайковский\"","ООО \"Газпром трансгаз Чайковский\"","Обучение рабочих","МашТКПТК без","Машинист ТК ПТК (без повышения разряда)","Машинист технологических компрессоров ПТК","Повышение квалификации (РАБ)",null,"(РАБ) Повышение квалификации на ПТК",null,null,10,80,30,240,"17.06.2024","28.06.2024",7,15,20,107500,263200,35000,{"$f":"SUM(V69,W69,X69)","v":405700},0,{"$f":"Y69+(Z69*AB69)","v":405700},{"$f":"SUM(AD69,AI69,AN69,AS69,AX69,BC69,BH69,BM69,BR69,BW69,CB69,CG69,CL69,CQ69,CV69,DA69,DF69,DK69,DP69)","v":16},{"$f":"SUM(AI69,AN69,AS69,AX69,BC69,BH69,BW69,CB69,CG69,CL69,CV69,DF69)","v":16},{"$nulls":4},{"$f":"SUM(AE69,AF69,AG69)","v":0},2,13000,26400,3000,{"$f":"SUM(AJ69,AK69,AL69)","v":42400},{"$nulls":4},{"$f":"SUM(AO69,AP69,AQ69)","v":0},{"$nulls":4},{"$f":"SUM(AT69,AU69,AV69)","v":0},{"$nulls":4},{"$f":"SUM(AY69,AZ69,BA69)","v":0},5,35000,77000,14000,{"$f":"SUM(BD69,BE69,BF69)","v":126000},2,12000,24200,5000,{"$f":"SUM(BI69,BJ69,BK69)","v":41200},{"$nulls":4},{"$f":"SUM(BN69,BO69,BP69)","v":0},{"$nulls":4},{"$f":"SUM(BS69,BT69,BU69)","v":0},4,28000,96000,11500,{"$f":"SUM(BX69,BY69,BZ69)","v":135500},{"$nulls":4},{"$f":"SUM(CC69,CD69,CE69)","v":0},{"$nulls":4},{"$f":"SUM(CH69,CI69,CJ69)","v":0},1,6500,13200,1500,{"$f":"SUM(CM69,CN69,CO69)","v":21200},{"$nulls":4},{"$f":"SUM(CR69,CS69,CT69)","v":0},2,13000,26400,0,{"$f":"SUM(CW69,CX69,CY69)","v":39400},{"$nulls":4},{"$f":"SUM(DB69,DC69,DD69)","v":0},{"$nulls":4},{"$f":"SUM(DG69,DH69,DI69)","v":0},{"$nulls":4},{"$f":"SUM(DL69,DM69,DN69)","v":0},{"$nulls":4},{"$f":"SUM(DQ69,DR69,DS69)","v":0}]
[39998,"УПЦ ООО \"Газпром трансгаз Чайковский\"","ООО \"Газпром трансгаз Чайковский\"","Обучение рабочих","МашТКПТК без","Машинист ТК ПТК (без повышения разряда)","Машинист технологических компрессоров ПТК","Повышение квалификации (РАБ)",null,"(РАБ) Повышение квалификации на ПТК",null,null,10,80,30,240,"21.10.2024","01.11.2024",7,15,20,113000,242900,26700,382600,0,382600,18,18,{"$nulls":4},0,2,13000,26400,3000,42400,{"$nulls":4},0,{"$nulls":4},0,4,26000,52800,0,78800,4,28000,61600,11200,100800,1,6000,12100,2500,20600,{"$nulls":4},0,{"$nulls":4},0,3,14000,37200,5500,56700,{"$nulls":4},0,{"$nulls":4},0,3,19500,39600,4500,63600,{"$nulls":4},0,1,6500,13200,0,19700,{"$nulls":4},0,{"$nulls":4},0,{"$nulls":4},0,{"$nulls":4},0]
[39999,"УПЦ ООО \"Газпром трансгаз Чайковский\"","ООО \"Газпром трансгаз Чайковский\"","Обучение ИТР","Б 8.1-8.6","Треб. ПБ к оборудованию под давлением","Требования промышленной безопасности к оборудованию, работающему под давлением","Повышение квалификации",null,"Предаттестационная подготовка по промышленной безопасности, экологической безопасности и др.",null,null,10,40,0,0,"08.04.2024","19.04.2024",7,30,30,15000,51960,7300,74260,0,74260,17,11,{"$nulls":4},0,{"$nulls":4},0,{"$nulls":4},0,{"$nulls":4},0,2,0,0,0,0,3,3000,12500,2800,18300,1,3000,10000,2500,15500,3,0,0,0,0,{"$nulls":4},0,{"$nulls":4},0,{"$nulls":4},0,{"$nulls":4},0,2,0,0,0,0,{"$nulls":4},0,1,6500,18960,0,25460,{"$nulls":4},0,2,2500,10500,2000,15000,{"$nulls":4},0,3,0,0,0,0]
[40000,"УПЦ ООО \"Газпром трансгаз Чайковский\"","ООО \"Газпром трансгаз Чайковский\"","Обучение ИТР","ОбсЭксплТА","Обслуживание и эксплуатация трубопроводн","Обслуживание и эксплуатация трубопроводной арматуры","Повышение квалификации",null,"Прочие технические (ГНВП, сварочное, противопожарные и т.д.)",null,null,5,40,0,0,"20.05.2024","24.05.2024",7,20,21,46500,182900,24000,253400,0,253400,21,18,2,0,0,0,0,{"$nulls":4},0,3,7500,30000,0,37500,{"$nulls":4},0,3,6000,33000,0,39000,4,12000,50000,12000,74000,{"$nulls":4},0,{"$nulls":4},0,{"$nulls":4},0,2,7000,30000,6000,43000,1,0,0,0,0,{"$nulls":4},0,4,11000,32000,6000,49000,{"$nulls":4},0,1,3000,7900,0,10900,{"$nulls":4},0,{"$nulls":4},0,{"$nulls":4},0,1,0,0,0,0]
[40016,"УПЦ ООО \"Газпром трансгаз Чайковский\"","УПЦ ООО \"Газпром трансгаз Чайковский\"","Обучение рабочих","РабЛюльки","Рабочие люльки","Рабочий люльки по управлению подъемником (вышкой) из люльки","Повышение квалификации (РАБ)",null,"(РАБ) Курсы целевого назначения (в части получения допуска к работе на опасных производственных объектах)",null,null,4,28,0,0,"03.09.2024","05.09.2024",7,14,30,26500,48300,10500,85300,0,85300,14,11,{"$nulls":4},0,2,5500,9900,3000,18400,{"$nulls":4},0,{"$nulls":4},0,2,4000,6600,0,10600,1,3000,6500,3000,12500,1,3500,6600,2500,12600,1,0,0,0,0,{"$nulls":4},0,{"$nulls":4},0,2,5500,9900,1000,16400,2,2500,4400,1000,7900,{"$nulls":4},0,{"$nulls":4},0,1,2500,4400,0,6900,1,0,0,0,0,{"$nulls":4},0,{"$nulls":4},0,1,0,0,0,0]
[40017,"УПЦ ООО \"Газпром трансгаз Чайковский\"","Кунгурское ЛПУМГ","Обучение рабочих","РабЛюльки","Рабочие люльки","Рабочий люльки по управлению подъемником (вышкой) из люльки","Повышение квалификации (РАБ)",null,"(РАБ) Курсы целевого назначения (в части получения допуска к работе на опасных производственных объектах)",null,null,4,28,0,0,"15.10.2024","17.10.2024",7,14,30,46500,103900,29000,179400,0,179400,16,16,{"$nulls":4},0,1,3000,5500,1500,10000,{"$nulls":4},0,{"$nulls":4},0,{"$nulls":4},0,2,10500,13000,6000,29500,1,3500,6600,2500,12600,{"$nulls":4},0,{"$nulls":4},0,8,24500,70000,17500,112000,1,2500,4400,500,7400,1,2500,4400,1000,7900,{"$nulls":4},0,{"$nulls":4},0,{"$nulls":4},0,{"$nulls":4},0,2,0,0,0,0,{"$nulls":4},0,{"$nulls":4},0]
[40019,"УПЦ ООО \"Газпром трансгаз Чайковский\"","УПЦ ООО \"Газпром трансгаз Чайковский\"","Обучение рабочих","РабЛюльки","Рабочие люльки","Рабочий люльки по управлению подъемником (вышкой) из люльки","Повышение квалификации (РАБ)",null,"(РАБ) Курсы целевого назначения (в части получения допуска к работе на опасных производственных объектах)",null,null,4,28,0,0,"12.11.2024","14.11.2024",7,14,30,38400,75900,17700,132000,0,132000,18,17,{"$nulls":4},0,2,5500,9900,1500,16900,2,3000,4400,0,7400,1,2000,3300,2400,7700,2,5000,9800,0,14800,2,7400,9800,5800,23000,1,3500,6600,2500,12600,{"$nulls":4},0,{"$nulls":4},0,{"$nulls":4},0,{"$nulls":4},0,{"$nulls":4},0,1,2000,3300,1500,6800,{"$nulls":4},0,4,5000,8800,0,13800,1,0,0,0,0,2,5000,20000,4000,29000,{"$nulls":4},0,{"$nulls":4},0]
[40020,"УПЦ ООО \"Газпром трансгаз Чайковский\"","УПЦ ООО \"Газпром трансгаз Чайковский\"",null,"ОперГРСПП","Оператор ГРС КПП","Оператор газораспределительной станции КПП",null," Переподготовка","(РАБ) Переподготовка",null,null,18,144,34,272,"30.01.2024","22.02.2024",7,14,20,112500,237600,10900,361000,0,361000,11,10,{"$nulls":4},0,3,39000,82500,4500,126000,{"$nulls":4},0,2,25000,52800,4800,82600,3,36000,75900,500,112400,{"$nulls":4},0,1,0,0,0,0,{"$nulls":4},0,{"$nulls":4},0,{"$nulls":4},0,{"$nulls":4},0,1,12500,26400,1100,40000,{"$nulls":4},0,{"$nulls":4},0,{"$nulls":4},0,{"$nulls":4},0,{"$nulls":4},0,{"$nulls":4},0,1,0,0,0,0]
[40021,"УПЦ ООО \"Газпром трансгаз Чайковский\"","УПЦ ООО \"Газпром трансгаз Чайковский\"","Обучение рабочих","ОУиДефектоск","Запуск и прием ВТУ","Технология и безопасное проведение работ по запуску и приему ВТУ в в рабочей среде на камерах запуска-приема со всеми видами затворов. Эксплуатация камер запуска-приема ВТУ","Повышение квалификации (РАБ)",null,"(РАБ) Курсы целевого назначения (в части получения допуска к работе на опасных производственных объектах)",null,null,2,16,0,0,"17.04.2024","18.04.2024",7,16,20,29000,48400,18500,95900,0,95900,18,18,{"$nulls":4},0,{"$nulls":4},0,5,5000,5500,0,10500,2,4000,6600,5000,15600,3,4500,6600,0,11100,1,3000,6500,3000,12500,{"$nulls":4},0,{"$nulls":4},0,{"$nulls":4},0,1,3500,10000,2500,16000,{"$nulls":4},0,2,3000,4400,2000,9400,4,6000,8800,6000,20800,{"$nulls":4},0,{"$nulls":4},0,{"$nulls":4},0,{"$nulls":4},0,{"$nulls":4},0,{"$nulls":4},0]
[40022,"УПЦ ООО \"Газпром трансгаз Чайковский\"","УПЦ ООО \"Газпром трансгаз Чайковский\"","Обучение рабочих","ОУиДефектоск","Запуск и прием ВТУ","Технология и безопасное проведение работ по запуску и приему ВТУ в в рабочей среде на камерах запуска-приема со всеми видами затворов. Эксплуатация камер запуска-приема ВТУ","Повышение квалификации (РАБ)",null,"(РАБ) Курсы целевого назначения (в части получения допуска к работе на опасных производственных объектах)",null,null,2,16,0,0,"06.06.2024","07.06.2024",7,16,20,22500,36700,13500,72700,0,72700,17,17,{"$nulls":4},0,{"$nulls":4},0,5,5000,5500,0,10500,{"$nulls":4},0,4,3000,4400,0,7400,1,2000,3600,3000,8600,{"$nulls":4},0,{"$nulls":4},0,{"$nulls":4},0,1,3500,10000,2500,16000,{"$nulls":4},0,2,3000,4400,2000,9400,4,6000,8800,6000,20800,{"$nulls":4},0,{"$nulls":4},0,{"$nulls":4},0,{"$nulls":4},0,{"$nulls":4},0,{"$nulls":4},0]
[40023,"УПЦ ООО \"Газпром трансгаз Чайковский\"","УПЦ ООО \"Газпром трансгаз Чайковский\"",null,"ИзолПлен","Изолировщик-пленочник","Изолировщик-пленочник КПП",null," Переподготовка","(РАБ) Переподготовка",null,null,5,40,15,120,"21.10.2024","25.10.2024",7,12,20,30000,53900,6000,89900,0,89900,12,12,{"$nulls":4},0,2,6000,11000,3000,20000,3,6000,9900,0,15900,{"$nulls":4},0,5,12000,22000,0,34000,{"$nulls":4},0,{"$nulls":4},0,{"$nulls":4},0,{"$nulls":4},0,{"$nulls":4},0,{"$nulls":4},0,{"$nulls":4},0,2,6000,11000,3000,20000,{"$nulls":4},0,{"$nulls":4},0,{"$nulls":4},0,{"$nulls":4},0,{"$nulls":4},0,{"$nulls":4},0]
[40025,"УПЦ ООО \"Газпром трансгаз Чайковский\"","УПЦ ООО \"Газпром трансгаз Чайковский\"","Обучение рабочих","ОперГРСПК","Оператор ГРС ПТК","Оператор газораспределительной станции ПТК","Повышение квалификации (РАБ)",null,"(РАБ) Повышение квалификации на ПТК",null,null,17,136,35,280,"01.10.2024","23.10.2024",7,10,20,63000,132000,6000,201000,0,201000,9,9,{"$nulls":4},0,{"$nulls":4},0,{"$nulls":4},0,1,12500,26400,2500,41400,4,37500,79200,1000,117700,{"$nulls":4},0,1,0,0,0,0,{"$nulls":4},0,{"$nulls":4},0,1,13000,26400,2500,41900,2,0,0,0,0,{"$nulls":4},0,{"$nulls":4},0,{"$nulls":4},0,{"$nulls":4},0,{"$nulls":4},0,{"$nulls":4},0,{"$nulls":4},0,{"$nulls":4},0]
[40026,"УПЦ ООО \"Газпром трансгаз Чайковский\"","ООО \"Газпром трансгаз Чайковский\"","Обучение ИТР","КурсТребПБ","Требования промышленной безопасности","Требования промышленной безопасности","Повышение квалификации",null,"Предаттестационная подготовка по промышленной безопасности, экологической безопасности и др.",null,null,15,60,0,0,"09.09.2024","27.09.2024",7,30,30,0,0,0,0,0,0,19,16,3,0,0,0,0,{"$nulls":4},0,{"$nulls":4},0,{"$nulls":4},0,3,0,0,0,0,8,0,0,0,0,{"$nulls":4},0,{"$nulls":4},0,{"$nulls":4},0,1,0,0,0,0,3,0,0,0,0,1,0,0,0,0,{"$nulls":4},0,{"$nulls":4},0,{"$nulls":4},0,{"$nulls":4},0,{"$nulls":4},0,{"$nulls":4},0,{"$nulls":4},0]
[40028,"УПЦ ООО \"Газпром трансгаз Чайковский\"","Алмазное ЛПУМГ","Обучение рабочих","ВысРаб24","Высота 1,2 группа 24ч.","(24ч) Обучение персонала безопасным методам и приемам выполнения работ на высоте \"Работники 1,2 групп по безопасности работ на высоте\"","Повышение квалификации (РАБ)",null,"(РАБ) Курсы целевого назначения (в части получения допуска к работе на опасных производственных объектах)",null,null,3,24,0,0,"11.11.2024","13.11.2024",7,20,30,0,0,0,0,0,0,14,14,{"$nulls":4},0,12,0,0,0,0,{"$nulls":4},0,{"$nulls":4},0,{"$nulls":4},0,{"$nulls":4},0,{"$nulls":4},0,{"$nulls":4},0,{"$nulls":4},0,{"$nulls":4},0,{"$nulls":4},0,{"$nulls":4},0,{"$nulls":4},0,{"$nulls":4},0,2,0,0,0,0,{"$nulls":4},0,{"$nulls":4},0,{"$nulls":4},0,{"$nulls":4},0]
[40037,"УПЦ ООО \"Газпром трансгаз Чайковский\"","ООО \"Газпром трансгаз Чайковский\"","Обучение ИТР","БезЭксплТЭУ","Безопасная эксплуатация ТЭУ","Безопасная эксплуатация объектов теплоснабжения и теплопотребляющих установок","Повышение квалификации",null,"Предаттестационная подготовка по промышленной безопасности, экологической безопасности и др.",null,null,7,40,0,0,"23.01.2024","31.01.2024",7,20,20,16000,55540,12000,83540,0,83540,12,8,{"$nulls":4},0,{"$nulls":4},0,{"$nulls":4},0,1,2500,10400,2500,15400,1,1500,2200,0,3700,1,3000,12500,3000,18500,2,5000,20000,5000,30000,{"$nulls":4},0,2,0,0,0,0,{"$nulls":4},0,1,0,0,0,0,{"$nulls":4},0,1,2000,4800,1500,8300,{"$nulls":4},0,1,2000,5640,0,7640,1,0,0,0,0,{"$nulls":4},0,{"$nulls":4},0,1,0,0,0,0]
[40038,"УПЦ ООО \"Газпром трансгаз Чайковский\"","ООО \"Газпром трансгаз Чайковский\"","Обучение ИТР","БезЭксплТЭУ","Безопасная эксплуатация ТЭУ","Безопасная эксплуатация объектов теплоснабжения и теплопотребляющих установок","Повышение квалификации",null,"Предаттестационная подготовка по промышленной безопасности, экологической безопасности и др.",null,null,7,40,0,0,"30.01.2024","07.02.2024",7,20,20,36500,111060,26900,174460,0,174460,21,19,{"$nulls":4},0,1,2000,6000,0,8000,1,1500,5000,0,6500,{"$nulls":4},0,1,1500,2200,0,3700,4,7500,27500,11400,46400,2,2500,10000,2500,15000,{"$nulls":4},0,{"$nulls":4},0,2,4000,12000,4000,20000,1,2000,6320,500,8820,2,5000,12000,2000,19000,3,6000,14400,4500,24900,{"$nulls":4},0,1,2000,5640,0,7640,{"$nulls":4},0,1,2500,10000,2000,14500,1,0,0,0,0,1,0,0,0,0]
[40039,"УПЦ ООО \"Газпром трансгаз Чайковский\"","ООО \"Газпром трансгаз Чайковский\"","Обучение рабочих","ВысРаб32","Высота 1,2 группа 32ч.","(32ч) Обучение персонала безопасным методам и приемам выполнения работ на высоте \"Работники 1,2 групп по безопасности работ на высоте\"","Повышение квалификации (РАБ)",null,"(РАБ) Курсы целевого назначения (в части получения допуска к работе на опасных производственных объектах)",null,null,5,32,0,0,"05.02.2024","08.02.2024",7,20,20,57000,128600,30900,216500,0,216500,30,21,{"$nulls":4},0,2,6000,11000,3000,20000,5,10000,16500,0,26500,3,8000,37400,7300,52700,1,2500,4400,0,6900,3,9000,16500,8400,33900,{"$nulls":4},0,5,0,0,0,0,{"$nulls":4},0,3,9500,20800,8200,38500,{"$nulls":4},0,4,12000,22000,4000,38000,{"$nulls":4},0,{"$nulls":4},0,{"$nulls":4},0,{"$nulls":4},0,{"$nulls":4},0,4,0,0,0,0,{"$nulls":4},0]
[40040,"УПЦ ООО \"Газпром трансгаз Чайковский\"","ООО \"Газпром трансгаз Чайковский\"","Обучение ИТР","СК ОбСтр Р","СК Общестроительные работы","Строительный контроль за качеством строительства, реконструкции и капитального ремонта объектов ООО «Газпром трансгаз Чайковский». Модуль 1 «Проведение строительного контроля за общестроительными работами на объектах магистральных газопроводов»","Повышение квалификации",null,"Другие целевые программы (строительный контроль)",null,null,5,40,0,0,"22.01.2024","26.01.2024",0,20,9999,36500,108600,20100,165200,0,165200,17,6,{"$nulls":4},0,1,2500,8000,1500,12000,{"$nulls":4},0,1,3500,15600,2500,21600,{"$nulls":4},0,1,0,0,0,0,{"$nulls":4},0,7,12500,42000,10000,64500,{"$nulls":4},0,{"$nulls":4},0,1,3000,6500,500,10000,1,3000,7500,1000,11500,1,3000,8000,1500,12500,{"$nulls":4},0,{"$nulls":4},0,{"$nulls":4},0,{"$nulls":4},0,3,9000,21000,3100,33100,1,0,0,0,0]
[40041,"УПЦ ООО \"Газпром трансгаз Чайковский\"","УПЦ ООО \"Газпром трансгаз Чайковский\"","Обучение ИТР","ЭксплКЗ","Эксплуатация средств ПКЗ","Эксплуатация средств противокоррозионной защиты","Повышение квалификации",null,"Периодическое обучение по плану общеста/организации (руководители, специалисты, рабочие)",null,null,5,40,0,0,"26.02.2024","01.03.2024",7,14,20,19000,84800,13300,117100,0,117100,31,23,1,0,0,0,0,{"$nulls":4},0,{"$nulls":4},0,5,13000,59800,7300,80100,3,0,0,0,0,7,6000,25000,6000,37000,{"$nulls":4},0,2,0,0,0,0,{"$nulls":4},0,1,0,0,0,0,2,0,0,0,0,1,0,0,0,0,{"$nulls":4},0,{"$nulls":4},0,4,0,0,0,0,{"$nulls":4},0,{"$nulls":4},0,{"$nulls":4},0,5,0,0,0,0]
[40048,"УПЦ ООО \"Газпром трансгаз Чайковский\"","ООО \"Газпром трансгаз Чайковский\"","Обучение ИТР","СК ОП ПБ","СК объектов МГ Общие положения","[DVERB]","Повышение квалификации",null,"Другие целевые программы (строительный контроль)",null,null,5,40,0,0,"15.01.2024","19.01.2024",7,15,30,9000,29000,5000,43000,0,43000,24,14,{"$nulls":4},0,2,0,0,0,0,{"$nulls":4},0,{"$nulls":4},0,3,0,0,0,0,1,0,0,0,0,1,3500,12000,2500,18000,4,0,0,0,0,{"$nulls":4},0,{"$nulls":4},0,3,3000,6500,500,10000,1,0,0,0,0,1,0,0,0,0,{"$nulls":4},0,{"$nulls":4},0,{"$nulls":4},0,2,2500,10500,2000,15000,3,0,0,0,0,3,0,0,0,0]
[40049,"УПЦ ООО \"Газпром трансгаз Чайковский\"","ООО \"Газпром трансгаз Чайковский\"","Обучение ИТР","СК свар.соед","СК сварочно-монтаж. работы","[DVERB]","Повышение квалификации",null,"Другие целевые программы (строительный контроль)",null,null,7,56,0,0,"01.02.2024","09.02.2024",7,15,30,47500,161700,24800,234000,0,234000,26,12,3,0,0,0,0,1,2500,8000,0,10500,{"$nulls":4},0,1,5500,26000,2500,34000,2,6000,11000,0,17000,2,6000,27500,5800,39300,1,3500,12000,2500,18000,10,12000,40000,8000,60000,{"$nulls":4},0,1,3500,15000,3000,21500,2,2500,5200,500,8200,1,3000,9000,1000,13000,1,3000,8000,1500,12500,{"$nulls":4},0,{"$nulls":4},0,{"$nulls":4},0,{"$nulls":4},0,{"$nulls":4},0,1,0,0,0,0]
[40050,"УПЦ ООО \"Газпром трансгаз Чайковский\"","ООО \"Газпром трансгаз Чайковский\"","Обучение ИТР","СКмг","СК Строит.монт.работы","[DVERB]","Повышение квалификации",null,"Другие целевые программы (строительный контроль)",null,null,5,40,0,0,"12.02.2024","16.02.2024",7,15,30,46500,151100,26500,224100,0,224100,26,14,4,0,0,0,0,1,2500,8000,0,10500,{"$nulls":4},0,1,3500,15600,2500,21600,2,6000,11000,0,17000,2,9000,27500,6000,42500,1,3500,12000,2500,18000,6,9000,30000,7000,46000,{"$nulls":4},0,2,7000,30000,6000,43000,3,0,0,0,0,1,3000,9000,1000,13000,1,3000,8000,1500,12500,{"$nulls":4},0,{"$nulls":4},0,{"$nulls":4},0,{"$nulls":4},0,{"$nulls":4},0,2,0,0,0,0]
[40051,"УПЦ ООО \"Газпром трансгаз Чайковский\"","ООО \"Газпром трансгаз Чайковский\"","Обучение рабочих","ВысРаб24","Высота 1,2 группа 24ч.","(24ч) Обучение персонала безопасным методам и приемам выполнения работ на высоте \"Работники 1,2 групп по безопасности работ на высоте\"","Повышение квалификации (РАБ)",null,"(РАБ) Курсы целевого назначения (в части получения допуска к работе на опасных производственных объектах)",null,null,3,24,0,0,"15.01.2024","17.01.2024",7,20,30,14500,25300,8900,48700,0,48700,23,6,{"$nulls":4},0,{"$nulls":4},0,{"$nulls":4},0,2,4500,7700,4900,17100,{"$nulls":4},0,{"$nulls":4},0,{"$nulls":4},0,5,0,0,0,0,{"$nulls":4},0,{"$nulls":4},0,{"$nulls":4},0,4,10000,17600,4000,31600,{"$nulls":4},0,{"$nulls":4},0,{"$nulls":4},0,5,0,0,0,0,{"$nulls":4},0,2,0,0,0,0,5,0,0,0,0]
[40057,"УПЦ ООО \"Газпром трансгаз Чайковский\"","ООО \"Газпром трансгаз Чайковский\"","Обучение рабочих","ВысРаб24","Высота 1,2 группа 24ч.","(24ч) Обучение персонала безопасным методам и приемам выполнения работ на высоте \"Работники 1,2 групп по безопасности работ на высоте\"","Повышение квалификации (РАБ)",null,"(РАБ) Курсы целевого назначения (в части получения допуска к работе на опасных производственных объектах)",null,null,3,24,0,0,"19.02.2024","21.02.2024",7,20,30,15500,26400,12600,54500,0,54500,26,7,{"$nulls":4},0,{"$nulls":4},0,{"$nulls":4},0,4,8000,13200,9600,30800,{"$nulls":4},0,{"$nulls":4},0,{"$nulls":4},0,8,0,0,0,0,2,0,0,0,0,{"$nulls":4},0,{"$nulls":4},0,3,7500,13200,3000,23700,{"$nulls":4},0,{"$nulls":4},0,{"$nulls":4},0,6,0,0,0,0,{"$nulls":4},0,1,0,0,0,0,2,0,0,0,0]
[40059,"УПЦ ООО \"Газпром трансгаз Чайковский\"","ООО \"Газпром трансгаз Чайковский\"","Обучение ИТР","ОЗП Спец","Работники 2,3 гр.ОЗП","Работники 2, 3 групп по безопасности работ в ограниченных и замкнутых пространствах»","Повышение квалификации",null,"Предаттестационная подготовка по промышленной безопасности, экологической безопасности и др.",null,null,3,24,0,0,"11.03.2024","13.03.2024",7,20,30,23500,77940,11800,113240,0,113240,31,15,{"$nulls":4},0,2,5000,16000,0,21000,2,3000,10000,0,13000,4,7500,32800,7300,47600,{"$nulls":4},0,{"$nulls":4},0,{"$nulls":4},0,6,0,0,0,0,{"$nulls":4},0,{"$nulls":4},0,1,0,0,0,0,{"$nulls":4},0,3,6000,14400,4500,24900,{"$nulls":4},0,3,2000,4740,0,6740,7,0,0,0,0,{"$nulls":4},0,2,0,0,0,0,1,0,0,0,0]
[40060,"УПЦ ООО \"Газпром трансгаз Чайковский\"","УПЦ ООО \"Газпром трансгаз Чайковский\"","Обучение рабочих","СлесЭРГОПК","Слесарь по ЭРГО ПТК","Слесарь по эксплуатации и ремонту газового оборудования ПТК","Повышение квалификации (РАБ)",null,"(РАБ) Повышение квалификации на ПТК",null,null,15,120,25,200,"13.05.2024","31.05.2024",7,10,20,56000,121880,4500,182380,0,182380,11,7,1,0,0,0,0,{"$nulls":4},0,{"$nulls":4},0,{"$nulls":4},0,{"$nulls":4},0,{"$nulls":4},0,{"$nulls":4},0,1,0,0,0,0,{"$nulls":4},0,{"$nulls":4},0,{"$nulls":4},0,{"$nulls":4},0,3,30000,62700,4500,97200,{"$nulls":4},0,4,26000,59180,0,85180,2,0,0,0,0,{"$nulls":4},0,{"$nulls":4},0,{"$nulls":4},0]
[40063,"УПЦ ООО \"Газпром трансгаз Чайковский\"","УПЦ ООО \"Газпром трансгаз Чайковский\"","Обучение рабочих","ТрубЛинПК","Трубопроводчик линейный ПТК","Трубопроводчик линейный ПТК","Повышение квалификации (РАБ)",null,"(РАБ) Повышение квалификации на ПТК",null,null,10,80,10,80,"29.01.2024","09.02.2024",7,16,20,50000,112000,15900,177900,0,177900,8,8,{"$nulls":4},0,{"$nulls":4},0,{"$nulls":4},0,1,6500,13200,2500,22200,2,13000,26400,500,39900,3,17000,36300,8400,61700,{"$nulls":4},0,{"$nulls":4},0,{"$nulls":4},0,1,7000,24000,3000,34000,{"$nulls":4},0,{"$nulls":4},0,1,6500,12100,1500,20100,{"$nulls":4},0,{"$nulls":4},0,{"$nulls":4},0,{"$nulls":4},0,{"$nulls":4},0,{"$nulls":4},0]
[40064,"УПЦ ООО \"Газпром трансгаз Чайковский\"","УПЦ ООО \"Газпром трансгаз Чайковский\"","Обучение рабочих","Труб Лбез ПР","Трубопроводчик линейный ПТК(без пов.раз)","Трубопроводчик линейный ПТК","Повышение квалификации (РАБ)",null,"(РАБ) Повышение квалификации на ПТК",null,null,5,40,15,120,"22.04.2024","26.04.2024",7,16,20,53000,129900,26000,208900,0,208900,16,16,{"$nulls":4},0,1,3000,5500,1500,10000,{"$nulls":4},0,{"$nulls":4},0,4,12000,22000,0,34000,2,7500,18200,3000,28700,1,3500,6600,2500,12600,{"$nulls":4},0,{"$nulls":4},0,5,17500,60000,15000,92500,{"$nulls":4},0,1,3500,6600,1000,11100,2,6000,11000,3000,20000,{"$nulls":4},0,{"$nulls":4},0,{"$nulls":4},0,{"$nulls":4},0,{"$nulls":4},0,{"$nulls":4},0]
[40069,"УПЦ ООО \"Газпром трансгаз Чайковский\"","ООО \"Газпром трансгаз Чайковский\"","Обучение ИТР","БезЭксплТЭУ","Безопасная эксплуатация ТЭУ","Безопасная эксплуатация объектов теплоснабжения и теплопотребляющих установок","Повышение квалификации",null,"Предаттестационная подготовка по промышленной безопасности, экологической безопасности и др.",null,null,7,40,0,0,"26.03.2024","03.04.2024",7,20,20,26000,72920,18100,117020,0,117020,18,12,{"$nulls":4},0,{"$nulls":4},0,1,1500,5000,0,6500,1,2500,6000,2400,10900,2,3000,4400,0,7400,1,1500,5000,2800,9300,1,2500,8000,2500,13000,{"$nulls":4},0,{"$nulls":4},0,3,6000,18000,6000,30000,1,2000,6320,500,8820,1,2500,6000,1000,9500,{"$nulls":4},0,{"$nulls":4},0,{"$nulls":4},0,3,0,0,0,0,1,2500,10000,2000,14500,3,2000,4200,900,7100,{"$nulls":4},0]
[40070,"УПЦ ООО \"Газпром трансгаз Чайковский\"","УПЦ ООО \"Газпром трансгаз Чайковский\"","Обучение рабочих","Труб Лбез ПР","Трубопроводчик линейный ПТК(без пов.раз)","Трубопроводчик линейный ПТК","Повышение квалификации (РАБ)",null,"(РАБ) Повышение квалификации на ПТК",null,null,5,40,15,120,"09.09.2024","13.09.2024",7,16,20,38500,82300,15000,135800,0,135800,12,12,{"$nulls":4},0,2,6000,11000,3000,20000,{"$nulls":4},0,{"$nulls":4},0,4,12000,22000,0,34000,{"$nulls":4},0,1,3500,6600,2500,12600,{"$nulls":4},0,{"$nulls":4},0,2,7000,24000,6000,37000,{"$nulls":4},0,2,7000,13200,2000,22200,1,3000,5500,1500,10000,{"$nulls":4},0,{"$nulls":4},0,{"$nulls":4},0,{"$nulls":4},0,{"$nulls":4},0,{"$nulls":4},0]
[40071,"УПЦ ООО \"Газпром трансгаз Чайковский\"","ООО \"Газпром трансгаз Чайковский\"","Обучение ИТР","БезЭксплТЭУ","Безопасная эксплуатация ТЭУ","Безопасная эксплуатация объектов теплоснабжения и теплопотребляющих установок","Повышение квалификации",null,"Предаттестационная подготовка по промышленной безопасности, экологической безопасности и др.",null,null,7,40,0,0,"16.04.2024","24.04.2024",7,20,20,28500,91320,20000,139820,0,139820,16,13,{"$nulls":4},0,2,4500,16000,0,20500,{"$nulls":4},0,2,5000,20800,5000,30800,{"$nulls":4},0,1,1500,5000,2800,9300,2,5000,18000,5000,28000,{"$nulls":4},0,{"$nulls":4},0,1,2000,6000,2000,10000,2,2000,6320,500,8820,1,2500,6000,1000,9500,2,2000,4800,1500,8300,{"$nulls":4},0,{"$nulls":4},0,1,0,0,0,0,{"$nulls":4},0,2,4000,8400,2200,14600,{"$nulls":4},0]
[40072,"УПЦ ООО \"Газпром трансгаз Чайковский\"","УПЦ ООО \"Газпром трансгаз Чайковский\"","Обучение рабочих","ОбхЛин","Обходчик линейный ПТК (без пов.разряда)","Обходчик линейный ПТК","Повышение квалификации (РАБ)",null,"(РАБ) Повышение квалификации на ПТК",null,null,5,40,27,216,"12.02.2024","16.02.2024",0,16,20,37500,85000,14500,137000,0,137000,11,10,{"$nulls":4},0,{"$nulls":4},0,2,5000,8800,0,13800,{"$nulls":4},0,2,6000,11000,0,17000,1,7500,18200,3000,28700,{"$nulls":4},0,{"$nulls":4},0,{"$nulls":4},0,3,10500,36000,9000,55500,{"$nulls":4},0,{"$nulls":4},0,1,3000,5500,1500,10000,{"$nulls":4},0,1,3000,5500,0,8500,{"$nulls":4},0,{"$nulls":4},0,{"$nulls":4},0,1,2500,0,1000,3500]
[40073,"УПЦ ООО \"Газпром трансгаз Чайковский\"","ООО \"Газпром трансгаз Чайковский\"","Обучение ИТР","ОЗП Спец","Работники 2,3 гр.ОЗП","Работники 2, 3 групп по безопасности работ в ограниченных и замкнутых пространствах»","Повышение квалификации",null,"Предаттестационная подготовка по промышленной безопасности, экологической безопасности и др.",null,null,3,24,0,0,"01.04.2024","03.04.2024",7,20,30,33500,114780,21800,170080,0,170080,34,13,{"$nulls":4},0,1,2500,8000,0,10500,2,3000,10000,0,13000,4,10000,43200,9800,63000,{"$nulls":4},0,3,8500,32500,8400,49400,{"$nulls":4},0,{"$nulls":4},0,{"$nulls":4},0,{"$nulls":4},0,{"$nulls":4},0,{"$nulls":4},0,1,1500,3200,1500,6200,{"$nulls":4},0,2,4000,9480,0,13480,15,0,0,0,0,{"$nulls":4},0,3,4000,8400,2100,14500,3,0,0,0,0]
[40075,"УПЦ ООО \"Газпром трансгаз Чайковский\"","ООО \"Газпром трансгаз Чайковский\"","Обучение ИТР","БезопЭксЭУ","Безопасная эксплуатация электрохозяйства","Безопасная эксплуатация объектов электрохозяйства","Повышение квалификации",null,"Предаттестационная подготовка по промышленной безопасности, экологической безопасности и др.",null,null,7,40,0,0,"02.04.2024","10.04.2024",7,20,20,25500,78440,15600,119540,0,119540,17,13,{"$nulls":4},0,{"$nulls":4},0,2,2000,5000,0,7000,2,4500,15600,5000,25100,1,1500,2200,0,3700,2,6000,25000,5600,36600,{"$nulls":4},0,1,0,0,0,0,{"$nulls":4},0,1,2000,6000,2000,10000,1,2000,6320,500,8820,1,2500,6000,1000,9500,1,2000,4800,1500,8300,{"$nulls":4},0,2,3000,7520,0,10520,1,0,0,0,0,{"$nulls":4},0,{"$nulls":4},0,2,0,0,0,0]
[40076,"УПЦ ООО \"Газпром трансгаз Чайковский\"","УПЦ ООО \"Газпром трансгаз Чайковский\"","Обучение ИТР","ПБОГРГП","Треб. ПБ на объектах газораспределения","Требования промышленной безопасности на объектах газораспределения и газопотребления","Повышение квалификации",null,"Предаттестационная подготовка по промышленной безопасности, экологической безопасности и др.",null,null,7,40,0,0,"19.11.2024","28.11.2024",7,10,20,24500,71400,5400,101300,0,101300,6,5,{"$nulls":4},0,{"$nulls":4},0,{"$nulls":4},0,1,5000,23400,2400,30800,4,19500,48000,3000,70500,{"$nulls":4},0,{"$nulls":4},0,{"$nulls":4},0,{"$nulls":4},0,{"$nulls":4},0,{"$nulls":4},0,{"$nulls":4},0,{"$nulls":4},0,{"$nulls":4},0,{"$nulls":4},0,1,0,0,0,0,{"$nulls":4},0,{"$nulls":4},0,{"$nulls":4},0]
[40077,"УПЦ ООО \"Газпром трансгаз Чайковский\"","ООО \"Газпром трансгаз Чайковский\"","Обучение ИТР","БезопЭксЭУ","Безопасная эксплуатация электрохозяйства","Безопасная эксплуатация объектов электрохозяйства","Повышение квалификации",null,"Предаттестационная подготовка по промышленной безопасности, экологической безопасности и др.",null,null,7,40,0,0,"09.04.2024","17.04.2024",7,20,20,18000,59320,11500,88820,0,88820,14,11,{"$nulls":4},0,1,2000,6000,1500,9500,{"$nulls":4},0,{"$nulls":4},0,1,0,0,0,0,{"$nulls":4},0,2,2500,10000,2500,15000,{"$nulls":4},0,2,0,0,0,0,1,3500,15000,3000,21500,1,0,0,0,0,1,2500,6000,1000,9500,1,2000,4800,1500,8300,{"$nulls":4},0,2,3000,7520,0,10520,{"$nulls":4},0,1,2500,10000,2000,14500,1,0,0,0,0,{"$nulls":4},0]
[40078,"УПЦ ООО \"Газпром трансгаз Чайковский\"","УПЦ ООО \"Газпром трансгаз Чайковский\"","Обучение ИТР","ТОиРВТУ","Камеры приема-запуска ВТУ","Эксплуатация и ТОиР камер приема-запуска ВТУ со всеми видами затворов и безопасное производство работ по запуску и приему ВТУ в рабочей среде","Повышение квалификации",null,"Прочие технические (ГНВП, сварочное, противопожарные и т.д.)",null,null,2,16,0,0,"04.06.2024","05.06.2024",7,10,20,23500,69600,18600,111700,0,111700,14,13,{"$nulls":4},0,1,1500,4000,1500,7000,3,3000,7500,0,10500,1,2000,7800,2500,12300,1,1500,2200,0,3700,3,7500,27500,8100,43100,1,3500,12000,2500,18000,{"$nulls":4},0,{"$nulls":4},0,{"$nulls":4},0,{"$nulls":4},0,{"$nulls":4},0,2,3000,6400,3000,12400,{"$nulls":4},0,1,1500,2200,1000,4700,{"$nulls":4},0,{"$nulls":4},0,{"$nulls":4},0,1,0,0,0,0]
[40079,"УПЦ ООО \"Газпром трансгаз Чайковский\"","ООО \"Газпром трансгаз Чайковский\"","Обучение ИТР","БезопЭксЭУ","Безопасная эксплуатация электрохозяйства","Безопасная эксплуатация объектов электрохозяйства","Повышение квалификации",null,"Предаттестационная подготовка по промышленной безопасности, экологической безопасности и др.",null,null,7,40,0,0,"14.05.2024","22.05.2024",7,20,20,22500,78260,17600,118360,0,118360,13,11,{"$nulls":4},0,1,2000,6000,1500,9500,{"$nulls":4},0,1,2000,7800,2500,12300,1,1500,2200,0,3700,1,3000,12500,3000,18500,1,2500,10000,2500,15000,{"$nulls":4},0,{"$nulls":4},0,1,3500,15000,3000,21500,1,2000,6320,500,8820,2,2000,5640,1100,8740,1,2000,4800,1500,8300,{"$nulls":4},0,{"$nulls":4},0,{"$nulls":4},0,1,2000,8000,2000,12000,1,0,0,0,0,1,0,0,0,0]
[40080,"УПЦ ООО \"Газпром трансгаз Чайковский\"","ООО \"Газпром трансгаз Чайковский\"","Обучение ИТР","БезопЭксЭУ","Безопасная эксплуатация электрохозяйства","Безопасная эксплуатация объектов электрохозяйства","Повышение квалификации",null,"Предаттестационная подготовка по промышленной безопасности, экологической безопасности и др.",null,null,7,40,0,0,"28.05.2024","05.06.2024",7,20,20,21500,67420,14200,103120,0,103120,17,11,{"$nulls":4},0,2,4000,15000,3000,22000,1,1000,2500,0,3500,2,2000,7800,2500,12300,1,1500,2200,0,3700,{"$nulls":4},0,1,2500,10000,2500,15000,1,0,0,0,0,{"$nulls":4},0,{"$nulls":4},0,1,2000,6320,500,8820,1,2500,6000,1000,9500,1,2000,4800,1500,8300,{"$nulls":4},0,{"$nulls":4},0,2,0,0,0,0,1,2500,10000,2000,14500,2,1500,2800,1200,5500,1,0,0,0,0]
[40082,"УПЦ ООО \"Газпром трансгаз Чайковский\"","ООО \"Газпром трансгаз Чайковский\"","Обучение рабочих","ВысРаб32","Высота 1,2 группа 32ч.","(32ч) Обучение персонала безопасным методам и приемам выполнения работ на высоте \"Работники 1,2 групп по безопасности работ на высоте\"","Повышение квалификации (РАБ)",null,"(РАБ) Курсы целевого назначения (в части получения допуска к работе на опасных производственных объектах)",null,null,5,32,0,0,"03.06.2024","06.06.2024",7,20,20,21500,52600,14400,88500,0,88500,21,10,{"$nulls":4},0,2,6000,11000,3000,20000,{"$nulls":4},0,1,3500,6600,2400,12500,3,0,0,0,0,{"$nulls":4},0,{"$nulls":4},0,4,0,0,0,0,{"$nulls":4},0,2,7000,24000,6000,37000,{"$nulls":4},0,{"$nulls":4},0,2,5000,11000,3000,19000,{"$nulls":4},0,{"$nulls":4},0,{"$nulls":4},0,{"$nulls":4},0,{"$nulls":4},0,7,0,0,0,0]
[40083,"УПЦ ООО \"Газпром трансгаз Чайковский\"","ООО \"Газпром трансгаз Чайковский\"","Обучение ИТР","ОЗП Спец","Работники 2,3 гр.ОЗП","Работники 2, 3 групп по безопасности работ в ограниченных и замкнутых пространствах»","Повышение квалификации",null,"Предаттестационная подготовка по промышленной безопасности, экологической безопасности и др.",null,null,3,24,0,0,"17.06.2024","19.06.2024",7,20,30,26000,83140,18900,128040,0,128040,25,11,{"$nulls":4},0,1,2500,8000,0,10500,1,0,0,0,0,3,5000,20800,5000,30800,{"$nulls":4},0,3,8500,29000,8800,46300,{"$nulls":4},0,{"$nulls":4},0,{"$nulls":4},0,{"$nulls":4},0,{"$nulls":4},0,{"$nulls":4},0,{"$nulls":4},0,{"$nulls":4},0,2,2000,4740,0,6740,9,0,0,0,0,1,2000,8000,2000,12000,4,6000,12600,3100,21700,1,0,0,0,0]
[40087,"УПЦ ООО \"Газпром трансгаз Чайковский\"","ООО \"Газпром трансгаз Чайковский\"","Обучение рабочих","ВысРаб24","Высота 1,2 группа 24ч.","(24ч) Обучение персонала безопасным методам и приемам выполнения работ на высоте \"Работники 1,2 групп по безопасности работ на высоте\"","Повышение квалификации (РАБ)",null,"(РАБ) Курсы целевого назначения (в части получения допуска к работе на опасных производственных объектах)",null,null,3,24,0,0,"09.09.2024","11.09.2024",7,20,30,7500,13200,3000,23700,0,23700,19,14,{"$nulls":4},0,{"$nulls":4},0,{"$nulls":4},0,{"$nulls":4},0,{"$nulls":4},0,{"$nulls":4},0,{"$nulls":4},0,{"$nulls":4},0,{"$nulls":4},0,11,0,0,0,0,{"$nulls":4},0,3,7500,13200,3000,23700,{"$nulls":4},0,{"$nulls":4},0,{"$nulls":4},0,4,0,0,0,0,{"$nulls":4},0,{"$nulls":4},0,1,0,0,0,0]
[40091,"УПЦ ООО \"Газпром трансгаз Чайковский\"","ООО \"Газпром трансгаз Чайковский\"","Обучение рабочих","ВысРаб32","Высота 1,2 группа 32ч.","(32ч) Обучение персонала безопасным методам и приемам выполнения работ на высоте \"Работники 1,2 групп по безопасности работ на высоте\"","Повышение квалификации (РАБ)",null,"(РАБ) Курсы целевого назначения (в части получения допуска к работе на опасных производственных объектах)",null,null,5,32,0,0,"14.10.2024","17.10.2024",7,20,20,34500,84400,24300,143200,0,143200,20,15,{"$nulls":4},0,2,6000,11000,3000,20000,{"$nulls":4},0,5,5500,9900,4800,20200,{"$nulls":4},0,{"$nulls":4},0,{"$nulls":4},0,{"$nulls":4},0,{"$nulls":4},0,3,10500,36000,9000,55500,{"$nulls":4},0,{"$nulls":4},0,5,12500,27500,7500,47500,{"$nulls":4},0,{"$nulls":4},0,{"$nulls":4},0,{"$nulls":4},0,1,0,0,0,0,4,0,0,0,0]
[40096,"УПЦ ООО \"Газпром трансгаз Чайковский\"","ООО \"Газпром трансгаз Чайковский\"","Обучение ИТР","СК свар.соед","СК сварочно-монтаж. работы","[DVERB]","Повышение квалификации",null,"Другие целевые программы (строительный контроль)",null,null,7,56,0,0,"17.10.2024","25.10.2024",7,15,30,5500,26000,2500,34000,0,34000,5,3,{"$nulls":4},0,{"$nulls":4},0,{"$nulls":4},0,1,5500,26000,2500,34000,{"$nulls":4},0,{"$nulls":4},0,{"$nulls":4},0,2,0,0,0,0,{"$nulls":4},0,{"$nulls":4},0,2,0,0,0,0,{"$nulls":4},0,{"$nulls":4},0,{"$nulls":4},0,{"$nulls":4},0,{"$nulls":4},0,{"$nulls":4},0,{"$nulls":4},0,{"$nulls":4},0]
[40102,"УПЦ ООО \"Газпром трансгаз Чайковский\"","УПЦ ООО \"Газпром трансгаз Чайковский\"",null,"ОперКот2","Оператор котельной 2см","Оператор котельной 2см",null," Обучение вторым/смежным профессиям","(РАБ) Обучение вторым (смежным) профессиям",null,null,14,112,18,144,"21.05.2024","07.06.2024",7,15,20,112500,263000,18000,393500,0,393500,19,18,{"$nulls":4},0,{"$nulls":4},0,{"$nulls":4},0,1,9500,19800,2500,31800,2,18500,38500,0,57000,1,7500,18200,3000,28700,2,20000,39600,5000,64600,{"$nulls":4},0,{"$nulls":4},0,1,10500,38000,3000,51500,1,0,0,0,0,{"$nulls":4},0,7,40000,88000,4500,132500,{"$nulls":4},0,3,6500,20900,0,27400,{"$nulls":4},0,{"$nulls":4},0,{"$nulls":4},0,1,0,0,0,0]
[40103,"УПЦ ООО \"Газпром трансгаз Чайковский\"","УПЦ ООО \"Газпром трансгаз Чайковский\"",null,"Строп2","Стропальщик 2см","Стропальщик 2см",null," Обучение вторым/смежным профессиям","(РАБ) Обучение вторым (смежным) профессиям",null,null,5,40,15,120,"05.02.2024","09.02.2024",7,15,20,40500,98800,21800,161100,0,161100,20,14,{"$nulls":4},0,1,3000,5500,1500,10000,{"$nulls":4},0,3,10500,19800,7500,37800,2,6000,13000,0,19000,1,3000,5500,2800,11300,{"$nulls":4},0,2,0,0,0,0,{"$nulls":4},0,2,7000,24000,6000,37000,{"$nulls":4},0,{"$nulls":4},0,1,0,0,0,0,{"$nulls":4},0,2,6000,11000,0,17000,2,0,0,0,0,2,5000,20000,4000,29000,{"$nulls":4},0,2,0,0,0,0]
[40104,"УПЦ ООО \"Газпром трансгаз Чайковский\"","УПЦ ООО \"Газпром трансгаз Чайковский\"",null,"Строп2","Стропальщик 2см","Стропальщик 2см",null," Обучение вторым/смежным профессиям","(РАБ) Обучение вторым (смежным) профессиям",null,null,5,40,15,120,"11.03.2024","15.03.2024",7,15,20,40000,102400,23900,{"$f":"SUM(V115,W115,X115)","v":166300},0,{"$f":"Y115+(Z115*AB115)","v":166300},{"$f":"SUM(AD115,AI115,AN115,AS115,AX115,BC115,BH115,BM115,BR115,BW115,CB115,CG115,CL115,CQ115,CV115,DA115,DF115,DK115,DP115)","v":18},{"$f":"SUM(AI115,AN115,AS115,AX115,BC115,BH115,BW115,CB115,CG115,CL115,CV115,DF115)","v":17},{"$nulls":4},{"$f":"SUM(AE115,AF115,AG115)","v":0},2,6000,11000,3000,{"$f":"SUM(AJ115,AK115,AL115)","v":20000},{"$nulls":4},{"$f":"SUM(AO115,AP115,AQ115)","v":0},1,3000,5500,2400,{"$f":"SUM(AT115,AU115,AV115)","v":10900},3,6000,11000,0,{"$f":"SUM(AY115,AZ115,BA115)","v":17000},{"$nulls":4},{"$f":"SUM(BD115,BE115,BF115)","v":0},1,3000,5500,2500,{"$f":"SUM(BI115,BJ115,BK115)","v":11000},{"$nulls":4},{"$f":"SUM(BN115,BO115,BP115)","v":0},{"$nulls":4},{"$f":"SUM(BS115,BT115,BU115)","v":0},4,14000,41500,12000,{"$f":"SUM(BX115,BY115,BZ115)","v":67500},1,0,0,0,{"$f":"SUM(CC115,CD115,CE115)","v":0},{"$nulls":4},{"$f":"SUM(CH115,CI115,CJ115)","v":0},{"$nulls":4},{"$f":"SUM(CM115,CN115,CO115)","v":0},{"$nulls":4},{"$f":"SUM(CR115,CS115,CT115)","v":0},1,3000,7900,0,{"$f":"SUM(CW115,CX115,CY115)","v":10900},1,0,0,0,{"$f":"SUM(DB115,DC115,DD115)","v":0},4,5000,20000,4000,{"$f":"SUM(DG115,DH115,DI115)","v":29000},{"$nulls":4},{"$f":"SUM(DL115,DM115,DN115)","v":0},{"$nulls":4},{"$f":"SUM(DQ115,DR115,DS115)","v":0}]
[40105,"УПЦ ООО \"Газпром трансгаз Чайковский\"","УПЦ ООО \"Газпром трансгаз Чайковский\"",null,"Строп2","Стропальщик 2см","Стропальщик 2см",null," Обучение вторым/смежным профессиям","(РАБ) Обучение вторым (смежным) профессиям",null,null,5,40,15,120,"08.04.2024","12.04.2024",7,15,20,19500,41500,9000,70000,0,70000,17,10,{"$nulls":4},0,{"$nulls":4},0,{"$nulls":4},0,{"$nulls":4},0,{"$nulls":4},0,{"$nulls":4},0,2,3000,5500,2500,11000,4,0,0,0,0,{"$nulls":4},0,{"$nulls":4},0,3,6000,11000,1000,18000,{"$nulls":4},0,1,2500,5500,1500,9500,{"$nulls":4},0,2,3000,5500,0,8500,2,0,0,0,0,2,5000,14000,4000,23000,{"$nulls":4},0,1,0,0,0,0]
[40107,"УПЦ ООО \"Газпром трансгаз Чайковский\"","УПЦ ООО \"Газпром трансгаз Чайковский\"","Обучение рабочих","ЛаборантПК","Лаборант хим.анализа ПТК","Лаборант химического анализа ПТК","Повышение квалификации (РАБ)",null,"(РАБ) Повышение квалификации на ПТК",null,null,19,152,33,264,"30.09.2024","11.10.2024",7,15,20,184000,457800,32200,674000,0,674000,19,18,{"$nulls":4},0,1,13000,27500,1500,42000,1,12500,26400,0,38900,{"$nulls":4},0,2,26000,55000,0,81000,4,28000,61600,11200,100800,2,26000,57200,5000,88200,{"$nulls":4},0,{"$nulls":4},0,4,42000,152000,12000,206000,1,0,0,0,0,1,13000,27500,1000,41500,1,13500,29700,1500,44700,{"$nulls":4},0,1,10000,20900,0,30900,{"$nulls":4},0,{"$nulls":4},0,{"$nulls":4},0,1,0,0,0,0]
[40108,"УПЦ ООО \"Газпром трансгаз Чайковский\"","УПЦ ООО \"Газпром трансгаз Чайковский\"","Обучение рабочих","ОперКотПК","Оператор котельной ПТК","Оператор котельной ПТК","Повышение квалификации (РАБ)",null,"(РАБ) Повышение квалификации на ПТК",null,null,13,104,19,152,"18.06.2024","04.07.2024",7,15,20,76000,158900,16500,251400,0,251400,12,10,1,0,0,0,0,{"$nulls":4},0,{"$nulls":4},0,{"$nulls":4},0,1,9000,18700,0,27700,2,15000,36400,6000,57400,1,10000,19800,2500,32300,1,0,0,0,0,{"$nulls":4},0,1,7000,24000,3000,34000,{"$nulls":4},0,{"$nulls":4},0,{"$nulls":4},0,{"$nulls":4},0,3,16000,26400,1000,43400,{"$nulls":4},0,2,19000,33600,4000,56600,{"$nulls":4},0,{"$nulls":4},0]
[40110,"УПЦ ООО \"Газпром трансгаз Чайковский\"","УПЦ ООО \"Газпром трансгаз Чайковский\"","Обучение рабочих","СлесСантехПК","Слесарь-сантехник ПТК","Слесарь-сантехник ПТК","Повышение квалификации (РАБ)",null,"(РАБ) Повышение квалификации на ПТК",null,null,13,152,21,168,"01.10.2024","25.10.2024",7,15,20,67500,165800,11500,244800,0,244800,12,7,1,0,0,0,0,{"$nulls":4},0,1,6000,12100,0,18100,{"$nulls":4},0,2,19000,40700,500,60200,2,15000,36400,6000,57400,1,13500,28600,2500,44600,2,0,0,0,0,{"$nulls":4},0,1,14000,48000,2500,64500,{"$nulls":4},0,{"$nulls":4},0,{"$nulls":4},0,{"$nulls":4},0,{"$nulls":4},0,1,0,0,0,0,{"$nulls":4},0,{"$nulls":4},0,1,0,0,0,0]
[40111,"УПЦ ООО \"Газпром трансгаз Чайковский\"","УПЦ ООО \"Газпром трансгаз Чайковский\"","Обучение рабочих","СлесСантехПК","Слесарь-сантехник ПТК","Слесарь-сантехник ПТК","Повышение квалификации (РАБ)",null,"(РАБ) Повышение квалификации на ПТК",null,null,13,152,21,168,"11.03.2024","22.03.2024",7,15,20,70500,182900,21600,275000,0,275000,18,12,2,0,0,0,0,1,3000,5500,1500,10000,{"$nulls":4},0,{"$nulls":4},0,{"$nulls":4},0,2,14000,30800,5600,50400,{"$nulls":4},0,{"$nulls":4},0,1,0,0,0,0,4,28000,96000,11500,135500,{"$nulls":4},0,{"$nulls":4},0,2,6000,11000,3000,20000,{"$nulls":4},0,3,19500,39600,0,59100,1,0,0,0,0,{"$nulls":4},0,1,0,0,0,0,1,0,0,0,0]
[40112,"УПЦ ООО \"Газпром трансгаз Чайковский\"","УПЦ ООО \"Газпром трансгаз Чайковский\"","Обучение рабочих","СлесСантехПК","Слесарь-сантехник ПТК","Слесарь-сантехник ПТК","Повышение квалификации (РАБ)",null,"(РАБ) Повышение квалификации на ПТК",null,null,13,152,21,168,"12.08.2024","23.08.2024",7,15,20,70500,175400,20600,266500,0,266500,12,11,{"$nulls":4},0,1,3000,5500,1500,10000,{"$nulls":4},0,{"$nulls":4},0,2,19000,40700,500,60200,2,14000,30800,5600,50400,{"$nulls":4},0,{"$nulls":4},0,{"$nulls":4},0,3,21000,72000,9000,102000,{"$nulls":4},0,1,7500,15400,1000,23900,2,6000,11000,3000,20000,{"$nulls":4},0,{"$nulls":4},0,{"$nulls":4},0,{"$nulls":4},0,{"$nulls":4},0,1,0,0,0,0]
[40126,"УПЦ ООО \"Газпром трансгаз Чайковский\"","ООО \"Газпром трансгаз Чайковский\"","Обучение ИТР","СК ОП ПБ","СК объектов МГ Общие положения","[DVERB]","Повышение квалификации",null,"Другие целевые программы (строительный контроль)",null,null,5,40,0,0,"22.04.2024","26.04.2024",7,15,30,18500,61400,9900,89800,0,89800,45,35,6,0,0,0,0,2,0,0,0,0,5,0,0,0,0,1,3000,13000,2400,18400,{"$nulls":4},0,5,0,0,0,0,2,7000,24000,5000,36000,1,0,0,0,0,1,0,0,0,0,6,0,0,0,0,4,3000,6500,500,10000,1,0,0,0,0,5,0,0,0,0,{"$nulls":4},0,3,3000,7900,0,10900,{"$nulls":4},0,1,2500,10000,2000,14500,{"$nulls":4},0,2,0,0,0,0]
[40127,"УПЦ ООО \"Газпром трансгаз Чайковский\"","ООО \"Газпром трансгаз Чайковский\"","Обучение ИТР","СК свар.соед","СК сварочно-монтаж. работы","[DVERB]","Повышение квалификации",null,"Другие целевые программы (строительный контроль)",null,null,7,56,0,0,"23.05.2024","31.05.2024",7,30,30,65500,226800,29000,321300,0,321300,29,22,4,0,0,0,0,2,5000,16000,0,21000,5,12500,50000,0,62500,{"$nulls":4},0,{"$nulls":4},0,2,6000,25000,6000,37000,1,3500,12000,2500,18000,{"$nulls":4},0,{"$nulls":4},0,5,17500,70000,14500,102000,1,3000,6500,500,10000,1,3000,7500,1000,11500,3,9000,24000,4500,37500,{"$nulls":4},0,2,6000,15800,0,21800,{"$nulls":4},0,{"$nulls":4},0,{"$nulls":4},0,3,0,0,0,0]
[40128,"УПЦ ООО \"Газпром трансгаз Чайковский\"","ООО \"Газпром трансгаз Чайковский\"","Обучение ИТР","СКмг","СК Строит.монт.работы","[DVERB]","Повышение квалификации",null,"Другие целевые программы (строительный контроль)",null,null,5,40,0,0,"17.06.2024","21.06.2024",7,15,30,65500,231300,28000,324800,0,324800,30,22,2,0,0,0,0,2,5000,16000,0,21000,5,12500,50000,0,62500,{"$nulls":4},0,{"$nulls":4},0,2,6000,32500,6000,44500,1,3500,12000,2500,18000,4,3500,12000,2000,17500,{"$nulls":4},0,4,14000,55000,11500,80500,2,3000,6500,500,10000,1,3000,7500,1000,11500,3,9000,24000,4500,37500,{"$nulls":4},0,2,6000,15800,0,21800,{"$nulls":4},0,{"$nulls":4},0,{"$nulls":4},0,2,0,0,0,0]
[40129,"УПЦ ООО \"Газпром трансгаз Чайковский\"","ООО \"Газпром трансгаз Чайковский\"","Обучение ИТР","СК ОбСтр Р","СК Общестроительные работы","Строительный контроль за качеством строительства, реконструкции и капитального ремонта объектов ООО «Газпром трансгаз Чайковский». Модуль 1 «Проведение строительного контроля за общестроительными работами на объектах магистральных газопроводов»","Повышение квалификации",null,"Другие целевые программы (строительный контроль)",null,null,5,40,0,0,"01.07.2024","05.07.2024",7,15,30,24000,88000,13800,125800,0,125800,13,7,{"$nulls":4},0,{"$nulls":4},0,1,2500,10000,0,12500,2,6000,26000,4800,36800,{"$nulls":4},0,{"$nulls":4},0,{"$nulls":4},0,4,3500,12000,2000,17500,1,0,0,0,0,1,3500,15000,3000,21500,1,3000,6500,500,10000,{"$nulls":4},0,1,3000,8000,1500,12500,{"$nulls":4},0,{"$nulls":4},0,{"$nulls":4},0,1,2500,10500,2000,15000,1,0,0,0,0,{"$nulls":4},0]
[40130,"УПЦ ООО \"Газпром трансгаз Чайковский\"","ООО \"Газпром трансгаз Чайковский\"","Обучение ИТР","СК ОП ПБ","СК объектов МГ Общие положения","[DVERB]","Повышение квалификации",null,"Другие целевые программы (строительный контроль)",null,null,5,40,0,0,"09.09.2024","13.09.2024",7,15,30,37500,132320,26500,196320,0,196320,56,44,3,0,0,0,0,9,0,0,0,0,4,0,0,0,0,{"$nulls":4},0,1,0,0,0,0,{"$nulls":4},0,8,28000,96000,20000,144000,6,0,0,0,0,{"$nulls":4},0,5,7000,30000,6000,43000,7,2500,6320,500,9320,3,0,0,0,0,7,0,0,0,0,{"$nulls":4},0,{"$nulls":4},0,2,0,0,0,0,{"$nulls":4},0,1,0,0,0,0,{"$nulls":4},0]
[40131,"УПЦ ООО \"Газпром трансгаз Чайковский\"","ООО \"Газпром трансгаз Чайковский\"","Обучение ИТР","СКСоорСвязи","СК сооружений связи","Строительный контроль за качеством строительства, реконструкции и капитального ремонта сооружений связи на объектах магистральных газопроводов","Повышение квалификации",null,"Другие целевые программы (строительный контроль)",null,null,5,40,0,0,"16.09.2024","20.09.2024",7,15,30,53000,181500,25900,260400,0,260400,15,14,{"$nulls":4},0,1,2500,8000,0,10500,{"$nulls":4},0,4,13000,78000,9800,100800,1,3000,5500,0,8500,2,15000,30000,5600,50600,2,7000,24000,5000,36000,{"$nulls":4},0,{"$nulls":4},0,1,3500,15000,3000,21500,2,6000,13000,1000,20000,{"$nulls":4},0,1,3000,8000,1500,12500,{"$nulls":4},0,{"$nulls":4},0,1,0,0,0,0,{"$nulls":4},0,{"$nulls":4},0,{"$nulls":4},0]
[40132,"УПЦ ООО \"Газпром трансгаз Чайковский\"","ООО \"Газпром трансгаз Чайковский\"","Обучение ИТР","СК свар.соед","СК сварочно-монтаж. работы","[DVERB]","Повышение квалификации",null,"Другие целевые программы (строительный контроль)",null,null,7,56,0,0,"19.09.2024","27.09.2024",7,15,30,36000,124500,18800,179300,0,179300,17,13,3,0,0,0,0,3,7500,26000,0,33500,{"$nulls":4},0,{"$nulls":4},0,{"$nulls":4},0,1,3000,17500,2800,23300,2,7000,24000,5000,36000,1,3000,10000,2000,15000,{"$nulls":4},0,1,3500,15000,3000,21500,2,0,0,0,0,{"$nulls":4},0,4,12000,32000,6000,50000,{"$nulls":4},0,{"$nulls":4},0,{"$nulls":4},0,{"$nulls":4},0,{"$nulls":4},0,{"$nulls":4},0]
[40133,"УПЦ ООО \"Газпром трансгаз Чайковский\"","ООО \"Газпром трансгаз Чайковский\"","Обучение ИТР","СК ОбСтр Р","СК Общестроительные работы","Строительный контроль за качеством строительства, реконструкции и капитального ремонта объектов ООО «Газпром трансгаз Чайковский». Модуль 1 «Проведение строительного контроля за общестроительными работами на объектах магистральных газопроводов»","Повышение квалификации",null,"Другие целевые программы (строительный контроль)",null,null,5,40,0,0,"30.09.2024","04.10.2024",7,15,30,17000,61500,8700,87200,0,87200,10,6,1,0,0,0,0,1,2500,8000,0,10500,1,2500,10000,0,12500,2,3000,13000,2400,18400,{"$nulls":4},0,1,3000,12500,2800,18300,{"$nulls":4},0,3,3000,10000,2000,15000,{"$nulls":4},0,{"$nulls":4},0,{"$nulls":4},0,{"$nulls":4},0,1,3000,8000,1500,12500,{"$nulls":4},0,{"$nulls":4},0,{"$nulls":4},0,{"$nulls":4},0,{"$nulls":4},0,{"$nulls":4},0]
[40134,"УПЦ ООО \"Газпром трансгаз Чайковский\"","ООО \"Газпром трансгаз Чайковский\"","Обучение ИТР","СКмг","СК Строит.монт.работы","[DVERB]","Повышение квалификации",null,"Другие целевые программы (строительный контроль)",null,null,5,40,0,0,"07.10.2024","11.10.2024",7,15,30,45500,148000,21300,214800,0,214800,19,15,3,0,0,0,0,3,7500,26000,0,33500,{"$nulls":4},0,1,3500,15600,2500,21600,{"$nulls":4},0,1,6000,17500,2800,26300,2,7000,24000,5000,36000,1,3000,10000,2000,15000,{"$nulls":4},0,1,3500,15000,3000,21500,2,0,0,0,0,{"$nulls":4},0,4,12000,32000,6000,50000,{"$nulls":4},0,1,3000,7900,0,10900,{"$nulls":4},0,{"$nulls":4},0,{"$nulls":4},0,{"$nulls":4},0]
[40135,"УПЦ ООО \"Газпром трансгаз Чайковский\"","ООО \"Газпром трансгаз Чайковский\"","Обучение ИТР","СКЭХЗ","СК для специалистов по ЭХЗ","Строительный контроль за качеством строительства, реконструкции и капитального ремонта объектов ООО «Газпром трансгаз Чайковский». Модуль 10 «Проведение строительного контроля при выполнении работ по защите магистральных газопроводов от коррозии»","Повышение квалификации",null,"Другие целевые программы (строительный контроль)",null,null,5,40,0,0,"28.10.2024","01.11.2024",7,15,30,52000,162510,25700,240210,0,240210,19,18,{"$nulls":4},0,2,5000,18000,0,23000,{"$nulls":4},0,1,3500,15600,2500,21600,1,3000,5500,0,8500,3,9000,37500,8200,54700,2,7000,24000,5000,36000,{"$nulls":4},0,{"$nulls":4},0,1,3500,15000,3000,21500,3,6000,13000,1000,20000,2,6000,10010,3000,19010,2,6000,16000,3000,25000,{"$nulls":4},0,1,3000,7900,0,10900,{"$nulls":4},0,{"$nulls":4},0,{"$nulls":4},0,1,0,0,0,0]
[40136,"УПЦ ООО \"Газпром трансгаз Чайковский\"","ООО \"Газпром трансгаз Чайковский\"","Обучение ИТР","СКмг","СК Строит.монт.работы","[DVERB]","Повышение квалификации",null,"Другие целевые программы (строительный контроль)",null,null,5,40,0,0,"11.11.2024","15.11.2024",7,15,30,0,0,0,0,0,0,2,0,{"$nulls":4},0,{"$nulls":4},0,{"$nulls":4},0,{"$nulls":4},0,{"$nulls":4},0,{"$nulls":4},0,{"$nulls":4},0,2,0,0,0,0,{"$nulls":4},0,{"$nulls":4},0,{"$nulls":4},0,{"$nulls":4},0,{"$nulls":4},0,{"$nulls":4},0,{"$nulls":4},0,{"$nulls":4},0,{"$nulls":4},0,{"$nulls":4},0,{"$nulls":4},0]
[40137,"УПЦ ООО \"Газпром трансгаз Чайковский\"","ООО \"Газпром трансгаз Чайковский\"","Обучение ИТР","СКЭлСнаб","СК за работами электроснабжения","[DVERB]","Повышение квалификации",null,"Другие целевые программы (строительный контроль)",null,null,5,40,0,0,"18.11.2024","22.11.2024",7,15,30,50000,148700,16000,214700,0,214700,21,17,1,0,0,0,0,2,5000,18000,0,23000,2,5000,20000,0,25000,{"$nulls":4},0,2,6000,11000,0,17000,1,3000,12500,3000,18500,1,3500,12000,2500,18000,{"$nulls":4},0,{"$nulls":4},0,2,7000,20000,5000,32000,1,3000,6500,500,10000,1,3000,10000,1500,14500,1,3000,8000,1500,12500,{"$nulls":4},0,3,9000,23700,0,32700,{"$nulls":4},0,1,2500,7000,2000,11500,1,0,0,0,0,2,0,0,0,0]
[40138,"УПЦ ООО \"Газпром трансгаз Чайковский\"","ООО \"Газпром трансгаз Чайковский\"","Обучение ИТР","СКЭлСнаб","СК за работами электроснабжения","[DVERB]","Повышение квалификации",null,"Другие целевые программы (строительный контроль)",null,null,5,40,0,0,"02.12.2024","06.12.2024",7,15,30,18000,58500,9900,86400,0,86400,11,7,{"$nulls":4},0,{"$nulls":4},0,{"$nulls":4},0,1,3000,15000,2400,20400,1,3000,5500,0,8500,{"$nulls":4},0,1,3500,12000,2500,18000,{"$nulls":4},0,1,0,0,0,0,{"$nulls":4},0,1,0,0,0,0,{"$nulls":4},0,2,6000,16000,3000,25000,{"$nulls":4},0,{"$nulls":4},0,1,0,0,0,0,1,2500,10000,2000,14500,{"$nulls":4},0,2,0,0,0,0]
[40139,"УПЦ ООО \"Газпром трансгаз Чайковский\"","ООО \"Газпром трансгаз Чайковский\"","Обучение рабочих","ОЗП Раб","Работники 1,2 гр.ОЗП","Работники 1, 2 групп по безопасности работ в ограниченных и замкнутых пространствах»","Повышение квалификации (РАБ)",null,"(РАБ) Курсы целевого назначения (в части получения допуска к работе на опасных производственных объектах)",null,null,3,24,0,0,"08.04.2024","10.04.2024",7,15,22,19500,45000,18300,82800,0,82800,21,10,{"$nulls":4},0,{"$nulls":4},0,{"$nulls":4},0,{"$nulls":4},0,{"$nulls":4},0,3,9000,18500,8800,36300,{"$nulls":4},0,6,0,0,0,0,{"$nulls":4},0,{"$nulls":4},0,{"$nulls":4},0,{"$nulls":4},0,1,2000,3300,1500,6800,{"$nulls":4},0,{"$nulls":4},0,2,0,0,0,0,6,8500,23200,8000,39700,3,0,0,0,0,{"$nulls":4},0]
[40140,"УПЦ ООО \"Газпром трансгаз Чайковский\"","ООО \"Газпром трансгаз Чайковский\"","Обучение рабочих","ОЗП Раб","Работники 1,2 гр.ОЗП","Работники 1, 2 групп по безопасности работ в ограниченных и замкнутых пространствах»","Повышение квалификации (РАБ)",null,"(РАБ) Курсы целевого назначения (в части получения допуска к работе на опасных производственных объектах)",null,null,3,24,0,0,"15.05.2024","17.05.2024",7,15,22,23500,39940,20800,84240,0,84240,15,12,{"$nulls":4},0,{"$nulls":4},0,{"$nulls":4},0,{"$nulls":4},0,{"$nulls":4},0,1,3000,5500,2800,11300,5,12500,22000,12500,47000,1,0,0,0,0,{"$nulls":4},0,{"$nulls":4},0,{"$nulls":4},0,{"$nulls":4},0,1,2000,3300,1500,6800,{"$nulls":4},0,1,2000,4740,0,6740,2,0,0,0,0,4,4000,4400,4000,12400,{"$nulls":4},0,{"$nulls":4},0]
[40141,"УПЦ ООО \"Газпром трансгаз Чайковский\"","ООО \"Газпром трансгаз Чайковский\"","Обучение рабочих","ОЗП Раб","Работники 1,2 гр.ОЗП","Работники 1, 2 групп по безопасности работ в ограниченных и замкнутых пространствах»","Повышение квалификации (РАБ)",null,"(РАБ) Курсы целевого назначения (в части получения допуска к работе на опасных производственных объектах)",null,null,3,24,0,0,"22.05.2024","24.05.2024",7,15,22,39100,74900,23500,137500,0,137500,26,18,{"$nulls":4},0,4,8600,23200,0,31800,4,6000,8800,0,14800,3,7500,13200,7400,28100,{"$nulls":4},0,2,5500,9900,5600,21000,3,7500,13200,7500,28200,4,0,0,0,0,{"$nulls":4},0,{"$nulls":4},0,{"$nulls":4},0,{"$nulls":4},0,2,4000,6600,3000,13600,{"$nulls":4},0,{"$nulls":4},0,2,0,0,0,0,{"$nulls":4},0,{"$nulls":4},0,2,0,0,0,0]
[40142,"УПЦ ООО \"Газпром трансгаз Чайковский\"","ООО \"Газпром трансгаз Чайковский\"","Обучение рабочих","ОЗП Раб","Работники 1,2 гр.ОЗП","Работники 1, 2 групп по безопасности работ в ограниченных и замкнутых пространствах»","Повышение квалификации (РАБ)",null,"(РАБ) Курсы целевого назначения (в части получения допуска к работе на опасных производственных объектах)",null,null,3,24,0,0,"05.06.2024","07.06.2024",7,15,22,42500,71500,31700,145700,0,145700,26,18,{"$nulls":4},0,{"$nulls":4},0,4,6000,8800,0,14800,1,2500,4400,2500,9400,{"$nulls":4},0,4,7500,13200,8400,29100,5,12500,22000,12500,47000,2,0,0,0,0,{"$nulls":4},0,{"$nulls":4},0,{"$nulls":4},0,2,4000,6600,2000,12600,2,4000,6600,3000,13600,{"$nulls":4},0,{"$nulls":4},0,2,0,0,0,0,{"$nulls":4},0,3,6000,9900,3300,19200,1,0,0,0,0]
[40143,"УПЦ ООО \"Газпром трансгаз Чайковский\"","ООО \"Газпром трансгаз Чайковский\"","Обучение рабочих","ОЗП Раб","Работники 1,2 гр.ОЗП","Работники 1, 2 групп по безопасности работ в ограниченных и замкнутых пространствах»","Повышение квалификации (РАБ)",null,"(РАБ) Курсы целевого назначения (в части получения допуска к работе на опасных производственных объектах)",null,null,3,24,0,0,"14.08.2024","16.08.2024",7,15,22,36000,67800,36200,140000,0,140000,19,14,{"$nulls":4},0,{"$nulls":4},0,{"$nulls":4},0,2,5000,8800,5000,18800,{"$nulls":4},0,8,22000,43600,23200,88800,2,5000,8800,5000,18800,2,0,0,0,0,{"$nulls":4},0,{"$nulls":4},0,{"$nulls":4},0,{"$nulls":4},0,2,4000,6600,3000,13600,{"$nulls":4},0,{"$nulls":4},0,3,0,0,0,0,{"$nulls":4},0,{"$nulls":4},0,{"$nulls":4},0]
[40144,"УПЦ ООО \"Газпром трансгаз Чайковский\"","ООО \"Газпром трансгаз Чайковский\"","Обучение рабочих","ОЗП Раб","Работники 1,2 гр.ОЗП","Работники 1, 2 групп по безопасности работ в ограниченных и замкнутых пространствах»","Повышение квалификации (РАБ)",null,"(РАБ) Курсы целевого назначения (в части получения допуска к работе на опасных производственных объектах)",null,null,3,24,0,0,"19.08.2024","21.08.2024",7,15,22,29000,50600,28900,108500,0,108500,20,12,{"$nulls":4},0,{"$nulls":4},0,{"$nulls":4},0,{"$nulls":4},0,{"$nulls":4},0,3,7500,13200,8400,29100,7,17500,30800,17500,65800,{"$nulls":4},0,{"$nulls":4},0,{"$nulls":4},0,{"$nulls":4},0,{"$nulls":4},0,2,4000,6600,3000,13600,{"$nulls":4},0,{"$nulls":4},0,4,0,0,0,0,{"$nulls":4},0,{"$nulls":4},0,4,0,0,0,0]
[40145,"УПЦ ООО \"Газпром трансгаз Чайковский\"","ООО \"Газпром трансгаз Чайковский\"","Обучение рабочих","ОЗП Раб","Работники 1,2 гр.ОЗП","Работники 1, 2 групп по безопасности работ в ограниченных и замкнутых пространствах»","Повышение квалификации (РАБ)",null,"(РАБ) Курсы целевого назначения (в части получения допуска к работе на опасных производственных объектах)",null,null,3,24,0,0,"04.09.2024","06.09.2024",7,15,22,44000,81100,38600,163700,0,163700,23,17,{"$nulls":4},0,3,7500,13200,0,20700,{"$nulls":4},0,{"$nulls":4},0,{"$nulls":4},0,10,26500,50300,28600,105400,4,10000,17600,10000,37600,2,0,0,0,0,{"$nulls":4},0,{"$nulls":4},0,{"$nulls":4},0,{"$nulls":4},0,{"$nulls":4},0,{"$nulls":4},0,{"$nulls":4},0,3,0,0,0,0,{"$nulls":4},0,{"$nulls":4},0,1,0,0,0,0]
[40146,"УПЦ ООО \"Газпром трансгаз Чайковский\"","ООО \"Газпром трансгаз Чайковский\"","Обучение рабочих","ОЗП Раб","Работники 1,2 гр.ОЗП","Работники 1, 2 групп по безопасности работ в ограниченных и замкнутых пространствах»","Повышение квалификации (РАБ)",null,"(РАБ) Курсы целевого назначения (в части получения допуска к работе на опасных производственных объектах)",null,null,3,24,0,0,"11.09.2024","13.09.2024",7,15,22,22500,39600,23400,85500,0,85500,18,11,{"$nulls":4},0,{"$nulls":4},0,{"$nulls":4},0,3,7500,13200,7500,28200,{"$nulls":4},0,5,7500,13200,8400,29100,3,7500,13200,7500,28200,{"$nulls":4},0,{"$nulls":4},0,{"$nulls":4},0,{"$nulls":4},0,{"$nulls":4},0,{"$nulls":4},0,{"$nulls":4},0,{"$nulls":4},0,4,0,0,0,0,{"$nulls":4},0,{"$nulls":4},0,3,0,0,0,0]
[40147,"УПЦ ООО \"Газпром трансгаз Чайковский\"","ООО \"Газпром трансгаз Чайковский\"","Обучение рабочих","ОЗП Раб","Работники 1,2 гр.ОЗП","Работники 1, 2 групп по безопасности работ в ограниченных и замкнутых пространствах»","Повышение квалификации (РАБ)",null,"(РАБ) Курсы целевого назначения (в части получения допуска к работе на опасных производственных объектах)",null,null,3,24,0,0,"13.11.2024","15.11.2024",7,15,22,6500,12100,6900,25500,0,25500,12,10,{"$nulls":4},0,{"$nulls":4},0,{"$nulls":4},0,1,2000,3300,2400,7700,{"$nulls":4},0,{"$nulls":4},0,1,2500,4400,2500,9400,2,0,0,0,0,{"$nulls":4},0,{"$nulls":4},0,{"$nulls":4},0,{"$nulls":4},0,{"$nulls":4},0,{"$nulls":4},0,{"$nulls":4},0,{"$nulls":4},0,8,2000,4400,2000,8400,{"$nulls":4},0,{"$nulls":4},0]
[40149,"УПЦ ООО \"Газпром трансгаз Чайковский\"","УПЦ ООО \"Газпром трансгаз Чайковский\"","Обучение рабочих","СтропПК","Стропальщик ПТК","Стропальщик ПТК","Повышение квалификации (РАБ)",null,"(РАБ) Повышение квалификации на ПТК",null,null,5,40,5,40,"13.05.2024","17.05.2024",7,15,20,42000,79200,19300,140500,0,140500,25,6,{"$nulls":4},0,{"$nulls":4},0,{"$nulls":4},0,{"$nulls":4},0,{"$nulls":4},0,2,6000,11000,5600,22600,{"$nulls":4},0,1,0,0,0,0,{"$nulls":4},0,{"$nulls":4},0,{"$nulls":4},0,1,3000,5500,1000,9500,2,6000,11000,3000,20000,{"$nulls":4},0,{"$nulls":4},0,{"$nulls":4},0,1,6000,13200,2000,21200,18,21000,38500,7700,67200,{"$nulls":4},0]
[40150,"УПЦ ООО \"Газпром трансгаз Чайковский\"","УПЦ ООО \"Газпром трансгаз Чайковский\"","Обучение рабочих","ЭлекЭлОбПК","Электромонтер по рем. электрооборуд. ПТК","Электромонтер по ремонту и обслуживанию электрооборудования ПТК","Повышение квалификации (РАБ)",null,"(РАБ) Повышение квалификации на ПТК",null,null,10,76,43,340,"22.01.2024","02.02.2024",7,15,20,91000,246700,32000,369700,0,369700,18,13,1,0,0,0,0,{"$nulls":4},0,{"$nulls":4},0,{"$nulls":4},0,1,7500,18200,0,25700,2,14500,30800,5800,51100,2,12000,24200,5000,41200,2,0,0,0,0,{"$nulls":4},0,5,35000,120000,15000,170000,{"$nulls":4},0,{"$nulls":4},0,2,13000,26400,3000,42400,{"$nulls":4},0,{"$nulls":4},0,{"$nulls":4},0,1,6000,21600,2000,29600,1,3000,5500,1200,9700,1,0,0,0,0]
[40151,"УПЦ ООО \"Газпром трансгаз Чайковский\"","УПЦ ООО \"Газпром трансгаз Чайковский\"","Обучение рабочих","ЭлекЭлОбПК","Электромонтер по рем. электрооборуд. ПТК","Электромонтер по ремонту и обслуживанию электрооборудования ПТК","Повышение квалификации (РАБ)",null,"(РАБ) Повышение квалификации на ПТК",null,null,10,76,43,340,"12.02.2024","26.02.2024",7,20,20,99500,277360,33300,410160,0,410160,19,16,{"$nulls":4},0,2,9500,18700,3000,31200,{"$nulls":4},0,{"$nulls":4},0,{"$nulls":4},0,3,18000,41900,8800,68700,2,12000,24200,5000,41200,1,0,0,0,0,{"$nulls":4},0,4,28000,96000,12000,136000,{"$nulls":4},0,1,8000,16500,1000,25500,1,3000,5500,1500,10000,{"$nulls":4},0,2,15000,50560,0,65560,{"$nulls":4},0,1,6000,24000,2000,32000,{"$nulls":4},0,2,0,0,0,0]
[40152,"УПЦ ООО \"Газпром трансгаз Чайковский\"","УПЦ ООО \"Газпром трансгаз Чайковский\"","Обучение рабочих","ЭлекЭлОбПК","Электромонтер по рем. электрооборуд. ПТК","Электромонтер по ремонту и обслуживанию электрооборудования ПТК","Повышение квалификации (РАБ)",null,"(РАБ) Повышение квалификации на ПТК",null,null,10,76,43,340,"15.04.2024","26.04.2024",7,15,20,92000,244280,28400,364680,0,364680,19,16,{"$nulls":4},0,2,6000,11000,3000,20000,{"$nulls":4},0,{"$nulls":4},0,3,19500,39600,0,59100,3,18000,36300,8400,62700,2,6000,12100,2500,20600,1,0,0,0,0,{"$nulls":4},0,5,35000,120000,14500,169500,{"$nulls":4},0,{"$nulls":4},0,{"$nulls":4},0,{"$nulls":4},0,1,7500,25280,0,32780,{"$nulls":4},0,{"$nulls":4},0,{"$nulls":4},0,2,0,0,0,0]
[40153,"УПЦ ООО \"Газпром трансгаз Чайковский\"","УПЦ ООО \"Газпром трансгаз Чайковский\"","Обучение рабочих","ЭлекЭлОбПК","Электромонтер по рем. электрооборуд. ПТК","Электромонтер по ремонту и обслуживанию электрооборудования ПТК","Повышение квалификации (РАБ)",null,"(РАБ) Повышение квалификации на ПТК",null,null,10,76,43,340,"03.06.2024","17.06.2024",7,20,20,82500,203980,21600,308080,0,308080,19,16,{"$nulls":4},0,1,3000,5500,1500,10000,2,5000,8800,0,13800,{"$nulls":4},0,3,16000,31900,500,48400,2,15000,30800,5600,51400,{"$nulls":4},0,2,0,0,0,0,{"$nulls":4},0,3,21000,72000,9000,102000,1,6000,13200,500,19700,{"$nulls":4},0,3,9000,16500,4500,30000,{"$nulls":4},0,1,7500,25280,0,32780,{"$nulls":4},0,{"$nulls":4},0,{"$nulls":4},0,1,0,0,0,0]
[40197,"УПЦ ООО \"Газпром трансгаз Чайковский\"","Гремячинское ЛПУМГ","Обучение ИТР","Обуч.2,3гОЧ","Обучение высота 2,3 гр. ОЧНОЕ","Обучение руководителей и специалистов безопасным методам и приемам выполнения работ на высоте \"Работники 2, 3 групп по безопасности работ на высоте\"","Повышение квалификации",null,"Прочие технические (ГНВП, сварочное, противопожарные и т.д.)",null,null,5,40,0,0,"18.03.2024","29.03.2024",7,25,30,0,0,0,0,0,0,21,21,{"$nulls":4},0,{"$nulls":4},0,{"$nulls":4},0,1,0,0,0,0,{"$nulls":4},0,{"$nulls":4},0,20,0,0,0,0,{"$nulls":4},0,{"$nulls":4},0,{"$nulls":4},0,{"$nulls":4},0,{"$nulls":4},0,{"$nulls":4},0,{"$nulls":4},0,{"$nulls":4},0,{"$nulls":4},0,{"$nulls":4},0,{"$nulls":4},0,{"$nulls":4},0]
[40198,"УПЦ ООО \"Газпром трансгаз Чайковский\"","Горнозаводское ЛПУМГ","Обучение ИТР","Обуч.2,3гОЧ","Обучение высота 2,3 гр. ОЧНОЕ","Обучение руководителей и специалистов безопасным методам и приемам выполнения работ на высоте \"Работники 2, 3 групп по безопасности работ на высоте\"","Повышение квалификации",null,"Прочие технические (ГНВП, сварочное, противопожарные и т.д.)",null,null,5,40,0,0,"18.03.2024","29.03.2024",7,25,30,6500,22560,0,29060,0,29060,7,6,{"$nulls":4},0,{"$nulls":4},0,{"$nulls":4},0,{"$nulls":4},0,{"$nulls":4},0,5,0,0,0,0,{"$nulls":4},0,{"$nulls":4},0,1,0,0,0,0,{"$nulls":4},0,{"$nulls":4},0,{"$nulls":4},0,{"$nulls":4},0,{"$nulls":4},0,1,6500,22560,0,29060,{"$nulls":4},0,{"$nulls":4},0,{"$nulls":4},0,{"$nulls":4},0]
[40199,"УПЦ ООО \"Газпром трансгаз Чайковский\"","Воткинское ЛПУМГ","Обучение ИТР","Обуч.2,3гОЧ","Обучение высота 2,3 гр. ОЧНОЕ","Обучение руководителей и специалистов безопасным методам и приемам выполнения работ на высоте \"Работники 2, 3 групп по безопасности работ на высоте\"","Повышение квалификации",null,"Прочие технические (ГНВП, сварочное, противопожарные и т.д.)",null,null,5,40,0,0,"01.04.2024","12.04.2024",7,25,30,19500,66720,0,86220,0,86220,14,14,{"$nulls":4},0,{"$nulls":4},0,{"$nulls":4},0,{"$nulls":4},0,10,0,0,0,0,1,0,0,0,0,{"$nulls":4},0,{"$nulls":4},0,{"$nulls":4},0,{"$nulls":4},0,{"$nulls":4},0,{"$nulls":4},0,{"$nulls":4},0,{"$nulls":4},0,3,19500,66720,0,86220,{"$nulls":4},0,{"$nulls":4},0,{"$nulls":4},0,{"$nulls":4},0]
[40200,"УПЦ ООО \"Газпром трансгаз Чайковский\"","Можгинское ЛПУМГ","Обучение ИТР","Обуч.2,3гОЧ","Обучение высота 2,3 гр. ОЧНОЕ","Обучение руководителей и специалистов безопасным методам и приемам выполнения работ на высоте \"Работники 2, 3 групп по безопасности работ на высоте\"","Повышение квалификации",null,"Прочие технические (ГНВП, сварочное, противопожарные и т.д.)",null,null,5,40,0,0,"08.04.2024","19.04.2024",7,25,30,25000,103960,5000,133960,0,133960,26,25,{"$nulls":4},0,{"$nulls":4},0,{"$nulls":4},0,4,12000,59800,5000,76800,{"$nulls":4},0,{"$nulls":4},0,{"$nulls":4},0,{"$nulls":4},0,{"$nulls":4},0,{"$nulls":4},0,19,0,0,0,0,{"$nulls":4},0,{"$nulls":4},0,{"$nulls":4},0,2,13000,44160,0,57160,{"$nulls":4},0,{"$nulls":4},0,1,0,0,0,0,{"$nulls":4},0]
[40232,"УПЦ ООО \"Газпром трансгаз Чайковский\"","УПЦ ООО \"Газпром трансгаз Чайковский\"","Обучение рабочих","ЕжЗанятВодит","Ежегодные занятия с водителями","Ежегодные занятия с водителями","Повышение квалификации (РАБ)",null,"(РАБ) Курсы целевого назначения (в части получения допуска к работе на опасных производственных объектах)",null,null,3,20,0,0,"29.01.2024","31.01.2024",7,20,20,0,0,0,0,0,0,19,0,{"$nulls":4},0,{"$nulls":4},0,{"$nulls":4},0,{"$nulls":4},0,{"$nulls":4},0,{"$nulls":4},0,{"$nulls":4},0,1,0,0,0,0,{"$nulls":4},0,{"$nulls":4},0,{"$nulls":4},0,{"$nulls":4},0,{"$nulls":4},0,{"$nulls":4},0,{"$nulls":4},0,18,0,0,0,0,{"$nulls":4},0,{"$nulls":4},0,{"$nulls":4},0]
[40233,"УПЦ ООО \"Газпром трансгаз Чайковский\"","УПЦ ООО \"Газпром трансгаз Чайковский\"","Обучение рабочих","ЕжЗанятВодит","Ежегодные занятия с водителями","Ежегодные занятия с водителями","Повышение квалификации (РАБ)",null,"(РАБ) Курсы целевого назначения (в части получения допуска к работе на опасных производственных объектах)",null,null,3,20,0,0,"10.01.2024","12.01.2024",7,20,20,0,0,0,0,0,0,16,0,{"$nulls":4},0,{"$nulls":4},0,{"$nulls":4},0,{"$nulls":4},0,{"$nulls":4},0,{"$nulls":4},0,{"$nulls":4},0,{"$nulls":4},0,{"$nulls":4},0,{"$nulls":4},0,{"$nulls":4},0,{"$nulls":4},0,{"$nulls":4},0,{"$nulls":4},0,{"$nulls":4},0,16,0,0,0,0,{"$nulls":4},0,{"$nulls":4},0,{"$nulls":4},0]
[40234,"УПЦ ООО \"Газпром трансгаз Чайковский\"","УПЦ ООО \"Газпром трансгаз Чайковский\"","Обучение рабочих","ЕжЗанятВодит","Ежегодные занятия с водителями","Ежегодные занятия с водителями","Повышение квалификации (РАБ)",null,"(РАБ) Курсы целевого назначения (в части получения допуска к работе на опасных производственных объектах)",null,null,3,20,0,0,"15.01.2024","17.01.2024",7,20,20,0,0,0,0,0,0,20,0,{"$nulls":4},0,{"$nulls":4},0,{"$nulls":4},0,{"$nulls":4},0,{"$nulls":4},0,{"$nulls":4},0,{"$nulls":4},0,{"$nulls":4},0,{"$nulls":4},0,{"$nulls":4},0,{"$nulls":4},0,{"$nulls":4},0,{"$nulls":4},0,{"$nulls":4},0,{"$nulls":4},0,20,0,0,0,0,{"$nulls":4},0,{"$nulls":4},0,{"$nulls":4},0]
[40235,"УПЦ ООО \"Газпром трансгаз Чайковский\"","УПЦ ООО \"Газпром трансгаз Чайковский\"","Обучение рабочих","ЕжЗанятВодит","Ежегодные занятия с водителями","Ежегодные занятия с водителями","Повышение квалификации (РАБ)",null,"(РАБ) Курсы целевого назначения (в части получения допуска к работе на опасных производственных объектах)",null,null,3,20,0,0,"17.01.2024","19.01.2024",7,20,20,0,0,0,0,0,0,18,0,{"$nulls":4},0,{"$nulls":4},0,{"$nulls":4},0,{"$nulls":4},0,{"$nulls":4},0,{"$nulls":4},0,{"$nulls":4},0,{"$nulls":4},0,{"$nulls":4},0,{"$nulls":4},0,{"$nulls":4},0,{"$nulls":4},0,{"$nulls":4},0,{"$nulls":4},0,{"$nulls":4},0,18,0,0,0,0,{"$nulls":4},0,{"$nulls":4},0,{"$nulls":4},0]
[40236,"УПЦ ООО \"Газпром трансгаз Чайковский\"","УПЦ ООО \"Газпром трансгаз Чайковский\"","Обучение рабочих","ЕжЗанятВодит","Ежегодные занятия с водителями","Ежегодные занятия с водителями","Повышение квалификации (РАБ)",null,"(РАБ) Курсы целевого назначения (в части получения допуска к работе на опасных производственных объектах)",null,null,3,20,0,0,"05.02.2024","07.02.2024",7,20,20,0,0,0,0,0,0,19,0,{"$nulls":4},0,{"$nulls":4},0,{"$nulls":4},0,{"$nulls":4},0,{"$nulls":4},0,{"$nulls":4},0,{"$nulls":4},0,{"$nulls":4},0,{"$nulls":4},0,{"$nulls":4},0,{"$nulls":4},0,{"$nulls":4},0,{"$nulls":4},0,{"$nulls":4},0,{"$nulls":4},0,19,0,0,0,0,{"$nulls":4},0,{"$nulls":4},0,{"$nulls":4},0]
[40237,"УПЦ ООО \"Газпром трансгаз Чайковский\"","УПЦ ООО \"Газпром трансгаз Чайковский\"","Обучение рабочих","ЕжЗанятВодит","Ежегодные занятия с водителями","Ежегодные занятия с водителями","Повышение квалификации (РАБ)",null,"(РАБ) Курсы целевого назначения (в части получения допуска к работе на опасных производственных объектах)",null,null,3,20,0,0,"07.02.2024","09.02.2024",7,20,20,0,0,0,0,0,0,19,0,{"$nulls":4},0,{"$nulls":4},0,{"$nulls":4},0,{"$nulls":4},0,{"$nulls":4},0,{"$nulls":4},0,{"$nulls":4},0,{"$nulls":4},0,{"$nulls":4},0,{"$nulls":4},0,{"$nulls":4},0,{"$nulls":4},0,{"$nulls":4},0,{"$nulls":4},0,{"$nulls":4},0,19,0,0,0,0,{"$nulls":4},0,{"$nulls":4},0,{"$nulls":4},0]
[40238,"УПЦ ООО \"Газпром трансгаз Чайковский\"","УПЦ ООО \"Газпром трансгаз Чайковский\"","Обучение рабочих","ЕжЗанятВодит","Ежегодные занятия с водителями","Ежегодные занятия с водителями","Повышение квалификации (РАБ)",null,"(РАБ) Курсы целевого назначения (в части получения допуска к работе на опасных производственных объектах)",null,null,3,20,0,0,"12.02.2024","14.02.2024",7,20,20,0,0,0,0,0,0,18,0,{"$nulls":4},0,{"$nulls":4},0,{"$nulls":4},0,{"$nulls":4},0,{"$nulls":4},0,{"$nulls":4},0,{"$nulls":4},0,{"$nulls":4},0,{"$nulls":4},0,{"$nulls":4},0,{"$nulls":4},0,{"$nulls":4},0,{"$nulls":4},0,{"$nulls":4},0,{"$nulls":4},0,18,0,0,0,0,{"$nulls":4},0,{"$nulls":4},0,{"$nulls":4},0]
[40239,"УПЦ ООО \"Газпром трансгаз Чайковский\"","УПЦ ООО \"Газпром трансгаз Чайковский\"","Обучение рабочих","ЕжЗанятВодит","Ежегодные занятия с водителями","Ежегодные занятия с водителями","Повышение квалификации (РАБ)",null,"(РАБ) Курсы целевого назначения (в части получения допуска к работе на опасных производственных объектах)",null,null,3,20,0,0,"14.02.2024","16.02.2024",7,20,20,0,0,0,0,0,0,20,0,{"$nulls":4},0,{"$nulls":4},0,{"$nulls":4},0,{"$nulls":4},0,{"$nulls":4},0,{"$nulls":4},0,{"$nulls":4},0,{"$nulls":4},0,{"$nulls":4},0,{"$nulls":4},0,{"$nulls":4},0,{"$nulls":4},0,{"$nulls":4},0,{"$nulls":4},0,{"$nulls":4},0,20,0,0,0,0,{"$nulls":4},0,{"$nulls":4},0,{"$nulls":4},0]
[40240,"УПЦ ООО \"Газпром трансгаз Чайковский\"","УПЦ ООО \"Газпром трансгаз Чайковский\"","Обучение рабочих","ЕжЗанятВодит","Ежегодные занятия с водителями","Ежегодные занятия с водителями","Повышение квалификации (РАБ)",null,"(РАБ) Курсы целевого назначения (в части получения допуска к работе на опасных производственных объектах)",null,null,3,20,0,0,"19.02.2024","21.02.2024",7,20,20,0,0,0,0,0,0,17,0,{"$nulls":4},0,{"$nulls":4},0,{"$nulls":4},0,{"$nulls":4},0,{"$nulls":4},0,{"$nulls":4},0,{"$nulls":4},0,{"$nulls":4},0,{"$nulls":4},0,{"$nulls":4},0,{"$nulls":4},0,{"$nulls":4},0,{"$nulls":4},0,{"$nulls":4},0,{"$nulls":4},0,17,0,0,0,0,{"$nulls":4},0,{"$nulls":4},0,{"$nulls":4},0]
[40241,"УПЦ ООО \"Газпром трансгаз Чайковский\"","УПЦ ООО \"Газпром трансгаз Чайковский\"","Обучение рабочих","ЕжЗанятВодит","Ежегодные занятия с водителями","Ежегодные занятия с водителями","Повышение квалификации (РАБ)",null,"(РАБ) Курсы целевого назначения (в части получения допуска к работе на опасных производственных объектах)",null,null,3,20,0,0,"04.03.2024","06.03.2024",7,20,20,0,0,0,0,0,0,19,0,{"$nulls":4},0,{"$nulls":4},0,{"$nulls":4},0,{"$nulls":4},0,{"$nulls":4},0,{"$nulls":4},0,{"$nulls":4},0,{"$nulls":4},0,{"$nulls":4},0,{"$nulls":4},0,{"$nulls":4},0,{"$nulls":4},0,{"$nulls":4},0,{"$nulls":4},0,{"$nulls":4},0,19,0,0,0,0,{"$nulls":4},0,{"$nulls":4},0,{"$nulls":4},0]
[40242,"УПЦ ООО \"Газпром трансгаз Чайковский\"","УПЦ ООО \"Газпром трансгаз Чайковский\"","Обучение рабочих","ЕжЗанятВодит","Ежегодные занятия с водителями","Ежегодные занятия с водителями","Повышение квалификации (РАБ)",null,"(РАБ) Курсы целевого назначения (в части получения допуска к работе на опасных производственных объектах)",null,null,3,20,0,0,"31.01.2024","02.02.2024",7,20,20,0,0,0,0,0,0,18,0,{"$nulls":4},0,{"$nulls":4},0,{"$nulls":4},0,{"$nulls":4},0,{"$nulls":4},0,{"$nulls":4},0,{"$nulls":4},0,{"$nulls":4},0,{"$nulls":4},0,{"$nulls":4},0,{"$nulls":4},0,{"$nulls":4},0,{"$nulls":4},0,{"$nulls":4},0,{"$nulls":4},0,18,0,0,0,0,{"$nulls":4},0,{"$nulls":4},0,{"$nulls":4},0]
[40243,"УПЦ ООО \"Газпром трансгаз Чайковский\"","УПЦ ООО \"Газпром трансгаз Чайковский\"","Обучение рабочих","ЕжЗанятВодит","Ежегодные занятия с водителями","Ежегодные занятия с водителями","Повышение квалификации (РАБ)",null,"(РАБ) Курсы целевого назначения (в части получения допуска к работе на опасных производственных объектах)",null,null,3,20,0,0,"03.06.2024","05.06.2024",7,20,20,0,0,0,0,0,0,15,0,{"$nulls":4},0,{"$nulls":4},0,{"$nulls":4},0,{"$nulls":4},0,{"$nulls":4},0,{"$nulls":4},0,{"$nulls":4},0,{"$nulls":4},0,{"$nulls":4},0,{"$nulls":4},0,{"$nulls":4},0,{"$nulls":4},0,{"$nulls":4},0,{"$nulls":4},0,{"$nulls":4},0,15,0,0,0,0,{"$nulls":4},0,{"$nulls":4},0,{"$nulls":4},0]
[40244,"УПЦ ООО \"Газпром трансгаз Чайковский\"","УПЦ ООО \"Газпром трансгаз Чайковский\"","Обучение рабочих","ЕжЗанятВодит","Ежегодные занятия с водителями","Ежегодные занятия с водителями","Повышение квалификации (РАБ)",null,"(РАБ) Курсы целевого назначения (в части получения допуска к работе на опасных производственных объектах)",null,null,3,20,0,0,"05.06.2024","07.06.2024",7,20,20,0,0,0,0,0,0,11,0,{"$nulls":4},0,{"$nulls":4},0,{"$nulls":4},0,{"$nulls":4},0,{"$nulls":4},0,{"$nulls":4},0,{"$nulls":4},0,{"$nulls":4},0,{"$nulls":4},0,{"$nulls":4},0,{"$nulls":4},0,{"$nulls":4},0,{"$nulls":4},0,{"$nulls":4},0,{"$nulls":4},0,11,0,0,0,0,{"$nulls":4},0,{"$nulls":4},0,{"$nulls":4},0]
[40245,"УПЦ ООО \"Газпром трансгаз Чайковский\"","УПЦ ООО \"Газпром трансгаз Чайковский\"","Обучение рабочих","ЕжЗанятВодит","Ежегодные занятия с водителями","Ежегодные занятия с водителями","Повышение квалификации (РАБ)",null,"(РАБ) Курсы целевого назначения (в части получения допуска к работе на опасных производственных объектах)",null,null,3,20,0,0,"20.05.2024","22.05.2024",7,20,20,0,0,0,0,0,0,7,0,{"$nulls":4},0,{"$nulls":4},0,{"$nulls":4},0,{"$nulls":4},0,{"$nulls":4},0,{"$nulls":4},0,{"$nulls":4},0,{"$nulls":4},0,{"$nulls":4},0,{"$nulls":4},0,{"$nulls":4},0,{"$nulls":4},0,{"$nulls":4},0,{"$nulls":4},0,{"$nulls":4},0,7,0,0,0,0,{"$nulls":4},0,{"$nulls":4},0,{"$nulls":4},0]
[40247,"УПЦ ООО \"Газпром трансгаз Чайковский\"","УПЦ ООО \"Газпром трансгаз Чайковский\"",null,"МашТрубУкПП","Машинист трубоукладчика КПП","Машинист трубоукладчика КПП",null," Переподготовка","(РАБ) Переподготовка",null,null,15,120,45,360,"17.06.2024","05.07.2024",7,20,20,32500,89800,8300,130600,0,130600,7,5,{"$nulls":4},0,{"$nulls":4},0,{"$nulls":4},0,{"$nulls":4},0,1,9500,19800,0,29300,1,3000,5500,2800,11300,{"$nulls":4},0,{"$nulls":4},0,{"$nulls":4},0,{"$nulls":4},0,{"$nulls":4},0,{"$nulls":4},0,1,8000,16500,1500,26000,{"$nulls":4},0,{"$nulls":4},0,2,0,0,0,0,2,12000,48000,4000,64000,{"$nulls":4},0,{"$nulls":4},0]
[40250,"УПЦ ООО \"Газпром трансгаз Чайковский\"","УПЦ ООО \"Газпром трансгаз Чайковский\"","Обучение рабочих","МашбульдПК","Машинист бульдозера ПТК","Машинист бульдозера ПТК","Повышение квалификации (РАБ)",null,"(РАБ) Повышение квалификации на ПТК",null,null,10,80,30,240,"11.03.2024","22.03.2024",7,20,20,49500,115600,8500,173600,0,173600,10,9,{"$nulls":4},0,1,6500,13200,1500,21200,2,5000,8800,0,13800,{"$nulls":4},0,{"$nulls":4},0,{"$nulls":4},0,{"$nulls":4},0,{"$nulls":4},0,{"$nulls":4},0,{"$nulls":4},0,{"$nulls":4},0,{"$nulls":4},0,2,13000,26400,3000,42400,{"$nulls":4},0,2,13000,26400,0,39400,1,0,0,0,0,2,12000,40800,4000,56800,{"$nulls":4},0,{"$nulls":4},0]
[40251,"УПЦ ООО \"Газпром трансгаз Чайковский\"","УПЦ ООО \"Газпром трансгаз Чайковский\"","Обучение рабочих","ВодитНаГазе","Водители автомобилей, работ. на СПГ","Водители автомобилей, работающих на сжатом и сжиженном газе","Повышение квалификации (РАБ)",null,"(РАБ) Курсы целевого назначения (в части получения допуска к работе на опасных производственных объектах)",null,null,5,36,0,0,"26.02.2024","01.03.2024",7,20,20,44500,118900,24400,187800,0,187800,32,19,{"$nulls":4},0,1,3000,5500,1500,10000,{"$nulls":4},0,2,6000,11000,4800,21800,5,9000,16500,300,25800,1,3000,5500,2800,11300,{"$nulls":4},0,{"$nulls":4},0,{"$nulls":4},0,3,10500,36000,9000,55500,1,0,0,0,0,2,6000,11000,2000,19000,{"$nulls":4},0,{"$nulls":4},0,2,3000,13400,0,16400,8,0,0,0,0,2,4000,20000,4000,28000,1,0,0,0,0,4,0,0,0,0]
[40252,"УПЦ ООО \"Газпром трансгаз Чайковский\"","УПЦ ООО \"Газпром трансгаз Чайковский\"","Обучение рабочих","ВодитНаГазе","Водители автомобилей, работ. на СПГ","Водители автомобилей, работающих на сжатом и сжиженном газе","Повышение квалификации (РАБ)",null,"(РАБ) Курсы целевого назначения (в части получения допуска к работе на опасных производственных объектах)",null,null,5,36,0,0,"27.05.2024","31.05.2024",7,20,20,31500,88100,19500,139100,0,139100,20,11,{"$nulls":4},0,1,3000,5500,1500,10000,{"$nulls":4},0,{"$nulls":4},0,2,3000,5500,0,8500,{"$nulls":4},0,2,7000,13200,5000,25200,1,0,0,0,0,{"$nulls":4},0,3,10500,36000,9000,55500,{"$nulls":4},0,{"$nulls":4},0,{"$nulls":4},0,{"$nulls":4},0,1,3000,7900,0,10900,8,0,0,0,0,2,5000,20000,4000,29000,{"$nulls":4},0,{"$nulls":4},0]
[40253,"УПЦ ООО \"Газпром трансгаз Чайковский\"","УПЦ ООО \"Газпром трансгаз Чайковский\"","Обучение рабочих","ВодитНаГазе","Водители автомобилей, работ. на СПГ","Водители автомобилей, работающих на сжатом и сжиженном газе","Повышение квалификации (РАБ)",null,"(РАБ) Курсы целевого назначения (в части получения допуска к работе на опасных производственных объектах)",null,null,5,36,0,0,"18.11.2024","22.11.2024",7,20,20,22000,57100,12000,91100,0,91100,16,7,{"$nulls":4},0,1,3000,5500,1500,10000,{"$nulls":4},0,{"$nulls":4},0,2,6000,11000,0,17000,{"$nulls":4},0,1,3500,6600,2500,12600,{"$nulls":4},0,{"$nulls":4},0,2,7000,24000,6000,37000,{"$nulls":4},0,{"$nulls":4},0,{"$nulls":4},0,{"$nulls":4},0,{"$nulls":4},0,8,0,0,0,0,1,2500,10000,2000,14500,{"$nulls":4},0,1,0,0,0,0]
[40254,"УПЦ ООО \"Газпром трансгаз Чайковский\"","УПЦ ООО \"Газпром трансгаз Чайковский\"","Обучение рабочих","ВодитНаст","Водители наставники","Водители наставники автомобильного транспорта","Повышение квалификации (РАБ)",null,"(РАБ) Курсы целевого назначения (в части получения допуска к работе на опасных производственных объектах)",null,null,4,32,0,0,"11.11.2024","15.11.2024",7,15,20,41000,92100,24300,157400,0,157400,14,12,{"$nulls":4},0,1,3000,5500,1500,10000,{"$nulls":4},0,1,3500,6600,2500,12600,1,3000,5500,0,8500,2,6000,11000,5600,22600,{"$nulls":4},0,{"$nulls":4},0,{"$nulls":4},0,3,10500,36000,9000,55500,{"$nulls":4},0,3,9000,16500,3000,28500,1,3000,5500,1500,10000,1,0,0,0,0,{"$nulls":4},0,{"$nulls":4},0,{"$nulls":4},0,1,3000,5500,1200,9700,{"$nulls":4},0]
[40256,"УПЦ ООО \"Газпром трансгаз Чайковский\"","УПЦ ООО \"Газпром трансгаз Чайковский\"","Обучение рабочих","МашКрспола","Машинист кранов мост. типа, упр. с пола","Обучение машинистов кранов мостового типа, консольных кранов и электрических талей грузоподъемностью до 10т. включительно, управляемых с пола","Повышение квалификации (РАБ)",null,"(РАБ) Курсы целевого назначения (в части получения допуска к работе на опасных производственных объектах)",null,null,3,20,0,0,"16.04.2024","18.04.2024",7,20,20,3000,5500,1500,10000,0,10000,23,7,{"$nulls":4},0,1,3000,5500,1500,10000,{"$nulls":4},0,{"$nulls":4},0,4,0,0,0,0,{"$nulls":4},0,1,0,0,0,0,15,0,0,0,0,{"$nulls":4},0,{"$nulls":4},0,1,0,0,0,0,{"$nulls":4},0,{"$nulls":4},0,{"$nulls":4},0,{"$nulls":4},0,1,0,0,0,0,{"$nulls":4},0,{"$nulls":4},0,{"$nulls":4},0]
[40257,"УПЦ ООО \"Газпром трансгаз Чайковский\"","УПЦ ООО \"Газпром трансгаз Чайковский\"",null,"ППРК","Разработка ППРК","Разработка проектов производства работ и технологических карт для работы с подъемными сооружениями",null,null,"Прочие технические (ГНВП, сварочное, противопожарные и т.д.)",null,"Краткосрочный семинар (от 16 до 40 час)",3,32,0,0,"25.11.2024","29.11.2024",7,20,20,17500,69400,14300,101200,0,101200,10,6,{"$nulls":4},0,{"$nulls":4},0,{"$nulls":4},0,{"$nulls":4},0,{"$nulls":4},0,1,3000,15000,2800,20800,1,2500,10000,2500,15000,{"$nulls":4},0,{"$nulls":4},0,2,7000,30000,6000,43000,{"$nulls":4},0,{"$nulls":4},0,2,5000,14400,3000,22400,{"$nulls":4},0,{"$nulls":4},0,{"$nulls":4},0,{"$nulls":4},0,{"$nulls":4},0,4,0,0,0,0]
[40261,"УПЦ ООО \"Газпром трансгаз Чайковский\"","УПЦ ООО \"Газпром трансгаз Чайковский\"","Обучение ИТР","ПБ9","Требования ПБ к подъемным сооружениям","Требования промышленной безопасности к подъемным сооружениям","Повышение квалификации",null,"Предаттестационная подготовка по промышленной безопасности, экологической безопасности и др.",null,null,4,32,0,0,"22.04.2024","25.04.2024",7,20,20,26000,80000,13000,119000,0,119000,18,10,{"$nulls":4},0,3,9000,30000,4500,43500,{"$nulls":4},0,{"$nulls":4},0,1,3000,5500,0,8500,{"$nulls":4},0,{"$nulls":4},0,6,0,0,0,0,{"$nulls":4},0,{"$nulls":4},0,{"$nulls":4},0,{"$nulls":4},0,3,9000,24000,4500,37500,{"$nulls":4},0,1,0,0,0,0,1,0,0,0,0,2,5000,20500,4000,29500,{"$nulls":4},0,1,0,0,0,0]
[40262,"УПЦ ООО \"Газпром трансгаз Чайковский\"","УПЦ ООО \"Газпром трансгаз Чайковский\"","Обучение рабочих","ВодОГповтор","Водители, перевозящие ОГ баз.курс(повт.)","Повышение квалификации водителей, осуществляющих перевозки опасных грузов в соответствии с Cоглашением о международной дорожной перевозке опасных грузов (базовый курс) (повторное обучение)","Повышение квалификации (РАБ)",null,"(РАБ) Курсы целевого назначения (в части получения допуска к работе на опасных производственных объектах)",null,null,2,15,0,0,"26.03.2024","27.03.2024",7,20,20,11000,22500,8800,42300,0,42300,6,6,{"$nulls":4},0,{"$nulls":4},0,{"$nulls":4},0,2,0,0,0,0,{"$nulls":4},0,1,3000,5500,2800,11300,{"$nulls":4},0,{"$nulls":4},0,{"$nulls":4},0,1,2000,6000,3000,11000,{"$nulls":4},0,{"$nulls":4},0,2,6000,11000,3000,20000,{"$nulls":4},0,{"$nulls":4},0,{"$nulls":4},0,{"$nulls":4},0,{"$nulls":4},0,{"$nulls":4},0]
[40263,"УПЦ ООО \"Газпром трансгаз Чайковский\"","УПЦ ООО \"Газпром трансгаз Чайковский\"","Обучение рабочих","ВодОГповтор","Водители, перевозящие ОГ баз.курс(повт.)","Повышение квалификации водителей, осуществляющих перевозки опасных грузов в соответствии с Cоглашением о международной дорожной перевозке опасных грузов (базовый курс) (повторное обучение)","Повышение квалификации (РАБ)",null,"(РАБ) Курсы целевого назначения (в части получения допуска к работе на опасных производственных объектах)",null,null,2,15,0,0,"09.04.2024","10.04.2024",7,20,20,3000,5500,1500,10000,0,10000,5,4,{"$nulls":4},0,1,3000,5500,1500,10000,{"$nulls":4},0,{"$nulls":4},0,{"$nulls":4},0,{"$nulls":4},0,{"$nulls":4},0,{"$nulls":4},0,{"$nulls":4},0,{"$nulls":4},0,{"$nulls":4},0,{"$nulls":4},0,1,0,0,0,0,{"$nulls":4},0,{"$nulls":4},0,1,0,0,0,0,2,0,0,0,0,{"$nulls":4},0,{"$nulls":4},0]
[40264,"УПЦ ООО \"Газпром трансгаз Чайковский\"","УПЦ ООО \"Газпром трансгаз Чайковский\"","Обучение ИТР","ОбПС","Обуч по работ с ПС","Ответственный за безопасное производство работ с применением подъемных сооружений","Повышение квалификации",null,"Предаттестационная подготовка по промышленной безопасности, экологической безопасности и др.",null,null,4,32,0,0,"07.10.2024","11.10.2024",0,9999,9999,20500,77900,12500,110900,0,110900,9,6,{"$nulls":4},0,{"$nulls":4},0,{"$nulls":4},0,{"$nulls":4},0,{"$nulls":4},0,{"$nulls":4},0,1,3500,10000,2500,16000,3,0,0,0,0,{"$nulls":4},0,4,14000,60000,10000,84000,{"$nulls":4},0,{"$nulls":4},0,{"$nulls":4},0,{"$nulls":4},0,1,3000,7900,0,10900,{"$nulls":4},0,{"$nulls":4},0,{"$nulls":4},0,{"$nulls":4},0]
[40301,"УПЦ ООО \"Газпром трансгаз Чайковский\"","ООО \"Газпром трансгаз Чайковский\"","Обучение ИТР","Обуч.2,3гОЧ","Обучение высота 2,3 гр. ОЧНОЕ","Обучение руководителей и специалистов безопасным методам и приемам выполнения работ на высоте \"Работники 2, 3 групп по безопасности работ на высоте\"","Повышение квалификации",null,"Прочие технические (ГНВП, сварочное, противопожарные и т.д.)",null,null,5,40,0,0,"15.04.2024","26.04.2024",7,25,30,9000,25400,2000,{"$f":"SUM(V179,W179,X179)","v":36400},0,{"$f":"Y179+(Z179*AB179)","v":36400},{"$f":"SUM(AD179,AI179,AN179,AS179,AX179,BC179,BH179,BM179,BR179,BW179,CB179,CG179,CL179,CQ179,CV179,DA179,DF179,DK179,DP179)","v":12},{"$f":"SUM(AI179,AN179,AS179,AX179,BC179,BH179,BW179,CB179,CG179,CL179,CV179,DF179)","v":4},{"$nulls":4},{"$f":"SUM(AE179,AF179,AG179)","v":0},{"$nulls":4},{"$f":"SUM(AJ179,AK179,AL179)","v":0},{"$nulls":4},{"$f":"SUM(AO179,AP179,AQ179)","v":0},{"$nulls":4},{"$f":"SUM(AT179,AU179,AV179)","v":0},{"$nulls":4},{"$f":"SUM(AY179,AZ179,BA179)","v":0},1,0,0,0,{"$f":"SUM(BD179,BE179,BF179)","v":0},{"$nulls":4},{"$f":"SUM(BI179,BJ179,BK179)","v":0},4,0,0,0,{"$f":"SUM(BN179,BO179,BP179)","v":0},{"$nulls":4},{"$f":"SUM(BS179,BT179,BU179)","v":0},{"$nulls":4},{"$f":"SUM(BX179,BY179,BZ179)","v":0},{"$nulls":4},{"$f":"SUM(CC179,CD179,CE179)","v":0},2,6000,17500,2000,{"$f":"SUM(CH179,CI179,CJ179)","v":25500},{"$nulls":4},{"$f":"SUM(CM179,CN179,CO179)","v":0},{"$nulls":4},{"$f":"SUM(CR179,CS179,CT179)","v":0},1,3000,7900,0,{"$f":"SUM(CW179,CX179,CY179)","v":10900},{"$nulls":4},{"$f":"SUM(DB179,DC179,DD179)","v":0},{"$nulls":4},{"$f":"SUM(DG179,DH179,DI179)","v":0},4,0,0,0,{"$f":"SUM(DL179,DM179,DN179)","v":0},{"$nulls":4},{"$f":"SUM(DQ179,DR179,DS179)","v":0}]
[40302,"УПЦ ООО \"Газпром трансгаз Чайковский\"","ООО \"Газпром трансгаз Чайковский\"","Обучение ИТР","Обуч.2,3гОЧ","Обучение высота 2,3 гр. ОЧНОЕ","Обучение руководителей и специалистов безопасным методам и приемам выполнения работ на высоте \"Работники 2, 3 групп по безопасности работ на высоте\"","Повышение квалификации",null,"Прочие технические (ГНВП, сварочное, противопожарные и т.д.)",null,null,5,40,0,0,"09.09.2024","20.09.2024",7,25,30,12000,30800,2000,44800,0,44800,5,5,{"$nulls":4},0,{"$nulls":4},0,{"$nulls":4},0,{"$nulls":4},0,{"$nulls":4},0,1,0,0,0,0,{"$nulls":4},0,{"$nulls":4},0,{"$nulls":4},0,{"$nulls":4},0,{"$nulls":4},0,2,6000,15000,2000,23000,{"$nulls":4},0,{"$nulls":4},0,2,6000,15800,0,21800,{"$nulls":4},0,{"$nulls":4},0,{"$nulls":4},0,{"$nulls":4},0]
[40303,"УПЦ ООО \"Газпром трансгаз Чайковский\"","ООО \"Газпром трансгаз Чайковский\"","Обучение ИТР","Обуч.2,3гОЧ","Обучение высота 2,3 гр. ОЧНОЕ","Обучение руководителей и специалистов безопасным методам и приемам выполнения работ на высоте \"Работники 2, 3 групп по безопасности работ на высоте\"","Повышение квалификации",null,"Прочие технические (ГНВП, сварочное, противопожарные и т.д.)",null,null,5,40,0,0,"07.10.2024","18.10.2024",7,25,30,14000,67600,5000,86600,0,86600,2,2,{"$nulls":4},0,{"$nulls":4},0,{"$nulls":4},0,2,14000,67600,5000,86600,{"$nulls":4},0,{"$nulls":4},0,{"$nulls":4},0,{"$nulls":4},0,{"$nulls":4},0,{"$nulls":4},0,{"$nulls":4},0,{"$nulls":4},0,{"$nulls":4},0,{"$nulls":4},0,{"$nulls":4},0,{"$nulls":4},0,{"$nulls":4},0,{"$nulls":4},0,{"$nulls":4},0]
[40345,"УПЦ ООО \"Газпром трансгаз Чайковский\"","ООО \"Газпром трансгаз Чайковский\"","Обучение ИТР","БезОгневРаб","Без.провед. огневых работ (1,2 группа)","Безопасное проведение огневых работ на газовых объектах магистральных газопроводов (1,2 группы допуска)","Повышение квалификации",null,"Прочие технические (ГНВП, сварочное, противопожарные и т.д.)",null,null,3,24,0,0,"15.04.2024","17.04.2024",0,25,25,11000,30500,3400,44900,0,44900,10,10,{"$nulls":4},0,{"$nulls":4},0,{"$nulls":4},0,1,2500,10400,2400,15300,2,4000,6600,0,10600,1,0,0,0,0,1,0,0,0,0,{"$nulls":4},0,{"$nulls":4},0,{"$nulls":4},0,{"$nulls":4},0,3,2500,6000,1000,9500,{"$nulls":4},0,{"$nulls":4},0,2,2000,7500,0,9500,{"$nulls":4},0,{"$nulls":4},0,{"$nulls":4},0,{"$nulls":4},0]
[40346,"УПЦ ООО \"Газпром трансгаз Чайковский\"","ООО \"Газпром трансгаз Чайковский\"","Обучение ИТР","БезОгневРаб","Без.провед. огневых работ (1,2 группа)","Безопасное проведение огневых работ на газовых объектах магистральных газопроводов (1,2 группы допуска)","Повышение квалификации",null,"Прочие технические (ГНВП, сварочное, противопожарные и т.д.)",null,null,3,24,0,0,"25.11.2024","27.11.2024",0,25,25,7000,24280,2800,34080,0,34080,6,6,{"$nulls":4},0,{"$nulls":4},0,{"$nulls":4},0,{"$nulls":4},0,{"$nulls":4},0,1,3000,13000,2800,18800,{"$nulls":4},0,{"$nulls":4},0,{"$nulls":4},0,{"$nulls":4},0,{"$nulls":4},0,3,0,0,0,0,{"$nulls":4},0,{"$nulls":4},0,2,4000,11280,0,15280,{"$nulls":4},0,{"$nulls":4},0,{"$nulls":4},0,{"$nulls":4},0]
[44170,"УПЦ ООО \"Газпром трансгаз Чайковский\"","УПЦ ООО \"Газпром трансгаз Чайковский\"",null,"ПожБез ИТР","Обучение мерам ПБ отв. работников","Обучение мерам пожарной безопасности работников, ответственных за пожарную безопасность организации и проведение противопожарного инструктажа",null,null,"Прочие технические (ГНВП, сварочное, противопожарные и т.д.)",null,"Краткосрочный семинар (от 16 до 40 час)",6,32,0,0,"18.04.2024","25.04.2024",7,20,30,0,0,0,0,0,0,23,22,{"$nulls":4},0,{"$nulls":4},0,{"$nulls":4},0,3,0,0,0,0,6,0,0,0,0,4,0,0,0,0,{"$nulls":4},0,{"$nulls":4},0,{"$nulls":4},0,{"$nulls":4},0,{"$nulls":4},0,{"$nulls":4},0,2,0,0,0,0,{"$nulls":4},0,3,0,0,0,0,1,0,0,0,0,4,0,0,0,0,{"$nulls":4},0,{"$nulls":4},0]
[44171,"УПЦ ООО \"Газпром трансгаз Чайковский\"","УПЦ ООО \"Газпром трансгаз Чайковский\"",null,"ПожБез ИТР","Обучение мерам ПБ отв. работников","Обучение мерам пожарной безопасности работников, ответственных за пожарную безопасность организации и проведение противопожарного инструктажа",null,null,"Прочие технические (ГНВП, сварочное, противопожарные и т.д.)",null,"Краткосрочный семинар (от 16 до 40 час)",6,32,0,0,"01.10.2024","08.10.2024",7,20,30,0,0,0,0,0,0,11,11,{"$nulls":4},0,{"$nulls":4},0,{"$nulls":4},0,{"$nulls":4},0,3,0,0,0,0,1,0,0,0,0,{"$nulls":4},0,{"$nulls":4},0,{"$nulls":4},0,2,0,0,0,0,{"$nulls":4},0,{"$nulls":4},0,5,0,0,0,0,{"$nulls":4},0,{"$nulls":4},0,{"$nulls":4},0,{"$nulls":4},0,{"$nulls":4},0,{"$nulls":4},0]
[44172,"УПЦ ООО \"Газпром трансгаз Чайковский\"","УПЦ ООО \"Газпром трансгаз Чайковский\"",null,"ПожБез ИТР","Обучение мерам ПБ отв. работников","Обучение мерам пожарной безопасности работников, ответственных за пожарную безопасность организации и проведение противопожарного инструктажа",null,null,"Прочие технические (ГНВП, сварочное, противопожарные и т.д.)",null,"Краткосрочный семинар (от 16 до 40 час)",6,32,0,0,"03.12.2024","10.12.2024",7,20,30,0,0,0,0,0,0,10,9,{"$nulls":4},0,{"$nulls":4},0,{"$nulls":4},0,{"$nulls":4},0,{"$nulls":4},0,{"$nulls":4},0,{"$nulls":4},0,1,0,0,0,0,{"$nulls":4},0,{"$nulls":4},0,{"$nulls":4},0,{"$nulls":4},0,4,0,0,0,0,{"$nulls":4},0,1,0,0,0,0,{"$nulls":4},0,4,0,0,0,0,{"$nulls":4},0,{"$nulls":4},0]
[44680,"УПЦ ООО \"Газпром трансгаз Чайковский\"","УПЦ ООО \"Газпром трансгаз Чайковский\"","Обучение рабочих","ВодитНаГазе","Водители автомобилей, работ. на СПГ","Водители автомобилей, работающих на сжатом и сжиженном газе","Повышение квалификации (РАБ)",null,"(РАБ) Курсы целевого назначения (в части получения допуска к работе на опасных производственных объектах)",null,null,5,36,0,0,"22.01.2024","26.01.2024",7,20,20,6000,11000,4800,21800,0,21800,21,21,{"$nulls":4},0,{"$nulls":4},0,19,0,0,0,0,2,6000,11000,4800,21800,{"$nulls":4},0,{"$nulls":4},0,{"$nulls":4},0,{"$nulls":4},0,{"$nulls":4},0,{"$nulls":4},0,{"$nulls":4},0,{"$nulls":4},0,{"$nulls":4},0,{"$nulls":4},0,{"$nulls":4},0,{"$nulls":4},0,{"$nulls":4},0,{"$nulls":4},0,{"$nulls":4},0]
[44681,"УПЦ ООО \"Газпром трансгаз Чайковский\"","УПЦ ООО \"Газпром трансгаз Чайковский\"","Обучение рабочих","ВодОГцистер","Водители, перевозящие ОГ цистерн(повт.)","Повышение квалификации водителей, осуществляющих перевозки опасных грузов в соответствии с Cоглашением о международной дорожной перевозке опасных грузов (специализированный курс по перевозке в цистернах)» (повторное обучение)","Повышение квалификации (РАБ)",null,"(РАБ) Курсы целевого назначения (в части получения допуска к работе на опасных производственных объектах)",null,null,1,8,0,0,"28.03.2024","28.03.2024",7,7,20,3000,6500,3000,12500,0,12500,5,5,{"$nulls":4},0,{"$nulls":4},0,{"$nulls":4},0,{"$nulls":4},0,{"$nulls":4},0,1,3000,6500,3000,12500,{"$nulls":4},0,{"$nulls":4},0,{"$nulls":4},0,{"$nulls":4},0,{"$nulls":4},0,{"$nulls":4},0,2,0,0,0,0,{"$nulls":4},0,{"$nulls":4},0,{"$nulls":4},0,2,0,0,0,0,{"$nulls":4},0,{"$nulls":4},0]
[44682,"УПЦ ООО \"Газпром трансгаз Чайковский\"","УПЦ ООО \"Газпром трансгаз Чайковский\"","Обучение рабочих","ВодОГцистер","Водители, перевозящие ОГ цистерн(повт.)","Повышение квалификации водителей, осуществляющих перевозки опасных грузов в соответствии с Cоглашением о международной дорожной перевозке опасных грузов (специализированный курс по перевозке в цистернах)» (повторное обучение)","Повышение квалификации (РАБ)",null,"(РАБ) Курсы целевого назначения (в части получения допуска к работе на опасных производственных объектах)",null,null,1,8,0,0,"11.04.2024","11.04.2024",7,7,20,2500,5500,0,8000,0,8000,5,4,{"$nulls":4},0,1,500,1100,0,1600,{"$nulls":4},0,2,2000,4400,0,6400,{"$nulls":4},0,{"$nulls":4},0,{"$nulls":4},0,{"$nulls":4},0,{"$nulls":4},0,{"$nulls":4},0,{"$nulls":4},0,{"$nulls":4},0,1,0,0,0,0,{"$nulls":4},0,{"$nulls":4},0,1,0,0,0,0,{"$nulls":4},0,{"$nulls":4},0,{"$nulls":4},0]
[44683,"УПЦ ООО \"Газпром трансгаз Чайковский\"","УПЦ ООО \"Газпром трансгаз Чайковский\"","Обучение рабочих","ЗащВож","Защитное вождение","Защитное вождение","Повышение квалификации (РАБ)",null,"(РАБ) Курсы целевого назначения (в части получения допуска к работе на опасных производственных объектах)",null,null,2,16,0,0,"01.10.2024","02.10.2024",0,30,9999,7500,11000,7500,26000,0,26000,30,21,{"$nulls":4},0,2,3000,4400,3000,10400,4,0,0,0,0,{"$nulls":4},0,2,0,0,0,0,1,0,0,0,0,3,0,0,0,0,1,0,0,0,0,{"$nulls":4},0,2,0,0,0,0,2,0,0,0,0,{"$nulls":4},0,3,4500,6600,4500,15600,1,0,0,0,0,2,0,0,0,0,5,0,0,0,0,{"$nulls":4},0,{"$nulls":4},0,2,0,0,0,0]
[44684,"УПЦ ООО \"Газпром трансгаз Чайковский\"","УПЦ ООО \"Газпром трансгаз Чайковский\"","Обучение рабочих","ЗащВож","Защитное вождение","Защитное вождение","Повышение квалификации (РАБ)",null,"(РАБ) Курсы целевого назначения (в части получения допуска к работе на опасных производственных объектах)",null,null,2,16,0,0,"05.09.2024","06.09.2024",0,30,9999,9000,13200,9000,31200,0,31200,35,24,{"$nulls":4},0,3,4500,6600,4500,15600,{"$nulls":4},0,2,0,0,0,0,5,0,0,0,0,2,0,0,0,0,{"$nulls":4},0,{"$nulls":4},0,{"$nulls":4},0,2,0,0,0,0,3,0,0,0,0,{"$nulls":4},0,3,4500,6600,4500,15600,1,0,0,0,0,2,0,0,0,0,7,0,0,0,0,2,0,0,0,0,1,0,0,0,0,2,0,0,0,0]
[44685,"УПЦ ООО \"Газпром трансгаз Чайковский\"","УПЦ ООО \"Газпром трансгаз Чайковский\"","Обучение рабочих","ЗащВож","Защитное вождение","Защитное вождение","Повышение квалификации (РАБ)",null,"(РАБ) Курсы целевого назначения (в части получения допуска к работе на опасных производственных объектах)",null,null,2,16,0,0,"09.09.2024","10.09.2024",0,30,30,4500,6600,4500,15600,0,15600,30,21,{"$nulls":4},0,{"$nulls":4},0,{"$nulls":4},0,2,0,0,0,0,4,0,0,0,0,2,0,0,0,0,2,0,0,0,0,{"$nulls":4},0,{"$nulls":4},0,2,0,0,0,0,3,0,0,0,0,{"$nulls":4},0,3,4500,6600,4500,15600,1,0,0,0,0,2,0,0,0,0,6,0,0,0,0,1,0,0,0,0,{"$nulls":4},0,2,0,0,0,0]
[44686,"УПЦ ООО \"Газпром трансгаз Чайковский\"","УПЦ ООО \"Газпром трансгаз Чайковский\"","Обучение рабочих","ЗащВож","Защитное вождение","Защитное вождение","Повышение квалификации (РАБ)",null,"(РАБ) Курсы целевого назначения (в части получения допуска к работе на опасных производственных объектах)",null,null,2,16,0,0,"12.09.2024","13.09.2024",0,30,9999,10500,16500,10100,37100,0,37100,30,22,{"$nulls":4},0,3,4500,6600,4500,15600,{"$nulls":4},0,2,0,0,0,0,3,0,0,0,0,2,0,0,0,0,2,0,0,0,0,{"$nulls":4},0,{"$nulls":4},0,2,0,0,0,0,2,0,0,0,0,1,1500,3300,1100,5900,3,4500,6600,4500,15600,{"$nulls":4},0,1,0,0,0,0,6,0,0,0,0,1,0,0,0,0,{"$nulls":4},0,2,0,0,0,0]
[44687,"УПЦ ООО \"Газпром трансгаз Чайковский\"","УПЦ ООО \"Газпром трансгаз Чайковский\"","Обучение рабочих","ЗащВож","Защитное вождение","Защитное вождение","Повышение квалификации (РАБ)",null,"(РАБ) Курсы целевого назначения (в части получения допуска к работе на опасных производственных объектах)",null,null,2,16,0,0,"16.09.2024","17.09.2024",0,30,9999,7500,11000,7500,26000,0,26000,32,24,{"$nulls":4},0,2,3000,4400,3000,10400,{"$nulls":4},0,2,0,0,0,0,4,0,0,0,0,2,0,0,0,0,2,0,0,0,0,{"$nulls":4},0,{"$nulls":4},0,2,0,0,0,0,3,0,0,0,0,{"$nulls":4},0,3,4500,6600,4500,15600,{"$nulls":4},0,2,0,0,0,0,6,0,0,0,0,2,0,0,0,0,{"$nulls":4},0,2,0,0,0,0]
[44688,"УПЦ ООО \"Газпром трансгаз Чайковский\"","УПЦ ООО \"Газпром трансгаз Чайковский\"","Обучение рабочих","ЗащВож","Защитное вождение","Защитное вождение","Повышение квалификации (РАБ)",null,"(РАБ) Курсы целевого назначения (в части получения допуска к работе на опасных производственных объектах)",null,null,2,16,0,0,"19.09.2024","20.09.2024",0,30,9999,10500,16500,10100,37100,0,37100,33,24,{"$nulls":4},0,3,4500,6600,4500,15600,{"$nulls":4},0,2,0,0,0,0,3,0,0,0,0,2,0,0,0,0,2,0,0,0,0,{"$nulls":4},0,{"$nulls":4},0,2,0,0,0,0,2,0,0,0,0,1,1500,3300,1100,5900,3,4500,6600,4500,15600,{"$nulls":4},0,2,0,0,0,0,6,0,0,0,0,2,0,0,0,0,1,0,0,0,0,2,0,0,0,0]
[44689,"УПЦ ООО \"Газпром трансгаз Чайковский\"","УПЦ ООО \"Газпром трансгаз Чайковский\"","Обучение рабочих","ЗащВож","Защитное вождение","Защитное вождение","Повышение квалификации (РАБ)",null,"(РАБ) Курсы целевого назначения (в части получения допуска к работе на опасных производственных объектах)",null,null,2,16,0,0,"23.09.2024","24.09.2024",0,30,9999,7500,11000,7500,26000,0,26000,30,19,{"$nulls":4},0,2,3000,4400,3000,10400,{"$nulls":4},0,{"$nulls":4},0,1,0,0,0,0,2,0,0,0,0,2,0,0,0,0,2,0,0,0,0,{"$nulls":4},0,2,0,0,0,0,3,0,0,0,0,{"$nulls":4},0,3,4500,6600,4500,15600,{"$nulls":4},0,2,0,0,0,0,6,0,0,0,0,2,0,0,0,0,1,0,0,0,0,2,0,0,0,0]
[44690,"УПЦ ООО \"Газпром трансгаз Чайковский\"","УПЦ ООО \"Газпром трансгаз Чайковский\"","Обучение рабочих","ЗащВож","Защитное вождение","Защитное вождение","Повышение квалификации (РАБ)",null,"(РАБ) Курсы целевого назначения (в части получения допуска к работе на опасных производственных объектах)",null,null,2,16,0,0,"26.09.2024","27.09.2024",0,30,9999,7500,11000,7500,26000,0,26000,30,19,{"$nulls":4},0,2,3000,4400,3000,10400,{"$nulls":4},0,{"$nulls":4},0,1,0,0,0,0,2,0,0,0,0,2,0,0,0,0,3,0,0,0,0,{"$nulls":4},0,2,0,0,0,0,3,0,0,0,0,{"$nulls":4},0,3,4500,6600,4500,15600,{"$nulls":4},0,2,0,0,0,0,6,0,0,0,0,2,0,0,0,0,{"$nulls":4},0,2,0,0,0,0]
[44691,"УПЦ ООО \"Газпром трансгаз Чайковский\"","УПЦ ООО \"Газпром трансгаз Чайковский\"","Обучение рабочих","ЗащВож","Защитное вождение","Защитное вождение","Повышение квалификации (РАБ)",null,"(РАБ) Курсы целевого назначения (в части получения допуска к работе на опасных производственных объектах)",null,null,2,16,0,0,"14.10.2024","15.10.2024",0,30,9999,4500,6600,4500,15600,0,15600,25,12,{"$nulls":4},0,{"$nulls":4},0,{"$nulls":4},0,{"$nulls":4},0,{"$nulls":4},0,{"$nulls":4},0,2,0,0,0,0,4,0,0,0,0,{"$nulls":4},0,2,0,0,0,0,3,0,0,0,0,{"$nulls":4},0,3,4500,6600,4500,15600,{"$nulls":4},0,1,0,0,0,0,6,0,0,0,0,1,0,0,0,0,1,0,0,0,0,2,0,0,0,0]
[44692,"УПЦ ООО \"Газпром трансгаз Чайковский\"","УПЦ ООО \"Газпром трансгаз Чайковский\"","Обучение рабочих","ЗащВож","Защитное вождение","Защитное вождение","Повышение квалификации (РАБ)",null,"(РАБ) Курсы целевого назначения (в части получения допуска к работе на опасных производственных объектах)",null,null,2,16,0,0,"17.10.2024","18.10.2024",0,30,9999,3000,6600,4500,14100,0,14100,22,10,{"$nulls":4},0,{"$nulls":4},0,{"$nulls":4},0,{"$nulls":4},0,{"$nulls":4},0,{"$nulls":4},0,1,0,0,0,0,5,0,0,0,0,{"$nulls":4},0,3,0,0,0,0,{"$nulls":4},0,1,0,0,0,0,3,3000,6600,4500,14100,{"$nulls":4},0,1,0,0,0,0,5,0,0,0,0,1,0,0,0,0,{"$nulls":4},0,2,0,0,0,0]
[44693,"УПЦ ООО \"Газпром трансгаз Чайковский\"","УПЦ ООО \"Газпром трансгаз Чайковский\"","Обучение рабочих","ЗащВож","Защитное вождение","Защитное вождение","Повышение квалификации (РАБ)",null,"(РАБ) Курсы целевого назначения (в части получения допуска к работе на опасных производственных объектах)",null,null,2,16,0,0,"21.10.2024","22.10.2024",0,30,9999,3000,6600,4500,14100,0,14100,23,11,{"$nulls":4},0,{"$nulls":4},0,{"$nulls":4},0,{"$nulls":4},0,{"$nulls":4},0,{"$nulls":4},0,1,0,0,0,0,5,0,0,0,0,{"$nulls":4},0,2,0,0,0,0,3,0,0,0,0,{"$nulls":4},0,3,3000,6600,4500,14100,{"$nulls":4},0,1,0,0,0,0,5,0,0,0,0,1,0,0,0,0,{"$nulls":4},0,2,0,0,0,0]
[44694,"УПЦ ООО \"Газпром трансгаз Чайковский\"","УПЦ ООО \"Газпром трансгаз Чайковский\"","Обучение рабочих","ЗащВож","Защитное вождение","Защитное вождение","Повышение квалификации (РАБ)",null,"(РАБ) Курсы целевого назначения (в части получения допуска к работе на опасных производственных объектах)",null,null,2,16,0,0,"24.10.2024","25.10.2024",0,30,9999,3001,6600,4500,14101,0,14101,23,13,{"$nulls":4},0,{"$nulls":4},0,{"$nulls":4},0,{"$nulls":4},0,4,0,0,0,0,{"$nulls":4},0,{"$nulls":4},0,5,0,0,0,0,{"$nulls":4},0,2,0,0,0,0,3,0,0,0,0,{"$nulls":4},0,3,3001,6600,4500,14101,{"$nulls":4},0,1,0,0,0,0,5,0,0,0,0,{"$nulls":4},0,{"$nulls":4},0,{"$nulls":4},0]
[44695,"УПЦ ООО \"Газпром трансгаз Чайковский\"","УПЦ ООО \"Газпром трансгаз Чайковский\"","Обучение рабочих","ОпГРС","Оператор ГРС (без пов.р))","Оператор газораспределительной станции ПТК","Повышение квалификации (РАБ)",null,"(РАБ) Повышение квалификации на ПТК",null,null,10,80,42,336,"18.03.2024","29.03.2024",7,16,20,51500,114960,15400,181860,0,181860,14,13,{"$nulls":4},0,{"$nulls":4},0,{"$nulls":4},0,1,7000,14300,2400,23700,4,12000,22000,2000,36000,1,3000,5500,2800,11300,{"$nulls":4},0,{"$nulls":4},0,{"$nulls":4},0,{"$nulls":4},0,{"$nulls":4},0,2,14000,28600,2200,44800,4,9000,22000,6000,37000,{"$nulls":4},0,1,6500,22560,0,29060,{"$nulls":4},0,{"$nulls":4},0,{"$nulls":4},0,1,0,0,0,0]
[44696,"УПЦ ООО \"Газпром трансгаз Чайковский\"","УПЦ ООО \"Газпром трансгаз Чайковский\"","Обучение рабочих","ОпГРС","Оператор ГРС (без пов.р))","Оператор газораспределительной станции ПТК","Повышение квалификации (РАБ)",null,"(РАБ) Повышение квалификации на ПТК",null,null,10,80,42,336,"01.04.2024","12.04.2024",7,16,20,62000,125400,15300,202700,0,202700,16,16,{"$nulls":4},0,{"$nulls":4},0,3,18000,36300,0,54300,1,7000,14300,2400,23700,6,18000,33000,3000,54000,1,3000,5500,2800,11300,{"$nulls":4},0,{"$nulls":4},0,{"$nulls":4},0,{"$nulls":4},0,{"$nulls":4},0,1,7000,14300,1100,22400,4,9000,22000,6000,37000,{"$nulls":4},0,{"$nulls":4},0,{"$nulls":4},0,{"$nulls":4},0,{"$nulls":4},0,{"$nulls":4},0]
[44697,"УПЦ ООО \"Газпром трансгаз Чайковский\"","УПЦ ООО \"Газпром трансгаз Чайковский\"","Обучение рабочих","ОпГРС","Оператор ГРС (без пов.р))","Оператор газораспределительной станции ПТК","Повышение квалификации (РАБ)",null,"(РАБ) Повышение квалификации на ПТК",null,null,10,80,42,336,"16.09.2024","27.09.2024",7,16,20,48000,92400,13100,153500,0,153500,13,12,{"$nulls":4},0,{"$nulls":4},0,{"$nulls":4},0,1,7000,14300,2400,23700,5,15000,27500,2500,45000,{"$nulls":4},0,{"$nulls":4},0,{"$nulls":4},0,{"$nulls":4},0,{"$nulls":4},0,{"$nulls":4},0,2,14000,28600,2200,44800,4,12000,22000,6000,40000,{"$nulls":4},0,{"$nulls":4},0,{"$nulls":4},0,{"$nulls":4},0,{"$nulls":4},0,1,0,0,0,0]
[44742,"УПЦ ООО \"Газпром трансгаз Чайковский\"","УПЦ ООО \"Газпром трансгаз Чайковский\"","Обучение ИТР","ЭксплКЗ","Эксплуатация средств ПКЗ","Эксплуатация средств противокоррозионной защиты","Повышение квалификации",null,"Периодическое обучение по плану общеста/организации (руководители, специалисты, рабочие)",null,null,5,40,0,0,"26.02.2024","01.03.2024",7,14,20,23500,88000,11600,123100,0,123100,12,10,1,0,0,0,0,{"$nulls":4},0,2,5000,20000,0,25000,1,3000,13000,2400,18400,{"$nulls":4},0,2,6000,27000,5600,38600,1,0,0,0,0,{"$nulls":4},0,{"$nulls":4},0,1,3500,10000,2500,16000,1,0,0,0,0,1,3000,8000,1100,12100,{"$nulls":4},0,{"$nulls":4},0,1,3000,10000,0,13000,{"$nulls":4},0,{"$nulls":4},0,{"$nulls":4},0,1,0,0,0,0]
[44947,"УПЦ ООО \"Газпром трансгаз Чайковский\"","ООО \"Газпром трансгаз Чайковский\"","Обучение ИТР","Обуч.2,3гОЧ","Обучение высота 2,3 гр. ОЧНОЕ","Обучение руководителей и специалистов безопасным методам и приемам выполнения работ на высоте \"Работники 2, 3 групп по безопасности работ на высоте\"","Повышение квалификации",null,"Прочие технические (ГНВП, сварочное, противопожарные и т.д.)",null,null,5,40,0,0,"05.02.2024","16.02.2024",7,30,30,10000,29400,18200,57600,0,57600,15,11,{"$nulls":4},0,{"$nulls":4},0,3,0,0,0,0,1,1500,6000,2400,9900,{"$nulls":4},0,1,1500,4200,2800,8500,{"$nulls":4},0,2,0,0,0,0,{"$nulls":4},0,4,6000,16000,10000,32000,{"$nulls":4},0,{"$nulls":4},0,2,1000,3200,3000,7200,{"$nulls":4},0,{"$nulls":4},0,{"$nulls":4},0,{"$nulls":4},0,2,0,0,0,0,{"$nulls":4},0]
[44948,"УПЦ ООО \"Газпром трансгаз Чайковский\"","ООО \"Газпром трансгаз Чайковский\"","Обучение ИТР","Обуч.2,3гОЧ","Обучение высота 2,3 гр. ОЧНОЕ","Обучение руководителей и специалистов безопасным методам и приемам выполнения работ на высоте \"Работники 2, 3 групп по безопасности работ на высоте\"","Повышение квалификации",null,"Прочие технические (ГНВП, сварочное, противопожарные и т.д.)",null,null,5,40,0,0,"13.05.2024","24.05.2024",7,30,30,9500,30200,16600,56300,0,56300,10,6,{"$nulls":4},0,{"$nulls":4},0,{"$nulls":4},0,2,3000,12000,4800,19800,{"$nulls":4},0,1,1500,4200,2800,8500,{"$nulls":4},0,4,1500,4000,2000,7500,{"$nulls":4},0,2,3000,8000,5000,16000,{"$nulls":4},0,{"$nulls":4},0,{"$nulls":4},0,{"$nulls":4},0,{"$nulls":4},0,{"$nulls":4},0,1,500,2000,2000,4500,{"$nulls":4},0,{"$nulls":4},0]
[44949,"УПЦ ООО \"Газпром трансгаз Чайковский\"","ООО \"Газпром трансгаз Чайковский\"","Обучение ИТР","Обуч.2,3гОЧ","Обучение высота 2,3 гр. ОЧНОЕ","Обучение руководителей и специалистов безопасным методам и приемам выполнения работ на высоте \"Работники 2, 3 групп по безопасности работ на высоте\"","Повышение квалификации",null,"Прочие технические (ГНВП, сварочное, противопожарные и т.д.)",null,null,5,40,0,0,"21.10.2024","01.11.2024",7,30,30,2000,6000,4500,12500,0,12500,4,3,{"$nulls":4},0,{"$nulls":4},0,{"$nulls":4},0,{"$nulls":4},0,{"$nulls":4},0,1,0,0,0,0,{"$nulls":4},0,1,0,0,0,0,{"$nulls":4},0,1,1500,4000,2500,8000,{"$nulls":4},0,{"$nulls":4},0,{"$nulls":4},0,{"$nulls":4},0,{"$nulls":4},0,{"$nulls":4},0,1,500,2000,2000,4500,{"$nulls":4},0,{"$nulls":4},0]
[45003,"УПЦ ООО \"Газпром трансгаз Чайковский\"","УПЦ ООО \"Газпром трансгаз Чайковский\"","Обучение ИТР","БДДспец","Специалисты по БДД","Подготовка специалистов по безопасности движения на автомобильном и городском электротранспорте","Повышение квалификации",null,"Прочие технические (ГНВП, сварочное, противопожарные и т.д.)",null,null,5,36,0,0,"01.04.2024","05.04.2024",7,30,30,18000,42000,6000,66000,0,66000,16,10,{"$nulls":4},0,{"$nulls":4},0,3,0,0,0,0,{"$nulls":4},0,4,12000,22000,1500,35500,{"$nulls":4},0,{"$nulls":4},0,{"$nulls":4},0,{"$nulls":4},0,1,3500,10000,2500,16000,1,0,0,0,0,{"$nulls":4},0,{"$nulls":4},0,{"$nulls":4},0,{"$nulls":4},0,6,0,0,0,0,1,2500,10000,2000,14500,{"$nulls":4},0,{"$nulls":4},0]
[45036,"УПЦ ООО \"Газпром трансгаз Чайковский\"","УПЦ ООО \"Газпром трансгаз Чайковский\"",null,"ПожБез ИТР","Обучение мерам ПБ отв. работников","Обучение мерам пожарной безопасности работников, ответственных за пожарную безопасность организации и проведение противопожарного инструктажа",null,null,"Прочие технические (ГНВП, сварочное, противопожарные и т.д.)",null,"Краткосрочный семинар (от 16 до 40 час)",6,32,0,0,"08.02.2024","15.02.2024",7,20,30,0,0,0,0,0,0,22,12,{"$nulls":4},0,{"$nulls":4},0,{"$nulls":4},0,{"$nulls":4},0,{"$nulls":4},0,3,0,0,0,0,{"$nulls":4},0,10,0,0,0,0,{"$nulls":4},0,{"$nulls":4},0,{"$nulls":4},0,2,0,0,0,0,7,0,0,0,0,{"$nulls":4},0,{"$nulls":4},0,{"$nulls":4},0,{"$nulls":4},0,{"$nulls":4},0,{"$nulls":4},0]
[45042,"УПЦ ООО \"Газпром трансгаз Чайковский\"","Можгинское ЛПУМГ","Обучение рабочих","ВысРаб24","Высота 1,2 группа 24ч.","(24ч) Обучение персонала безопасным методам и приемам выполнения работ на высоте \"Работники 1,2 групп по безопасности работ на высоте\"","Повышение квалификации (РАБ)",null,"(РАБ) Курсы целевого назначения (в части получения допуска к работе на опасных производственных объектах)",null,null,3,24,0,0,"26.02.2024","28.02.2024",7,30,30,0,0,0,0,0,0,28,28,{"$nulls":4},0,{"$nulls":4},0,{"$nulls":4},0,{"$nulls":4},0,{"$nulls":4},0,{"$nulls":4},0,{"$nulls":4},0,{"$nulls":4},0,{"$nulls":4},0,{"$nulls":4},0,28,0,0,0,0,{"$nulls":4},0,{"$nulls":4},0,{"$nulls":4},0,{"$nulls":4},0,{"$nulls":4},0,{"$nulls":4},0,{"$nulls":4},0,{"$nulls":4},0]
[45080,"УПЦ ООО \"Газпром трансгаз Чайковский\"","ООО \"Газпром трансгаз Чайковский\"","Обучение ИТР","СКИнжСист","СК инженерных систем","[DVERB]","Повышение квалификации",null,"Другие целевые программы (строительный контроль)",null,null,5,40,0,0,"26.02.2024","01.03.2024",7,30,30,8000,35000,4400,47400,0,47400,4,3,{"$nulls":4},0,{"$nulls":4},0,1,2500,10000,0,12500,1,3000,15000,2400,20400,{"$nulls":4},0,{"$nulls":4},0,{"$nulls":4},0,{"$nulls":4},0,{"$nulls":4},0,{"$nulls":4},0,{"$nulls":4},0,{"$nulls":4},0,{"$nulls":4},0,{"$nulls":4},0,{"$nulls":4},0,{"$nulls":4},0,1,2500,10000,2000,14500,1,0,0,0,0,{"$nulls":4},0]
[45276,"УПЦ ООО \"Газпром трансгаз Чайковский\"","ООО \"Газпром трансгаз Чайковский\"","Обучение ИТР","СК ОП ПБ","СК объектов МГ Общие положения","[DVERB]","Повышение квалификации",null,"Другие целевые программы (строительный контроль)",null,null,5,40,0,0,"14.10.2024","18.10.2024",7,30,30,0,0,0,0,0,0,4,4,{"$nulls":4},0,{"$nulls":4},0,{"$nulls":4},0,1,0,0,0,0,{"$nulls":4},0,{"$nulls":4},0,{"$nulls":4},0,{"$nulls":4},0,{"$nulls":4},0,{"$nulls":4},0,{"$nulls":4},0,{"$nulls":4},0,3,0,0,0,0,{"$nulls":4},0,{"$nulls":4},0,{"$nulls":4},0,{"$nulls":4},0,{"$nulls":4},0,{"$nulls":4},0]
[]
[{"$nulls":21},{"$f":"SUM(V4:V214)","v":6083001},15574350,2419700,24077051,0,24077051,3638,2537,59,0,0,0,0,188,483100,1097000,139500,1719600,176,345000,824100,0,1169100,141,380500,1227800,250200,1858500,250,693500,1416800,16300,{"$f":"SUM(BB4:BB214)","v":2126600},373,858400,2131700,566200,3556300,233,499500,1182100,287500,1969100,250,53500,180000,39000,272500,18,0,0,0,0,273,931000,3172900,527800,4631700,215,107000,240540,17500,365040,112,{"$f":"SUM(CH4:CH214)","v":290500},619910,80700,991110,281,683501,1465600,312000,2461101,4,0,0,0,0,158,407000,1000800,2000,1409800,498,0,0,0,0,137,288500,898300,154000,1340800,83,59500,116800,{"$f":"SUM(DN4:DN214)","v":26000},202300,189,2500,0,1000,3500]

{"sheet":"Перечень мероприятий","index":1,"n_rows":214,"n_cols":22,"rows_kept":214}
["Код тип мероприятия","Код мероприятия","Код место обучения","Код учебное заведение","Место обучения","Наименование в ИУСПТ","Образовательная программа","Статус плана","Статус","ЗавершОбрВыполнена","МеткаБлокир","Начальная дата","Конечная дата","МинималКоличУчастн","ОптимКоличУчастник","МаксимКоличУчастник","Регистрация","Ожидание","Предварительная","Тьютер","Имя пользователя","Дата изменения"]
[662,40233,77,{"$f":"COUNTIF(План_сводная!A$2:A$208,B2)","v":1},"УПЦ ООО \"Газпром трансгаз Чайковский\"","Ежегодные занятия с водителями","Ежегодные занятия с водителями","2","Запланировано","","X","2024-01-10","2024-01-12",7,20,20,16,0,3,"","TCULEA","2023-03-17"]
[666,40051,77,{"$f":"COUNTIF(План_сводная!A$2:A$208,B3)","v":1},"ООО \"Газпром трансгаз Чайковский\"","Высота 1,2 группа 24ч.","(24ч) Обучение персонала безопасным методам и приемам выполнения работ на высоте \"Работники 1,2 групп по безопасности работ на в","2","Запланировано","","X","2024-01-15","2024-01-17",7,20,30,23,0,7,"","TCUPTV","2023-03-14"]
[662,40234,77,{"$f":"COUNTIF(План_сводная!A$2:A$208,B4)","v":1},"УПЦ ООО \"Газпром трансгаз Чайковский\"","Ежегодные занятия с водителями","Ежегодные занятия с водителями","2","Запланировано","","X","2024-01-15","2024-01-17",7,20,20,20,0,3,"","TCULEA","2023-03-17"]
[21995,40048,77,{"$f":"COUNTIF(План_сводная!A$2:A$208,B5)","v":1},"ООО \"Газпром трансгаз Чайковский\"","СК объектов МГ Общие положения","Строительный контроль за качеством строительства, реконструкции и капитального ремонта объектов магистральных газопроводов ООО «","2","Запланировано","","","2024-01-15","2024-01-19",7,15,30,23,1,6,"","TCUDOV","2023-03-14"]
[17559,39993,77,{"$f":"COUNTIF(План_сводная!A$2:A$208,B6)","v":1},"ООО \"Газпром трансгаз Чайковский\"","Машинист ТК ПТК (без повышения разряда)","Машинист технологических компрессоров ПТК","2","Запланировано","","X","2024-01-15","2024-01-26",7,15,20,18,0,6,"","TCUBIS02","2023-10-09"]
[16207,39906,77,{"$f":"COUNTIF(План_сводная!A$2:A$208,B7)","v":1},"ООО \"Газпром трансгаз Чайковский\"","Требования промышленной безопасности","Требования промышленной безопасности","2","Запланировано","","","2024-01-15","2024-02-02",7,30,30,30,0,15,"","TCUPTV","2023-03-10"]
[674,39786,77,{"$f":"COUNTIF(План_сводная!A$2:A$208,B8)","v":1},"ООО \"Газпром трансгаз Чайковский\"","Подготовка к аттест.электрогазосварщиков","Подготовка к аттестации электрогазосварщиков на право выполнения сварочных и наплавочных работ при строительстве, изготовлении,","2","Запланировано","","","2024-01-16","2024-01-25",7,20,20,14,0,1,"","TCUSAA17","2023-03-06"]
[662,40235,77,{"$f":"COUNTIF(План_сводная!A$2:A$208,B9)","v":1},"УПЦ ООО \"Газпром трансгаз Чайковский\"","Ежегодные занятия с водителями","Ежегодные занятия с водителями","2","Запланировано","","X","2024-01-17","2024-01-19",7,20,20,18,0,3,"","TCULEA","2023-03-17"]
[13993,39762,77,{"$f":"COUNTIF(План_сводная!A$2:A$208,B10)","v":1},"УПЦ ООО \"Газпром трансгаз Чайковский\"","Обучение мерам ПБ отв. работников","Обучение мерам пожарной безопасности работников, ответственных за пожарную безопасность организации и проведение противопожарног","2","Запланировано","","X","2024-01-18","2024-01-25",7,20,30,22,0,2,"","TCULEA","2023-10-13"]
[661,44680,77,{"$f":"COUNTIF(План_сводная!A$2:A$208,B11)","v":1},"УПЦ ООО \"Газпром трансгаз Чайковский\"","Водители автомобилей, работ. на СПГ","Водители автомобилей, работающих на сжатом и сжиженном газе","2","Запланировано","","X","2024-01-22","2024-01-26",7,20,20,20,1,1,"","TCUPAA14","2023-10-27"]
[22072,40040,77,{"$f":"COUNTIF(План_сводная!A$2:A$208,B12)","v":1},"ООО \"Газпром трансгаз Чайковский\"","СК Общестроительные работы","Строительный контроль за качеством строительства, реконструкции и капитального ремонта объектов ООО «Газпром трансгаз Чайковский","2","Запланировано","","","2024-01-22","2024-01-26",0,20,9999,17,0,11,"","TCUPTV","2023-03-15"]
[729,40150,77,{"$f":"COUNTIF(План_сводная!A$2:A$208,B13)","v":1},"УПЦ ООО \"Газпром трансгаз Чайковский\"","Электромонтер по рем. электрооборуд. ПТК","Электромонтер по ремонту и обслуживанию электрооборудования ПТК","2","Запланировано","","","2024-01-22","2024-02-02",7,15,20,18,0,1,"","TCULNA1","2023-03-15"]
[738,40037,77,{"$f":"COUNTIF(План_сводная!A$2:A$208,B14)","v":1},"ООО \"Газпром трансгаз Чайковский\"","Безопасная эксплуатация ТЭУ","Безопасная эксплуатация объектов теплоснабжения и теплопотребляющих установок","2","Запланировано","","","2024-01-23","2024-01-31",7,20,20,12,0,1,"","TCUPTV","2023-03-13"]
[662,40232,77,{"$f":"COUNTIF(План_сводная!A$2:A$208,B15)","v":1},"УПЦ ООО \"Газпром трансгаз Чайковский\"","Ежегодные занятия с водителями","Ежегодные занятия с водителями","2","Запланировано","","X","2024-01-29","2024-01-31",7,20,20,19,0,3,"","TCUPAA14","2023-10-27"]
[672,39987,77,{"$f":"COUNTIF(План_сводная!A$2:A$208,B16)","v":1},"ООО \"Газпром трансгаз Чайковский\"","Правила ПБ (сосуды под давлением)","Правила промышленной безопасности опасных производственных объектов, на которых используется оборудование, работающие под избыто","2","Запланировано","","X","2024-01-29","2024-02-01",7,20,20,20,3,6,"","TCUBIS02","2023-10-16"]
[724,40063,77,{"$f":"COUNTIF(План_сводная!A$2:A$208,B17)","v":1},"УПЦ ООО \"Газпром трансгаз Чайковский\"","Трубопроводчик линейный ПТК","Трубопроводчик линейный ПТК","2","Запланировано","","X","2024-01-29","2024-02-09",7,16,20,8,0,0,"","TCUSOI","2023-10-20"]
[645,39765,77,{"$f":"COUNTIF(План_сводная!A$2:A$208,B18)","v":1},"УПЦ ООО \"Газпром трансгаз Чайковский\"","Психолого-педагогический минимум знаний","Психолого-педагогический минимум знаний для внештатных преподавателей","2","Запланировано","","X","2024-01-29","2024-02-15",7,15,20,19,0,0,"","TCULEA","2023-03-27"]
[718,39886,77,{"$f":"COUNTIF(План_сводная!A$2:A$208,B19)","v":1},"УПЦ ООО \"Газпром трансгаз Чайковский\"","Слесарь по КИПиА ПТК","Слесарь по контрольно-измерительным приборам и автоматике ПТК","2","Запланировано","","X","2024-01-29","2024-02-16",7,20,20,9,0,1,"","TCUKMG01","2023-11-01"]
[738,40038,77,{"$f":"COUNTIF(План_сводная!A$2:A$208,B20)","v":1},"ООО \"Газпром трансгаз Чайковский\"","Безопасная эксплуатация ТЭУ","Безопасная эксплуатация объектов теплоснабжения и теплопотребляющих установок","2","Запланировано","","","2024-01-30","2024-02-07",7,20,20,20,1,1,"","TCUPTV","2023-03-13"]
[625,40020,77,{"$f":"COUNTIF(План_сводная!A$2:A$208,B21)","v":1},"УПЦ ООО \"Газпром трансгаз Чайковский\"","Оператор ГРС КПП","Оператор газораспределительной станции КПП","2","Запланировано","","X","2024-01-30","2024-02-22",7,14,20,11,0,0,"","TCUSOI","2023-03-14"]
[662,40242,77,{"$f":"COUNTIF(План_сводная!A$2:A$208,B22)","v":1},"УПЦ ООО \"Газпром трансгаз Чайковский\"","Ежегодные занятия с водителями","Ежегодные занятия с водителями","2","Запланировано","","X","2024-01-31","2024-02-02",7,20,20,18,0,3,"","TCUPAA14","2023-10-27"]
[11279,40049,77,{"$f":"COUNTIF(План_сводная!A$2:A$208,B23)","v":1},"ООО \"Газпром трансгаз Чайковский\"","СК сварочно-монтаж. работы","Строительный контроль за качеством строительства, реконструкции и капитального ремонта объектов ООО «Газпром трансгаз Чайковский","2","Запланировано","","","2024-02-01","2024-02-09",7,15,30,26,0,1,"","TCUDOV","2023-03-14"]
[666,39904,83,{"$f":"COUNTIF(План_сводная!A$2:A$208,B24)","v":1},"Горнозаводское ЛПУМГ","Высота 1,2 группа 24ч.","(24ч) Обучение персонала безопасным методам и приемам выполнения работ на высоте \"Работники 1,2 групп по безопасности работ на в","2","Запланировано","","X","2024-02-05","2024-02-07",7,20,30,29,0,7,"","TCUPTV","2023-03-10"]
[662,40236,77,{"$f":"COUNTIF(План_сводная!A$2:A$208,B25)","v":1},"УПЦ ООО \"Газпром трансгаз Чайковский\"","Ежегодные занятия с водителями","Ежегодные занятия с водителями","2","Запланировано","","X","2024-02-05","2024-02-07",7,20,20,19,0,3,"","TCULEA","2023-03-17"]
[669,40039,77,{"$f":"COUNTIF(План_сводная!A$2:A$208,B26)","v":1},"ООО \"Газпром трансгаз Чайковский\"","Высота 1,2 группа 32ч.","(32ч) Обучение персонала безопасным методам и приемам выполнения работ на высоте \"Работники 1,2 групп по безопасности работ на в","2","Запланировано","","X","2024-02-05","2024-02-08",7,20,20,20,10,4,"","TCUPTV","2023-03-13"]
[659,40103,77,{"$f":"COUNTIF(План_сводная!A$2:A$208,B27)","v":1},"УПЦ ООО \"Газпром трансгаз Чайковский\"","Стропальщик 2см","Стропальщик 2см","2","Запланировано","","X","2024-02-05","2024-02-09",7,15,20,20,0,6,"","TCULNA1","2023-03-14"]
[17559,39994,77,{"$f":"COUNTIF(План_сводная!A$2:A$208,B28)","v":1},"ООО \"Газпром трансгаз Чайковский\"","Машинист ТК ПТК (без повышения разряда)","Машинист технологических компрессоров ПТК","2","Запланировано","","X","2024-02-05","2024-02-16",7,15,20,14,0,6,"","TCUBIS02","2023-10-09"]
[17299,44947,77,{"$f":"COUNTIF(План_сводная!A$2:A$208,B29)","v":1},"ООО \"Газпром трансгаз Чайковский\"","Обучение высота 2,3 гр. ОЧНОЕ","Обучение руководителей и специалистов безопасным методам и приемам выполнения работ на высоте \"Работники 2, 3 групп по безопасно","2","Запланировано","","X","2024-02-05","2024-02-16",7,30,30,15,0,14,"","TCUDOV","2023-11-29"]
[662,40237,77,{"$f":"COUNTIF(План_сводная!A$2:A$208,B30)","v":1},"УПЦ ООО \"Газпром трансгаз Чайковский\"","Ежегодные занятия с водителями","Ежегодные занятия с водителями","2","Запланировано","","X","2024-02-07","2024-02-09",7,20,20,19,0,3,"","TCULEA","2023-03-17"]
[13993,45036,77,{"$f":"COUNTIF(План_сводная!A$2:A$208,B31)","v":1},"УПЦ ООО \"Газпром трансгаз Чайковский\"","Обучение мерам ПБ отв. работников","Обучение мерам пожарной безопасности работников, ответственных за пожарную безопасность организации и проведение противопожарног","2","Запланировано","","X","2024-02-08","2024-02-15",7,20,30,22,0,2,"","TCULEA","2023-11-23"]
[666,39905,84,{"$f":"COUNTIF(План_сводная!A$2:A$208,B32)","v":1},"Гремячинское ЛПУМГ","Высота 1,2 группа 24ч.","(24ч) Обучение персонала безопасным методам и приемам выполнения работ на высоте \"Работники 1,2 групп по безопасности работ на в","2","Запланировано","","X","2024-02-12","2024-02-14",7,20,30,21,0,7,"","TCUPTV","2023-03-10"]
[662,40238,77,{"$f":"COUNTIF(План_сводная!A$2:A$208,B33)","v":1},"УПЦ ООО \"Газпром трансгаз Чайковский\"","Ежегодные занятия с водителями","Ежегодные занятия с водителями","2","Запланировано","","X","2024-02-12","2024-02-14",7,20,20,18,0,3,"","TCULEA","2023-03-17"]
[21385,40072,77,{"$f":"COUNTIF(План_сводная!A$2:A$208,B34)","v":1},"УПЦ ООО \"Газпром трансгаз Чайковский\"","Обходчик линейный ПТК (без пов.разряда)","Обходчик линейный ПТК","2","Запланировано","","X","2024-02-12","2024-02-16",0,16,20,11,0,0,"","TCUSOI","2023-03-14"]
[760,40050,77,{"$f":"COUNTIF(План_сводная!A$2:A$208,B35)","v":1},"ООО \"Газпром трансгаз Чайковский\"","СК Строит.монт.работы","Строительный контроль за качеством строительства, реконструкции и капитального ремонта объектов ООО «Газпром трансгаз Чайковский","2","Запланировано","","","2024-02-12","2024-02-16",7,15,30,26,0,3,"","TCUDOV","2023-03-14"]
[729,40151,77,{"$f":"COUNTIF(План_сводная!A$2:A$208,B36)","v":1},"УПЦ ООО \"Газпром трансгаз Чайковский\"","Электромонтер по рем. электрооборуд. ПТК","Электромонтер по ремонту и обслуживанию электрооборудования ПТК","2","Запланировано","","X","2024-02-12","2024-02-26",7,20,20,19,0,1,"","TCUBIS02","2023-11-07"]
[674,39787,77,{"$f":"COUNTIF(План_сводная!A$2:A$208,B37)","v":1},"ООО \"Газпром трансгаз Чайковский\"","Подготовка к аттест.электрогазосварщиков","Подготовка к аттестации электрогазосварщиков на право выполнения сварочных и наплавочных работ при строительстве, изготовлении,","2","Запланировано","","","2024-02-13","2024-02-22",7,20,20,14,0,1,"","TCUSAA17","2023-03-06"]
[662,40239,77,{"$f":"COUNTIF(План_сводная!A$2:A$208,B38)","v":1},"УПЦ ООО \"Газпром трансгаз Чайковский\"","Ежегодные занятия с водителями","Ежегодные занятия с водителями","2","Запланировано","","X","2024-02-14","2024-02-16",7,20,20,20,0,3,"","TCULEA","2023-03-17"]
[666,40057,77,{"$f":"COUNTIF(План_сводная!A$2:A$208,B39)","v":1},"ООО \"Газпром трансгаз Чайковский\"","Высота 1,2 группа 24ч.","(24ч) Обучение персонала безопасным методам и приемам выполнения работ на высоте \"Работники 1,2 групп по безопасности работ на в","2","Запланировано","","X","2024-02-19","2024-02-21",7,20,30,26,0,7,"","TCUPTV","2023-03-14"]
[662,40240,77,{"$f":"COUNTIF(План_сводная!A$2:A$208,B40)","v":1},"УПЦ ООО \"Газпром трансгаз Чайковский\"","Ежегодные занятия с водителями","Ежегодные занятия с водителями","2","Запланировано","","X","2024-02-19","2024-02-21",7,20,20,17,0,3,"","TCULEA","2023-03-17"]
[666,45042,86,{"$f":"COUNTIF(План_сводная!A$2:A$208,B41)","v":1},"Можгинское ЛПУМГ","Высота 1,2 группа 24ч.","(24ч) Обучение персонала безопасным методам и приемам выполнения работ на высоте \"Работники 1,2 групп по безопасности работ на в","2","Запланировано","","X","2024-02-26","2024-02-28",7,30,30,28,0,7,"","TCUPTV","2023-11-24"]
[661,40251,77,{"$f":"COUNTIF(План_сводная!A$2:A$208,B42)","v":1},"УПЦ ООО \"Газпром трансгаз Чайковский\"","Водители автомобилей, работ. на СПГ","Водители автомобилей, работающих на сжатом и сжиженном газе","2","Запланировано","","X","2024-02-26","2024-03-01",7,20,20,20,12,1,"","TCUPAA14","2023-05-04"]
[686,39989,77,{"$f":"COUNTIF(План_сводная!A$2:A$208,B43)","v":1},"ООО \"Газпром трансгаз Чайковский\"","Обслуживание и эксплуатация ТА","Обслуживание и эксплуатация трубопроводной арматуры","2","Запланировано","","X","2024-02-26","2024-03-01",7,20,20,16,2,0,"","TCUBIS02","2023-10-09"]
[21995,40041,77,{"$f":"COUNTIF(План_сводная!A$2:A$208,B44)","v":1},"ООО \"Газпром трансгаз Чайковский\"","СК объектов МГ Общие положения","Строительный контроль за качеством строительства, реконструкции и капитального ремонта объектов магистральных газопроводов ООО «","2","Запланировано","","","2024-02-26","2024-03-01",0,20,30,30,1,6,"","TCUDOV","2023-04-04"]
[11294,45080,77,{"$f":"COUNTIF(План_сводная!A$2:A$208,B45)","v":1},"ООО \"Газпром трансгаз Чайковский\"","СК инженерных систем","Строительный контроль за качеством строительства,реконструкции и капитального ремонта объектов ООО «Газпром трансгаз Чайковский»","2","Запланировано","","","2024-02-26","2024-03-01",7,30,30,4,0,2,"","TCUDOV","2023-11-30"]
[23805,44742,77,{"$f":"COUNTIF(План_сводная!A$2:A$208,B46)","v":1},"УПЦ ООО \"Газпром трансгаз Чайковский\"","Эксплуатация средств ПКЗ","Эксплуатация средств противокоррозионной защиты","2","Запланировано","","X","2024-02-26","2024-03-01",7,14,20,12,0,2,"","TCUKMG01","2023-11-01"]
[14027,39891,77,{"$f":"COUNTIF(План_сводная!A$2:A$208,B47)","v":1},"УПЦ ООО \"Газпром трансгаз Чайковский\"","Эксплуатация оборудования КИИ","Эксплуатация оборудования критической информационной инфраструктуры","2","Запланировано","","X","2024-02-28","2024-02-29",7,15,20,12,0,0,"","TCUKMG01","2023-11-01"]
[662,40241,77,{"$f":"COUNTIF(План_сводная!A$2:A$208,B48)","v":1},"УПЦ ООО \"Газпром трансгаз Чайковский\"","Ежегодные занятия с водителями","Ежегодные занятия с водителями","2","Запланировано","","X","2024-03-04","2024-03-06",7,20,20,19,0,3,"","TCULEA","2023-03-17"]
[17818,39907,77,{"$f":"COUNTIF(План_сводная!A$2:A$208,B49)","v":1},"ООО \"Газпром трансгаз Чайковский\"","Поведенческий аудит безопасности","Поведенческий аудит безопасности","2","Запланировано","","X","2024-03-04","2024-03-06",7,20,30,30,18,1,"","TCUPTV","2023-03-10"]
[666,39909,79,{"$f":"COUNTIF(План_сводная!A$2:A$208,B50)","v":1},"Алмазное ЛПУМГ","Высота 1,2 группа 24ч.","(24ч) Обучение персонала безопасным методам и приемам выполнения работ на высоте \"Работники 1,2 групп по безопасности работ на в","2","Запланировано","","X","2024-03-11","2024-03-13",7,20,30,16,0,7,"","TCUPTV","2023-03-10"]
[666,39908,86,{"$f":"COUNTIF(План_сводная!A$2:A$208,B51)","v":1},"Можгинское ЛПУМГ","Высота 1,2 группа 24ч.","(24ч) Обучение персонала безопасным методам и приемам выполнения работ на высоте \"Работники 1,2 групп по безопасности работ на в","2","Запланировано","","","2024-03-11","2024-03-13",7,20,30,14,1,7,"","TCUPTV","2023-03-10"]
[17254,40059,77,{"$f":"COUNTIF(План_сводная!A$2:A$208,B52)","v":1},"ООО \"Газпром трансгаз Чайковский\"","Работники 2,3 гр.ОЗП","Работники 2, 3 групп по безопасности работ в ограниченных и замкнутых пространствах»","2","Запланировано","","X","2024-03-11","2024-03-13",7,20,30,29,2,5,"","TCUPTV","2023-03-14"]
[659,40104,77,{"$f":"COUNTIF(План_сводная!A$2:A$208,B53)","v":1},"УПЦ ООО \"Газпром трансгаз Чайковский\"","Стропальщик 2см","Стропальщик 2см","2","Запланировано","","X","2024-03-11","2024-03-15",7,15,20,18,0,6,"","TCULNA1","2023-03-14"]
[701,40250,77,{"$f":"COUNTIF(План_сводная!A$2:A$208,B54)","v":1},"УПЦ ООО \"Газпром трансгаз Чайковский\"","Машинист бульдозера ПТК","Машинист бульдозера ПТК","2","Запланировано","","X","2024-03-11","2024-03-22",7,20,20,10,0,0,"","TCULEA","2023-03-17"]
[716,40111,77,{"$f":"COUNTIF(План_сводная!A$2:A$208,B55)","v":1},"УПЦ ООО \"Газпром трансгаз Чайковский\"","Слесарь-сантехник ПТК","Слесарь-сантехник ПТК","2","Запланировано","","X","2024-03-11","2024-03-22",7,15,20,18,0,7,"","TCULNA1","2023-03-14"]
[13745,39890,77,{"$f":"COUNTIF(План_сводная!A$2:A$208,B56)","v":1},"УПЦ ООО \"Газпром трансгаз Чайковский\"","Экспл. АТС Si-2000","Эксплуатация цифровой АТС Si-2000","2","Запланировано","","X","2024-03-11","2024-03-22",7,15,16,7,0,0,"","TCUKMG01","2023-03-06"]
[705,39991,77,{"$f":"COUNTIF(План_сводная!A$2:A$208,B57)","v":1},"ООО \"Газпром трансгаз Чайковский\"","Машинист ТК ПТК","Машинист технологических компрессоров ПТК","2","Запланировано","","X","2024-03-11","2024-03-29",7,15,20,17,0,9,"","TCUBIS02","2023-10-09"]
[761,39796,77,{"$f":"COUNTIF(План_сводная!A$2:A$208,B58)","v":1},"ООО \"Газпром трансгаз Чайковский\"","СП спец. свар. производства II-III ур.","Специальная подготовка специалистов сварочного производства II-III уровень","2","Запланировано","","X","2024-03-12","2024-03-15",7,20,20,14,0,0,"","TCUSAA17","2023-03-06"]
[13993,39763,77,{"$f":"COUNTIF(План_сводная!A$2:A$208,B59)","v":1},"УПЦ ООО \"Газпром трансгаз Чайковский\"","Обучение мерам ПБ отв. работников","Обучение мерам пожарной безопасности работников, ответственных за пожарную безопасность организации и проведение противопожарног","2","Запланировано","","X","2024-03-12","2024-03-19",7,20,30,26,2,2,"","TCULEA","2023-05-18"]
[666,39910,80,{"$f":"COUNTIF(План_сводная!A$2:A$208,B60)","v":1},"Бардымское ЛПУМГ","Высота 1,2 группа 24ч.","(24ч) Обучение персонала безопасным методам и приемам выполнения работ на высоте \"Работники 1,2 групп по безопасности работ на в","2","Запланировано","","X","2024-03-18","2024-03-20",7,20,30,9,0,7,"","TCUPTV","2023-03-10"]
[21995,45075,77,{"$f":"COUNTIF(План_сводная!A$2:A$208,B61)","v":0},"ООО \"Газпром трансгаз Чайковский\"","СК объектов МГ Общие положения","Строительный контроль за качеством строительства, реконструкции и капитального ремонта объектов магистральных газопроводов ООО «","2","Запланировано","","","2024-03-18","2024-03-22",7,30,30,0,0,6,"","TCUDOV","2023-12-11"]
[17299,40197,84,{"$f":"COUNTIF(План_сводная!A$2:A$208,B62)","v":1},"Гремячинское ЛПУМГ","Обучение высота 2,3 гр. ОЧНОЕ","Обучение руководителей и специалистов безопасным методам и приемам выполнения работ на высоте \"Работники 2, 3 групп по безопасно","2","Запланировано","","X","2024-03-18","2024-03-29",7,25,30,21,0,14,"","TCUPTV","2023-03-20"]
[17299,40198,83,{"$f":"COUNTIF(План_сводная!A$2:A$208,B63)","v":1},"Горнозаводское ЛПУМГ","Обучение высота 2,3 гр. ОЧНОЕ","Обучение руководителей и специалистов безопасным методам и приемам выполнения работ на высоте \"Работники 2, 3 групп по безопасно","2","Запланировано","","X","2024-03-18","2024-03-29",7,25,30,7,0,14,"","TCUPTV","2023-03-20"]
[22535,44695,77,{"$f":"COUNTIF(План_сводная!A$2:A$208,B64)","v":1},"УПЦ ООО \"Газпром трансгаз Чайковский\"","Оператор ГРС (без пов.р))","Оператор газораспределительной станции ПТК","2","Запланировано","","X","2024-03-18","2024-03-29",7,16,20,14,0,0,"","TCUSOI","2023-10-27"]
[718,39887,77,{"$f":"COUNTIF(План_сводная!A$2:A$208,B65)","v":1},"УПЦ ООО \"Газпром трансгаз Чайковский\"","Слесарь по КИПиА ПТК","Слесарь по контрольно-измерительным приборам и автоматике ПТК","2","Запланировано","","X","2024-03-18","2024-03-29",7,20,20,16,2,1,"","TCUKMG01","2023-03-06"]
[666,39911,84,{"$f":"COUNTIF(План_сводная!A$2:A$208,B66)","v":1},"Гремячинское ЛПУМГ","Высота 1,2 группа 24ч.","(24ч) Обучение персонала безопасным методам и приемам выполнения работ на высоте \"Работники 1,2 групп по безопасности работ на в","2","Запланировано","","X","2024-03-25","2024-03-27",7,20,30,23,0,7,"","TCUPTV","2023-03-10"]
[672,39988,77,{"$f":"COUNTIF(План_сводная!A$2:A$208,B67)","v":1},"ООО \"Газпром трансгаз Чайковский\"","Правила ПБ (сосуды под давлением)","Правила промышленной безопасности опасных производственных объектов, на которых используется оборудование, работающие под избыто","2","Запланировано","","X","2024-03-25","2024-03-28",7,20,20,20,6,6,"","TCUBIS02","2023-03-20"]
[17111,40262,77,{"$f":"COUNTIF(План_сводная!A$2:A$208,B68)","v":1},"УПЦ ООО \"Газпром трансгаз Чайковский\"","Водители, перевозящие ОГ баз.курс(повт.)","Повышение квалификации водителей, осуществляющих перевозки опасных грузов в соответствии с Cоглашением о международной дорожной","2","Запланировано","","X","2024-03-26","2024-03-27",7,20,20,6,0,1,"","TCUPAA14","2023-11-23"]
[761,39797,77,{"$f":"COUNTIF(План_сводная!A$2:A$208,B69)","v":1},"ООО \"Газпром трансгаз Чайковский\"","СП спец. свар. производства II-III ур.","Специальная подготовка специалистов сварочного производства II-III уровень","2","Запланировано","","X","2024-03-26","2024-03-29",7,20,20,14,0,0,"","TCUSAA17","2023-03-06"]
[738,40069,77,{"$f":"COUNTIF(План_сводная!A$2:A$208,B70)","v":1},"ООО \"Газпром трансгаз Чайковский\"","Безопасная эксплуатация ТЭУ","Безопасная эксплуатация объектов теплоснабжения и теплопотребляющих установок","2","Запланировано","","","2024-03-26","2024-04-03",7,20,20,18,0,1,"","TCUPTV","2023-03-14"]
[20144,44681,77,{"$f":"COUNTIF(План_сводная!A$2:A$208,B71)","v":1},"УПЦ ООО \"Газпром трансгаз Чайковский\"","Водители, перевозящие ОГ цистерн(повт.)","Повышение квалификации водителей, осуществляющих перевозки опасных грузов в соответствии с Cоглашением о международной дорожной","2","Запланировано","","X","2024-03-28","2024-03-28",7,7,20,5,0,0,"","TCUPAA14","2023-11-23"]
[666,39913,85,{"$f":"COUNTIF(План_сводная!A$2:A$208,B72)","v":1},"Кунгурское ЛПУМГ","Высота 1,2 группа 24ч.","(24ч) Обучение персонала безопасным методам и приемам выполнения работ на высоте \"Работники 1,2 групп по безопасности работ на в","2","Запланировано","","X","2024-04-01","2024-04-03",7,20,30,16,0,7,"","TCUPTV","2023-03-10"]
[17254,40073,77,{"$f":"COUNTIF(План_сводная!A$2:A$208,B73)","v":1},"ООО \"Газпром трансгаз Чайковский\"","Работники 2,3 гр.ОЗП","Работники 2, 3 групп по безопасности работ в ограниченных и замкнутых пространствах»","2","Запланировано","","X","2024-04-01","2024-04-03",7,20,30,30,4,5,"","TCUPTV","2023-03-14"]
[769,45003,77,{"$f":"COUNTIF(План_сводная!A$2:A$208,B74)","v":1},"УПЦ ООО \"Газпром трансгаз Чайковский\"","Специалисты по БДД","Подготовка специалистов по безопасности движения на автомобильном и городском электротранспорте","2","Запланировано","","X","2024-04-01","2024-04-05",7,30,30,16,0,2,"","TCUPAA14","2023-11-23"]
[17559,39995,77,{"$f":"COUNTIF(План_сводная!A$2:A$208,B75)","v":1},"ООО \"Газпром трансгаз Чайковский\"","Машинист ТК ПТК (без повышения разряда)","Машинист технологических компрессоров ПТК","2","Запланировано","","X","2024-04-01","2024-04-12",7,15,20,16,0,6,"","TCUBIS02","2023-10-09"]
[709,39893,77,{"$f":"COUNTIF(План_сводная!A$2:A$208,B76)","v":1},"УПЦ ООО \"Газпром трансгаз Чайковский\"","Монтер ЭХЗ ПТК","Монтер по защите подземных трубопроводов от коррозии ПТК","2","Запланировано","","X","2024-04-01","2024-04-12",7,20,20,15,0,1,"","TCUKMG01","2023-03-06"]
[17299,40199,82,{"$f":"COUNTIF(План_сводная!A$2:A$208,B77)","v":1},"Воткинское ЛПУМГ","Обучение высота 2,3 гр. ОЧНОЕ","Обучение руководителей и специалистов безопасным методам и приемам выполнения работ на высоте \"Работники 2, 3 групп по безопасно","2","Запланировано","","X","2024-04-01","2024-04-12",7,25,30,14,0,14,"","TCUPTV","2023-03-20"]
[22535,44696,77,{"$f":"COUNTIF(План_сводная!A$2:A$208,B78)","v":1},"УПЦ ООО \"Газпром трансгаз Чайковский\"","Оператор ГРС (без пов.р))","Оператор газораспределительной станции ПТК","2","Запланировано","","X","2024-04-01","2024-04-12",7,16,20,16,0,0,"","TCUSOI","2023-10-27"]
[16207,39918,77,{"$f":"COUNTIF(План_сводная!A$2:A$208,B79)","v":1},"ООО \"Газпром трансгаз Чайковский\"","Требования промышленной безопасности","Требования промышленной безопасности","2","Запланировано","","","2024-04-01","2024-04-19",7,30,30,30,0,15,"","TCUPTV","2023-03-10"]
[735,40075,77,{"$f":"COUNTIF(План_сводная!A$2:A$208,B80)","v":1},"ООО \"Газпром трансгаз Чайковский\"","Безопасная эксплуатация электрохозяйства","Безопасная эксплуатация объектов электрохозяйства","2","Запланировано","","","2024-04-02","2024-04-10",7,20,20,17,0,0,"","TCUDOV","2023-10-26"]
[666,39914,82,{"$f":"COUNTIF(План_сводная!A$2:A$208,B81)","v":1},"Воткинское ЛПУМГ","Высота 1,2 группа 24ч.","(24ч) Обучение персонала безопасным методам и приемам выполнения работ на высоте \"Работники 1,2 групп по безопасности работ на в","2","Запланировано","","X","2024-04-08","2024-04-10",7,20,30,14,0,7,"","TCUPTV","2023-03-10"]
[17255,40139,77,{"$f":"COUNTIF(План_сводная!A$2:A$208,B82)","v":1},"ООО \"Газпром трансгаз Чайковский\"","Работники 1,2 гр.ОЗП","Работники 1, 2 групп по безопасности работ в ограниченных и замкнутых пространствах»","2","Запланировано","","X","2024-04-08","2024-04-10",7,15,22,14,7,5,"","TCUDOV","2023-03-14"]
[659,40105,77,{"$f":"COUNTIF(План_сводная!A$2:A$208,B83)","v":1},"УПЦ ООО \"Газпром трансгаз Чайковский\"","Стропальщик 2см","Стропальщик 2см","2","Запланировано","","X","2024-04-08","2024-04-12",7,15,20,17,0,6,"","TCULNA1","2023-03-14"]
[17299,40200,86,{"$f":"COUNTIF(План_сводная!A$2:A$208,B84)","v":1},"Можгинское ЛПУМГ","Обучение высота 2,3 гр. ОЧНОЕ","Обучение руководителей и специалистов безопасным методам и приемам выполнения работ на высоте \"Работники 2, 3 групп по безопасно","2","Запланировано","","X","2024-04-08","2024-04-19",7,25,30,26,0,14,"","TCUPTV","2023-03-20"]
[11288,39999,77,{"$f":"COUNTIF(План_сводная!A$2:A$208,B85)","v":1},"ООО \"Газпром трансгаз Чайковский\"","Треб. ПБ к оборудованию под давлением","Требования промышленной безопасности к оборудованию, работающему под давлением","2","Запланировано","","X","2024-04-08","2024-04-19",7,30,30,17,0,0,"","TCUBIS02","2023-03-20"]
[17111,40263,77,{"$f":"COUNTIF(План_сводная!A$2:A$208,B86)","v":1},"УПЦ ООО \"Газпром трансгаз Чайковский\"","Водители, перевозящие ОГ баз.курс(повт.)","Повышение квалификации водителей, осуществляющих перевозки опасных грузов в соответствии с Cоглашением о международной дорожной","2","Запланировано","","X","2024-04-09","2024-04-10",7,20,20,5,0,1,"","TCUPAA14","2023-11-23"]
[735,40077,77,{"$f":"COUNTIF(План_сводная!A$2:A$208,B87)","v":1},"ООО \"Газпром трансгаз Чайковский\"","Безопасная эксплуатация электрохозяйства","Безопасная эксплуатация объектов электрохозяйства","2","Запланировано","","","2024-04-09","2024-04-17",7,20,20,14,0,0,"","TCUDOV","2023-10-26"]
[674,39788,77,{"$f":"COUNTIF(План_сводная!A$2:A$208,B88)","v":1},"ООО \"Газпром трансгаз Чайковский\"","Подготовка к аттест.электрогазосварщиков","Подготовка к аттестации электрогазосварщиков на право выполнения сварочных и наплавочных работ при строительстве, изготовлении,","2","Запланировано","","X","2024-04-09","2024-04-18",7,20,20,11,0,1,"","TCUSAA17","2023-03-06"]
[20144,44682,77,{"$f":"COUNTIF(План_сводная!A$2:A$208,B89)","v":1},"УПЦ ООО \"Газпром трансгаз Чайковский\"","Водители, перевозящие ОГ цистерн(повт.)","Повышение квалификации водителей, осуществляющих перевозки опасных грузов в соответствии с Cоглашением о международной дорожной","2","Запланировано","","X","2024-04-11","2024-04-11",7,7,20,5,0,0,"","TCUPAA14","2023-11-23"]
[666,39916,84,{"$f":"COUNTIF(План_сводная!A$2:A$208,B90)","v":1},"Гремячинское ЛПУМГ","Высота 1,2 группа 24ч.","(24ч) Обучение персонала безопасным методам и приемам выполнения работ на высоте \"Работники 1,2 групп по безопасности работ на в","2","Запланировано","","X","2024-04-15","2024-04-17",7,20,30,20,0,7,"","TCUPTV","2023-03-10"]
[22476,40345,77,{"$f":"COUNTIF(План_сводная!A$2:A$208,B91)","v":1},"ООО \"Газпром трансгаз Чайковский\"","Без.провед. огневых работ (1,2 группа)","Безопасное проведение огневых работ на газовых объектах магистральных газопроводов (1,2 группы допуска)","2","Запланировано","","X","2024-04-15","2024-04-17",0,25,25,10,0,0,"","TCUPTV","2023-03-31"]
[17559,39996,77,{"$f":"COUNTIF(План_сводная!A$2:A$208,B92)","v":1},"ООО \"Газпром трансгаз Чайковский\"","Машинист ТК ПТК (без повышения разряда)","Машинист технологических компрессоров ПТК","2","Запланировано","","X","2024-04-15","2024-04-26",7,15,20,18,0,6,"","TCUBIS02","2023-10-09"]
[17299,40301,77,{"$f":"COUNTIF(План_сводная!A$2:A$208,B93)","v":1},"ООО \"Газпром трансгаз Чайковский\"","Обучение высота 2,3 гр. ОЧНОЕ","Обучение руководителей и специалистов безопасным методам и приемам выполнения работ на высоте \"Работники 2, 3 групп по безопасно","2","Запланировано","","X","2024-04-15","2024-04-26",7,25,30,12,0,14,"","TCUPTV","2023-03-20"]
[727,39894,77,{"$f":"COUNTIF(План_сводная!A$2:A$208,B94)","v":1},"УПЦ ООО \"Газпром трансгаз Чайковский\"","Электромонтер по ремонту ЛЭП ПТК","Электромонтер по ремонту воздушных линий электропередачи ПТК","2","Запланировано","","X","2024-04-15","2024-04-26",7,20,20,14,0,0,"","TCUKMG01","2023-03-06"]
[729,40152,77,{"$f":"COUNTIF(План_сводная!A$2:A$208,B95)","v":1},"УПЦ ООО \"Газпром трансгаз Чайковский\"","Электромонтер по рем. электрооборуд. ПТК","Электромонтер по ремонту и обслуживанию электрооборудования ПТК","2","Запланировано","","X","2024-04-15","2024-04-26",7,15,20,19,0,1,"","TCULNA1","2023-11-07"]
[668,40256,77,{"$f":"COUNTIF(План_сводная!A$2:A$208,B96)","v":1},"УПЦ ООО \"Газпром трансгаз Чайковский\"","Машинист кранов мост. типа, упр. с пола","Обучение машинистов кранов мостового типа, консольных кранов и электрических талей грузоподъемностью до 10т. включительно, управ","2","Запланировано","","X","2024-04-16","2024-04-18",7,20,20,20,3,0,"","TCUPAA14","2023-10-27"]
[738,40071,77,{"$f":"COUNTIF(План_сводная!A$2:A$208,B97)","v":1},"ООО \"Газпром трансгаз Чайковский\"","Безопасная эксплуатация ТЭУ","Безопасная эксплуатация объектов теплоснабжения и теплопотребляющих установок","2","Запланировано","","","2024-04-16","2024-04-24",7,20,20,16,0,1,"","TCUPTV","2023-03-14"]
[676,40021,77,{"$f":"COUNTIF(План_сводная!A$2:A$208,B98)","v":1},"УПЦ ООО \"Газпром трансгаз Чайковский\"","Запуск и прием ВТУ","Технология и безопасное проведение работ по запуску и приему ВТУ в в рабочей среде на камерах запуска-приема со всеми видами зат","2","Запланировано","","X","2024-04-17","2024-04-18",7,16,20,18,0,2,"","TCUSOI","2023-03-14"]
[13993,44170,77,{"$f":"COUNTIF(План_сводная!A$2:A$208,B99)","v":1},"УПЦ ООО \"Газпром трансгаз Чайковский\"","Обучение мерам ПБ отв. работников","Обучение мерам пожарной безопасности работников, ответственных за пожарную безопасность организации и проведение противопожарног","2","Запланировано","","X","2024-04-18","2024-04-25",7,20,30,23,0,2,"","TCULEA","2023-10-13"]
[666,39915,85,{"$f":"COUNTIF(План_сводная!A$2:A$208,B100)","v":1},"Кунгурское ЛПУМГ","Высота 1,2 группа 24ч.","(24ч) Обучение персонала безопасным методам и приемам выполнения работ на высоте \"Работники 1,2 групп по безопасности работ на в","2","Запланировано","","X","2024-04-22","2024-04-24",7,20,30,13,0,7,"","TCUPTV","2023-03-10"]
[666,39917,88,{"$f":"COUNTIF(План_сводная!A$2:A$208,B101)","v":1},"Пермское ЛПУМГ","Высота 1,2 группа 24ч.","(24ч) Обучение персонала безопасным методам и приемам выполнения работ на высоте \"Работники 1,2 групп по безопасности работ на в","2","Запланировано","","X","2024-04-22","2024-04-24",7,20,30,11,0,7,"","TCUPTV","2023-03-10"]
[11290,40261,77,{"$f":"COUNTIF(План_сводная!A$2:A$208,B102)","v":1},"УПЦ ООО \"Газпром трансгаз Чайковский\"","Требования ПБ к подъемным сооружениям","Требования промышленной безопасности к подъемным сооружениям","2","Запланировано","","X","2024-04-22","2024-04-25",7,20,20,18,0,2,"","TCUPAA14","2023-10-27"]
[21995,40126,77,{"$f":"COUNTIF(План_сводная!A$2:A$208,B103)","v":1},"ООО \"Газпром трансгаз Чайковский\"","СК объектов МГ Общие положения","Строительный контроль за качеством строительства, реконструкции и капитального ремонта объектов магистральных газопроводов ООО «","2","Запланировано","","","2024-04-22","2024-04-26",7,15,30,30,15,6,"","TCUDOV","2023-03-14"]
[20123,40064,77,{"$f":"COUNTIF(План_сводная!A$2:A$208,B104)","v":1},"УПЦ ООО \"Газпром трансгаз Чайковский\"","Трубопроводчик линейный ПТК(без пов.раз)","Трубопроводчик линейный ПТК","2","Запланировано","","X","2024-04-22","2024-04-26",7,16,20,16,0,0,"","TCUSOI","2023-03-14"]
[666,39919,83,{"$f":"COUNTIF(План_сводная!A$2:A$208,B105)","v":0},"Горнозаводское ЛПУМГ","Высота 1,2 группа 24ч.","(24ч) Обучение персонала безопасным методам и приемам выполнения работ на высоте \"Работники 1,2 групп по безопасности работ на в","2","Запланировано","","X","2024-05-13","2024-05-15",7,20,30,0,0,7,"","TCUPTV","2023-03-10"]
[722,40149,77,{"$f":"COUNTIF(План_сводная!A$2:A$208,B106)","v":1},"УПЦ ООО \"Газпром трансгаз Чайковский\"","Стропальщик ПТК","Стропальщик ПТК","2","Запланировано","","X","2024-05-13","2024-05-17",7,15,20,19,6,0,"","TCULNA1","2023-03-15"]
[17299,44948,77,{"$f":"COUNTIF(План_сводная!A$2:A$208,B107)","v":1},"ООО \"Газпром трансгаз Чайковский\"","Обучение высота 2,3 гр. ОЧНОЕ","Обучение руководителей и специалистов безопасным методам и приемам выполнения работ на высоте \"Работники 2, 3 групп по безопасно","2","Запланировано","","X","2024-05-13","2024-05-24",7,30,30,10,0,14,"","TCUDOV","2023-11-29"]
[730,39895,77,{"$f":"COUNTIF(План_сводная!A$2:A$208,B108)","v":1},"УПЦ ООО \"Газпром трансгаз Чайковский\"","Эл.монтер станц.оборуд. телеф. связи ПТК","Электромонтер станционного оборудования телефонной связи ПТК","2","Запланировано","","X","2024-05-13","2024-05-24",7,20,20,11,0,2,"","TCUKMG01","2023-03-06"]
[717,40060,77,{"$f":"COUNTIF(План_сводная!A$2:A$208,B109)","v":1},"УПЦ ООО \"Газпром трансгаз Чайковский\"","Слесарь по ЭРГО ПТК","Слесарь по эксплуатации и ремонту газового оборудования ПТК","2","Запланировано","","X","2024-05-13","2024-05-31",7,10,20,11,0,0,"","TCUSOI","2023-03-14"]
[621,39985,77,{"$f":"COUNTIF(План_сводная!A$2:A$208,B110)","v":1},"ООО \"Газпром трансгаз Чайковский\"","Машинист ТК КПП","Машинист технологических компрессоров КПП","2","Запланировано","","X","2024-05-13","2024-06-07",7,15,20,5,0,0,"","TCUBIS02","2023-10-16"]
[22452,39761,77,{"$f":"COUNTIF(План_сводная!A$2:A$208,B111)","v":0},"УПЦ ООО \"Газпром трансгаз Чайковский\"","Менеджмент качества","Функционирование системы менеджмента качества","2","Запланировано","","X","2024-05-14","2024-05-15",7,20,30,20,4,3,"","TCULEA","2023-10-17"]
[735,40079,77,{"$f":"COUNTIF(План_сводная!A$2:A$208,B112)","v":1},"ООО \"Газпром трансгаз Чайковский\"","Безопасная эксплуатация электрохозяйства","Безопасная эксплуатация объектов электрохозяйства","2","Запланировано","","","2024-05-14","2024-05-22",7,20,20,14,0,0,"","TCUDOV","2023-10-26"]
[17255,40140,77,{"$f":"COUNTIF(План_сводная!A$2:A$208,B113)","v":1},"ООО \"Газпром трансгаз Чайковский\"","Работники 1,2 гр.ОЗП","Работники 1, 2 групп по безопасности работ в ограниченных и замкнутых пространствах»","2","Запланировано","","X","2024-05-15","2024-05-17",7,15,22,8,7,5,"","TCUDOV","2023-03-14"]
[13993,39764,77,{"$f":"COUNTIF(План_сводная!A$2:A$208,B114)","v":1},"УПЦ ООО \"Газпром трансгаз Чайковский\"","Обучение мерам ПБ отв. работников","Обучение мерам пожарной безопасности работников, ответственных за пожарную безопасность организации и проведение противопожарног","2","Запланировано","","X","2024-05-16","2024-05-23",7,20,30,18,0,2,"","TCULEA","2023-11-07"]
[666,39920,89,{"$f":"COUNTIF(План_сводная!A$2:A$208,B115)","v":1},"Увинское ЛПУМГ","Высота 1,2 группа 24ч.","(24ч) Обучение персонала безопасным методам и приемам выполнения работ на высоте \"Работники 1,2 групп по безопасности работ на в","2","Запланировано","","X","2024-05-20","2024-05-22",7,20,30,11,0,7,"","TCUPTV","2023-03-10"]
[662,40245,77,{"$f":"COUNTIF(План_сводная!A$2:A$208,B116)","v":1},"УПЦ ООО \"Газпром трансгаз Чайковский\"","Ежегодные занятия с водителями","Ежегодные занятия с водителями","2","Запланировано","","X","2024-05-20","2024-05-22",7,20,20,7,0,3,"","TCULEA","2023-03-17"]
[13747,40000,77,{"$f":"COUNTIF(План_сводная!A$2:A$208,B117)","v":1},"ООО \"Газпром трансгаз Чайковский\"","Обслуживание и эксплуатация трубопроводн","Обслуживание и эксплуатация трубопроводной арматуры","2","Запланировано","","X","2024-05-20","2024-05-24",7,20,21,19,2,1,"","TCUBIS02","2023-10-18"]
[658,40102,77,{"$f":"COUNTIF(План_сводная!A$2:A$208,B118)","v":1},"УПЦ ООО \"Газпром трансгаз Чайковский\"","Оператор котельной 2см","Оператор котельной 2см","2","Запланировано","","X","2024-05-21","2024-06-07",7,15,20,19,0,0,"","TCULNA1","2023-03-14"]
[662,40246,77,{"$f":"COUNTIF(План_сводная!A$2:A$208,B119)","v":0},"УПЦ ООО \"Газпром трансгаз Чайковский\"","Ежегодные занятия с водителями","Ежегодные занятия с водителями","2","Запланировано","","X","2024-05-22","2024-05-24",7,20,20,0,0,3,"","TCULEA","2023-03-17"]
[17255,40141,77,{"$f":"COUNTIF(План_сводная!A$2:A$208,B120)","v":1},"ООО \"Газпром трансгаз Чайковский\"","Работники 1,2 гр.ОЗП","Работники 1, 2 групп по безопасности работ в ограниченных и замкнутых пространствах»","2","Запланировано","","X","2024-05-22","2024-05-24",7,15,22,22,4,5,"","TCUDOV","2023-03-14"]
[11279,40127,77,{"$f":"COUNTIF(План_сводная!A$2:A$208,B121)","v":1},"ООО \"Газпром трансгаз Чайковский\"","СК сварочно-монтаж. работы","Строительный контроль за качеством строительства, реконструкции и капитального ремонта объектов ООО «Газпром трансгаз Чайковский","2","Запланировано","","","2024-05-23","2024-05-31",7,30,30,29,0,1,"","TCUDOV","2023-03-14"]
[666,39921,93,{"$f":"COUNTIF(План_сводная!A$2:A$208,B122)","v":1},"УАВР №2","Высота 1,2 группа 24ч.","(24ч) Обучение персонала безопасным методам и приемам выполнения работ на высоте \"Работники 1,2 групп по безопасности работ на в","2","Запланировано","","X","2024-05-27","2024-05-29",7,20,30,11,0,7,"","TCUPTV","2023-03-10"]
[661,40252,77,{"$f":"COUNTIF(План_сводная!A$2:A$208,B123)","v":1},"УПЦ ООО \"Газпром трансгаз Чайковский\"","Водители автомобилей, работ. на СПГ","Водители автомобилей, работающих на сжатом и сжиженном газе","2","Запланировано","","X","2024-05-27","2024-05-31",7,20,20,20,0,1,"","TCULEA","2023-03-17"]
[735,40080,77,{"$f":"COUNTIF(План_сводная!A$2:A$208,B124)","v":1},"ООО \"Газпром трансгаз Чайковский\"","Безопасная эксплуатация электрохозяйства","Безопасная эксплуатация объектов электрохозяйства","2","Запланировано","","","2024-05-28","2024-06-05",7,20,20,17,0,0,"","TCUDOV","2023-11-16"]
[674,39789,77,{"$f":"COUNTIF(План_сводная!A$2:A$208,B125)","v":1},"ООО \"Газпром трансгаз Чайковский\"","Подготовка к аттест.электрогазосварщиков","Подготовка к аттестации электрогазосварщиков на право выполнения сварочных и наплавочных работ при строительстве, изготовлении,","2","Запланировано","","X","2024-05-28","2024-06-06",7,20,20,10,0,1,"","TCUSAA17","2023-03-30"]
[662,40243,77,{"$f":"COUNTIF(План_сводная!A$2:A$208,B126)","v":1},"УПЦ ООО \"Газпром трансгаз Чайковский\"","Ежегодные занятия с водителями","Ежегодные занятия с водителями","2","Запланировано","","X","2024-06-03","2024-06-05",7,20,20,15,0,3,"","TCUPAA14","2023-10-27"]
[17818,39924,77,{"$f":"COUNTIF(План_сводная!A$2:A$208,B127)","v":1},"ООО \"Газпром трансгаз Чайковский\"","Поведенческий аудит безопасности","Поведенческий аудит безопасности","2","Запланировано","","X","2024-06-03","2024-06-05",7,20,30,30,12,1,"","TCUPTV","2023-03-10"]
[669,40082,77,{"$f":"COUNTIF(План_сводная!A$2:A$208,B128)","v":1},"ООО \"Газпром трансгаз Чайковский\"","Высота 1,2 группа 32ч.","(32ч) Обучение персонала безопасным методам и приемам выполнения работ на высоте \"Работники 1,2 групп по безопасности работ на в","2","Запланировано","","X","2024-06-03","2024-06-06",7,20,20,20,1,4,"","TCUDOV","2023-11-16"]
[729,40153,77,{"$f":"COUNTIF(План_сводная!A$2:A$208,B129)","v":1},"УПЦ ООО \"Газпром трансгаз Чайковский\"","Электромонтер по рем. электрооборуд. ПТК","Электромонтер по ремонту и обслуживанию электрооборудования ПТК","2","Запланировано","","X","2024-06-03","2024-06-17",7,20,20,19,0,1,"","TCULNA1","2023-03-15"]
[16363,40078,77,{"$f":"COUNTIF(План_сводная!A$2:A$208,B130)","v":1},"УПЦ ООО \"Газпром трансгаз Чайковский\"","Камеры приема-запуска ВТУ","Эксплуатация и ТОиР камер приема-запуска ВТУ со всеми видами затворов и безопасное производство работ по запуску и приему ВТУ в","2","Запланировано","","X","2024-06-04","2024-06-05",7,10,20,14,0,4,"","TCUSOI","2023-03-14"]
[662,40244,77,{"$f":"COUNTIF(План_сводная!A$2:A$208,B131)","v":1},"УПЦ ООО \"Газпром трансгаз Чайковский\"","Ежегодные занятия с водителями","Ежегодные занятия с водителями","2","Запланировано","","X","2024-06-05","2024-06-07",7,20,20,11,0,3,"","TCUPAA14","2023-10-27"]
[17255,40142,77,{"$f":"COUNTIF(План_сводная!A$2:A$208,B132)","v":1},"ООО \"Газпром трансгаз Чайковский\"","Работники 1,2 гр.ОЗП","Работники 1, 2 групп по безопасности работ в ограниченных и замкнутых пространствах»","2","Запланировано","","X","2024-06-05","2024-06-07",7,15,22,21,5,5,"","TCUDOV","2023-03-14"]
[676,40022,77,{"$f":"COUNTIF(План_сводная!A$2:A$208,B133)","v":1},"УПЦ ООО \"Газпром трансгаз Чайковский\"","Запуск и прием ВТУ","Технология и безопасное проведение работ по запуску и приему ВТУ в в рабочей среде на камерах запуска-приема со всеми видами зат","2","Запланировано","","X","2024-06-06","2024-06-07",7,16,20,17,0,2,"","TCUSOI","2023-03-14"]
[756,35273,77,{"$f":"COUNTIF(План_сводная!A$2:A$208,B134)","v":0},"УПЦ ООО \"Газпром трансгаз Чайковский\"","Экологический менеджмент 16ч","Функционирование системы экологического менеджмента ПАО Газпром в соответствии с требованиями ISO14001:2015","2","Запланировано","","X","2024-06-06","2024-06-07",7,20,30,28,0,3,"","TCULEA","2023-03-14"]
[17254,40083,77,{"$f":"COUNTIF(План_сводная!A$2:A$208,B135)","v":1},"ООО \"Газпром трансгаз Чайковский\"","Работники 2,3 гр.ОЗП","Работники 2, 3 групп по безопасности работ в ограниченных и замкнутых пространствах»","2","Запланировано","","X","2024-06-17","2024-06-19",7,20,30,23,2,5,"","TCUPTV","2023-03-14"]
[760,40128,77,{"$f":"COUNTIF(План_сводная!A$2:A$208,B136)","v":1},"ООО \"Газпром трансгаз Чайковский\"","СК Строит.монт.работы","Строительный контроль за качеством строительства, реконструкции и капитального ремонта объектов ООО «Газпром трансгаз Чайковский","2","Запланировано","","","2024-06-17","2024-06-21",7,15,30,30,0,3,"","TCUDOV","2023-11-16"]
[17559,39997,77,{"$f":"COUNTIF(План_сводная!A$2:A$208,B137)","v":1},"ООО \"Газпром трансгаз Чайковский\"","Машинист ТК ПТК (без повышения разряда)","Машинист технологических компрессоров ПТК","2","Запланировано","","X","2024-06-17","2024-06-28",7,15,20,16,0,6,"","TCUBIS02","2023-10-16"]
[622,40247,77,{"$f":"COUNTIF(План_сводная!A$2:A$208,B138)","v":1},"УПЦ ООО \"Газпром трансгаз Чайковский\"","Машинист трубоукладчика КПП","Машинист трубоукладчика КПП","2","Запланировано","","X","2024-06-17","2024-07-05",7,20,20,7,0,0,"","TCUPAA14","2023-10-27"]
[674,39790,77,{"$f":"COUNTIF(План_сводная!A$2:A$208,B139)","v":1},"ООО \"Газпром трансгаз Чайковский\"","Подготовка к аттест.электрогазосварщиков","Подготовка к аттестации электрогазосварщиков на право выполнения сварочных и наплавочных работ при строительстве, изготовлении,","2","Запланировано","","X","2024-06-18","2024-06-27",7,20,20,10,0,1,"","TCUSAA17","2023-03-30"]
[713,40108,77,{"$f":"COUNTIF(План_сводная!A$2:A$208,B140)","v":1},"УПЦ ООО \"Газпром трансгаз Чайковский\"","Оператор котельной ПТК","Оператор котельной ПТК","2","Запланировано","","","2024-06-18","2024-07-04",7,15,20,12,0,0,"","TCULNA1","2023-03-14"]
[22072,40129,77,{"$f":"COUNTIF(План_сводная!A$2:A$208,B141)","v":1},"ООО \"Газпром трансгаз Чайковский\"","СК Общестроительные работы","Строительный контроль за качеством строительства, реконструкции и капитального ремонта объектов ООО «Газпром трансгаз Чайковский","2","Запланировано","","","2024-07-01","2024-07-05",7,15,30,13,0,11,"","TCUDOV","2023-03-14"]
[674,39791,77,{"$f":"COUNTIF(План_сводная!A$2:A$208,B142)","v":1},"ООО \"Газпром трансгаз Чайковский\"","Подготовка к аттест.электрогазосварщиков","Подготовка к аттестации электрогазосварщиков на право выполнения сварочных и наплавочных работ при строительстве, изготовлении,","2","Запланировано","","X","2024-07-09","2024-07-18",7,20,20,12,0,1,"","TCUSAA17","2023-03-30"]
[716,40112,77,{"$f":"COUNTIF(План_сводная!A$2:A$208,B143)","v":1},"УПЦ ООО \"Газпром трансгаз Чайковский\"","Слесарь-сантехник ПТК","Слесарь-сантехник ПТК","2","Запланировано","","X","2024-08-12","2024-08-23",7,15,20,12,0,7,"","TCULNA1","2023-11-07"]
[17255,40143,77,{"$f":"COUNTIF(План_сводная!A$2:A$208,B144)","v":1},"ООО \"Газпром трансгаз Чайковский\"","Работники 1,2 гр.ОЗП","Работники 1, 2 групп по безопасности работ в ограниченных и замкнутых пространствах»","2","Запланировано","","X","2024-08-14","2024-08-16",7,15,22,19,0,5,"","TCUDOV","2023-10-26"]
[17255,40144,77,{"$f":"COUNTIF(План_сводная!A$2:A$208,B145)","v":1},"ООО \"Газпром трансгаз Чайковский\"","Работники 1,2 гр.ОЗП","Работники 1, 2 групп по безопасности работ в ограниченных и замкнутых пространствах»","2","Запланировано","","X","2024-08-19","2024-08-21",7,15,22,20,0,5,"","TCUDOV","2023-03-14"]
[649,39897,77,{"$f":"COUNTIF(План_сводная!A$2:A$208,B146)","v":1},"УПЦ ООО \"Газпром трансгаз Чайковский\"","Орг. тех. экспуат. цифровых систем связи","Организация технической экспуатации цифровых систем связи","2","Запланировано","","X","2024-09-02","2024-09-06",7,15,20,12,0,0,"","TCUKMG01","2023-11-01"]
[718,39888,77,{"$f":"COUNTIF(План_сводная!A$2:A$208,B147)","v":1},"УПЦ ООО \"Газпром трансгаз Чайковский\"","Слесарь по КИПиА ПТК","Слесарь по контрольно-измерительным приборам и автоматике ПТК","2","Запланировано","","X","2024-09-02","2024-09-13",7,20,20,18,0,1,"","TCUKMG01","2023-03-06"]
[673,40016,77,{"$f":"COUNTIF(План_сводная!A$2:A$208,B148)","v":1},"УПЦ ООО \"Газпром трансгаз Чайковский\"","Рабочие люльки","Рабочий люльки по управлению подъемником (вышкой) из люльки","2","Запланировано","","X","2024-09-03","2024-09-05",7,14,30,14,0,1,"","TCUSOI","2023-03-14"]
[17255,40145,77,{"$f":"COUNTIF(План_сводная!A$2:A$208,B149)","v":1},"ООО \"Газпром трансгаз Чайковский\"","Работники 1,2 гр.ОЗП","Работники 1, 2 групп по безопасности работ в ограниченных и замкнутых пространствах»","2","Запланировано","","X","2024-09-04","2024-09-06",7,15,22,19,4,5,"","TCUDOV","2023-03-14"]
[23674,44684,77,{"$f":"COUNTIF(План_сводная!A$2:A$208,B150)","v":1},"УПЦ ООО \"Газпром трансгаз Чайковский\"","Защитное вождение","Защитное вождение","2","Запланировано","","X","2024-09-05","2024-09-06",0,30,9999,35,0,0,"","TCUPAA14","2023-10-27"]
[23674,44685,77,{"$f":"COUNTIF(План_сводная!A$2:A$208,B151)","v":1},"УПЦ ООО \"Газпром трансгаз Чайковский\"","Защитное вождение","Защитное вождение","2","Запланировано","","X","2024-09-09","2024-09-10",0,30,30,30,0,0,"","TCUPAA14","2023-10-27"]
[666,39975,83,{"$f":"COUNTIF(План_сводная!A$2:A$208,B152)","v":1},"Горнозаводское ЛПУМГ","Высота 1,2 группа 24ч.","(24ч) Обучение персонала безопасным методам и приемам выполнения работ на высоте \"Работники 1,2 групп по безопасности работ на в","2","Запланировано","","X","2024-09-09","2024-09-11",7,20,30,30,0,7,"","TCUPTV","2023-03-13"]
[666,40087,77,{"$f":"COUNTIF(План_сводная!A$2:A$208,B153)","v":1},"ООО \"Газпром трансгаз Чайковский\"","Высота 1,2 группа 24ч.","(24ч) Обучение персонала безопасным методам и приемам выполнения работ на высоте \"Работники 1,2 групп по безопасности работ на в","2","Запланировано","","X","2024-09-09","2024-09-11",7,20,30,19,0,7,"","TCUPTV","2023-03-14"]
[21995,40130,77,{"$f":"COUNTIF(План_сводная!A$2:A$208,B154)","v":1},"ООО \"Газпром трансгаз Чайковский\"","СК объектов МГ Общие положения","Строительный контроль за качеством строительства, реконструкции и капитального ремонта объектов магистральных газопроводов ООО «","2","Запланировано","","","2024-09-09","2024-09-13",7,15,30,28,28,6,"","TCUDOV","2023-03-14"]
[20123,40070,77,{"$f":"COUNTIF(План_сводная!A$2:A$208,B155)","v":1},"УПЦ ООО \"Газпром трансгаз Чайковский\"","Трубопроводчик линейный ПТК(без пов.раз)","Трубопроводчик линейный ПТК","2","Запланировано","","X","2024-09-09","2024-09-13",7,16,20,12,0,0,"","TCUSOI","2023-03-14"]
[17299,40302,77,{"$f":"COUNTIF(План_сводная!A$2:A$208,B156)","v":1},"ООО \"Газпром трансгаз Чайковский\"","Обучение высота 2,3 гр. ОЧНОЕ","Обучение руководителей и специалистов безопасным методам и приемам выполнения работ на высоте \"Работники 2, 3 групп по безопасно","2","Запланировано","","X","2024-09-09","2024-09-20",7,25,30,5,0,14,"","TCUPTV","2023-03-20"]
[725,39794,77,{"$f":"COUNTIF(План_сводная!A$2:A$208,B157)","v":1},"ООО \"Газпром трансгаз Чайковский\"","Сварщик РД сварки плав.покр.электр. ПТК","Сварщик ручной дуговой сварки плавящимся покрытым электродом ПТК","2","Запланировано","","X","2024-09-09","2024-09-20",7,20,20,3,0,0,"","TCUSAA17","2023-03-06"]
[16207,40026,77,{"$f":"COUNTIF(План_сводная!A$2:A$208,B158)","v":1},"ООО \"Газпром трансгаз Чайковский\"","Требования промышленной безопасности","Требования промышленной безопасности","2","Запланировано","","","2024-09-09","2024-09-27",7,30,30,19,0,15,"","TCUPTV","2023-03-13"]
[17255,40146,77,{"$f":"COUNTIF(План_сводная!A$2:A$208,B159)","v":1},"ООО \"Газпром трансгаз Чайковский\"","Работники 1,2 гр.ОЗП","Работники 1, 2 групп по безопасности работ в ограниченных и замкнутых пространствах»","2","Запланировано","","X","2024-09-11","2024-09-13",7,15,22,15,3,5,"","TCUDOV","2023-03-14"]
[23674,44686,77,{"$f":"COUNTIF(План_сводная!A$2:A$208,B160)","v":1},"УПЦ ООО \"Газпром трансгаз Чайковский\"","Защитное вождение","Защитное вождение","2","Запланировано","","X","2024-09-12","2024-09-13",0,30,9999,30,0,0,"","TCUPAA14","2023-10-27"]
[23674,44687,77,{"$f":"COUNTIF(План_сводная!A$2:A$208,B161)","v":1},"УПЦ ООО \"Газпром трансгаз Чайковский\"","Защитное вождение","Защитное вождение","2","Запланировано","","X","2024-09-16","2024-09-17",0,30,9999,32,0,0,"","TCUPAA14","2023-10-27"]
[686,39990,77,{"$f":"COUNTIF(План_сводная!A$2:A$208,B162)","v":1},"ООО \"Газпром трансгаз Чайковский\"","Обслуживание и эксплуатация ТА","Обслуживание и эксплуатация трубопроводной арматуры","2","Запланировано","","X","2024-09-16","2024-09-20",7,20,20,16,2,0,"","TCUBIS02","2023-10-24"]
[11286,40131,77,{"$f":"COUNTIF(План_сводная!A$2:A$208,B163)","v":1},"ООО \"Газпром трансгаз Чайковский\"","СК сооружений связи","Строительный контроль за качеством строительства, реконструкции и капитального ремонта сооружений связи на объектах магистральны","2","Запланировано","","","2024-09-16","2024-09-20",7,15,30,15,0,1,"","TCUDOV","2023-03-14"]
[22535,44697,77,{"$f":"COUNTIF(План_сводная!A$2:A$208,B164)","v":1},"УПЦ ООО \"Газпром трансгаз Чайковский\"","Оператор ГРС (без пов.р))","Оператор газораспределительной станции ПТК","2","Запланировано","","X","2024-09-16","2024-09-27",7,16,20,13,0,0,"","TCUSOI","2023-10-27"]
[726,39898,77,{"$f":"COUNTIF(План_сводная!A$2:A$208,B165)","v":1},"УПЦ ООО \"Газпром трансгаз Чайковский\"","Эл.монтер лин. сооруж. телеф. связи. ПТК","Электромонтер линейных сооружений телефонной связи и радиофикации ПТК","2","Запланировано","","X","2024-09-16","2024-09-27",7,20,20,12,0,0,"","TCUKMG01","2023-03-06"]
[20158,35262,77,{"$f":"COUNTIF(План_сводная!A$2:A$208,B166)","v":0},"УПЦ ООО \"Газпром трансгаз Чайковский\"","Энергетический менеджмент 16ч.","Функционирование системы энергетического менеджмента ПАО Газпром в соответствии с требованиями ISO 50001:2018","2","Запланировано","","X","2024-09-18","2024-09-19",7,20,30,11,0,2,"","TCULEA","2023-03-14"]
[23674,44688,77,{"$f":"COUNTIF(План_сводная!A$2:A$208,B167)","v":1},"УПЦ ООО \"Газпром трансгаз Чайковский\"","Защитное вождение","Защитное вождение","2","Запланировано","","X","2024-09-19","2024-09-20",0,30,9999,33,0,0,"","TCUPAA14","2023-10-27"]
[11279,40132,77,{"$f":"COUNTIF(План_сводная!A$2:A$208,B168)","v":1},"ООО \"Газпром трансгаз Чайковский\"","СК сварочно-монтаж. работы","Строительный контроль за качеством строительства, реконструкции и капитального ремонта объектов ООО «Газпром трансгаз Чайковский","2","Запланировано","","","2024-09-19","2024-09-27",7,15,30,17,0,1,"","TCUDOV","2023-03-14"]
[23674,44689,77,{"$f":"COUNTIF(План_сводная!A$2:A$208,B169)","v":1},"УПЦ ООО \"Газпром трансгаз Чайковский\"","Защитное вождение","Защитное вождение","2","Запланировано","","X","2024-09-23","2024-09-24",0,30,9999,30,0,0,"","TCUPAA14","2023-10-27"]
[23674,44690,77,{"$f":"COUNTIF(План_сводная!A$2:A$208,B170)","v":1},"УПЦ ООО \"Газпром трансгаз Чайковский\"","Защитное вождение","Защитное вождение","2","Запланировано","","X","2024-09-26","2024-09-27",0,30,9999,30,0,0,"","TCUPAA14","2023-10-27"]
[22072,40133,77,{"$f":"COUNTIF(План_сводная!A$2:A$208,B171)","v":1},"ООО \"Газпром трансгаз Чайковский\"","СК Общестроительные работы","Строительный контроль за качеством строительства, реконструкции и капитального ремонта объектов ООО «Газпром трансгаз Чайковский","2","Запланировано","","","2024-09-30","2024-10-04",7,15,30,10,0,11,"","TCUDOV","2023-03-14"]
[699,40107,77,{"$f":"COUNTIF(План_сводная!A$2:A$208,B172)","v":1},"УПЦ ООО \"Газпром трансгаз Чайковский\"","Лаборант хим.анализа ПТК","Лаборант химического анализа ПТК","2","Запланировано","","X","2024-09-30","2024-10-11",7,15,20,18,1,2,"","TCULNA1","2023-12-06"]
[718,39889,77,{"$f":"COUNTIF(План_сводная!A$2:A$208,B173)","v":1},"УПЦ ООО \"Газпром трансгаз Чайковский\"","Слесарь по КИПиА ПТК","Слесарь по контрольно-измерительным приборам и автоматике ПТК","2","Запланировано","","X","2024-09-30","2024-10-11",7,20,20,12,0,1,"","TCUKMG01","2023-03-06"]
[705,39992,77,{"$f":"COUNTIF(План_сводная!A$2:A$208,B174)","v":1},"ООО \"Газпром трансгаз Чайковский\"","Машинист ТК ПТК","Машинист технологических компрессоров ПТК","2","Запланировано","","X","2024-09-30","2024-10-18",7,15,20,12,0,9,"","TCUBIS02","2023-10-09"]
[23674,44683,77,{"$f":"COUNTIF(План_сводная!A$2:A$208,B175)","v":1},"УПЦ ООО \"Газпром трансгаз Чайковский\"","Защитное вождение","Защитное вождение","2","Запланировано","","X","2024-10-01","2024-10-02",0,30,9999,30,0,0,"","TCUPAA14","2023-10-27"]
[13993,44171,77,{"$f":"COUNTIF(План_сводная!A$2:A$208,B176)","v":1},"УПЦ ООО \"Газпром трансгаз Чайковский\"","Обучение мерам ПБ отв. работников","Обучение мерам пожарной безопасности работников, ответственных за пожарную безопасность организации и проведение противопожарног","2","Запланировано","","X","2024-10-01","2024-10-08",7,20,30,11,0,2,"","TCULEA","2023-10-13"]
[711,40025,77,{"$f":"COUNTIF(План_сводная!A$2:A$208,B177)","v":1},"УПЦ ООО \"Газпром трансгаз Чайковский\"","Оператор ГРС ПТК","Оператор газораспределительной станции ПТК","2","Запланировано","","X","2024-10-01","2024-10-23",7,10,20,9,0,3,"","TCUSOI","2023-03-14"]
[716,40110,77,{"$f":"COUNTIF(План_сводная!A$2:A$208,B178)","v":1},"УПЦ ООО \"Газпром трансгаз Чайковский\"","Слесарь-сантехник ПТК","Слесарь-сантехник ПТК","2","Запланировано","","X","2024-10-01","2024-10-25",7,15,20,12,0,7,"","TCULNA1","2023-12-04"]
[22286,40264,77,{"$f":"COUNTIF(План_сводная!A$2:A$208,B179)","v":1},"УПЦ ООО \"Газпром трансгаз Чайковский\"","Обуч по работ с ПС","Ответственный за безопасное производство работ с применением подъемных сооружений","2","Запланировано","","X","2024-10-07","2024-10-11",0,9999,9999,9,0,1,"","TCULEA","2023-03-17"]
[760,40134,77,{"$f":"COUNTIF(План_сводная!A$2:A$208,B180)","v":1},"ООО \"Газпром трансгаз Чайковский\"","СК Строит.монт.работы","Строительный контроль за качеством строительства, реконструкции и капитального ремонта объектов ООО «Газпром трансгаз Чайковский","2","Запланировано","","","2024-10-07","2024-10-11",7,15,30,19,0,3,"","TCUDOV","2023-03-14"]
[708,39795,77,{"$f":"COUNTIF(План_сводная!A$2:A$208,B181)","v":1},"ООО \"Газпром трансгаз Чайковский\"","Монтажник наруж. трубопроводов ПТК","Монтажник наружных трубопроводов ПТК","2","Запланировано","","X","2024-10-07","2024-10-18",7,20,20,8,0,1,"","TCUSAA17","2023-03-06"]
[17299,40303,77,{"$f":"COUNTIF(План_сводная!A$2:A$208,B182)","v":1},"ООО \"Газпром трансгаз Чайковский\"","Обучение высота 2,3 гр. ОЧНОЕ","Обучение руководителей и специалистов безопасным методам и приемам выполнения работ на высоте \"Работники 2, 3 групп по безопасно","2","Запланировано","","X","2024-10-07","2024-10-18",7,25,30,2,0,14,"","TCUPTV","2023-03-20"]
[23674,44691,77,{"$f":"COUNTIF(План_сводная!A$2:A$208,B183)","v":1},"УПЦ ООО \"Газпром трансгаз Чайковский\"","Защитное вождение","Защитное вождение","2","Запланировано","","X","2024-10-14","2024-10-15",0,30,9999,25,0,0,"","TCUPAA14","2023-10-27"]
[669,40091,77,{"$f":"COUNTIF(План_сводная!A$2:A$208,B184)","v":1},"ООО \"Газпром трансгаз Чайковский\"","Высота 1,2 группа 32ч.","(32ч) Обучение персонала безопасным методам и приемам выполнения работ на высоте \"Работники 1,2 групп по безопасности работ на в","2","Запланировано","","X","2024-10-14","2024-10-17",7,20,20,20,0,4,"","TCUPTV","2023-03-14"]
[21995,45276,77,{"$f":"COUNTIF(План_сводная!A$2:A$208,B185)","v":1},"ООО \"Газпром трансгаз Чайковский\"","СК объектов МГ Общие положения","Строительный контроль за качеством строительства, реконструкции и капитального ремонта объектов магистральных газопроводов ООО «","2","Запланировано","","","2024-10-14","2024-10-18",7,30,30,4,0,6,"","TCUDOV","2023-12-11"]
[768,39896,77,{"$f":"COUNTIF(План_сводная!A$2:A$208,B186)","v":1},"УПЦ ООО \"Газпром трансгаз Чайковский\"","Диспетчерское управление","Диспетчерское управление технологическими процессами в транспорте газа","2","Запланировано","","X","2024-10-14","2024-10-25",7,15,20,13,0,0,"","TCUKMG01","2023-11-01"]
[673,40017,85,{"$f":"COUNTIF(План_сводная!A$2:A$208,B187)","v":1},"Кунгурское ЛПУМГ","Рабочие люльки","Рабочий люльки по управлению подъемником (вышкой) из люльки","2","Запланировано","","X","2024-10-15","2024-10-17",7,14,30,16,0,1,"","TCUSOI","2023-03-14"]
[23674,44692,77,{"$f":"COUNTIF(План_сводная!A$2:A$208,B188)","v":1},"УПЦ ООО \"Газпром трансгаз Чайковский\"","Защитное вождение","Защитное вождение","2","Запланировано","","X","2024-10-17","2024-10-18",0,30,9999,22,0,0,"","TCUPAA14","2023-10-27"]
[11279,40096,77,{"$f":"COUNTIF(План_сводная!A$2:A$208,B189)","v":1},"ООО \"Газпром трансгаз Чайковский\"","СК сварочно-монтаж. работы","Строительный контроль за качеством строительства, реконструкции и капитального ремонта объектов ООО «Газпром трансгаз Чайковский","2","Запланировано","","","2024-10-17","2024-10-25",7,15,30,5,0,1,"","TCUDOV","2023-03-15"]
[23674,44693,77,{"$f":"COUNTIF(План_сводная!A$2:A$208,B190)","v":1},"УПЦ ООО \"Газпром трансгаз Чайковский\"","Защитное вождение","Защитное вождение","2","Запланировано","","X","2024-10-21","2024-10-22",0,30,9999,23,0,0,"","TCUPAA14","2023-10-27"]
[13879,40023,77,{"$f":"COUNTIF(План_сводная!A$2:A$208,B191)","v":1},"УПЦ ООО \"Газпром трансгаз Чайковский\"","Изолировщик-пленочник","Изолировщик-пленочник КПП","2","Запланировано","","X","2024-10-21","2024-10-25",7,12,20,12,0,0,"","TCUSOI","2023-12-06"]
[17559,39998,77,{"$f":"COUNTIF(План_сводная!A$2:A$208,B192)","v":1},"ООО \"Газпром трансгаз Чайковский\"","Машинист ТК ПТК (без повышения разряда)","Машинист технологических компрессоров ПТК","2","Запланировано","","X","2024-10-21","2024-11-01",7,15,20,18,0,6,"","TCUBIS02","2023-10-09"]
[17299,44949,77,{"$f":"COUNTIF(План_сводная!A$2:A$208,B193)","v":1},"ООО \"Газпром трансгаз Чайковский\"","Обучение высота 2,3 гр. ОЧНОЕ","Обучение руководителей и специалистов безопасным методам и приемам выполнения работ на высоте \"Работники 2, 3 групп по безопасно","2","Запланировано","","X","2024-10-21","2024-11-01",7,30,30,4,0,14,"","TCUDOV","2023-11-29"]
[23674,44694,77,{"$f":"COUNTIF(План_сводная!A$2:A$208,B194)","v":1},"УПЦ ООО \"Газпром трансгаз Чайковский\"","Защитное вождение","Защитное вождение","2","Запланировано","","X","2024-10-24","2024-10-25",0,30,9999,23,0,0,"","TCUPAA14","2023-10-27"]
[680,34243,77,{"$f":"COUNTIF(План_сводная!A$2:A$208,B195)","v":0},"ООО \"Газпром трансгаз Чайковский\"","Методы контроля сварных соединений 40ч.","Методы контроля сварных соединений (40ч.)","2","Запланировано","","X","2024-10-28","2024-11-01",7,20,20,8,0,1,"","TCUSAA17","2023-11-28"]
[759,40135,77,{"$f":"COUNTIF(План_сводная!A$2:A$208,B196)","v":1},"ООО \"Газпром трансгаз Чайковский\"","СК для специалистов по ЭХЗ","Строительный контроль за качеством строительства, реконструкции и капитального ремонта объектов ООО «Газпром трансгаз Чайковский","2","Запланировано","","","2024-10-28","2024-11-01",7,15,30,19,0,0,"","TCUDOV","2023-03-14"]
[13744,39900,77,{"$f":"COUNTIF(План_сводная!A$2:A$208,B197)","v":0},"УПЦ ООО \"Газпром трансгаз Чайковский\"","Экспл. микропроцессорных устройств","Эксплуатация микропроцессорных устройств релейной защиты и автоматики вдольтрассовой ВЛ 6-10 кВ","2","Запланировано","","X","2024-10-28","2024-11-01",7,15,15,3,0,1,"","TCUKMG01","2023-11-01"]
[17504,39792,77,{"$f":"COUNTIF(План_сводная!A$2:A$208,B198)","v":1},"ООО \"Газпром трансгаз Чайковский\"","Сварщик 1 ур. Т, ПАК гр.НГДО","Специальная подготовка сварщиков (I уровень), вид сварки – Термитная сварка (Т), пайка (ПАК),КТС группа технических устройств –","2","Запланировано","","X","2024-11-05","2024-11-08",5,20,20,12,0,0,"","TCUSAA17","2023-03-06"]
[13993,35271,77,{"$f":"COUNTIF(План_сводная!A$2:A$208,B199)","v":0},"УПЦ ООО \"Газпром трансгаз Чайковский\"","Обучение мерам ПБ отв. работников","Обучение мерам пожарной безопасности работников, ответственных за пожарную безопасность организации и проведение противопожарног","2","Запланировано","","X","2024-11-07","2024-11-14",7,20,30,27,0,2,"","TCULEA","2022-11-24"]
[666,40028,79,{"$f":"COUNTIF(План_сводная!A$2:A$208,B200)","v":1},"Алмазное ЛПУМГ","Высота 1,2 группа 24ч.","(24ч) Обучение персонала безопасным методам и приемам выполнения работ на высоте \"Работники 1,2 групп по безопасности работ на в","2","Запланировано","","X","2024-11-11","2024-11-13",7,20,30,14,0,7,"","TCUPTV","2023-03-13"]
[660,40254,77,{"$f":"COUNTIF(План_сводная!A$2:A$208,B201)","v":1},"УПЦ ООО \"Газпром трансгаз Чайковский\"","Водители наставники","Водители наставники автомобильного транспорта","2","Запланировано","","X","2024-11-11","2024-11-15",7,15,20,14,0,9,"","TCUPAA14","2023-10-27"]
[760,40136,77,{"$f":"COUNTIF(План_сводная!A$2:A$208,B202)","v":1},"ООО \"Газпром трансгаз Чайковский\"","СК Строит.монт.работы","Строительный контроль за качеством строительства, реконструкции и капитального ремонта объектов ООО «Газпром трансгаз Чайковский","2","Запланировано","","","2024-11-11","2024-11-15",7,15,30,2,0,3,"","TCUDOV","2023-03-14"]
[673,40019,77,{"$f":"COUNTIF(План_сводная!A$2:A$208,B203)","v":1},"УПЦ ООО \"Газпром трансгаз Чайковский\"","Рабочие люльки","Рабочий люльки по управлению подъемником (вышкой) из люльки","2","Запланировано","","X","2024-11-12","2024-11-14",7,14,30,18,0,1,"","TCUSOI","2023-03-14"]
[16237,39899,77,{"$f":"COUNTIF(План_сводная!A$2:A$208,B204)","v":0},"УПЦ ООО \"Газпром трансгаз Чайковский\"","ТО, ремонт и наладка клапана Mokveld","Техническое обслуживание, ремонт и наладка клапанов фирмы Mokveld VALVES","2","Запланировано","","X","2024-11-12","2024-11-14",7,15,15,4,0,3,"","TCUKMG01","2023-11-01"]
[17255,40147,77,{"$f":"COUNTIF(План_сводная!A$2:A$208,B205)","v":1},"ООО \"Газпром трансгаз Чайковский\"","Работники 1,2 гр.ОЗП","Работники 1, 2 групп по безопасности работ в ограниченных и замкнутых пространствах»","2","Запланировано","","X","2024-11-13","2024-11-15",7,15,22,9,3,5,"","TCUDOV","2023-03-14"]
[661,40253,77,{"$f":"COUNTIF(План_сводная!A$2:A$208,B206)","v":1},"УПЦ ООО \"Газпром трансгаз Чайковский\"","Водители автомобилей, работ. на СПГ","Водители автомобилей, работающих на сжатом и сжиженном газе","2","Запланировано","","X","2024-11-18","2024-11-22",7,20,20,16,0,1,"","TCUPAA14","2023-10-27"]
[758,40137,77,{"$f":"COUNTIF(План_сводная!A$2:A$208,B207)","v":1},"ООО \"Газпром трансгаз Чайковский\"","СК за работами электроснабжения","Строительный контроль за качеством строительства, реконструкции и капитального ремонта объектов ООО «Газпром трансгаз Чайковский","2","Запланировано","","","2024-11-18","2024-11-22",7,15,30,20,1,1,"","TCUDOV","2023-03-14"]
[17504,39793,77,{"$f":"COUNTIF(План_сводная!A$2:A$208,B208)","v":1},"ООО \"Газпром трансгаз Чайковский\"","Сварщик 1 ур. Т, ПАК гр.НГДО","Специальная подготовка сварщиков (I уровень), вид сварки – Термитная сварка (Т), пайка (ПАК),КТС группа технических устройств –","2","Запланировано","","X","2024-11-19","2024-11-22",5,20,20,7,0,0,"","TCUSAA17","2023-03-06"]
[737,40076,77,{"$f":"COUNTIF(План_сводная!A$2:A$208,B209)","v":0},"УПЦ ООО \"Газпром трансгаз Чайковский\"","Треб. ПБ на объектах газораспределения","Требования промышленной безопасности на объектах газораспределения и газопотребления","2","Запланировано","","X","2024-11-19","2024-11-28",7,10,20,6,0,8,"","TCUSOI","2023-03-14"]
[22476,40346,77,{"$f":"COUNTIF(План_сводная!A$2:A$208,B210)","v":1},"ООО \"Газпром трансгаз Чайковский\"","Без.провед. огневых работ (1,2 группа)","Безопасное проведение огневых работ на газовых объектах магистральных газопроводов (1,2 группы допуска)","2","Запланировано","","X","2024-11-25","2024-11-27",0,25,25,6,0,0,"","TCUPTV","2023-03-31"]
[752,40257,77,{"$f":"COUNTIF(План_сводная!A$2:A$208,B211)","v":1},"УПЦ ООО \"Газпром трансгаз Чайковский\"","Разработка ППРК","Разработка проектов производства работ и технологических карт для работы с подъемными сооружениями","2","Запланировано","","X","2024-11-25","2024-11-29",7,20,20,10,0,0,"","TCULEA","2023-03-17"]
[758,40138,77,{"$f":"COUNTIF(План_сводная!A$2:A$208,B212)","v":1},"ООО \"Газпром трансгаз Чайковский\"","СК за работами электроснабжения","Строительный контроль за качеством строительства, реконструкции и капитального ремонта объектов ООО «Газпром трансгаз Чайковский","2","Запланировано","","","2024-12-02","2024-12-06",7,15,30,11,0,1,"","TCUDOV","2023-03-14"]
[13993,44172,77,{"$f":"COUNTIF(План_сводная!A$2:A$208,B213)","v":1},"УПЦ ООО \"Газпром трансгаз Чайковский\"","Обучение мерам ПБ отв. работников","Обучение мерам пожарной безопасности работников, ответственных за пожарную безопасность организации и проведение противопожарног","2","Запланировано","","X","2024-12-03","2024-12-10",7,20,30,10,0,2,"","TCULEA","2023-10-13"]
[11397,39798,77,{"$f":"COUNTIF(План_сводная!A$2:A$208,B214)","v":1},"ООО \"Газпром трансгаз Чайковский\"","СП спец. свар. производства II ур.","Специальная подготовка специалистов сварочного производства II уровень (первичная аттестация)","2","Запланировано","","X","2024-12-03","2024-12-12",7,15,15,7,0,0,"","TCUSAA17","2023-03-06"]

{"sheet":"План_сводная","index":2,"n_rows":217,"n_cols":39,"rows_kept":217}
["Код ИУСПТ","Куратор","Место проведения обучающихся","Категория обучающихся","Образовательная программа","Вид обучения в ИУСПТ","Вид Обучения","Направление обучения","Обучение с использованием ДОТ (по неделям)","Форма обучения","Начало теоретического обучения","Окончание теоретического обучения","Начало производств. практики","Окончание производств. практики","Всего часов обучения по программе","Теория, продолжительность дни","Теория, продолжительность часы","Практика, продолжительность дни","Практика, продолжительность часы","Количество обучающихся","Администрация","Алмазное ЛПУМГ","Бардымское ЛПУМГ","Березниковское ЛПУМГ","Воткинское ЛПУМГ","Горнозаводское ЛПУМГ","Гремячинское ЛПУМГ","ИТЦ","КСЦ","Кунгурское ЛПУМГ","Можгинское ЛПУМГ","Очерское ЛПУМГ","Пермское ЛПУМГ","Служба корпоративной защиты","Увинское ЛПУМГ","УАВР №1","УАВР №2","УМТСиК","Чайковское ЛПУМГ"]
[45949,"Богомолов В.Н.","УПЦ","Обучение рабочих","Водители автомобилей, работающих на сжатом и сжиженном газе","Повышение квалификации (РАБ)","КЦН","(РАБ) Курсы целевого назначения (в части получения допуска к работе на опасных производственных объектах)","1) - УПЦ","Очная (с отрывом от производства)","2024-10-28","2024-11-01",null,null,"36",5,36,0,0,8,{"$nulls":4},4,{"$nulls":10},4]
[45889,"Вшивцева О.В.","УПЦ","Обучение ИТР","Организация и безопасное проведение земляных работ","Повышение квалификации","Подготовка","Прочие технические (ГНВП, сварочное, противопожарные и т.д.)","1) - ДОТ","Очная (с отрывом от производства)","2024-10-01","2024-10-03",null,null,"24",3,24,0,0,16,{"$nulls":3},3,null,null,6,{"$nulls":4},4,{"$nulls":4},3]
[45888,"Вшивцева О.В.","УПЦ","Обучение ИТР","Организация и безопасное проведение земляных работ","Повышение квалификации","Подготовка","Прочие технические (ГНВП, сварочное, противопожарные и т.д.)","1) - ДОТ","Очная (с отрывом от производства)","2024-03-18","2024-03-20",null,null,"24",3,24,0,0,29,{"$nulls":3},4,null,null,4,1,null,5,null,2,1,{"$nulls":3},3,null,9]
[45887,"Вшивцева О.В.","УПЦ","Обучение ИТР","Организация и безопасное проведение газоопасных работ","Повышение квалификации","Подготовка","Прочие технические (ГНВП, сварочное, противопожарные и т.д.)","1) - ДОТ","Очная (с отрывом от производства)","2024-10-14","2024-10-16",null,null,"24",3,24,0,0,14,{"$nulls":3},4,null,null,6,{"$nulls":9},4]
[45886,"Вшивцева О.В.","УПЦ","Обучение ИТР","Организация и безопасное проведение газоопасных работ","Повышение квалификации","Подготовка","Прочие технические (ГНВП, сварочное, противопожарные и т.д.)","1) - ДОТ","Очная (с отрывом от производства)","2024-03-04","2024-03-06",null,null,"24",3,24,0,0,25,{"$nulls":3},5,null,4,null,1,{"$nulls":4},2,{"$nulls":3},2,null,11]
[45276,"Вшивцева О.В.","УПЦ","Обучение ИТР","Строительный контроль за качеством строительства, реконструкции и капитального ремонта объектов ООО \"Газпром трансгаз Чайковский\" Модуль 1 \"Проведение строительного контроля за общестроительными работами на объектах магистральных газопроводов\"","Повышение квалификации","Подготовка","Другие целевые программы (строительный контроль)","1) - УПЦ","Очная (с отрывом от производства)","2024-10-14","2024-10-18",null,null,"40",5,40,0,0,4,{"$nulls":3},1,{"$nulls":8},3]
[45080,"Вшивцева О.В.","УПЦ","Обучение ИТР","Строительный контроль за качеством строительства, реконструкции и капитального ремонта объектов магистральных газопроводов ООО «Газпром трансгаз Чайковский» Модуль 3 «Проведение строительного контроля при строительстве, реконструкции и капитальном ремонте инженерных систем и сетей\nна объектах магистральных газопроводов»","Повышение квалификации","Подготовка","Другие целевые программы (строительный контроль)","1) - УПЦ","Очная (с отрывом от производства)","2024-03-25","2024-03-29",null,null,"40",5,40,0,0,4,null,null,1,1,{"$nulls":12},1,1]
[45042,"Полякова Т.В.","Можгинское ЛПУ МГ","Обучение рабочих","Обучение персонала безопасным методам и приемам выполнения работ на высоте \"Работники 1,2 групп по безопасности работ на высоте\" (24 ч)","Повышение квалификации (РАБ)","КЦН","(РАБ) Курсы целевого назначения (в части получения допуска к работе на опасных производственных объектах)","1) - филиал","Очная (с отрывом от производства)","2024-02-26","2024-02-28",null,null,"24",3,24,0,0,28,{"$nulls":10},28]
[45036,"Ложкина Е.А.","УПЦ","Обучение ИТР","Обучение мерам пожарной безопасности работников, ответственных за пожарную безопасность организации и проведение противопожарного инструктажа","Повышение квалификации","Подготовка","Прочие технические (ГНВП, сварочное, противопожарные и т.д.)","1) - на рабочем месте (4 дня), 2) - ДОТ (2 дня)","Очно-заочная ","2024-02-08","2024-02-15",null,null,"32",6,32,0,0,22,{"$nulls":5},3,null,10,{"$nulls":3},2,7]
[45003,"Богомолов В.Н.","УПЦ","Обучение ИТР","Подготовка специалистов по безопасности движения на автомобильном и городском электротранспорте","Повышение квалификации","Подготовка","Прочие технические (ГНВП, сварочное, противопожарные и т.д.)","1) - ДОТ","Очная (с отрывом от производства)","2024-04-01","2024-04-05",null,null,"36",5,36,0,0,16,null,null,3,null,4,{"$nulls":4},1,1,{"$nulls":4},6,1]
[44949,"Марченкова Е.Н.","УПЦ","Обучение ИТР","Обучение руководителей и специалистов Работники 2, 3 групп безопасности на высоте (40 ч)","Повышение квалификации","Подготовка","Прочие технические (ГНВП, сварочное, противопожарные и т.д.)","1), 2) - на рабочем месте (9 дней),        2) - УПЦ (1 день)","Очно-заочная","2024-10-21","2024-10-31",null,null,"40",5,40,0,0,4,{"$nulls":5},1,null,1,null,1,{"$nulls":6},1]
[44948,"Марченкова Е.Н.","УПЦ","Обучение ИТР","Обучение руководителей и специалистов Работники 2, 3 групп безопасности на высоте (40 ч)","Повышение квалификации","Подготовка","Прочие технические (ГНВП, сварочное, противопожарные и т.д.)","1), 2) - на рабочем месте (9 дней),        2) - УПЦ (1 день)","Очно-заочная","2024-05-13","2024-05-23",null,null,"40",5,40,0,0,10,{"$nulls":3},2,null,1,null,4,null,2,{"$nulls":6},1]
[44947,"Вшивцева О.В.","УПЦ","Обучение ИТР","Обучение руководителей и специалистов Работники 2, 3 групп безопасности на высоте (40 ч)","Повышение квалификации","Подготовка","Прочие технические (ГНВП, сварочное, противопожарные и т.д.)","1), 2) - на рабочем месте (9 дней),        2) - УПЦ (1 день)","Очно-заочная","2024-02-05","2024-02-15",null,null,"40",5,40,0,0,16,1,null,3,1,null,1,null,2,null,4,null,null,2,{"$nulls":4},2]
[44742,"Карачурин М.Г.","УПЦ","Обучение ИТР","Эксплуатация средств противокоррозионной защиты","Повышение квалификации","Подготовка","Периодическое обучение по плану общеста/организации (руководители, специалисты, рабочие)","1) - УПЦ","Очная (с отрывом от производства)","2024-04-22","2024-04-26",null,null,"38",5,38,0,0,12,1,null,2,1,null,2,1,null,null,1,1,1,null,null,1,{"$nulls":3},1]
[44697,"Шестакова О.И.","УПЦ","Обучение рабочих","Оператор газораспределительной станции (без ПР)","Повышение квалификации (РАБ)","ПТК (без ПР)","(РАБ) Повышение квалификации на ПТК","1), 2) -УПЦ","Очная (с отрывом от производства)","2024-09-16","2024-09-27","2024-09-30","2024-11-12","416",10,80,42,336,13,{"$nulls":3},1,5,{"$nulls":6},2,4,{"$nulls":5},1]
[44696,"Шестакова О.И.","УПЦ","Обучение рабочих","Оператор газораспределительной станции (без ПР)","Повышение квалификации (РАБ)","ПТК (без ПР)","(РАБ) Повышение квалификации на ПТК","1), 2) -УПЦ","Очная (с отрывом от производства)","2024-04-01","2024-04-12","2024-04-15","2024-06-11","416",10,80,42,336,16,null,null,3,1,6,1,{"$nulls":5},1,4]
[44695,"Шестакова О.И.","УПЦ","Обучение рабочих","Оператор газораспределительной станции (без ПР)","Повышение квалификации (РАБ)","ПТК (без ПР)","(РАБ) Повышение квалификации на ПТК","1), 2) -УПЦ","Очная (с отрывом от производства)","2024-03-18","2024-03-29","2024-04-01","2024-05-28","416",10,80,42,336,14,{"$nulls":3},1,4,1,{"$nulls":5},2,4,null,1,{"$nulls":3},1]
[44694,"Ложкина Е.А.","УПЦ","Обучение рабочих","Защитное вождение","Повышение квалификации (РАБ)","КЦН","(РАБ) Курсы целевого назначения (в части получения допуска к работе на опасных производственных объектах)","1) - ДОТ (8 часов), филиал - (8 часов)","Очная (с отрывом от производства)","2024-10-24","2024-10-25",null,null,"16",2,16,0,0,23,{"$nulls":4},4,null,null,5,null,2,3,null,3,null,1,5]
[44693,"Ложкина Е.А.","УПЦ","Обучение рабочих","Защитное вождение","Повышение квалификации (РАБ)","КЦН","(РАБ) Курсы целевого назначения (в части получения допуска к работе на опасных производственных объектах)","1) - ДОТ (8 часов),  филиал - (8 часов)","Очная (с отрывом от производства)","2024-10-21","2024-10-22",null,null,"16",2,16,0,0,23,{"$nulls":6},1,5,null,2,3,null,3,null,1,5,1,null,2]
[44692,"Ложкина Е.А.","УПЦ","Обучение рабочих","Защитное вождение","Повышение квалификации (РАБ)","КЦН","(РАБ) Курсы целевого назначения (в части получения допуска к работе на опасных производственных объектах)","1) - ДОТ (8 часов), филиал - (8 часов)","Очная (с отрывом от производства)","2024-10-17","2024-10-18",null,null,"16",2,16,0,0,22,{"$nulls":6},1,5,null,3,null,1,3,null,1,5,1,null,2]
[44691,"Ложкина Е.А.","УПЦ","Обучение рабочих","Защитное вождение","Повышение квалификации (РАБ)","КЦН","(РАБ) Курсы целевого назначения (в части получения допуска к работе на опасных производственных объектах)","1) - ДОТ (8 часов),  филиал - (8 часов)","Очная (с отрывом от производства)","2024-10-14","2024-10-15",null,null,"16",2,16,0,0,25,{"$nulls":6},2,4,null,2,3,null,3,null,1,6,1,1,2]
[44690,"Ложкина Е.А.","УПЦ","Обучение рабочих","Защитное вождение","Повышение квалификации (РАБ)","КЦН","(РАБ) Курсы целевого назначения (в части получения допуска к работе на опасных производственных объектах)","1) - ДОТ (8 часов),  филиал - (8 часов)","Очная (с отрывом от производства)","2024-09-26","2024-09-27",null,null,"16",2,16,0,0,30,null,2,null,null,1,2,2,3,null,2,3,null,3,null,2,6,2,null,2]
[44689,"Ложкина Е.А.","УПЦ","Обучение рабочих","Защитное вождение","Повышение квалификации (РАБ)","КЦН","(РАБ) Курсы целевого назначения (в части получения допуска к работе на опасных производственных объектах)","1) - ДОТ (8 часов),  филиал - (8 часов)","Очная (с отрывом от производства)","2024-09-23","2024-09-24",null,null,"16",2,16,0,0,30,null,2,null,null,1,2,2,2,null,2,3,null,3,null,2,6,2,1,2]
[44688,"Ложкина Е.А.","УПЦ","Обучение рабочих","Защитное вождение","Повышение квалификации (РАБ)","КЦН","(РАБ) Курсы целевого назначения (в части получения допуска к работе на опасных производственных объектах)","1) - ДОТ (8 часов),  филиал - (8 часов)","Очная (с отрывом от производства)","2024-09-19","2024-09-20",null,null,"16",2,16,0,0,33,null,3,null,2,3,2,2,null,null,2,2,1,3,null,2,6,2,1,2]
[44687,"Ложкина Е.А.","УПЦ","Обучение рабочих","Защитное вождение","Повышение квалификации (РАБ)","КЦН","(РАБ) Курсы целевого назначения (в части получения допуска к работе на опасных производственных объектах)","1) - ДОТ (8 часов), в филиале - (8 часов)","Очная (с отрывом от производства)","2024-09-16","2024-09-17",null,null,"16",2,16,0,0,32,null,2,null,2,4,2,2,null,null,2,3,null,3,null,2,6,2,null,2]
[44686,"Ложкина Е.А.","УПЦ","Обучение рабочих","Защитное вождение","Повышение квалификации (РАБ)","КЦН","(РАБ) Курсы целевого назначения (в части получения допуска к работе на опасных производственных объектах)","1) - ДОТ (8 часов),  филиал - (8 часов)","Очная (с отрывом от производства)","2024-09-12","2024-09-13",null,null,"16",2,16,0,0,30,null,3,null,2,3,2,2,null,null,2,2,1,3,null,1,6,1,null,2]
[44685,"Ложкина Е.А.","УПЦ","Обучение рабочих","Защитное вождение","Повышение квалификации (РАБ)","КЦН","(РАБ) Курсы целевого назначения (в части получения допуска к работе на опасных производственных объектах)","1) - ДОТ (8 часов), в филиале - (8 часов)","Очная (с отрывом от производства)","2024-09-09","2024-09-10",null,null,"16",2,16,0,0,30,{"$nulls":3},2,4,2,2,null,null,2,3,null,3,1,2,6,1,null,2]
[44684,"Ложкина Е.А.","УПЦ","Обучение рабочих","Защитное вождение","Повышение квалификации (РАБ)","КЦН","(РАБ) Курсы целевого назначения (в части получения допуска к работе на опасных производственных объектах)","1) - ДОТ (8 часов),  филиал - (8 часов)","Очная (с отрывом от производства)","2024-09-05","2024-09-06",null,null,"16",2,16,0,0,35,null,3,null,2,5,2,{"$nulls":3},2,3,null,3,1,2,7,2,1,2]
[44683,"Ложкина Е.А.","УПЦ","Обучение рабочих","Защитное вождение","Повышение квалификации (РАБ)","КЦН","(РАБ) Курсы целевого назначения (в части получения допуска к работе на опасных производственных объектах)","1) - ДОТ (8 часов),  филиал - (8 часов)","Очная (с отрывом от производства)","2024-10-01","2024-10-02",null,null,"16",2,16,0,0,30,null,2,4,null,2,1,3,1,null,2,2,null,3,1,2,5,null,null,2]
[44682,"Богомолов В.Н.","УПЦ","Обучение рабочих","Повышение квалификации водителей, осуществляющих перевозки опасных грузов в соответствии с Соглашением о международной дорожной перевозке опасных грузов (специализированный курс по перевозке в цистернах) повторное обучение","Повышение квалификации (РАБ)","КЦН","(РАБ) Курсы целевого назначения (в части получения допуска к работе на опасных производственных объектах)","1) - УПЦ","Очная (с отрывом от производства)","2024-04-11","2024-04-11",null,null,"8",1,8,0,0,5,null,1,null,2,{"$nulls":8},1,null,null,1]
[44681,"Богомолов В.Н.","УПЦ","Обучение рабочих","Повышение квалификации водителей, осуществляющих перевозки опасных грузов в соответствии с Соглашением о международной дорожной перевозке опасных грузов (специализированный курс по перевозке в цистернах) повторное обучение","Повышение квалификации (РАБ)","КЦН","(РАБ) Курсы целевого назначения (в части получения допуска к работе на опасных производственных объектах)","1) - УПЦ","Очная (с отрывом от производства)","2024-03-28","2024-03-28",null,null,"8",1,8,0,0,5,{"$nulls":5},1,{"$nulls":6},2,{"$nulls":3},2]
[44680,"Богомолов В.Н.","УПЦ","Обучение рабочих","Водители автомобилей, работающих на сжатом и сжиженном газе","Повышение квалификации (РАБ)","КЦН","(РАБ) Курсы целевого назначения (в части получения допуска к работе на опасных производственных объектах)","1) - УПЦ","Очная (с отрывом от производства)","2024-01-22","2024-01-26",null,null,"36",5,36,0,0,21,null,null,19,2]
[44172,"Ложкина Е.А.","УПЦ","Обучение ИТР","Обучение мерам пожарной безопасности работников, ответственных за пожарную безопасность организации и проведение противопожарного инструктажа","Повышение квалификации","Подготовка","Прочие технические (ГНВП, сварочное, противопожарные и т.д.)","1) - на рабочем месте (4 дня), \n2) - ДОТ (2 дня)","Очно-заочная ","2024-12-03","2024-12-10",null,null,"32",6,32,0,0,10,{"$nulls":7},1,{"$nulls":4},4,null,1,null,4]
[44171,"Ложкина Е.А.","УПЦ","Обучение ИТР","Обучение мерам пожарной безопасности работников, ответственных за пожарную безопасность организации и проведение противопожарного инструктажа","Повышение квалификации","Подготовка","Прочие технические (ГНВП, сварочное, противопожарные и т.д.)","1) - на рабочем месте (4 дня), \n2) - ДОТ (2 дня)","Очно-заочная ","2024-10-01","2024-10-08",null,null,"32",6,32,0,0,11,{"$nulls":4},3,1,{"$nulls":3},2,null,null,5]
[44170,"Ложкина Е.А.","УПЦ","Обучение ИТР","Обучение мерам пожарной безопасности работников, ответственных за пожарную безопасность организации и проведение противопожарного инструктажа","Повышение квалификации","Подготовка","Прочие технические (ГНВП, сварочное, противопожарные и т.д.)","1) - на рабочем месте (4 дня), \n2) - ДОТ (2 дня)","Очно-заочная ","2024-04-18","2024-04-25",null,null,"32",6,32,0,0,23,{"$nulls":3},3,6,4,{"$nulls":6},2,null,3,1,4]
[40346,"Полякова Т.В.","УПЦ","Обучение ИТР","Безопасное проведение огневых работ на газовых объектах магистральных газопроводов (I, II группа допуска)","Повышение квалификации","Подготовка","Прочие технические (ГНВП, сварочное, противопожарные и т.д.)","1) - ДОТ","Очная (с отрывом от производства)","2024-11-25","2024-11-27",null,null,"24",3,24,0,0,6,{"$nulls":5},1,{"$nulls":5},3,null,null,2]
[40345,"Полякова Т.В.","УПЦ","Обучение ИТР","Безопасное проведение огневых работ на газовых объектах магистральных газопроводов (I, II группа допуска)","Повышение квалификации","Подготовка","Прочие технические (ГНВП, сварочное, противопожарные и т.д.)","1) - ДОТ","Очная (с отрывом от производства)","2024-04-15","2024-04-17",null,null,"24",3,24,0,0,10,{"$nulls":3},1,2,1,1,{"$nulls":4},3,null,null,2]
[40303,"Марченкова Е.Н.","УПЦ","Обучение ИТР","Обучение руководителей и специалистов Работники 2, 3 групп безопасности на высоте (40 ч)","Повышение квалификации","Подготовка","Прочие технические (ГНВП, сварочное, противопожарные и т.д.)","1), 2) - на рабочем месте (9 дней),        2) - УПЦ (1 день)","Очно-заочная","2024-10-07","2024-10-17",null,null,"40",5,40,0,0,2,{"$nulls":3},2]
[40302,"Марченкова Е.Н.","УПЦ","Обучение ИТР","Обучение руководителей и специалистов Работники 2, 3 групп безопасности на высоте (40 ч)","Повышение квалификации","Подготовка","Прочие технические (ГНВП, сварочное, противопожарные и т.д.)","1), 2) - на рабочем месте (9 дней),        2 ) - УПЦ (1 день)","Очно-заочная","2024-09-09","2024-09-19",null,null,"40",5,40,0,0,5,{"$nulls":5},1,{"$nulls":5},2,null,null,2]
[40301,"Марченкова Е.Н.","УПЦ","Обучение ИТР","Обучение руководителей и специалистов Работники 2, 3 групп безопасности на высоте (40 ч)","Повышение квалификации","Подготовка","Прочие технические (ГНВП, сварочное, противопожарные и т.д.)","1), 2) - на рабочем месте (9 дней),        2) - УПЦ (1 день)","Очно-заочная","2024-04-15","2024-04-25",null,null,"40",5,40,0,0,12,{"$nulls":5},1,null,4,{"$nulls":3},2,null,null,1,null,null,4]
[40264,"Богомолов В.Н.","УПЦ","Обучение ИТР","Ответственный за безопасное производство работ с применением подъемных сооружений","Повышение квалификации","Подготовка","Предаттестационная подготовка по промышленной безопасности, экологической безопасности и др.","1) - УПЦ","Очная (с отрывом от производства)","2024-10-07","2024-10-11",null,null,"32",4,32,0,0,9,{"$nulls":6},1,3,null,4,{"$nulls":4},1]
[40263,"Богомолов В.Н.","УПЦ","Обучение рабочих","Повышение квалификации водителей, осуществляющих перевозки опасных грузов в соответствии с  Соглашением о международной дорожной перевозке опасных грузов (базовый курс) (повторное обучение)","Повышение квалификации (РАБ)","КЦН","(РАБ) Курсы целевого назначения (в части получения допуска к работе на опасных производственных объектах)","1) - УПЦ","Очная (с отрывом от производства)","2024-04-09","2024-04-10",null,null,"15",2,15,0,0,5,null,1,{"$nulls":10},1,null,null,1,2]
[40262,"Богомолов В.Н.","УПЦ","Обучение рабочих","Повышение квалификации водителей, осуществляющих перевозки опасных грузов в соответствии с  Соглашением о международной дорожной перевозке опасных грузов (базовый курс) (повторное обучение)","Повышение квалификации (РАБ)","КЦН","(РАБ) Курсы целевого назначения (в части получения допуска к работе на опасных производственных объектах)","1) - УПЦ","Очная (с отрывом от производства)","2024-03-26","2024-03-27",null,null,"15",2,15,0,0,6,{"$nulls":3},2,null,1,{"$nulls":3},1,null,null,2]
[40261,"Богомолов В.Н.","УПЦ","Обучение ИТР","Требования ПБ к подъемным сооружениям","Повышение квалификации","Подготовка","Предаттестационная подготовка по промышленной безопасности, экологической безопасности и др.","1) - УПЦ","Очная (с отрывом от производства)","2024-04-22","2024-04-25",null,null,"32",4,32,0,0,18,null,3,null,null,1,null,null,6,{"$nulls":4},3,null,1,1,2,null,1]
[40257,"Богомолов В.Н.","УПЦ","Обучение ИТР","Разработка проектов производства работ и технологических карт для  работы с подъемными сооружениями","Повышение квалификации","Подготовка","Прочие технические (ГНВП, сварочное, противопожарные и т.д.)","1) - УПЦ","Очная (с отрывом от производства)","2024-11-25","2024-11-29",null,null,"32",3,32,0,0,10,{"$nulls":5},1,1,null,null,2,null,null,2,{"$nulls":5},4]
[40256,"Богомолов В.Н.","УПЦ","Обучение рабочих","Обучение машинистов кранов мостового типа, консольных кранов и электрических талей грузоподъемностью до 10 т включительно, управляемых с пола","Повышение квалификации (РАБ)","КЦН","(РАБ) Курсы целевого назначения (в части получения допуска к работе на опасных производственных объектах)","1) - УПЦ","Очная (с отрывом от производства)","2024-04-16","2024-04-18",null,null,"20",3,20,0,0,23,null,1,null,null,4,null,1,15,null,null,1,{"$nulls":4},1]
[40254,"Богомолов В.Н.","УПЦ","Обучение рабочих","Водители - наставники автомобильного транспорта","Повышение квалификации (РАБ)","КЦН","(РАБ) Курсы целевого назначения (в части получения допуска к работе на опасных производственных объектах)","1) - УПЦ","Очная (с отрывом от производства)","2024-11-11","2024-11-15",null,null,"32",4,32,0,0,14,null,1,null,1,1,2,{"$nulls":3},3,null,3,1,1,{"$nulls":3},1]
[40253,"Богомолов В.Н.","УПЦ","Обучение рабочих","Водители автомобилей, работающих на сжатом и сжиженном газе","Повышение квалификации (РАБ)","КЦН","(РАБ) Курсы целевого назначения (в части получения допуска к работе на опасных производственных объектах)","1) - УПЦ","Очная (с отрывом от производства)","2024-11-18","2024-11-22",null,null,"36",5,36,0,0,16,null,1,null,null,2,null,1,null,null,2,{"$nulls":5},8,1,null,1]
[40252,"Богомолов В.Н.","УПЦ","Обучение рабочих","Водители автомобилей, работающих на сжатом и сжиженном газе","Повышение квалификации (РАБ)","КЦН","(РАБ) Курсы целевого назначения (в части получения допуска к работе на опасных производственных объектах)","1) - УПЦ","Очная (с отрывом от производства)","2024-05-27","2024-05-31",null,null,"36",5,36,0,0,20,null,1,null,null,2,null,2,1,null,3,{"$nulls":4},1,8,2]
[40251,"Богомолов В.Н.","УПЦ","Обучение рабочих","Водители автомобилей, работающих на сжатом и сжиженном газе","Повышение квалификации (РАБ)","КЦН","(РАБ) Курсы целевого назначения (в части получения допуска к работе на опасных производственных объектах)","1) - УПЦ","Очная (с отрывом от производства)","2024-02-26","2024-03-01",null,null,"36",5,36,0,0,32,null,1,null,2,5,1,{"$nulls":3},3,1,2,null,null,2,8,2,1,4]
[40250,"Богомолов В.Н.","УПЦ","Обучение рабочих","Машинист бульдозера","Повышение квалификации (РАБ)","ПТК","(РАБ) Повышение квалификации на ПТК","1), 2) - УПЦ","Очная (с отрывом от производства)","2024-03-11","2024-03-22","2024-03-25","2024-05-08",320,10,80,30,240,10,null,1,2,{"$nulls":9},2,null,2,1,2]
[40247,"Богомолов В.Н.","УПЦ","Обучение рабочих","Машинист трубоукладчика","Повышение квалификации (РАБ)","КПП","(РАБ) Переподготовка","1), 2), 3) - УПЦ","Очная (с отрывом от производства)","2024-06-17","2024-07-05","2024-07-08","2024-09-06","480",15,120,45,360,7,{"$nulls":4},1,1,{"$nulls":6},1,null,null,2,2]
[40245,"Ложкина Е.А.","УПЦ","Обучение рабочих","Ежегодные занятия с водителями автотранспортных организаций","Повышение квалификации (РАБ)","КЦН","(РАБ) Курсы целевого назначения (в части получения допуска к работе на опасных производственных объектах)","1) - УПЦ","Очная (с отрывом от производства)","2024-05-20","2024-05-22",null,null,"20",3,20,0,0,7,{"$nulls":15},7]
[40244,"Богомолов В.Н.","УПЦ","Обучение рабочих","Ежегодные занятия с водителями автотранспортных организаций","Повышение квалификации (РАБ)","КЦН","(РАБ) Курсы целевого назначения (в части получения допуска к работе на опасных производственных объектах)","1) - УПЦ","Очная (с отрывом от производства)","2024-06-05","2024-06-07",null,null,"20",3,20,0,0,11,{"$nulls":15},11]
[40243,"Ложкина Е.А.","УПЦ","Обучение рабочих","Ежегодные занятия с водителями автотранспортных организаций","Повышение квалификации (РАБ)","КЦН","(РАБ) Курсы целевого назначения (в части получения допуска к работе на опасных производственных объектах)","1) - УПЦ","Очная (с отрывом от производства)","2024-06-03","2024-06-05",null,null,"20",3,20,0,0,15,{"$nulls":15},15]
[40242,"Богомолов В.Н.","УПЦ","Обучение рабочих","Ежегодные занятия с водителями автотранспортных организаций","Повышение квалификации (РАБ)","КЦН","(РАБ) Курсы целевого назначения (в части получения допуска к работе на опасных производственных объектах)","1) - УПЦ","Очная (с отрывом от производства)","2024-01-31","2024-02-02",null,null,"20",3,20,0,0,18,{"$nulls":15},18]
[40241,"Ложкина Е.А.","УПЦ","Обучение рабочих","Ежегодные занятия с водителями автотранспортных организаций","Повышение квалификации (РАБ)","КЦН","(РАБ) Курсы целевого назначения (в части получения допуска к работе на опасных производственных объектах)","1) - УПЦ","Очная (с отрывом от производства)","2024-03-04","2024-03-06",null,null,"20",3,20,0,0,19,{"$nulls":15},19]
[40240,"Ложкина Е.А.","УПЦ","Обучение рабочих","Ежегодные занятия с водителями автотранспортных организаций","Повышение квалификации (РАБ)","КЦН","(РАБ) Курсы целевого назначения (в части получения допуска к работе на опасных производственных объектах)","1) - УПЦ","Очная (с отрывом от производства)","2024-02-19","2024-02-21",null,null,"20",3,20,0,0,17,{"$nulls":15},17]
[40239,"Богомолов В.Н.","УПЦ","Обучение рабочих","Ежегодные занятия с водителями автотранспортных организаций","Повышение квалификации (РАБ)","КЦН","(РАБ) Курсы целевого назначения (в части получения допуска к работе на опасных производственных объектах)","1) - УПЦ","Очная (с отрывом от производства)","2024-02-14","2024-02-16",null,null,"20",3,20,0,0,20,{"$nulls":15},20]
[40238,"Богомолов В.Н.","УПЦ","Обучение рабочих","Ежегодные занятия с водителями автотранспортных организаций","Повышение квалификации (РАБ)","КЦН","(РАБ) Курсы целевого назначения (в части получения допуска к работе на опасных производственных объектах)","1) - УПЦ","Очная (с отрывом от производства)","2024-02-12","2024-02-14",null,null,"20",3,20,0,0,18,{"$nulls":15},18]
[40237,"Богомолов В.Н.","УПЦ","Обучение рабочих","Ежегодные занятия с водителями автотранспортных организаций","Повышение квалификации (РАБ)","КЦН","(РАБ) Курсы целевого назначения (в части получения допуска к работе на опасных производственных объектах)","1) - УПЦ","Очная (с отрывом от производства)","2024-02-07","2024-02-09",null,null,"20",3,20,0,0,19,{"$nulls":15},19]
[40236,"Ложкина Е.А.","УПЦ","Обучение рабочих","Ежегодные занятия с водителями автотранспортных организаций","Повышение квалификации (РАБ)","КЦН","(РАБ) Курсы целевого назначения (в части получения допуска к работе на опасных производственных объектах)","1) - УПЦ","Очная (с отрывом от производства)","2024-02-05","2024-02-07",null,null,"20",3,20,0,0,19,{"$nulls":15},19]
[40235,"Богомолов В.Н.","УПЦ","Обучение рабочих","Ежегодные занятия с водителями автотранспортных организаций","Повышение квалификации (РАБ)","КЦН","(РАБ) Курсы целевого назначения (в части получения допуска к работе на опасных производственных объектах)","1) - УПЦ","Очная (с отрывом от производства)","2024-01-17","2024-01-19",null,null,"20",3,20,0,0,18,{"$nulls":15},18]
[40234,"Богомолов В.Н.","УПЦ","Обучение рабочих","Ежегодные занятия с водителями автотранспортных организаций","Повышение квалификации (РАБ)","КЦН","(РАБ) Курсы целевого назначения (в части получения допуска к работе на опасных производственных объектах)","1) - УПЦ","Очная (с отрывом от производства)","2024-01-15","2024-01-17",null,null,"20",3,20,0,0,20,{"$nulls":15},20]
[40233,"Богомолов В.Н.","УПЦ","Обучение рабочих","Ежегодные занятия с водителями автотранспортных организаций","Повышение квалификации (РАБ)","КЦН","(РАБ) Курсы целевого назначения (в части получения допуска к работе на опасных производственных объектах)","1) - УПЦ","Очная (с отрывом от производства)","2024-01-10","2024-01-12",null,null,"20",3,20,0,0,16,{"$nulls":15},16]
[40232,"Богомолов В.Н.","УПЦ","Обучение рабочих","Ежегодные занятия с водителями автотранспортных организаций","Повышение квалификации (РАБ)","КЦН","(РАБ) Курсы целевого назначения (в части получения допуска к работе на опасных производственных объектах)","1) - УПЦ","Очная (с отрывом от производства)","2024-01-29","2024-01-31",null,null,20,3,20,0,0,19,{"$nulls":7},1,{"$nulls":7},18]
[40200,"Марченкова Е.Н.","Можгинское ЛПУ МГ","Обучение ИТР","Обучение руководителей и специалистов Работники 2, 3 групп безопасности на высоте (40 ч)","Повышение квалификации","Подготовка","Прочие технические (ГНВП, сварочное, противопожарные и т.д.)","1) - филиал","Очно-заочная","2024-04-08","2024-04-18",null,null,"40",5,40,0,0,26,{"$nulls":3},4,{"$nulls":6},19,{"$nulls":3},2,null,null,1]
[40199,"Марченкова Е.Н.","Воткинское ЛПУ МГ","Обучение ИТР","Обучение руководителей и специалистов Работники 2, 3 групп безопасности на высоте (40 ч)","Повышение квалификации","Подготовка","Прочие технические (ГНВП, сварочное, противопожарные и т.д.)","1) - филиал","Очно-заочная","2024-04-01","2024-04-11",null,null,"40",5,40,0,0,14,{"$nulls":4},10,1,{"$nulls":8},3]
[40198,"Марченкова Е.Н.","Горнозаваодское ЛПУ МГ","Обучение ИТР","Обучение руководителей и специалистов Работники 2, 3 групп безопасности на высоте (40 ч)","Повышение квалификации","Подготовка","Прочие технические (ГНВП, сварочное, противопожарные и т.д.)","1) - филиал","Очно-заочная","2024-03-18","2024-03-28",null,null,"40",5,40,0,0,7,{"$nulls":5},5,null,null,1,{"$nulls":5},1]
[40197,"Марченкова Е.Н.","Гремячинсоке ЛПУ МГ","Обучение ИТР","Обучение руководителей и специалистов Работники 2, 3 групп безопасности на высоте (40 ч)","Повышение квалификации","Подготовка","Прочие технические (ГНВП, сварочное, противопожарные и т.д.)","1) - филиал","Очно-заочная","2024-03-18","2024-03-28",null,null,"40",5,40,0,0,21,{"$nulls":3},1,null,null,20]
[40153,"Лихошерстная Н.А.","УПЦ","Обучение рабочих","Электромонтер по ремонту и обслуживанию электрооборудования (без ПР)","Повышение квалификации (РАБ)","ПТК","(РАБ) Повышение квалификации на ПТК","1) - УПЦ\n2) - ДОТ","Очно-заочная ","2024-06-03","2024-06-17","2024-06-18","2024-08-15","416",10,76,43,340,19,null,1,2,null,3,2,null,2,null,3,1,null,3,null,1,{"$nulls":3},1]
[40152,"Лихошерстная Н.А.","УПЦ","Обучение рабочих","Электромонтер по ремонту и обслуживанию электрооборудования (без ПР)","Повышение квалификации (РАБ)","ПТК","(РАБ) Повышение квалификации на ПТК","1) - УПЦ\n2) - ДОТ","Очно-заочная ","2024-04-15","2024-04-26","2024-04-27","2024-07-03","416",10,76,43,340,19,null,2,null,null,3,3,2,1,null,5,{"$nulls":4},1,{"$nulls":3},2]
[40151,"Лихошерстная Н.А.","УПЦ","Обучение рабочих","Электромонтер по ремонту и обслуживанию электрооборудования (без ПР)","Повышение квалификации (РАБ)","ПТК","(РАБ) Повышение квалификации на ПТК","1) - УПЦ\n2) - ДОТ","Очно-заочная ","2024-02-12","2024-02-26","2024-02-27","2024-04-26","416",10,76,43,340,19,null,2,{"$nulls":3},3,2,1,null,4,null,1,1,null,2,null,1,null,2]
[40150,"Лихошерстная Н.А.","УПЦ","Обучение рабочих","Электромонтер по ремонту и обслуживанию электрооборудования","Повышение квалификации (РАБ)","ПТК","(РАБ) Повышение квалификации на ПТК","1), 2) - УПЦ","Очная (с отрывом от производства)","2024-01-22","2024-02-02","2024-02-05","2024-04-05","416",10,76,43,340,18,1,{"$nulls":3},1,2,2,2,null,5,null,null,2,{"$nulls":3},1,1,1]
[40149,"Лихошерстная Н.А.","УПЦ","Обучение рабочих","Стропальщик","Повышение квалификации (РАБ)","ПТК","(РАБ) Повышение квалификации на ПТК","1) - УПЦ","Очная (с отрывом от производства)","2024-05-13","2024-05-17","2024-05-20","2024-05-24",80,5,40,5,40,25,{"$nulls":5},2,null,1,{"$nulls":3},1,2,{"$nulls":3},1,18]
[40147,"Марченкова Е.Н.","УПЦ","Обучение рабочих","Обучение персонала безопасным методам и приемам выполнения работ в ОЗП \"Работники 1, 2 групп безопасности работ в ОЗП\"","Повышение квалификации (РАБ)","КЦН","(РАБ) Курсы целевого назначения (в части получения допуска к работе на опасных производственных объектах)","1) - УПЦ","Очная (с отрывом от производства)","2024-11-13","2024-11-15",null,null,"24",3,24,0,0,12,{"$nulls":3},1,null,null,1,2,{"$nulls":8},8]
[40146,"Марченкова Е.Н.","УПЦ","Обучение рабочих","Обучение персонала безопасным методам и приемам выполнения работ в ОЗП \"Работники 1, 2 групп безопасности работ в ОЗП\"","Повышение квалификации (РАБ)","КЦН","(РАБ) Курсы целевого назначения (в части получения допуска к работе на опасных производственных объектах)","1) - УПЦ","Очная (с отрывом от производства)","2024-09-11","2024-09-13",null,null,"24",3,24,0,0,18,{"$nulls":3},3,null,5,3,{"$nulls":8},4,null,null,3]
[40145,"Марченкова Е.Н.","УПЦ","Обучение рабочих","Обучение персонала безопасным методам и приемам выполнения работ в ОЗП \"Работники 1, 2 групп безопасности работ в ОЗП\"","Повышение квалификации (РАБ)","КЦН","(РАБ) Курсы целевого назначения (в части получения допуска к работе на опасных производственных объектах)","1) - УПЦ","Очная (с отрывом от производства)","2024-09-04","2024-09-06",null,null,"24",3,24,0,0,23,null,3,{"$nulls":3},10,4,2,{"$nulls":7},3,null,null,1]
[40144,"Марченкова Е.Н.","УПЦ","Обучение рабочих","Обучение персонала безопасным методам и приемам выполнения работ в ОЗП \"Работники 1, 2 групп безопасности работ в ОЗП\"","Повышение квалификации (РАБ)","КЦН","(РАБ) Курсы целевого назначения (в части получения допуска к работе на опасных производственных объектах)","1) - УПЦ","Очная (с отрывом от производства)","2024-08-19","2024-08-21",null,null,"24",3,24,0,0,20,{"$nulls":5},3,7,{"$nulls":5},2,null,null,4,null,null,4]
[40143,"Марченкова Е.Н.","УПЦ","Обучение рабочих","Обучение персонала безопасным методам и приемам выполнения работ в ОЗП \"Работники 1, 2 групп безопасности работ в ОЗП\"","Повышение квалификации (РАБ)","КЦН","(РАБ) Курсы целевого назначения (в части получения допуска к работе на опасных производственных объектах)","1) - УПЦ","Очная (с отрывом от производства)","2024-08-14","2024-08-16",null,null,"24",3,24,0,0,19,{"$nulls":3},2,null,8,2,2,{"$nulls":4},2,null,null,3]
[40142,"Марченкова Е.Н.","УПЦ","Обучение рабочих","Обучение персонала безопасным методам и приемам выполнения работ в ОЗП \"Работники 1, 2 групп безопасности работ в ОЗП\"","Повышение квалификации (РАБ)","КЦН","(РАБ) Курсы целевого назначения (в части получения допуска к работе на опасных производственных объектах)","1) - УПЦ","Очная (с отрывом от производства)","2024-06-05","2024-06-07",null,null,"24",3,24,0,0,26,null,null,4,1,null,4,5,2,{"$nulls":3},2,2,null,null,2,null,3,1]
[40141,"Марченкова Е.Н.","УПЦ","Обучение рабочих","Обучение персонала безопасным методам и приемам выполнения работ в ОЗП \"Работники 1, 2 групп безопасности работ в ОЗП\"","Повышение квалификации (РАБ)","КЦН","(РАБ) Курсы целевого назначения (в части получения допуска к работе на опасных производственных объектах)","1) - УПЦ","Очная (с отрывом от производства)","2024-05-22","2024-05-24",null,null,"24",3,24,0,0,26,null,4,4,3,null,2,3,4,{"$nulls":4},2,null,null,2,null,null,2]
[40140,"Марченкова Е.Н.","УПЦ","Обучение рабочих","Обучение персонала безопасным методам и приемам выполнения работ в ОЗП \"Работники 1, 2 групп безопасности работ в ОЗП\"","Повышение квалификации (РАБ)","КЦН","(РАБ) Курсы целевого назначения (в части получения допуска к работе на опасных производственных объектах)","1) - УПЦ","Очная (с отрывом от производства)","2024-05-15","2024-05-17",null,null,"24",3,24,0,0,15,{"$nulls":5},1,5,1,{"$nulls":4},1,null,1,2,4]
[40139,"Марченкова Е.Н.","УПЦ","Обучение рабочих","Обучение персонала безопасным методам и приемам выполнения работ в ОЗП \"Работники 1, 2 групп безопасности работ в ОЗП\"","Повышение квалификации (РАБ)","КЦН","(РАБ) Курсы целевого назначения (в части получения допуска к работе на опасных производственных объектах)","1) - УПЦ","Очная (с отрывом от производства)","2024-04-08","2024-04-10",null,null,"24",3,24,0,0,21,{"$nulls":5},3,null,6,{"$nulls":4},1,null,null,2,6,3]
[40138,"Вшивцева О.В.","УПЦ","Обучение ИТР","Строительный контроль за качеством строительства, реконструкции и капитального ремонта объектов магистральных газопроводов ООО «Газпром трансгаз Чайковский» Модуль 5 «Проведение строительного контроля за работами в области строительства, реконструкции, капитального ремонта систем электро-снабжения на объектах магистральных газопроводов»\n","Повышение квалификации","Подготовка","Другие целевые программы (строительный контроль)","1) - УПЦ","Очная (с отрывом от производства)","2024-12-02","2024-12-06",null,null,"40",5,40,0,0,11,{"$nulls":3},1,1,null,1,null,1,null,1,null,2,null,null,1,1,null,2]
[40137,"Вшивцева О.В.","УПЦ","Обучение ИТР","Строительный контроль за качеством строительства, реконструкции и капитального ремонта объектов магистральных газопроводов ООО «Газпром трансгаз Чайковский» Модуль 5 «Проведение строительного контроля за работами в области строительства, реконструкции, капитального ремонта систем электро-набжения на объектах магистральных газопроводов»\n","Повышение квалификации","Подготовка","Другие целевые программы (строительный контроль)","1) -  УПЦ","Очная (с отрывом от производства)","2024-11-18","2024-11-22",null,null,"40",5,40,0,0,21,1,2,2,null,2,1,1,null,null,2,1,1,1,null,3,null,1,1,2]
[40136,"Вшивцева О.В.","УПЦ","Обучение ИТР","Строительный контроль за качеством строительства, реконструкции и капитального ремонта объектов магистральных газопроводов ООО «Газпром трансгаз Чайковский»  Модуль 8 «Проведение строительного контроля при выполнении строительно-монтажных работ на объектах магистральных  газопроводов»\n","Повышение квалификации","Подготовка","Другие целевые программы (строительный контроль)","1) - УПЦ","Очная (с отрывом от производства)","2024-11-11","2024-11-15",null,null,"40",5,40,0,0,2,{"$nulls":7},2]
[40135,"Вшивцева О.В.","УПЦ","Обучение ИТР","Строительный контроль за качеством строительства, реконструкции и капитального ремонта объектов магистральных газопроводов ООО «Газпром трансгаз Чайковский»  Модуль 10 «Проведение строительного контроля при выполнении работ \nпо защите магистральных газопроводов от коррозии»\n","Повышение квалификации","Подготовка","Другие целевые программы (строительный контроль)","1) - УПЦ","Очная (с отрывом от производства)","2024-10-28","2024-11-01",null,null,"40",5,40,0,0,19,null,2,null,1,1,3,2,null,null,1,3,2,2,null,1,{"$nulls":3},1]
[40134,"Вшивцева О.В.","УПЦ","Обучение ИТР","Строительный контроль за качеством строительства, реконструкции и капитального ремонта объектов магистральных газопроводов ООО «Газпром трансгаз Чайковский»  Модуль 8 «Проведение строительного контроля при выполнении строительно-монтажных работ на объектах магистральных\n газопроводов»\n","Повышение квалификации","Подготовка","Другие целевые программы (строительный контроль)","1) - УПЦ","Очная (с отрывом от производства)","2024-10-07","2024-10-11",null,null,"40",5,40,0,0,19,3,3,null,1,null,1,2,1,null,1,2,null,4,null,1]
[40133,"Вшивцева О.В.","УПЦ","Обучение ИТР","Строительный контроль за качеством строительства, реконструкции и капитального ремонта объектов ООО \"Газпром трансгаз Чайковский\" Модуль 1 \"Проведение строительного контроля за общестроительными работами на объектах магистральных газопроводов\"","Повышение квалификации","Подготовка","Другие целевые программы (строительный контроль)","1) - УПЦ","Очная (с отрывом от производства)","2024-09-30","2024-10-04",null,null,"40",5,40,0,0,10,1,1,1,2,null,1,null,3,{"$nulls":4},1]
[40132,"Вшивцева О.В.","УПЦ","Обучение ИТР","Строительный контроль за качеством строительства, реконструкции и капитального ремонта объектов магистральных газопроводов ООО «Газпром трансгаз Чайковский»  Модуль 9 «Проведение строительного контроля при выполнении сварочно-монтажных работ и неразрушающего контроля качества сварных соединений на объектах магистральных газопроводов»\n","Повышение квалификации","Подготовка","Другие целевые программы (строительный контроль)","1) - ДОТ (2 дня),       2) - в УПЦ (5 дней)","Очная (с отрывом от производства)","2024-09-19","2024-09-27",null,null,"40",7,56,0,0,17,3,3,{"$nulls":3},1,2,1,null,1,2,null,4]
[40131,"Вшивцева О.В.","УПЦ","Обучение ИТР","Строительный контроль за качеством строительства, реконструкции и капитального ремонта объектов магистральных газопроводов ООО «Газпром трансгаз Чайковский»  модуль 6 «Проведение строительного контроля при выполнении работ по монтажу систем связи и телекомму-никаций на объектах магистральных газопроводов»","Повышение квалификации","Подготовка","Другие целевые программы (строительный контроль)","1) - УПЦ","Очная (с отрывом от производства)","2024-09-16","2024-09-20",null,null,"40",5,40,0,0,15,null,1,null,4,1,2,2,null,null,1,2,null,1,null,null,1]
[40130,"Вшивцева О.В.","УПЦ","Обучение ИТР","Строительный контроль за качеством строительства, реконструкции и капитального ремонта объектов магистральных газопроводов ООО «Газпром трансгаз Чайковский»  Модуль 0 «Общие положения по ведению строительного контроля», «Производственная безопасность»","Повышение квалификации","Подготовка","Другие целевые программы (строительный контроль)","1) - ДОТ","Очная (с отрывом от производства)","2024-09-09","2024-09-13",null,null,"40",5,40,0,0,56,3,9,4,null,1,null,8,6,null,5,7,3,7,null,null,2,null,1]
[40129,"Вшивцева О.В.","УПЦ","Обучение ИТР","Строительный контроль за качеством строительства, реконструкции и капитального ремонта объектов ООО \"Газпром трансгаз Чайковский\" Модуль 1 \"Проведение строительного контроля за общестроительными работами на объектах магистральных газопроводов\"","Повышение квалификации","Подготовка","Другие целевые программы (строительный контроль)","1) - УПЦ","Очная (с отрывом от производства)","2024-07-01","2024-07-05",null,null,"40",5,40,0,0,13,null,null,1,2,{"$nulls":3},4,1,1,1,null,1,{"$nulls":3},1,1]
[40128,"Вшивцева О.В.","УПЦ","Обучение ИТР","Строительный контроль за качеством строительства, реконструкции и капитального ремонта объектов магистральных газопроводов ООО «Газпром трансгаз Чайковский»  Модуль 8 «Проведение строительного контроля при выполнении строительно-монтажных работ на объектах магистральных\n газопроводов»\n","Повышение квалификации","Подготовка","Другие целевые программы (строительный контроль)","1) - УПЦ","Очная (с отрывом от производства)","2024-06-17","2024-06-21",null,null,"40",5,40,0,0,30,2,2,5,null,null,2,1,4,null,4,2,1,3,null,2,{"$nulls":3},2]
[40127,"Вшивцева О.В.","УПЦ","Обучение ИТР","Строительный контроль за качеством строительства, реконструкции и капитального ремонта объектов магистральных газопроводов ООО «Газпром трансгаз Чайковский»  Модуль 9 «Проведение строительного контроля при выполнении сварочно-монтажных работ и неразрушающего контроля качества сварных соединений на объектах магистральных газопроводов»\n","Повышение квалификации","Подготовка","Другие целевые программы (строительный контроль)","1) - ДОТ (2 дня),       2) - УПЦ (5 дней)","Очная (с отрывом от производства)","2024-05-23","2024-05-31",null,null,"56",7,56,0,0,29,4,2,5,null,null,2,1,null,null,5,1,1,3,null,2,{"$nulls":3},3]
[40126,"Вшивцева О.В.","УПЦ","Обучение ИТР","Строительный контроль за качеством строительства, реконструкции и капитального ремонта объектов магистральных газопроводов ООО «Газпром трансгаз Чайковский»  Модуль 0 «Общие положения по ведению строительного контроля», «Производственная безопасность»","Повышение квалификации","Подготовка","Другие целевые программы (строительный контроль)","1) - ДОТ","Очная (с отрывом от производства)","2024-04-22","2024-04-26",null,null,"40",5,40,0,0,45,6,2,5,1,null,5,2,1,1,6,4,1,5,null,3,null,1,null,2]
[40112,"Лихошерстная Н.А.","УПЦ","Обучение рабочих","Слесарь - сантехник (без ПР)","Повышение квалификации (РАБ)","ПТК","(РАБ) Повышение квалификации на ПТК","1) - УПЦ\n2 - ДОТ","Очно-заочная ","2024-08-12","2024-08-23","2024-08-26","2024-10-04",320,10,80,30,240,12,null,1,null,null,2,2,{"$nulls":3},3,null,1,2,{"$nulls":5},1]
[40111,"Лихошерстная Н.А.","УПЦ","Обучение рабочих","Слесарь - сантехник (без ПР)","Повышение квалификации (РАБ)","ПТК","(РАБ) Повышение квалификации на ПТК","1) - УПЦ\n2-ДОТ","Очно-заочная ","2024-03-11","2024-03-22","2024-03-25","2024-05-07",320,10,80,30,240,18,2,1,{"$nulls":3},2,null,null,1,4,null,null,2,null,3,1,null,1,1]
[40110,"Лихошерстная Н.А.","УПЦ","Обучение рабочих","Слесарь - сантехник","Повышение квалификации (РАБ)","ПТК","(РАБ) Повышение квалификации на ПТК","1), 2), 3), 4) - УПЦ","Очная (с отрывом от производства)","2024-10-01","2024-10-25","2024-10-28","2024-11-25",320,19,152,21,168,12,1,null,1,null,2,2,1,2,null,1,{"$nulls":5},1,null,null,1]
[40108,"Лихошерстная Н.А.","УПЦ","Обучение рабочих","Оператор котельной","Повышение квалификации (РАБ)","ПТК","(РАБ) Повышение квалификации на ПТК","1), 2) ,3) - УПЦ","Очная (с отрывом от производства)","2024-06-18","2024-07-04","2024-07-05","2024-07-31",256,13,104,19,152,12,1,{"$nulls":3},1,2,1,1,null,1,{"$nulls":4},3,null,2]
[40107,"Лихошерстная Н.А.","УПЦ","Обучение рабочих","Лаборант химического анализа (без ПР)","Повышение квалификации (РАБ)","ПТК","(РАБ) Повышение квалификации на ПТК","1), 2) - УПЦ","Очная (с отрывом от производства)","2024-09-30","2024-10-11","2024-10-14","2024-12-10",416,10,80,42,336,19,null,1,1,null,2,4,2,null,null,4,1,1,1,null,1,{"$nulls":3},1]
[40105,"Лихошерстная Н.А.","УПЦ","Обучение рабочих","Стропальщик"," Обучение вторым/смежным профессиям"," 2-смежная","(РАБ) Обучение вторым (смежным) профессиям","1) - УПЦ","Очная (с отрывом от производства)","2024-04-08","2024-04-12","2024-04-15","2024-05-07",160,5,40,15,120,17,{"$nulls":6},2,4,null,null,3,null,1,null,2,2,2,null,1]
[40104,"Лихошерстная Н.А.","УПЦ","Обучение рабочих","Стропальщик"," Обучение вторым/смежным профессиям","  2-смежная","(РАБ) Обучение вторым (смежным) профессиям","1) - УПЦ","Очная (с отрывом от производства)","2024-03-25","2024-03-29","2024-04-01","2024-04-19",160,5,40,15,120,18,null,2,null,1,3,null,1,null,null,4,1,{"$nulls":3},1,1,4]
[40103,"Лихошерстная Н.А.","УПЦ","Обучение рабочих","Стропальщик"," Обучение вторым/смежным профессиям"," 2-смежная","(РАБ) Обучение вторым (смежным) профессиям","1) - УПЦ","Очная (с отрывом от производства)","2024-02-05","2024-02-09","2024-02-12","2024-03-04",160,5,40,15,120,20,null,1,null,3,2,1,null,2,null,2,null,null,1,null,2,2,2,null,2]
[40102,"Лихошерстная Н.А.","УПЦ","Обучение рабочих","Оператор котельной"," Обучение вторым/смежным профессиям"," 2-смежная","(РАБ) Обучение вторым (смежным) профессиям","1), 2), 3) -УПЦ","Очная (с отрывом от производства)","2024-05-21","2024-06-07","2024-06-10","2024-07-04",256,14,112,18,144,19,{"$nulls":3},1,2,1,2,null,null,1,1,null,7,null,3,{"$nulls":3},1]
[40096,"Вшивцева О.В.","УПЦ","Обучение ИТР","Строительный контроль за качеством строительства, реконструкции и капитального ремонта объектов магистральных газопроводов ООО «Газпром трансгаз Чайковский»  Модуль 9 «Проведение строительного контроля при выполнении сварочно-монтажных работ и неразрушающего контроля качества сварных соединений на объектах магистральных газопроводов»","Повышение квалификации","Подготовка","Другие целевые программы (строительный контроль)","1) - ДОТ (2 дня),       2) -  УПЦ  (5 дней)","Очная (с отрывом от производства)","2024-10-17","2024-10-25",null,null,"56",7,56,0,0,5,{"$nulls":3},1,{"$nulls":3},2,null,null,2]
[40091,"Марченкова Е.Н.","УПЦ","Обучение рабочих","Обучение персонала безопасным методам и приемам выполнения работ на высоте \"Работники 1,2 групп по безопасности работ на высоте\" (32 ч)","Повышение квалификации (РАБ)","КЦН","(РАБ) Курсы целевого назначения (в части получения допуска к работе на опасных производственных объектах)","1) - УПЦ","Очная (с отрывом от производства)","2024-10-14","2024-10-17",{"$nulls":3},5,32,0,0,20,null,2,null,5,{"$nulls":5},3,null,null,5,{"$nulls":4},1,4]
[40087,"Марченкова Е.Н.","УПЦ","Обучение рабочих","Обучение персонала безопасным методам и приемам выполнения работ на высоте \"Работники 1,2 групп по безопасности работ на высоте\" (24 ч)","Повышение квалификации (РАБ)","КЦН","(РАБ) Курсы целевого назначения (в части получения допуска к работе на опасных производственных объектах)","1) - УПЦ","Очная (с отрывом от производства)","2024-09-09","2024-09-11",null,null,"24",3,24,0,0,19,{"$nulls":9},11,null,3,{"$nulls":3},4,null,null,1]
[40083,"Марченкова Е.Н.","УПЦ","Обучение ИТР","Обучение руководителей и специалистов безопасным методам и приемам выполнения работ в ОЗП \"Работники 2, 3 групп по безопасности в ОЗП\"","Повышение квалификации","Подготовка","Предаттестационная подготовка по промышленной безопасности, экологической безопасности и др.","1) - УПЦ","Очная (с отрывом от производства)","2024-06-17","2024-06-19",null,null,"24",3,24,0,0,25,null,1,1,3,null,3,{"$nulls":8},2,9,1,4,1]
[40082,"Марченкова Е.Н.","УПЦ","Обучение рабочих","Обучение персонала безопасным методам и приемам выполнения работ на высоте \"Работники 1,2 групп по безопасности работ на высоте\" (32 ч)","Повышение квалификации (РАБ)","КЦН","(РАБ) Курсы целевого назначения (в части получения допуска к работе на опасных производственных объектах)","1) - УПЦ","Очная (с отрывом от производства)","2024-06-03","2024-06-06",null,null,"32",5,32,0,0,21,null,2,null,1,3,null,null,4,null,2,null,null,2,{"$nulls":5},7]
[40080,"Вшивцева О.В.","УПЦ","Обучение ИТР","Безопасная эксплуатация объектов электрохозяйства","Повышение квалификации","Подготовка","Предаттестационная подготовка по промышленной безопасности, экологической безопасности и др.","1), 2) - на рабочем месте (6  дней),  2) - УПЦ (2 дня)","Очная (с отрывом от производства)","2024-05-28","2024-06-05",null,null,"40",7,40,0,0,17,null,2,1,2,1,null,1,1,null,null,1,1,1,null,null,2,1,2,1]
[40079,"Вшивцева О.В.","УПЦ","Обучение ИТР","Безопасная эксплуатация объектов электрохозяйства","Повышение квалификации","Подготовка","Предаттестационная подготовка по промышленной безопасности, экологической безопасности и др.","1) - на рабочем месте (4 дня),  2) - УПЦ (3 дня)","Очная (с отрывом от производства)","2024-05-14","2024-05-22",null,null,"40",7,40,0,0,13,null,1,null,1,1,1,1,null,null,1,1,2,1,{"$nulls":3},1,1,1]
[40078,"Шестакова О.И.","УПЦ","Обучение ИТР","Эксплуатация и ТОиР камер приема-запуска ВТУ со всеми видами затворов и безопасное производство работ по запуску и приему ВТУ в рабочей среде","Повышение квалификации","Подготовка","Прочие технические (ГНВП, сварочное, противопожарные и т.д.)","1) - УПЦ","Очная (с отрывом от производства)","2024-06-04","2024-06-05",null,null,"16",2,16,0,0,14,null,1,3,1,1,3,1,{"$nulls":5},2,null,1,{"$nulls":3},1]
[40077,"Вшивцева О.В.","УПЦ","Обучение ИТР","Безопасная эксплуатация объектов электрохозяйства","Повышение квалификации","Подготовка","Предаттестационная подготовка по промышленной безопасности, экологической безопасности и др.","1) - на рабочем месте (4 дня),  2) - УПЦ (3 дня)","Очная (с отрывом от производства)","2024-04-09","2024-04-17",null,null,"40",7,40,0,0,14,null,1,null,null,1,null,2,null,2,1,1,1,1,null,2,null,1,1]
[40075,"Вшивцева О.В.","УПЦ","Обучение ИТР","Безопасная эксплуатация объектов электрохозяйства","Повышение квалификации","Подготовка","Предаттестационная подготовка по промышленной безопасности, экологической безопасности и др.","1) - на рабочем месте (4 дня),  2) - УПЦ (3 дня)","Очная (с отрывом от производства)","2024-04-02","2024-04-10",null,null,"40",7,40,0,0,17,null,null,2,2,1,2,null,1,null,1,1,1,1,null,2,1,null,null,2]
[40073,"Марченкова Е.Н.","УПЦ","Обучение ИТР","Обучение руководителей и специалистов безопасным методам и приемам выполнения работ в ОЗП \"Работники 2, 3 групп по безопасности в ОЗП\"","Повышение квалификации","Подготовка","Предаттестационная подготовка по промышленной безопасности, экологической безопасности и др.","1) - УПЦ","Очная (с отрывом от производства)","2024-04-01","2024-04-03",null,null,"24",3,24,0,0,34,null,1,2,4,null,3,{"$nulls":6},1,null,2,15,null,3,3]
[40072,"Шестакова О.И.","УПЦ","Обучение рабочих","Обходчик линейный (без ПР)","Повышение квалификации (РАБ)","ПТК","(РАБ) Повышение квалификации на ПТК","1) - УПЦ","Очная (с отрывом от производства)","2024-02-12","2024-02-16","2024-02-19","2024-03-28",256,5,40,27,216,11,null,null,2,null,2,1,{"$nulls":3},3,null,null,1,null,1,{"$nulls":3},1]
[40071,"Полякова Т.В.","УПЦ","Обучение ИТР","Безопасная эксплуатация объектов теплоснабжения и теплопотребляющих установок","Повышение квалификации","Подготовка","Предаттестационная подготовка по промышленной безопасности, экологической безопасности и др.","1) - на рабочем месте (4 дня),       2) - УПЦ (3 дня)","Очно-заочная","2024-04-16","2024-04-24",null,null,"40",7,40,0,0,16,null,2,null,2,null,1,2,null,null,1,2,1,2,null,null,1,null,2]
[40070,"Шестакова О.И.","УПЦ","Обучение рабочих","Трубопроводчик линейный (без ПР)","Повышение квалификации (РАБ)","ПТК","(РАБ) Повышение квалификации на ПТК","1) - УПЦ","Очная (с отрывом от производства)","2024-09-09","2024-09-13","2024-09-16","2024-10-04",160,5,40,15,120,12,null,2,null,null,4,null,1,null,null,2,null,2,1]
[40069,"Вшивцева О.В.","УПЦ","Обучение ИТР","Безопасная эксплуатация объектов теплоснабжения и теплопотребляющих установок","Повышение квалификации","Подготовка","Предаттестационная подготовка по промышленной безопасности, экологической безопасности и др.","1) - на рабочем месте (4 дня),       2) - УПЦ (3 дня)","Очно-заочная","2024-03-26","2024-04-03",null,null,"40",7,40,0,0,18,null,null,1,1,2,1,1,null,null,3,1,1,{"$nulls":3},3,1,3]
[40064,"Шестакова О.И.","УПЦ","Обучение рабочих","Трубопроводчик линейный (без ПР)","Повышение квалификации (РАБ)","ПТК","(РАБ) Повышение квалификации на ПТК","1) - УПЦ","Очная (с отрывом от производства)","2024-04-22","2024-04-26","2024-05-02","2024-05-24",160,5,40,15,120,16,null,1,null,null,4,2,1,null,null,5,null,1,2]
[40063,"Шестакова О.И.","УПЦ","Обучение рабочих","Трубопроводчик линейный","Повышение квалификации (РАБ)","ПТК","(РАБ) Повышение квалификации на ПТК","1), 2) - УПЦ","Очная (с отрывом от производства)","2024-01-29","2024-02-09","2024-02-12","2024-02-26",160,10,80,10,80,7,{"$nulls":4},2,3,{"$nulls":3},1,null,null,1]
[40060,"Шестакова О.И.","УПЦ","Обучение рабочих","Слесарь  по эксплуатации и ремонту газового  оборудования","Повышение квалификации (РАБ)","ПТК","(РАБ) Повышение квалификации на ПТК","1) - УПЦ","Очная (с отрывом от производства)","2024-05-13","2024-05-31","2024-06-03","2024-07-08","320",15,120,25,200,11,1,{"$nulls":6},1,{"$nulls":4},3,null,4,2]
[40059,"Марченкова Е.Н.","УПЦ","Обучение ИТР","Обучение руководителей и специалистов безопасным методам и приемам выполнения работ в ОЗП \"Работники 2, 3 групп по безопасности в ОЗП\"","Повышение квалификации","Подготовка","Предаттестационная подготовка по промышленной безопасности, экологической безопасности и др.","1) - УПЦ","Очная (с отрывом от производства)","2024-03-11","2024-03-13",null,null,"24",3,24,0,0,31,null,2,2,4,{"$nulls":3},6,null,null,1,null,3,null,3,7,null,2,1]
[40057,"Вшивцева О.В.","УПЦ","Обучение рабочих","Обучение персонала безопасным методам и приемам выполнения работ на высоте \"Работники 1,2 групп по безопасности работ на высоте\" (24 ч)","Повышение квалификации (РАБ)","КЦН","(РАБ) Курсы целевого назначения (в части получения допуска к работе на опасных производственных объектах)","1) - УПЦ","Очная (с отрывом от производства)","2024-02-19","2024-02-21",null,null,"24",3,24,0,0,26,{"$nulls":3},4,{"$nulls":3},8,2,null,null,3,{"$nulls":3},6,null,1,2]
[40051,"Вшивцева О.В.","УПЦ","Обучение рабочих","Обучение персонала безопасным методам и приемам выполнения работ на высоте \"Работники 1,2 групп по безопасности работ на высоте\" (24 ч)","Повышение квалификации (РАБ)","КЦН","(РАБ) Курсы целевого назначения (в части получения допуска к работе на опасных производственных объектах)","1) - УПЦ","Очная (с отрывом от производства)","2024-01-15","2024-01-17",null,null,"24",3,24,0,0,23,{"$nulls":3},2,{"$nulls":3},5,{"$nulls":3},4,{"$nulls":3},5,null,2,5]
[40050,"Вшивцева О.В.","УПЦ","Обучение ИТР","Строительный контроль за качеством строительства, реконструкции и капитального ремонта объектов магистральных газопроводов ООО «Газпром трансгаз Чайковский»  Модуль 8 «Проведение строительного контроля при выполнении строительно-монтажных работ на объектах магистральных\n газопроводов»","Повышение квалификации","Подготовка","Другие целевые программы (строительный контроль)","1) - УПЦ","Очная (с отрывом от производства)","2024-02-12","2024-02-16",null,null,"40",5,40,0,0,26,4,1,null,1,2,2,1,6,null,2,3,1,1,{"$nulls":5},2]
[40049,"Вшивцева О.В.","УПЦ","Обучение ИТР","Строительный контроль за качеством строительства, реконструкции и капитального ремонта объектов магистральных газопроводов ООО «Газпром трансгаз Чайковский»  Модуль 9 «Проведение строительного контроля при выполнении сварочно-монтажных работ и неразрушающего контроля качества сварных соединений на объектах магистральных газопроводов»","Повышение квалификации","Подготовка","Другие целевые программы (строительный контроль)","1) - ДОТ (2 дня),       2) - УПЦ ( 5дней)","Очная (с отрывом от производства)","2024-02-01","2024-02-09",null,null,"56",7,56,0,0,26,3,1,null,1,2,2,1,10,null,1,2,1,1,{"$nulls":5},1]
[40048,"Вшивцева О.В.","УПЦ","Обучение ИТР","Строительный контроль за качеством строительства, реконструкции и капитального ремонта объектов магистральных газопроводов ООО «Газпром трансгаз Чайковский»  Модуль 0 «Общие положения по ведению строительного контроля», «Производственная безопасность»","Повышение квалификации","Подготовка","Другие целевые программы (строительный контроль)","1) - ДОТ","Очная (с отрывом от производства)","2024-01-15","2024-01-19",null,null,"40",5,40,0,0,24,null,2,null,null,3,1,1,4,null,null,3,1,1,{"$nulls":3},2,3,3]
[40041,"Вшивцева О.В.","УПЦ","Обучение ИТР","Строительный контроль за качеством строительства, реконструкции и капитального ремонта объектов магистральных газопроводов ООО «Газпром трансгаз Чайковский»  Модуль 0 «Общие положения по ведению строительного контроля», «Производственная безопасность»","Повышение квалификации","Подготовка","Периодическое обучение по плану общеста/организации (руководители, специалисты, рабочие)","ДОТ","Очная (с отрывом от производства)","2024-02-26","2024-03-01",null,null,"40",5,40,0,0,31,1,null,null,5,3,7,null,2,null,1,2,1,null,null,4,{"$nulls":3},5]
[40040,"Вшивцева О.В.","УПЦ","Обучение ИТР","Строительный контроль за качеством строительства, реконструкции и капитального ремонта объектов ООО \"Газпром трансгаз Чайковский\" Модуль 1 \"Проведение строительного контроля за общестроительны-ми работами на объектах магистральных газопроводов\"","Повышение квалификации","Подготовка","Другие целевые программы (строительный контроль)","1) - УПЦ","Очная (с отрывом от производства)","2024-01-22","2024-01-26",null,null,"40",5,40,0,0,17,null,1,null,1,null,1,null,7,null,null,1,1,1,{"$nulls":4},3,1]
[40039,"Вшивцева О.В.","УПЦ","Обучение рабочих","Обучение персонала безопасным методам и приемам выполнения работ на высоте \"Работники 1,2 групп по безопасности работ на высоте\" (32 ч)","Повышение квалификации (РАБ)","КЦН","(РАБ) Курсы целевого назначения (в части получения допуска к работе на опасных производственных объектах)","1) - УПЦ","Очная (с отрывом от производства)","2024-02-05","2024-02-08",null,null,"32",5,32,0,0,30,null,2,5,3,1,3,null,5,null,3,null,4,{"$nulls":5},4]
[40038,"Вшивцева О.В.","УПЦ","Обучение ИТР","Безопасная эксплуатация объектов теплоснабжения и теплопотребляющих установок","Повышение квалификации","Подготовка","Предаттестационная подготовка по промышленной безопасности, экологической безопасности и др.","1)-на рабочем месте (4 дня),       2) УПЦ (3 дня)","Очно-заочная","2024-01-30","2024-02-07",null,null,"40",7,40,0,0,21,null,1,1,null,1,4,2,null,null,2,1,2,3,null,1,null,1,1,1]
[40037,"Вшивцева О.В.","УПЦ","Обучение ИТР","Безопасная эксплуатация объектов теплоснабжения и теплопотребляющих установок","Повышение квалификации","Подготовка","Предаттестационная подготовка по промышленной безопасности, экологической безопасности и др.","1) - на рабочем месте (4 дня),       2) - УПЦ (3 дня)","Очно-заочная","2024-01-23","2024-01-31",null,null,"40",7,40,0,0,12,{"$nulls":3},1,1,1,2,null,2,null,1,null,1,null,1,1,null,null,1]
[40028,"Марченкова Е.Н.","Алмазное ЛПУ МГ","Обучение рабочих","Обучение персонала безопасным методам и приемам выполнения работ на высоте \"Работники 1,2 групп по безопасности работ на высоте\" (24 ч)","Повышение квалификации (РАБ)","КЦН","(РАБ) Курсы целевого назначения (в части получения допуска к работе на опасных производственных объектах)","1) - филиал","Очная (с отрывом от производства)","2024-11-11","2024-11-13",null,null,"24",3,24,0,0,14,null,12,{"$nulls":12},2]
[40026,"Полякова Т.В.","УПЦ","Обучение ИТР","Требования промышленной безопасности","Повышение квалификации","Подготовка","Предаттестационная подготовка по промышленной безопасности, экологической безопасности и др.","1, 2, 3 - на рабочем месте","Очно-заочная","2024-09-09","2024-09-27",null,null,"60",15,60,0,0,19,3,{"$nulls":3},3,8,{"$nulls":3},1,3,1]
[40025,"Шестакова О.И.","УПЦ","Обучение рабочих","Оператор газораспределительной станции","Повышение квалификации (РАБ)","ПТК ","(РАБ) Повышение квалификации на ПТК","1), 2), 3) -УПЦ, 4) - ДОТ","Очная (с отрывом от производства)","2024-10-01","2024-10-23","2024-10-24","2024-11-27","416",17,136,35,280,9,{"$nulls":3},1,4,null,1,null,null,1,2]
[40023,"Шестакова О.И.","УПЦ","Обучение рабочих","Изолировщик-пленочник","Переподготовка (РАБ)","КПП","(РАБ) Переподготовка","1) - УПЦ","Очная (с отрывом от производства)","2024-10-21","2024-10-25","2024-10-28","2024-11-15","160",5,40,15,120,12,null,2,3,null,5,{"$nulls":7},2]
[40022,"Шестакова О.И.","УПЦ","Обучение рабочих","Технология и безопасное проведение работ по запуску и приему ВТУ в рабочей среде на камерах запуска-приема со всеми видами затворов. Эксплуатация камер запуска-приема ВТУ (без ПР)","Повышение квалификации (РАБ)","КЦН","(РАБ) Курсы целевого назначения (в части получения допуска к работе на опасных производственных объектах)","1) - УПЦ","Очная (с отрывом от производства)","2024-06-06","2024-06-07",null,null,"16",2,16,0,0,17,null,null,5,null,4,1,{"$nulls":3},1,null,2,4]
[40021,"Шестакова О.И.","УПЦ","Обучение рабочих","Технология и безопасное проведение работ по запуску и приему ВТУ в рабочей среде на камерах запуска-приема со всеми видами затворов. Эксплуатация камер запуска-приема ВТУ","Повышение квалификации (РАБ)","КЦН","(РАБ) Курсы целевого назначения (в части получения допуска к работе на опасных производственных объектах)","1) - УПЦ","Очная (с отрывом от производства)","2024-04-17","2024-04-18",null,null,"16",2,16,0,0,18,null,null,5,2,3,1,{"$nulls":3},1,null,2,4]
[40020,"Шестакова О.И.","УПЦ","Обучение рабочих","Оператор газораспределительной станции","Переподготовка (РАБ)","КПП","(РАБ) Переподготовка","1), 2), 3) - УПЦ, 4) - ДОТ","Очная (с отрывом от производства)","2024-01-30","2024-02-22","2024-02-26","2024-04-12","416",18,144,34,272,11,null,3,null,2,3,null,1,{"$nulls":4},1,{"$nulls":6},1]
[40019,"Шестакова О.И.","УПЦ","Обучение рабочих","Рабочий люльки по управлению подъемником (вышкой) из люльки","Повышение квалификации (РАБ)","КЦН","(РАБ) Курсы целевого назначения (в части получения допуска к работе на опасных производственных объектах)","1) - УПЦ","Очная (с отрывом от производства)","2024-11-12","2024-11-14",null,null,"24",3,24,0,0,18,null,2,2,1,2,2,1,{"$nulls":5},1,null,4,1,2]
[40017,"Шестакова О.И.","Кунгурское ЛПУ МГ","Обучение рабочих","Рабочий люльки по управлению подъемником (вышкой) из люльки","Повышение квалификации (РАБ)","КЦН","(РАБ) Курсы целевого назначения (в части получения допуска к работе на опасных производственных объектах)","1) - филиал","Очная (с отрывом от производства)","2024-10-15","2024-10-17",null,null,"24",3,24,0,0,16,null,1,{"$nulls":3},2,1,null,null,8,1,1,{"$nulls":4},2]
[40016,"Шестакова О.И.","УПЦ","Обучение рабочих","Рабочий люльки по управлению подъемником (вышкой) из люльки","Повышение квалификации (РАБ)","КЦН","(РАБ) Курсы целевого назначения (в части получения допуска к работе на опасных производственных объектах)","1) - УПЦ","Очная (с отрывом от производства)","2024-09-03","2024-09-05",null,null,"24",3,24,0,0,14,null,2,null,null,2,1,1,1,null,null,2,2,null,null,1,1,null,null,1]
[40000,"Бахарева И.С.","УПЦ","Обучение ИТР","Обслуживание и эксплуатация трубопроводной арматуры","Повышение квалификации","Подготовка","Прочие технические (ГНВП, сварочное, противопожарные и т.д.)","1) - УПЦ","Очная (с отрывом от производства)","2024-05-20","2024-05-24",null,null,"40",10,40,0,0,21,2,null,3,null,3,4,{"$nulls":3},2,1,null,4,null,1,{"$nulls":3},1]
[39999,"Бахарева И.С.","УПЦ","Обучение ИТР","Требования промышленной безопасности к оборудованию, работающему под давлением","Повышение квалификации","Подготовка","Предаттестационная подготовка по промышленной безопасности, экологической безопасности и др.","1),2) - на рабочем месте","Заочная","2024-04-08","2024-04-19",null,null,"40",10,40,0,0,17,{"$nulls":4},2,3,1,3,{"$nulls":4},2,null,1,null,2,null,3]
[39998,"Бахарева И.С.","УПЦ","Обучение рабочих","Машинист технологических компрессоров (без ПР)","Повышение квалификации (РАБ)","ПТК","(РАБ) Повышение квалификации на ПТК","1),2) - УПЦ","Очная (с отрывом от производства)","2024-10-21","2024-11-01","2024-11-02","2024-12-13","320",10,80,30,240,18,null,2,null,null,4,4,1,null,null,3,null,null,3,null,1]
[39997,"Бахарева И.С.","УПЦ","Обучение рабочих","Машинист технологических компрессоров (без ПР)","Повышение квалификации (РАБ)","ПТК","(РАБ) Повышение квалификации на ПТК","1),2) - УПЦ","Очная (с отрывом от производства)","2024-06-17","2024-06-28","2024-07-01","2024-08-09","320",10,80,30,240,16,null,2,{"$nulls":3},5,2,null,null,4,null,null,1,null,2]
[39996,"Бахарева И.С.","УПЦ","Обучение рабочих","Машинист технологических компрессоров (без ПР)","Повышение квалификации (РАБ)","ПТК","(РАБ) Повышение квалификации на ПТК","1),2) - УПЦ","Очная (с отрывом от производства)","2024-04-15","2024-04-26","2024-04-27","2024-06-14","320",10,80,30,240,18,null,2,null,null,3,5,2,null,null,4,{"$nulls":4},2]
[39995,"Бахарева И.С.","УПЦ","Обучение рабочих","Машинист технологических компрессоров (без ПР)","Повышение квалификации (РАБ)","ПТК","(РАБ) Повышение квалификации на ПТК","1),2) - УПЦ","Очная (с отрывом от производства)","2024-04-01","2024-04-12","2024-04-15","2024-05-30","320",10,80,30,240,16,null,1,3,null,null,6,{"$nulls":3},4,null,1,1]
[39994,"Бахарева И.С.","УПЦ","Обучение рабочих","Машинист технологических компрессоров (без ПР)","Повышение квалификации (РАБ)","ПТК","(РАБ) Повышение квалификации на ПТК","1),2) - УПЦ","Очная (с отрывом от производства)","2024-02-05","2024-02-16","2024-02-19","2024-04-02","320",10,80,30,240,14,null,3,{"$nulls":3},2,1,null,null,4,null,null,2,null,2]
[39993,"Бахарева И.С.","УПЦ","Обучение рабочих","Машинист технологических компрессоров (без ПР)","Повышение квалификации (РАБ)","ПТК","(РАБ) Повышение квалификации на ПТК","1),2) - УПЦ","Очная (с отрывом от производства)","2024-01-15","2024-01-26","2024-01-29","2024-03-12","320",10,80,30,240,24,{"$f":"SUM(W154,X154,Y154,Z154,AA154,AB154,AE154,AF154,AG154,AH154,AJ154,AL154)","v":6},3,null,null,4,{"$nulls":4},5,null,null,2,null,2,{"$nulls":3},2]
[39992,"Бахарева И.С.","УПЦ","Обучение рабочих","Машинист технологических компрессоров","Повышение квалификации (РАБ)","ПТК","(РАБ) Повышение квалификации на ПТК","1),2),3) - УПЦ","Очная (с отрывом от производства)","2024-09-30","2024-10-18","2024-10-21","2024-11-22","320",15,120,25,200,18,{"$f":"SUM(W155,X155,Y155,Z155,AA155,AB155,AE155,AF155,AG155,AH155,AJ155,AL155)","v":6},null,2,null,null,1,3,null,null,2,{"$nulls":4},1,{"$nulls":3},3]
[39991,"Бахарева И.С.","УПЦ","Обучение рабочих","Машинист технологических компрессоров","Повышение квалификации (РАБ)","ПТК","(РАБ) Повышение квалификации на ПТК","1),2),3) - УПЦ","Очная (с отрывом от производства)","2024-03-11","2024-03-29","2024-04-01","2024-05-07","320",15,120,25,200,17,{"$f":"SUM(W156,X156,Y156,Z156,AA156,AB156,AE156,AF156,AG156,AH156,AJ156,AL156)","v":12},null,4,null,2,2,3,null,null,2,null,1,null,null,1,{"$nulls":3},2]
[39990,"Бахарева И.С.","УПЦ","Обучение рабочих","Обслуживание и эксплуатация трубопроводной арматуры","Повышение квалификации (РАБ)","КЦН","Другие целевые программы (руководители, специалисты, рабочие)","1) - УПЦ","Очная (с отрывом от производства)","2024-09-16","2024-09-20",null,null,"40",5,40,0,0,18,{"$nulls":4},2,3,1,null,null,3,null,null,1,{"$nulls":5},8]
[39989,"Бахарева И.С.","УПЦ","Обучение рабочих","Обслуживание и эксплуатация трубопроводной арматуры","Повышение квалификации (РАБ)","КЦН","Другие целевые программы (руководители, специалисты, рабочие)","1) - УПЦ","Очная (с отрывом от производства)","2024-02-26","2024-03-01",null,null,"40",5,40,0,0,18,null,2,{"$nulls":3},2,null,2,null,4,2,null,3,null,2,{"$nulls":3},1]
[39988,"Бахарева И.С.","УПЦ","Обучение рабочих","Правила промышленной безопасности опасных производственных объектов, на которых используется оборудование, работающее под избыточным давлением (сосуды, цистерны, бочки, баллоны)","Повышение квалификации (РАБ)","КЦН","(РАБ) Курсы целевого назначения (в части получения допуска к работе на опасных производственных объектах)","1) - УПЦ","Очная (с отрывом от производства)","2024-03-25","2024-03-28",null,null,"32",4,32,0,0,26,{"$nulls":5},4,1,7,null,3,2,{"$nulls":3},2,1,3,null,3]
[39987,"Бахарева И.С.","УПЦ","Обучение рабочих","Правила промышленной безопасности опасных производственных объектов, на которых используется оборудование, работающее под избыточным давлением (сосуды, цистерны, бочки, баллоны)","Повышение квалификации (РАБ)","КЦН","(РАБ) Курсы целевого назначения (в части получения допуска к работе на опасных производственных объектах)","1) - УПЦ","Очная (с отрывом от производства)","2024-01-29","2024-02-01",null,null,"32",4,32,0,0,23,null,null,3,null,3,3,1,4,null,1,1,{"$nulls":5},2,null,5]
[39985,"Бахарева И.С.","УПЦ","Обучение рабочих","Машинист технологических компрессоров","Переподготовка (РАБ)","КПП","(РАБ) Переподготовка","1),2),3),4) - УПЦ","Очная (с отрывом от производства)","2024-05-13","2024-06-07","2024-06-10","2024-07-11",344,20,160,23,184,5,{"$nulls":5},1,{"$nulls":12},4]
[39975,"Марченкова Е.Н.","Горнозаводское ЛПУ МГ","Обучение рабочих","Обучение персонала безопасным методам и приемам выполнения работ на высоте \"Работники 1,2 групп по безопасности работ на высоте\" (24 ч)","Повышение квалификации (РАБ)","КЦН","(РАБ) Курсы целевого назначения (в части получения допуска к работе на опасных производственных объектах)","1) - филиал","Очная (с отрывом от производства)","2024-09-09","2024-09-11",null,null,24,3,24,0,0,30,{"$nulls":5},30]
[39924,"Полякова Т.В.","УПЦ","Обучение ИТР","Поведенческий аудит безопасности. Правила проведения","Повышение квалификации","Подготовка","Другие целевые программы (руководители, специалисты, рабочие)","1) - ДОТ","Очная (с отрывом от производства)","2024-06-03","2024-06-05",null,null,24,3,24,0,0,42,null,5,4,1,null,5,2,{"$nulls":3},15,{"$nulls":4},6,null,null,4]
[39921,"Марченкова Е.Н.","УАВР №2","Обучение рабочих","Обучение персонала безопасным методам и приемам выполнения работ на высоте \"Работники 1,2 групп по безопасности работ на высоте\" (24 ч)","Повышение квалификации (РАБ)","КЦН","(РАБ) Курсы целевого назначения (в части получения допуска к работе на опасных производственных объектах)","1) - филиал","Очная (с отрывом от производства)","2024-05-27","2024-05-29",null,null,24,3,24,0,0,11,{"$nulls":16},11]
[39920,"Марченкова Е.Н.","Увинское ЛПУ МГ","Обучение рабочих","Обучение персонала безопасным методам и приемам выполнения работ на высоте \"Работники 1,2 групп по безопасности работ на высоте\" (24 ч)","Повышение квалификации (РАБ)","Подготовка","(РАБ) Курсы целевого назначения (в части получения допуска к работе на опасных производственных объектах)","1) - филиал","Очная (с отрывом от производства)","2024-05-20","2024-05-22",null,null,24,3,24,0,0,11,{"$nulls":14},11]
[39918,"Полякова Т.В.","УПЦ","Обучение ИТР","Требования промышленной безопасности","Повышение квалификации","Подготовка","Предаттестационная подготовка по промышленной безопасности, экологической безопасности и др.","1), 2), 3) - на рабочем месте","Заочная ","2024-04-01","2024-04-19",null,null,60,15,60,0,0,30,3,{"$nulls":3},5,14,null,1,null,1,5,{"$nulls":7},1]
[39917,"Марченкова Е.Н.","Пермское ЛПУ МГ","Обучение рабочих","Обучение персонала безопасным методам и приемам выполнения работ на высоте \"Работники 1,2 групп по безопасности работ на высоте\" (24 ч)","Повышение квалификации (РАБ)","КЦН","(РАБ) Курсы целевого назначения (в части получения допуска к работе на опасных производственных объектах)","1) - филиал","Очная (с отрывом от производства)","2024-04-22","2024-04-24",null,null,24,3,24,0,0,11,{"$nulls":12},11]
[39916,"Марченкова Е.Н.","Гремячинское ЛПУ МГ","Обучение рабочих","Обучение персонала безопасным методам и приемам выполнения работ на высоте \"Работники 1,2 групп по безопасности работ на высоте\" (24 ч)","Повышение квалификации (РАБ)","КЦН","(РАБ) Курсы целевого назначения (в части получения допуска к работе на опасных производственных объектах)","1) - филиал","Очная (с отрывом от производства)","2024-04-15","2024-04-17",null,null,24,3,24,0,0,20,{"$nulls":6},20]
[39915,"Марченкова Е.Н.","Кунгурское ЛПУ МГ","Обучение рабочих","Обучение персонала безопасным методам и приемам выполнения работ на высоте \"Работники 1,2 групп по безопасности работ на высоте\" (24 ч)","Повышение квалификации (РАБ)","КЦН","(РАБ) Курсы целевого назначения (в части получения допуска к работе на опасных производственных объектах)","1) - филиал","Очная (с отрывом от производства)","2024-04-22","2024-04-24",null,null,24,3,24,0,0,13,{"$nulls":9},10,{"$nulls":4},2,null,null,1]
[39914,"Марченкова Е.Н.","Воткинское ЛПУ МГ","Обучение рабочих","Обучение персонала безопасным методам и приемам выполнения работ на высоте \"Работники 1,2 групп по безопасности работ на высоте\" (24 ч)","Повышение квалификации (РАБ)","КЦН","(РАБ) Курсы целевого назначения (в части получения допуска к работе на опасных производственных объектах)","1) - филиал","Очная (с отрывом от производства)","2024-04-08","2024-04-10",null,null,24,3,24,0,0,14,{"$nulls":4},13,{"$nulls":9},1]
[39913,"Марченкова Е.Н.","Кунгурское ЛПУ МГ","Обучение рабочих","Обучение персонала безопасным методам и приемам выполнения работ на высоте \"Работники 1,2 групп по безопасности работ на высоте\" (24 ч)","Повышение квалификации (РАБ)","КЦН","(РАБ) Курсы целевого назначения (в части получения допуска к работе на опасных производственных объектах)","1) - филиал","Очная (с отрывом от производства)","2024-04-01","2024-04-03",null,null,24,3,24,0,0,16,{"$nulls":9},16]
[39911,"Марченкова Е.Н.","Гремячинсоке ЛПУ МГ","Обучение рабочих","Обучение персонала безопасным методам и приемам выполнения работ на высоте \"Работники 1,2 групп по безопасности работ на высоте\" (24 ч)","Повышение квалификации (РАБ)","КЦН","(РАБ) Курсы целевого назначения (в части получения допуска к работе на опасных производственных объектах)","1) - филиал","Очная (с отрывом от производства)","2024-03-25","2024-03-27",null,null,24,3,24,0,0,23,{"$nulls":6},23]
[39910,"Марченкова Е.Н.","Бардымское ЛПУ МГ","Обучение рабочих","Обучение персонала безопасным методам и приемам выполнения работ на высоте \"Работники 1,2 групп по безопасности работ на высоте\" (24 ч)","Повышение квалификации (РАБ)","КЦН","(РАБ) Курсы целевого назначения (в части получения допуска к работе на опасных производственных объектах)","1) - филиал","Очная (с отрывом от производства)","2024-03-18","2024-03-20",null,null,24,3,24,0,0,9,null,null,8,{"$nulls":11},1]
[39909,"Марченкова Е.Н.","Алмазное ЛПУ МГ","Обучение рабочих","Обучение персонала безопасным методам и приемам выполнения работ на высоте \"Работники 1,2 групп по безопасности работ на высоте\" (24 ч)","Повышение квалификации (РАБ)","КЦН","(РАБ) Курсы целевого назначения (в части получения допуска к работе на опасных производственных объектах)","1) - филиал","Очная (с отрывом от производства)","2024-03-11","2024-03-13",null,null,24,3,24,0,0,16,null,11,null,null,1,null,null,4]
[39908,"Марченкова Е.Н.","Можгинское ЛПУ МГ","Обучение рабочих","Обучение персонала безопасным методам и приемам выполнения работ на высоте \"Работники 1,2 групп по безопасности работ на высоте\" (24 ч)","Повышение квалификации (РАБ)","КЦН","(РАБ) Курсы целевого назначения (в части получения допуска к работе на опасных производственных объектах)","1) - филиал","Очная (с отрывом от производства)","2024-03-11","2024-03-13",null,null,24,3,24,0,0,15,{"$nulls":10},13,{"$nulls":6},2]
[39907,"Полякова Т.В.","УПЦ","Обучение ИТР","Поведенческий аудит безопасности. Правила проведения","Повышение квалификации","Подготовка","Другие целевые программы (руководители, специалисты, рабочие)","1) - ДОТ","Очная (с отрывом от производства)","2024-03-04","2024-03-06",null,null,24,3,24,0,0,48,null,5,4,2,1,2,1,1,null,1,18,null,1,null,null,6,2,null,4]
[39906,"Полякова Т.В.","УПЦ","Обучение ИТР","Требования промышленной безопасности","Повышение квалификации","Подготовка","Предаттестационная подготовка по промышленной безопасности, экологической безопасности и др.","1), 2), 3) - на рабочем месте","Заочная ","2024-01-15","2024-02-02",null,null,60,15,60,0,0,30,null,null,1,4,2,10,null,1,null,1,null,6,{"$nulls":3},2,null,null,3]
[39905,"Полякова Т.В.","Гремячинское ЛПУ МГ","Обучение рабочих","Обучение персонала безопасным методам и приемам выполнения работ на высоте \"Работники 1,2 групп по безопасности работ на высоте\" (24 ч)","Повышение квалификации (РАБ)","КЦН","(РАБ) Курсы целевого назначения (в части получения допуска к работе на опасных производственных объектах)","1) - филиал","Очная (с отрывом от производства)","2024-02-12","2024-02-14",null,null,24,3,24,0,0,21,{"$nulls":6},21]
[39904,"Полякова Т.В.","Горнозаводское ЛПУ МГ","Обучение рабочих","Обучение персонала безопасным методам и приемам выполнения работ на высоте \"Работники 1,2 групп по безопасности работ на высоте\" (24 ч)","Повышение квалификации (РАБ)","КЦН","(РАБ) Курсы целевого назначения (в части получения допуска к работе на опасных производственных объектах)","1) - филиал","Очная (с отрывом от производства)","2024-02-05","2024-02-07",null,null,"24",3,24,0,0,29,{"$nulls":5},29]
[39898,"Карачурин М.Г.","УПЦ","Обучение рабочих","Электромонтер линейных сооружений телефонной связи и радиофикации","Повышение квалификации (РАБ)","ПТК","(РАБ) Повышение квалификации на ПТК","1), 2) -УПЦ","Очная (с отрывом от производства)","2024-09-16","2024-09-27","2024-09-30","2024-10-29",256,10,80,22,176,12,null,1,1,null,null,1,null,1,null,1,null,1,3,null,1,{"$nulls":3},2]
[39897,"Карачурин М.Г.","УПЦ","Обучение ИТР","Организация технической эксплуатации цифровых систем связи","Повышение квалификации","Подготовка","Периодическое обучение по плану общеста/организации (руководители, специалисты, рабочие)","1) - УПЦ","Очная (с отрывом от производства)","2024-09-02","2024-09-06",null,null,40,5,40,0,0,12,1,null,1,null,2,1,{"$nulls":3},2,null,null,3,null,1,{"$nulls":3},1]
[39896,"Карачурин М.Г.","УПЦ","Обучение ИТР","Диспетчерское управление технологическими процессами в транспорте газа","Повышение квалификации","Подготовка","Прочие технические (ГНВП, сварочное, противопожарные и т.д.)","1), 2) -УПЦ","Очная (с отрывом от производства)","2024-10-14","2024-10-25",null,null,72,9,72,0,0,13,1,1,2,null,1,1,1,null,null,1,1,2,1,{"$nulls":5},1]
[39895,"Карачурин М.Г.","УПЦ","Обучение рабочих","Электромонтер станционного оборудования телефонной связи","Повышение квалификации (РАБ)","ПТК","(РАБ) Повышение квалификации на ПТК","1), 2) -УПЦ","Очная (с отрывом от производства)","2024-05-13","2024-05-24","2024-05-27","2024-07-24",416,10,80,42,328,11,null,1,2,null,1,2,{"$nulls":3},1,null,null,3,null,1]
[39894,"Карачурин М.Г.","УПЦ","Обучение рабочих","Электромонтер по ремонту воздушных линий электропередачи","Повышение квалификации (РАБ)","ПТК","(РАБ) Повышение квалификации на ПТК","1), 2) -УПЦ","Очная (с отрывом от производства)","2024-04-15","2024-04-26","2024-04-29","2024-06-28",400,10,76,40,316,14,null,2,1,1,1,1,1,null,null,1,1,null,2,null,1,null,1,null,1]
[39893,"Карачурин М.Г.","УПЦ","Обучение рабочих","Монтер по защите подземных трубопроводов от коррозии","Повышение квалификации (РАБ)","ПТК","(РАБ) Повышение квалификации на ПТК","1), 2) - УПЦ","Очная (с отрывом от производства)","2024-04-01","2024-04-12","2024-04-15","2024-07-04",480,10,80,50,400,15,null,1,null,1,4,1,2,null,null,1,2,null,1,null,1,{"$nulls":3},1]
[39891,"Карачурин М.Г.","УПЦ","Обучение ИТР","Эксплуатация оборудования критической информационной инфраструктуры","Повышение квалификации","Подготовка","Периодическое обучение по плану общеста/организации (руководители, специалисты, рабочие)","1) - УПЦ","Очная (с отрывом от производства)","2024-02-28","2024-02-29",null,null,16,2,16,0,0,12,null,null,2,2,null,1,{"$nulls":3},1,1,2,3]
[39890,"Карачурин М.Г.","УПЦ","Обучение ИТР","Эксплуатация цифровой АТС Si-2000","Повышение квалификации","Подготовка","Периодическое обучение по плану общеста/организации (руководители, специалисты, рабочие)","1), 2) - УПЦ","Очная (с отрывом от производства)","2024-03-11","2024-03-22",null,null,72,9,72,0,0,7,null,null,1,null,2,1,null,1,{"$nulls":4},1,{"$nulls":5},1]
[39889,"Карачурин М.Г.","УПЦ","Обучение рабочих","Слесарь по контрольно-измерительным приборам и автоматике (без ПР)","Повышение квалификации (РАБ)","ПТК","(РАБ) Повышение квалификации на ПТК","1), 2) - УПЦ","Очная (с отрывом от производства)","2024-09-30","2024-10-11","2024-10-14","2024-12-02",336,10,112,34,268,12,null,2,null,2,1,1,{"$nulls":3},3,null,null,1,null,1,{"$nulls":3},1]
[39888,"Карачурин М.Г.","УПЦ","Обучение рабочих","Слесарь по контрольно-измерительным приборам и автоматике (без ПР)","Повышение квалификации (РАБ)","ПТК","(РАБ) Повышение квалификации на ПТК","1), 2) - УПЦ","Очная (с отрывом от производства)","2024-09-02","2024-09-13","2024-09-16","2024-11-02",336,10,112,34,268,18,1,2,1,null,2,2,2,null,null,3,null,1,2,{"$nulls":5},2]
[39887,"Карачурин М.Г.","УПЦ","Обучение рабочих","Слесарь по контрольно-измерительным приборам и автоматике (без ПР)","Повышение квалификации (РАБ)","ПТК","(РАБ) Повышение квалификации на ПТК","1), 2) - УПЦ","Очная (с отрывом от производства)","2024-03-18","2024-03-29","2024-04-01","2024-05-24",336,10,112,34,268,18,null,1,2,null,2,2,2,null,null,3,null,null,2,null,1,{"$nulls":3},3]
[39886,"Карачурин М.Г.","УПЦ","Обучение рабочих","Слесарь по контрольно-измерительным приборам и автоматике","Повышение квалификации (РАБ)","ПТК","(РАБ) Повышение квалификации на ПТК","1), 2), 3) - УПЦ","Очная (с отрывом от производства)","2024-01-29","2024-02-16","2024-02-19","2024-04-03",336,15,120,30,236,9,{"$nulls":4},1,3,1,1,{"$nulls":8},1,null,2]
[39798,"Шкапенко А.А.","УПЦ","Обучение рабочих","Специальная подготовка специалистов сварочного производства II уровень (первичная аттестация)","Повышение квалификации","СП","Прочие технические (ГНВП, сварочное, противопожарные и т.д.)","УПЦ","Очная (с отрывом от производства)","2024-12-03","2024-12-12",null,null,"64",8,64,0,0,7,null,1,{"$nulls":10},2,null,1,1,2]
[39797,"Шкапенко А.А.","УПЦ","Обучение рабочих","Специальная подготовка специалистов сварочного производства II-III уровень","Повышение квалификации","СП","Прочие технические (ГНВП, сварочное, противопожарные и т.д.)","УПЦ","Очная (с отрывом от производства)","2024-03-26","2024-03-29",null,null,"32",4,32,0,0,14,{"$nulls":3},1,null,2,null,2,{"$nulls":4},2,null,null,4,3]
[39796,"Шкапенко А.А.","УПЦ","Обучение рабочих","Специальная подготовка специалистов сварочного производства II-III уровень","Повышение квалификации","СП","Прочие технические (ГНВП, сварочное, противопожарные и т.д.)","1) - УПЦ","Очная (с отрывом от производства)","2024-03-19","2024-03-22",null,null,"32",4,32,0,0,14,null,null,1,2,null,2,null,1,null,null,1,null,1,null,null,5,1]
[39795,"Шкапенко А.А.","УПЦ","Обучение рабочих","Монтажник наружных трубопроводов","Повышение квалификации (РАБ)","ПТК","(РАБ) Повышение квалификации на ПТК","1), 2) - УПЦ","Очная (с отрывом от производства)","2024-10-07","2024-10-17","2024-10-18","2024-11-20","256",9,72,23,184,8,null,null,1,{"$nulls":9},2,{"$nulls":3},3,null,2]
[39794,"Шкапенко А.А.","УПЦ","Обучение рабочих","Сварщик ручной дуговой сварки плавящимся покрытым электродом","Повышение квалификации (РАБ)","ПТК","(РАБ) Повышение квалификации на ПТК","1) - УПЦ","Очная (с отрывом от производства)","2024-09-09","2024-09-20","2024-09-23","2024-12-02","480",10,80,50,400,3,{"$nulls":9},1,{"$nulls":6},2]
[39793,"Шкапенко А.А.","УПЦ","Обучение рабочих","Специальная подготовка сварщиков (I уровень) Т, ПАК, КТС (группа технических устройств - НГДО)","Повышение квалификации (РАБ)","КЦН","(РАБ) Курсы целевого назначения (в части получения допуска к работе на опасных производственных объектах)","1) - УПЦ","Очная (с отрывом от производства)","2024-11-19","2024-11-22",null,null,"32",3,24,1,8,7,null,null,1,null,null,1,{"$nulls":3},1,1,null,1,null,1,null,1]
[39792,"Шкапенко А.А.","УПЦ","Обучение рабочих","Специальная подготовка сварщиков (I уровень) Т, ПАК, КТС (группа технических устройств - НГДО)","Повышение квалификации (РАБ)","СП","(РАБ) Курсы целевого назначения (в части получения допуска к работе на опасных производственных объектах)","1) - УПЦ","Очная (с отрывом от производства)","2024-11-05","2024-11-08",null,null,"32",3,24,1,8,12,null,1,null,1,2,1,2,null,null,1,1,1,1,{"$nulls":3},1]
[39791,"Шкапенко А.А.","УПЦ","Обучение рабочих","Подготовка к аттестации электрогазосварщиков на право выполнения сварочных и наплавочных работ при строительстве, изготовлении, монтаже и ремонте объектов и оборудования, подконтрольных Ростехнадзору","Повышение квалификации (РАБ)","СП","Прочие технические (ГНВП, сварочное, противопожарные и т.д.)","1), 2) - УПЦ","Очная (с отрывом от производства)","2024-07-09","2024-07-18",null,null,"64",8,64,0,0,12,null,null,2,{"$nulls":4},2,null,null,1,1,1,null,null,5]
[39790,"Шкапенко А.А.","УПЦ","Обучение рабочих","Подготовка к аттестации электрогазосварщиков на право выполнения сварочных и наплавочных работ при строительстве, изготовлении, монтаже и ремонте объектов и оборудования, подконтрольных Ростехнадзору","Повышение квалификации (РАБ)","СП","Прочие технические (ГНВП, сварочное, противопожарные и т.д.)","1), 2) - УПЦ","Очная (с отрывом от производства)","2024-06-18","2024-06-27",null,null,"64",8,64,0,0,10,null,1,1,null,2,1,{"$nulls":4},1,{"$nulls":4},3,1]
[39789,"Шкапенко А.А.","УПЦ","Обучение рабочих","Подготовка к аттестации электрогазосварщиков на право выполнения сварочных и наплавочных работ при строительстве, изготовлении, монтаже и ремонте объектов и оборудования, подконтрольных Ростехнадзору","Повышение квалификации (РАБ)","СП","Прочие технические (ГНВП, сварочное, противопожарные и т.д.)","1), 2) - УПЦ","Очная (с отрывом от производства)","2024-05-28","2024-06-06",null,null,"32",8,64,0,0,10,{"$nulls":3},1,1,2,null,1,{"$nulls":3},1,2,null,null,2]
[39788,"Шкапенко А.А.","УПЦ","Обучение рабочих","Подготовка к аттестации электрогазосварщиков на право выполнения сварочных и наплавочных работ при строительстве, изготовлении, монтаже и ремонте объектов и оборудования, подконтрольных Ростехнадзору","Повышение квалификации (РАБ)","СП","Прочие технические (ГНВП, сварочное, противопожарные и т.д.)","1), 2) - УПЦ","Очная (с отрывом от производства)","2024-04-09","2024-04-18",null,null,"32",8,64,0,0,11,null,1,1,null,2,null,null,1,null,1,{"$nulls":5},4,1]
[39787,"Шкапенко А.А.","УПЦ","Обучение рабочих","Подготовка к аттестации электрогазосварщиков на право выполнения сварочных и наплавочных работ при строительстве, изготовлении, монтаже и ремонте объектов и оборудования, подконтрольных Ростехнадзору","Повышение квалификации (РАБ)","СП","Прочие технические (ГНВП, сварочное, противопожарные и т.д.)","1), 2) - УПЦ","Очная (с отрывом от производства)","2024-02-13","2024-02-22",null,null,"32",6,64,0,0,14,{"$nulls":7},2,{"$nulls":6},2,6,4]
[39786,"Шкапенко А.А.","УПЦ","Обучение рабочих","Подготовка к аттестации электрогазосварщиков на право выполнения сварочных и наплавочных работ при строительстве, изготовлении, монтаже и ремонте объектов и оборудования, подконтрольных Ростехнадзору","Повышение квалификации (РАБ)","СП","Прочие технические (ГНВП, сварочное, противопожарные и т.д.)","1), 2) - УПЦ","Очная (с отрывом от производства)","2024-01-16","2024-01-25",null,null,32,88,64,0,0,14,null,1,1,{"$nulls":12},7,5]
[39765,"Ложкина Е.А.","УПЦ","Обучение ИТР","Психолого-педагогический минимум знаний для внештатных преподавателей","Повышение квалификации","Подготовка","Периодическое обучение по плану общеста/организации (руководители, специалисты, рабочие)","1) - УПЦ (5 дней),\n2), 3) - на рабочем месте (9 дней)","Очно-заочная ","2024-01-29","2024-02-15",null,null,76,14,76,0,0,20,6,null,1,1,1,1,null,3,null,null,1,1,2,null,null,1,1,null,1]
[39764,"Ложкина Е.А.","УПЦ","Обучение ИТР","Обучение мерам пожарной безопасности работников, ответственных за пожарную безопасность организации и проведение противопожарного инструктажа","Повышение квалификации","Подготовка","Прочие технические (ГНВП, сварочное, противопожарные и т.д.)","1) - на рабочем месте (4 дня), \n2) - ДОТ (2 дня)","Очно-заочная ","2024-05-16","2024-05-23",null,null,32,6,32,0,0,18,{"$nulls":7},3,2,{"$nulls":6},10,null,1,2]
[39763,"Ложкина Е.А.","УПЦ","Обучение ИТР","Обучение мерам пожарной безопасности работников, ответственных за пожарную безопасность организации и проведение противопожарного инструктажа","Повышение квалификации","Подготовка","Прочие технические (ГНВП, сварочное, противопожарные и т.д.)","1) - на рабочем месте (4 дня), \n2) - ДОТ (2 дня)","Очно-заочная ","2024-03-12","2024-03-19",null,null,32,6,32,0,0,28,null,3,7,1,null,7,null,1,null,2,null,2,5]
[39762,"Ложкина Е.А.","УПЦ","Обучение ИТР","Обучение мерам пожарной безопасности работников, ответственных за пожарную безопасность организации и проведение противопожарного инструктажа","Повышение квалификации","Подготовка","Прочие технические (ГНВП, сварочное, противопожарные и т.д.)","1) - на рабочем месте (4 дня), \n2) - ДОТ (2 дня)","Очно-заочная ","2024-01-18","2024-01-25",null,null,32,6,32,0,0,22,null,1,3,1,null,8,null,1,null,3,null,null,3,null,1,{"$nulls":3},1]
[39761,"Ложкина Е.А.","УПЦ","Обучение ИТР","Функционирование системы менеджмента качества","Повышение квалификации","Подготовка","Обязательное обучение","1) - УПЦ","Очная (с отрывом от производства)","2024-05-14","2024-05-15",null,null,16,2,16,0,0,24,null,8,null,1,2,2,2,1,null,1,1,2,2,{"$nulls":5},2]
[35273,"Ложкина Е.А.","УПЦ","Обучение ИТР","Функционирование системы экологического менеджмента ПАО \"Газпром\" в соответствии с требованиями ISO14001:2015","Повышение квалификации","Подготовка","Прочие экономические, медицинские и др. (таможенные, аудиторские и т.д.)","1) - ДОТ","Очная (с отрывом от производства)","2024-06-06","2024-06-07",null,null,16,2,16,0,0,28,5,null,2,null,3,null,null,4,{"$nulls":3},4,1,null,5,null,1,2,1]
[35271,"Ложкина Е.А.","УПЦ","Обучение ИТР","Обучение мерам пожарной безопасности работников, ответственных за пожарную безопасность организации и проведение противопожарного инструктажа","Повышение квалификации","Подготовка","Прочие технические (ГНВП, сварочное, противопожарные и т.д.)","1) - на рабочем месте (4 дня), 2) - ДОТ (2 дня)","Очно-заочная ","2024-11-07","2024-11-14",null,null,32,6,32,0,0,27,null,3,3,null,null,11,{"$nulls":3},1,null,3,4,null,2]
[35262,"Ложкина Е.А.","УПЦ","Обучение ИТР","Функционирование системы энергетического менеджмента ПАО Газпром в соответствии с требованиями ISO 50001:2018","Повышение квалификации","Подготовка","Прочие экономические, медицинские и др. (таможенные, аудиторские и т.д.)","1) - ДОТ","Очная (с отрывом от производства)","2024-09-18","2024-09-19",null,null,16,2,16,0,0,11,{"$nulls":8},5,null,null,2,1,null,null,1,null,1,1]
[34243,"Шкапенко А.А.","УПЦ","Обучение рабочих","Методы контроля сварных соединений (40 ч)","Повышение квалификации (РАБ)","КЦН","Другие целевые программы (руководители, специалисты, рабочие)","УПЦ","Очная (с отрывом от производства)","2024-10-28","2024-11-01",null,null,"40",5,40,0,0,8,{"$nulls":7},8]
[45075,"Вшивцева О.В.","УПЦ","Обучение ИТР","Строительный контроль за качеством строительства, реконструкции и капитального ремонта объектов магистральных газопроводов ООО «Газпром трансгаз Чайковский»  Модуль 0 «Общие положения по ведению строительного контроля», «Производственная безопасность»","Повышение квалификации","Подготовка","Другие целевые программы (строительный контроль)","1) -УПЦ","Очная (с отрывом от производства)","2023-03-18","2023-03-22"]
[47880,"Полякова Т.В.","УПЦ","Обучение ИТР","Поведенческий аудит безопасности. Правила проведения","Повышение квалификации","Подготовка","Другие целевые программы (руководители, специалисты, рабочие)","1) - ДОТ","Очная (с отрывом от производства)","2023-02-25","2024-03-27",null,null,"24",3,24,0,0]
[47881,"Полякова Т.В.","УПЦ","Обучение ИТР","Поведенческий аудит безопасности. Правила проведения","Повышение квалификации","Подготовка","Другие целевые программы (руководители, специалисты, рабочие)","1) - ДОТ","Очная (с отрывом от производства)","2024-06-24","2024-06-26",null,null,"24",3,24,0,0]
[48153,"Ложкина Е.А.","УПЦ","Обучение ИТР","Функционирование системы экологического менеджмента ПАО \"Газпром\" в соответствии с требованиями ISO14001:2015","Повышение квалификации","Подготовка","Прочие экономические, медицинские и др. (таможенные, аудиторские и т.д.)","1) - ДОТ","Очная (с отрывом от производства)","2024-10-30","2024-10-31",null,null,"16",2,16,0,0]